Workbook

Sheet 必ずこのシートから始めてください
D3: 空調年間活動量算定ツール(空冷HPチラー版) | M3: Ver.1.0
C5: 電気式空冷ウォーターチリングユニットの年間電力使用量の算定
D8: ここから スタート | E8: 空冷HPチラーを設置する都道府県を選択 | K8: 選択
D10: γ 既定値 | E10: 選択した都道府県庁所在地 | K10: 自動表示 | L10: =IF($L$8="","",VLOOKUP($L$8,γ一覧表!$C$3:$F$50,2,FALSE)) -> 
E12: 都道府県庁所在地の【暖・冷房負荷比：γ値】 | K12: 自動表示 | L12: =IF($L$8="","",VLOOKUP($L$8,γ一覧表!$C$3:$F$50,3,FALSE)) -> 
E14: 表示された【γ値】で使用するシート | K14: 自動表示 | L14: =IF($L$8="","",VLOOKUP($L$8,γ一覧表!$C$3:$F$50,4,FALSE)) -> 
D16: 使用するシートを選択(各シートが開く)
G17: 温暖地(γ既定値) | I17: 寒冷地(γ既定値)
D20: 都道府県庁所在地と気候条件が大きく異なる場合、以下にγ値を入力し、表示されたシートを使用
D22: γ 個別入力 | E22: 都道府県庁所在地の既定値以外を使用する場合の【γ値】 | K22: 入力 | N22: =ROUNDUP($L$22,1) -> 0
E24: 入力した【γ値】で使用するシート | K24: 自動表示 | L24: =IF($L$22="","",VLOOKUP($N$22,γ一覧表!$I$3:$J$50,2)) -> 
D26: 使用するシートを選択(各シートが開く)
G27: 温暖地(γ個別入力) | I27: 寒冷地(γ個別入力)
D30: 注意事項 | E30: ●【γ値】とは設備設計時の空調負荷計算における最大暖房負荷と最大冷房負荷の比率。
E31: 負荷の大きな方で空調機の機種選定がなされたものとする。冷房負荷に対して選択した場合はγ≦1である。
E32: ● 本ツールは、設備更新の効果を簡易的に把握するために開発されたものであり、他の目的に利用することは想定されていません。
E33: ● あらゆる入力に対して正しい計算結果が得られることを保証するものではありません。
E34: 計算結果の取り扱いについては、自己責任でお願いします。

Sheet 温暖地(γ既定値)
C2: 空冷HPチラーの設置場所
C3: =IF(必ずこのシートから始めてください!$L$8="","",必ずこのシートから始めてください!$L$8) ->  | F3: 手順1：空調を行う月、時間を下記の指定の色で塗る(指定の色以外で塗ると計算できません。)
C4: =VLOOKUP($C$3,γ一覧表!$C$3:$E$50,2,FALSE) ->  | G4: 冷却 | H4: 青 | I4: 【左から5列目、一番薄い色(アクセント1,白＋基本色80％)】
G5: 加熱 | H5: オレンジ | I5: 【左から6番目、一番薄い色(アクセント2,白＋基本色80％)】
C6: 使用するγ値 | F6: 手順2：各月の運転日数を入力する
C7: =IFERROR(IF(VLOOKUP($C$3,γ一覧表!$C$3:$E$50,3,FALSE)>1,"---",IFERROR(VLOOKUP($C$3,γ一覧表!$C$3:$E$50,3,FALSE),"---")),"---") -> --- | F7: 手順3：Ctrl + Alt + F9を同時に押す | R7: ●時刻別平均気温表記載の数値は、選択された都道府県の県庁所在地の月別、時刻別平均気温
F8: 手順4：黄色のセルに値を入力する(緑は自動計算) | R8: ●本データは気象庁発表の1992年4月1日から2022年3月31日までの30年の1時間データを整理したもの
C9: 時刻別平均気温[℃] | R9: ●2月はうるう日を含みます
D10: 時刻 | AB10: =SUM(AB12:AB23) -> 0 | AC10: =必ずこのシートから始めてください!$M$3 -> Ver.1.0
C11: 月 | D11: 0 | E11: 1 | F11: 2 | G11: 3 | H11: 4 | I11: 5 | J11: 6 | K11: 7 | L11: 8 | M11: 9 | N11: 10 | O11: 11 | P11: 12 | Q11: 13 | R11: 14 | S11: 15 | T11: 16 | U11: 17 | V11: 18 | W11: 19 | X11: 20 | Y11: 21 | Z11: 22 | AA11: 23 | AB11: 運転日数 | AC11: 月
C12: 4 | D12: =IFERROR(INDIRECT($C$4&"!B5"),"") ->  | E12: =IFERROR(INDIRECT($C$4&"!C5"),"") ->  | F12: =IFERROR(INDIRECT($C$4&"!D5"),"") ->  | G12: =IFERROR(INDIRECT($C$4&"!E5"),"") ->  | H12: =IFERROR(INDIRECT($C$4&"!F5"),"") ->  | I12: =IFERROR(INDIRECT($C$4&"!G5"),"") ->  | J12: =IFERROR(INDIRECT($C$4&"!H5"),"") ->  | K12: =IFERROR(INDIRECT($C$4&"!I5"),"") ->  | L12: =IFERROR(INDIRECT($C$4&"!J5"),"") ->  | M12: =IFERROR(INDIRECT($C$4&"!K5"),"") ->  | N12: =IFERROR(INDIRECT($C$4&"!L5"),"") ->  | O12: =IFERROR(INDIRECT($C$4&"!M5"),"") ->  | P12: =IFERROR(INDIRECT($C$4&"!N5"),"") ->  | Q12: =IFERROR(INDIRECT($C$4&"!O5"),"") ->  | R12: =IFERROR(INDIRECT($C$4&"!P5"),"") ->  | S12: =IFERROR(INDIRECT($C$4&"!Q5"),"") ->  | T12: =IFERROR(INDIRECT($C$4&"!R5"),"") ->  | U12: =IFERROR(INDIRECT($C$4&"!S5"),"") ->  | V12: =IFERROR(INDIRECT($C$4&"!T5"),"") ->  | W12: =IFERROR(INDIRECT($C$4&"!U5"),"") ->  | X12: =IFERROR(INDIRECT($C$4&"!V5"),"") ->  | Y12: =IFERROR(INDIRECT($C$4&"!W5"),"") ->  | Z12: =IFERROR(INDIRECT($C$4&"!X5"),"") ->  | AA12: =IFERROR(INDIRECT($C$4&"!Y5"),"") ->  | AC12: 4
C13: 5 | D13: =IFERROR(INDIRECT($C$4&"!B6"),"") ->  | E13: =IFERROR(INDIRECT($C$4&"!C6"),"") ->  | F13: =IFERROR(INDIRECT($C$4&"!D6"),"") ->  | G13: =IFERROR(INDIRECT($C$4&"!E6"),"") ->  | H13: =IFERROR(INDIRECT($C$4&"!F6"),"") ->  | I13: =IFERROR(INDIRECT($C$4&"!G6"),"") ->  | J13: =IFERROR(INDIRECT($C$4&"!H6"),"") ->  | K13: =IFERROR(INDIRECT($C$4&"!I6"),"") ->  | L13: =IFERROR(INDIRECT($C$4&"!J6"),"") ->  | M13: =IFERROR(INDIRECT($C$4&"!K6"),"") ->  | N13: =IFERROR(INDIRECT($C$4&"!L6"),"") ->  | O13: =IFERROR(INDIRECT($C$4&"!M6"),"") ->  | P13: =IFERROR(INDIRECT($C$4&"!N6"),"") ->  | Q13: =IFERROR(INDIRECT($C$4&"!O6"),"") ->  | R13: =IFERROR(INDIRECT($C$4&"!P6"),"") ->  | S13: =IFERROR(INDIRECT($C$4&"!Q6"),"") ->  | T13: =IFERROR(INDIRECT($C$4&"!R6"),"") ->  | U13: =IFERROR(INDIRECT($C$4&"!S6"),"") ->  | V13: =IFERROR(INDIRECT($C$4&"!T6"),"") ->  | W13: =IFERROR(INDIRECT($C$4&"!U6"),"") ->  | X13: =IFERROR(INDIRECT($C$4&"!V6"),"") ->  | Y13: =IFERROR(INDIRECT($C$4&"!W6"),"") ->  | Z13: =IFERROR(INDIRECT($C$4&"!X6"),"") ->  | AA13: =IFERROR(INDIRECT($C$4&"!Y6"),"") ->  | AC13: 5
C14: 6 | D14: =IFERROR(INDIRECT($C$4&"!B7"),"") ->  | E14: =IFERROR(INDIRECT($C$4&"!C7"),"") ->  | F14: =IFERROR(INDIRECT($C$4&"!D7"),"") ->  | G14: =IFERROR(INDIRECT($C$4&"!E7"),"") ->  | H14: =IFERROR(INDIRECT($C$4&"!F7"),"") ->  | I14: =IFERROR(INDIRECT($C$4&"!G7"),"") ->  | J14: =IFERROR(INDIRECT($C$4&"!H7"),"") ->  | K14: =IFERROR(INDIRECT($C$4&"!I7"),"") ->  | L14: =IFERROR(INDIRECT($C$4&"!J7"),"") ->  | M14: =IFERROR(INDIRECT($C$4&"!K7"),"") ->  | N14: =IFERROR(INDIRECT($C$4&"!L7"),"") ->  | O14: =IFERROR(INDIRECT($C$4&"!M7"),"") ->  | P14: =IFERROR(INDIRECT($C$4&"!N7"),"") ->  | Q14: =IFERROR(INDIRECT($C$4&"!O7"),"") ->  | R14: =IFERROR(INDIRECT($C$4&"!P7"),"") ->  | S14: =IFERROR(INDIRECT($C$4&"!Q7"),"") ->  | T14: =IFERROR(INDIRECT($C$4&"!R7"),"") ->  | U14: =IFERROR(INDIRECT($C$4&"!S7"),"") ->  | V14: =IFERROR(INDIRECT($C$4&"!T7"),"") ->  | W14: =IFERROR(INDIRECT($C$4&"!U7"),"") ->  | X14: =IFERROR(INDIRECT($C$4&"!V7"),"") ->  | Y14: =IFERROR(INDIRECT($C$4&"!W7"),"") ->  | Z14: =IFERROR(INDIRECT($C$4&"!X7"),"") ->  | AA14: =IFERROR(INDIRECT($C$4&"!Y7"),"") ->  | AC14: 6
C15: 7 | D15: =IFERROR(INDIRECT($C$4&"!B8"),"") ->  | E15: =IFERROR(INDIRECT($C$4&"!C8"),"") ->  | F15: =IFERROR(INDIRECT($C$4&"!D8"),"") ->  | G15: =IFERROR(INDIRECT($C$4&"!E8"),"") ->  | H15: =IFERROR(INDIRECT($C$4&"!F8"),"") ->  | I15: =IFERROR(INDIRECT($C$4&"!G8"),"") ->  | J15: =IFERROR(INDIRECT($C$4&"!H8"),"") ->  | K15: =IFERROR(INDIRECT($C$4&"!I8"),"") ->  | L15: =IFERROR(INDIRECT($C$4&"!J8"),"") ->  | M15: =IFERROR(INDIRECT($C$4&"!K8"),"") ->  | N15: =IFERROR(INDIRECT($C$4&"!L8"),"") ->  | O15: =IFERROR(INDIRECT($C$4&"!M8"),"") ->  | P15: =IFERROR(INDIRECT($C$4&"!N8"),"") ->  | Q15: =IFERROR(INDIRECT($C$4&"!O8"),"") ->  | R15: =IFERROR(INDIRECT($C$4&"!P8"),"") ->  | S15: =IFERROR(INDIRECT($C$4&"!Q8"),"") ->  | T15: =IFERROR(INDIRECT($C$4&"!R8"),"") ->  | U15: =IFERROR(INDIRECT($C$4&"!S8"),"") ->  | V15: =IFERROR(INDIRECT($C$4&"!T8"),"") ->  | W15: =IFERROR(INDIRECT($C$4&"!U8"),"") ->  | X15: =IFERROR(INDIRECT($C$4&"!V8"),"") ->  | Y15: =IFERROR(INDIRECT($C$4&"!W8"),"") ->  | Z15: =IFERROR(INDIRECT($C$4&"!X8"),"") ->  | AA15: =IFERROR(INDIRECT($C$4&"!Y8"),"") ->  | AC15: 7
C16: 8 | D16: =IFERROR(INDIRECT($C$4&"!B9"),"") ->  | E16: =IFERROR(INDIRECT($C$4&"!C9"),"") ->  | F16: =IFERROR(INDIRECT($C$4&"!D9"),"") ->  | G16: =IFERROR(INDIRECT($C$4&"!E9"),"") ->  | H16: =IFERROR(INDIRECT($C$4&"!F9"),"") ->  | I16: =IFERROR(INDIRECT($C$4&"!G9"),"") ->  | J16: =IFERROR(INDIRECT($C$4&"!H9"),"") ->  | K16: =IFERROR(INDIRECT($C$4&"!I9"),"") ->  | L16: =IFERROR(INDIRECT($C$4&"!J9"),"") ->  | M16: =IFERROR(INDIRECT($C$4&"!K9"),"") ->  | N16: =IFERROR(INDIRECT($C$4&"!L9"),"") ->  | O16: =IFERROR(INDIRECT($C$4&"!M9"),"") ->  | P16: =IFERROR(INDIRECT($C$4&"!N9"),"") ->  | Q16: =IFERROR(INDIRECT($C$4&"!O9"),"") ->  | R16: =IFERROR(INDIRECT($C$4&"!P9"),"") ->  | S16: =IFERROR(INDIRECT($C$4&"!Q9"),"") ->  | T16: =IFERROR(INDIRECT($C$4&"!R9"),"") ->  | U16: =IFERROR(INDIRECT($C$4&"!S9"),"") ->  | V16: =IFERROR(INDIRECT($C$4&"!T9"),"") ->  | W16: =IFERROR(INDIRECT($C$4&"!U9"),"") ->  | X16: =IFERROR(INDIRECT($C$4&"!V9"),"") ->  | Y16: =IFERROR(INDIRECT($C$4&"!W9"),"") ->  | Z16: =IFERROR(INDIRECT($C$4&"!X9"),"") ->  | AA16: =IFERROR(INDIRECT($C$4&"!Y9"),"") ->  | AC16: 8
C17: 9 | D17: =IFERROR(INDIRECT($C$4&"!B10"),"") ->  | E17: =IFERROR(INDIRECT($C$4&"!C10"),"") ->  | F17: =IFERROR(INDIRECT($C$4&"!D10"),"") ->  | G17: =IFERROR(INDIRECT($C$4&"!E10"),"") ->  | H17: =IFERROR(INDIRECT($C$4&"!F10"),"") ->  | I17: =IFERROR(INDIRECT($C$4&"!G10"),"") ->  | J17: =IFERROR(INDIRECT($C$4&"!H10"),"") ->  | K17: =IFERROR(INDIRECT($C$4&"!I10"),"") ->  | L17: =IFERROR(INDIRECT($C$4&"!J10"),"") ->  | M17: =IFERROR(INDIRECT($C$4&"!K10"),"") ->  | N17: =IFERROR(INDIRECT($C$4&"!L10"),"") ->  | O17: =IFERROR(INDIRECT($C$4&"!M10"),"") ->  | P17: =IFERROR(INDIRECT($C$4&"!N10"),"") ->  | Q17: =IFERROR(INDIRECT($C$4&"!O10"),"") ->  | R17: =IFERROR(INDIRECT($C$4&"!P10"),"") ->  | S17: =IFERROR(INDIRECT($C$4&"!Q10"),"") ->  | T17: =IFERROR(INDIRECT($C$4&"!R10"),"") ->  | U17: =IFERROR(INDIRECT($C$4&"!S10"),"") ->  | V17: =IFERROR(INDIRECT($C$4&"!T10"),"") ->  | W17: =IFERROR(INDIRECT($C$4&"!U10"),"") ->  | X17: =IFERROR(INDIRECT($C$4&"!V10"),"") ->  | Y17: =IFERROR(INDIRECT($C$4&"!W10"),"") ->  | Z17: =IFERROR(INDIRECT($C$4&"!X10"),"") ->  | AA17: =IFERROR(INDIRECT($C$4&"!Y10"),"") ->  | AC17: 9
C18: 10 | D18: =IFERROR(INDIRECT($C$4&"!B11"),"") ->  | E18: =IFERROR(INDIRECT($C$4&"!C11"),"") ->  | F18: =IFERROR(INDIRECT($C$4&"!D11"),"") ->  | G18: =IFERROR(INDIRECT($C$4&"!E11"),"") ->  | H18: =IFERROR(INDIRECT($C$4&"!F11"),"") ->  | I18: =IFERROR(INDIRECT($C$4&"!G11"),"") ->  | J18: =IFERROR(INDIRECT($C$4&"!H11"),"") ->  | K18: =IFERROR(INDIRECT($C$4&"!I11"),"") ->  | L18: =IFERROR(INDIRECT($C$4&"!J11"),"") ->  | M18: =IFERROR(INDIRECT($C$4&"!K11"),"") ->  | N18: =IFERROR(INDIRECT($C$4&"!L11"),"") ->  | O18: =IFERROR(INDIRECT($C$4&"!M11"),"") ->  | P18: =IFERROR(INDIRECT($C$4&"!N11"),"") ->  | Q18: =IFERROR(INDIRECT($C$4&"!O11"),"") ->  | R18: =IFERROR(INDIRECT($C$4&"!P11"),"") ->  | S18: =IFERROR(INDIRECT($C$4&"!Q11"),"") ->  | T18: =IFERROR(INDIRECT($C$4&"!R11"),"") ->  | U18: =IFERROR(INDIRECT($C$4&"!S11"),"") ->  | V18: =IFERROR(INDIRECT($C$4&"!T11"),"") ->  | W18: =IFERROR(INDIRECT($C$4&"!U11"),"") ->  | X18: =IFERROR(INDIRECT($C$4&"!V11"),"") ->  | Y18: =IFERROR(INDIRECT($C$4&"!W11"),"") ->  | Z18: =IFERROR(INDIRECT($C$4&"!X11"),"") ->  | AA18: =IFERROR(INDIRECT($C$4&"!Y11"),"") ->  | AC18: 10
C19: 11 | D19: =IFERROR(INDIRECT($C$4&"!B12"),"") ->  | E19: =IFERROR(INDIRECT($C$4&"!C12"),"") ->  | F19: =IFERROR(INDIRECT($C$4&"!D12"),"") ->  | G19: =IFERROR(INDIRECT($C$4&"!E12"),"") ->  | H19: =IFERROR(INDIRECT($C$4&"!F12"),"") ->  | I19: =IFERROR(INDIRECT($C$4&"!G12"),"") ->  | J19: =IFERROR(INDIRECT($C$4&"!H12"),"") ->  | K19: =IFERROR(INDIRECT($C$4&"!I12"),"") ->  | L19: =IFERROR(INDIRECT($C$4&"!J12"),"") ->  | M19: =IFERROR(INDIRECT($C$4&"!K12"),"") ->  | N19: =IFERROR(INDIRECT($C$4&"!L12"),"") ->  | O19: =IFERROR(INDIRECT($C$4&"!M12"),"") ->  | P19: =IFERROR(INDIRECT($C$4&"!N12"),"") ->  | Q19: =IFERROR(INDIRECT($C$4&"!O12"),"") ->  | R19: =IFERROR(INDIRECT($C$4&"!P12"),"") ->  | S19: =IFERROR(INDIRECT($C$4&"!Q12"),"") ->  | T19: =IFERROR(INDIRECT($C$4&"!R12"),"") ->  | U19: =IFERROR(INDIRECT($C$4&"!S12"),"") ->  | V19: =IFERROR(INDIRECT($C$4&"!T12"),"") ->  | W19: =IFERROR(INDIRECT($C$4&"!U12"),"") ->  | X19: =IFERROR(INDIRECT($C$4&"!V12"),"") ->  | Y19: =IFERROR(INDIRECT($C$4&"!W12"),"") ->  | Z19: =IFERROR(INDIRECT($C$4&"!X12"),"") ->  | AA19: =IFERROR(INDIRECT($C$4&"!Y12"),"") ->  | AC19: 11
C20: 12 | D20: =IFERROR(INDIRECT($C$4&"!B13"),"") ->  | E20: =IFERROR(INDIRECT($C$4&"!C13"),"") ->  | F20: =IFERROR(INDIRECT($C$4&"!D13"),"") ->  | G20: =IFERROR(INDIRECT($C$4&"!E13"),"") ->  | H20: =IFERROR(INDIRECT($C$4&"!F13"),"") ->  | I20: =IFERROR(INDIRECT($C$4&"!G13"),"") ->  | J20: =IFERROR(INDIRECT($C$4&"!H13"),"") ->  | K20: =IFERROR(INDIRECT($C$4&"!I13"),"") ->  | L20: =IFERROR(INDIRECT($C$4&"!J13"),"") ->  | M20: =IFERROR(INDIRECT($C$4&"!K13"),"") ->  | N20: =IFERROR(INDIRECT($C$4&"!L13"),"") ->  | O20: =IFERROR(INDIRECT($C$4&"!M13"),"") ->  | P20: =IFERROR(INDIRECT($C$4&"!N13"),"") ->  | Q20: =IFERROR(INDIRECT($C$4&"!O13"),"") ->  | R20: =IFERROR(INDIRECT($C$4&"!P13"),"") ->  | S20: =IFERROR(INDIRECT($C$4&"!Q13"),"") ->  | T20: =IFERROR(INDIRECT($C$4&"!R13"),"") ->  | U20: =IFERROR(INDIRECT($C$4&"!S13"),"") ->  | V20: =IFERROR(INDIRECT($C$4&"!T13"),"") ->  | W20: =IFERROR(INDIRECT($C$4&"!U13"),"") ->  | X20: =IFERROR(INDIRECT($C$4&"!V13"),"") ->  | Y20: =IFERROR(INDIRECT($C$4&"!W13"),"") ->  | Z20: =IFERROR(INDIRECT($C$4&"!X13"),"") ->  | AA20: =IFERROR(INDIRECT($C$4&"!Y13"),"") ->  | AC20: 12
C21: 1 | D21: =IFERROR(INDIRECT($C$4&"!B14"),"") ->  | E21: =IFERROR(INDIRECT($C$4&"!C14"),"") ->  | F21: =IFERROR(INDIRECT($C$4&"!D14"),"") ->  | G21: =IFERROR(INDIRECT($C$4&"!E14"),"") ->  | H21: =IFERROR(INDIRECT($C$4&"!F14"),"") ->  | I21: =IFERROR(INDIRECT($C$4&"!G14"),"") ->  | J21: =IFERROR(INDIRECT($C$4&"!H14"),"") ->  | K21: =IFERROR(INDIRECT($C$4&"!I14"),"") ->  | L21: =IFERROR(INDIRECT($C$4&"!J14"),"") ->  | M21: =IFERROR(INDIRECT($C$4&"!K14"),"") ->  | N21: =IFERROR(INDIRECT($C$4&"!L14"),"") ->  | O21: =IFERROR(INDIRECT($C$4&"!M14"),"") ->  | P21: =IFERROR(INDIRECT($C$4&"!N14"),"") ->  | Q21: =IFERROR(INDIRECT($C$4&"!O14"),"") ->  | R21: =IFERROR(INDIRECT($C$4&"!P14"),"") ->  | S21: =IFERROR(INDIRECT($C$4&"!Q14"),"") ->  | T21: =IFERROR(INDIRECT($C$4&"!R14"),"") ->  | U21: =IFERROR(INDIRECT($C$4&"!S14"),"") ->  | V21: =IFERROR(INDIRECT($C$4&"!T14"),"") ->  | W21: =IFERROR(INDIRECT($C$4&"!U14"),"") ->  | X21: =IFERROR(INDIRECT($C$4&"!V14"),"") ->  | Y21: =IFERROR(INDIRECT($C$4&"!W14"),"") ->  | Z21: =IFERROR(INDIRECT($C$4&"!X14"),"") ->  | AA21: =IFERROR(INDIRECT($C$4&"!Y14"),"") ->  | AC21: 1
C22: 2 | D22: =IFERROR(INDIRECT($C$4&"!B15"),"") ->  | E22: =IFERROR(INDIRECT($C$4&"!C15"),"") ->  | F22: =IFERROR(INDIRECT($C$4&"!D15"),"") ->  | G22: =IFERROR(INDIRECT($C$4&"!E15"),"") ->  | H22: =IFERROR(INDIRECT($C$4&"!F15"),"") ->  | I22: =IFERROR(INDIRECT($C$4&"!G15"),"") ->  | J22: =IFERROR(INDIRECT($C$4&"!H15"),"") ->  | K22: =IFERROR(INDIRECT($C$4&"!I15"),"") ->  | L22: =IFERROR(INDIRECT($C$4&"!J15"),"") ->  | M22: =IFERROR(INDIRECT($C$4&"!K15"),"") ->  | N22: =IFERROR(INDIRECT($C$4&"!L15"),"") ->  | O22: =IFERROR(INDIRECT($C$4&"!M15"),"") ->  | P22: =IFERROR(INDIRECT($C$4&"!N15"),"") ->  | Q22: =IFERROR(INDIRECT($C$4&"!O15"),"") ->  | R22: =IFERROR(INDIRECT($C$4&"!P15"),"") ->  | S22: =IFERROR(INDIRECT($C$4&"!Q15"),"") ->  | T22: =IFERROR(INDIRECT($C$4&"!R15"),"") ->  | U22: =IFERROR(INDIRECT($C$4&"!S15"),"") ->  | V22: =IFERROR(INDIRECT($C$4&"!T15"),"") ->  | W22: =IFERROR(INDIRECT($C$4&"!U15"),"") ->  | X22: =IFERROR(INDIRECT($C$4&"!V15"),"") ->  | Y22: =IFERROR(INDIRECT($C$4&"!W15"),"") ->  | Z22: =IFERROR(INDIRECT($C$4&"!X15"),"") ->  | AA22: =IFERROR(INDIRECT($C$4&"!Y15"),"") ->  | AC22: 2
C23: 3 | D23: =IFERROR(INDIRECT($C$4&"!B16"),"") ->  | E23: =IFERROR(INDIRECT($C$4&"!C16"),"") ->  | F23: =IFERROR(INDIRECT($C$4&"!D16"),"") ->  | G23: =IFERROR(INDIRECT($C$4&"!E16"),"") ->  | H23: =IFERROR(INDIRECT($C$4&"!F16"),"") ->  | I23: =IFERROR(INDIRECT($C$4&"!G16"),"") ->  | J23: =IFERROR(INDIRECT($C$4&"!H16"),"") ->  | K23: =IFERROR(INDIRECT($C$4&"!I16"),"") ->  | L23: =IFERROR(INDIRECT($C$4&"!J16"),"") ->  | M23: =IFERROR(INDIRECT($C$4&"!K16"),"") ->  | N23: =IFERROR(INDIRECT($C$4&"!L16"),"") ->  | O23: =IFERROR(INDIRECT($C$4&"!M16"),"") ->  | P23: =IFERROR(INDIRECT($C$4&"!N16"),"") ->  | Q23: =IFERROR(INDIRECT($C$4&"!O16"),"") ->  | R23: =IFERROR(INDIRECT($C$4&"!P16"),"") ->  | S23: =IFERROR(INDIRECT($C$4&"!Q16"),"") ->  | T23: =IFERROR(INDIRECT($C$4&"!R16"),"") ->  | U23: =IFERROR(INDIRECT($C$4&"!S16"),"") ->  | V23: =IFERROR(INDIRECT($C$4&"!T16"),"") ->  | W23: =IFERROR(INDIRECT($C$4&"!U16"),"") ->  | X23: =IFERROR(INDIRECT($C$4&"!V16"),"") ->  | Y23: =IFERROR(INDIRECT($C$4&"!W16"),"") ->  | Z23: =IFERROR(INDIRECT($C$4&"!X16"),"") ->  | AA23: =IFERROR(INDIRECT($C$4&"!Y16"),"") ->  | AC23: 3
T25: 定格条件 【外気温度】 | V25: 冷却 | W25: 35℃ | Y25: 定格条件 【冷温水温度】 | AA25: 冷却 | AB25: 入口温度 | AC25: 12℃ | AD25: 加熱 | AE25: 入口温度 | AF25: 40℃
V26: 加熱 | W26: 7℃ | AB26: 出口温度 | AC26: 7℃ | AE26: 出口温度 | AF26: 45℃
D28: 設備導入前 | Q28: 前1 | R28: 前2 | S28: 前3
E29: 定格冷却能力 | I29: 空冷HPチラーの仕様を入力 | P29: Φco | Q29: 150 | T29: kW
E30: 定格冷却消費電力 | I30: 空冷HPチラーの仕様を入力 | P30: Pco | Q30: 43 | T30: kW
E31: 定格冷却COP | I31: 自動計算 | P31: σco | Q31: =IFERROR(Q$29/Q$30,"") -> 3.488372093 | R31: =IFERROR(R$29/R$30,"") ->  | S31: =IFERROR(S$29/S$30,"") ->  | T31: σco＝Φco／Pco
E32: 定格加熱能力 | I32: 空冷HPチラーの仕様を入力 | P32: Φwo | Q32: 150 | T32: kW
E33: 定格加熱消費電力 | I33: 空冷HPチラーの仕様を入力 | P33: Pwo | Q33: 41.2 | T33: kW
E34: 定格加熱COP | I34: 自動計算 | P34: σwo | Q34: =IFERROR(Q$32/Q$33,"") -> 3.640776699 | R34: =IFERROR(R$32/R$33,"") ->  | S34: =IFERROR(S$32/S$33,"") ->  | T34: σwo＝Φwo／Pwo
E35: 冷温水ポンプモータ定格出力 | I35: 空冷HPチラーの仕様を入力 | P35: Pp2 | Q35: 3.7 | T35: kW
E36: 最大冷却負荷 | I36: 設計時の値を入力（不明の際は空白のまま） | P36: Qc | T36: kW
Q37: =IF($Q$36="",0.8,IF($Q$36=0,0.8,IF($Q$29<$Q$36,1,$Q$36/$Q$29))) -> 0.8 | R37: =IF($R$36="",0.8,IF($R$36=0,0.8,IF($R$29<$R$36,1,$R$36/$R$29))) -> 0.8 | S37: =IF($S$36="",0.8,IF($S$36=0,0.8,IF($S$29<$S$36,1,$S$36/$S$29))) -> 0.8
D42: 設備導入後 | Q42: 後1 | R42: 後2 | S42: 後3
E43: 定格冷却能力 | I43: 空冷HPチラーの仕様を入力 | P43: Φco | T43: kW
E44: 定格冷却消費電力 | I44: 空冷HPチラーの仕様を入力 | P44: Pco | T44: kW
E45: 定格冷却COP | I45: 自動計算 | P45: σco | Q45: =IFERROR(Q$43/Q$44,"") ->  | R45: =IFERROR(R$43/R$44,"") ->  | S45: =IFERROR(S$43/S$44,"") ->  | T45: σco＝Φco／Pco
E46: 定格加熱能力 | I46: 空冷HPチラーの仕様を入力 | P46: Φwo | T46: kW
E47: 定格加熱消費電力 | I47: 空冷HPチラーの仕様を入力 | P47: Pwo | T47: kW
E48: 定格加熱COP | I48: 自動計算 | P48: σwo | Q48: =IFERROR(Q$46/Q$47,"") ->  | R48: =IFERROR(R$46/R$47,"") ->  | S48: =IFERROR(S$46/S$47,"") ->  | T48: σwo＝Φwo／Pwo
E49: 冷温水ポンプモータ定格出力 | I49: 空冷HPチラーの仕様を入力 | P49: Pp2 | T49: kW
E50: 最大冷却負荷 | I50: 設計時の値を入力（不明の際は空白のまま） | P50: Qc | T50: kW
Q51: =IF($Q$50="",0.8,IF($Q$50=0,0.8,IF($Q$43<$Q$50,1,$Q$50/$Q$43))) -> 0.8 | R51: =IF($R$50="",0.8,IF($R$50=0,0.8,IF($R$43<$R$50,1,$R$50/$R$43))) -> 0.8 | S51: =IF($S$50="",0.8,IF($S$50=0,0.8,IF($S$43<$S$50,1,$S$50/$S$43))) -> 0.8
C56: 設備導入前年間電力使用量[kWh]
D57: 冷却(Ec) | F57: 加熱(Ew) | H57: 合計(Ecw)
D58: =IFERROR($F$74+$M$74+$T$74,"") -> 0 | F58: =IFERROR($I$74+$P$74+$W$74,"") -> 0 | H58: =IFERROR($J$74+$Q$74+$X$74,"") -> 0
D60: 前1 | K60: 前2 | R60: 前3
C61: 月 期間 | D61: 主機(Ecc) | E61: 補機(Eaxc) | F61: 全体(Ec) | G61: 主機(Eww) | H61: 補機(Eaxw) | I61: 全体(Ew) | J61: 月合計 | K61: 主機(Ecc) | L61: 補機(Eaxc) | M61: 全体(Ec) | N61: 主機(Eww) | O61: 補機(Eaxw) | P61: 全体(Ew) | Q61: 月合計 | R61: 主機(Ecc) | S61: 補機(Eaxc) | T61: 全体(Ec) | U61: 主機(Eww) | V61: 補機(Eaxw) | W61: 全体(Ew) | X61: 月合計
C62: 4 | D62: =IF($C$7="---","",IFERROR(AX149,"")) ->  | E62: =IF($C$7="---","",IFERROR(AY149,"")) ->  | G62: =IF($C$7="---","",IFERROR(AX170,"")) ->  | H62: =IF($C$7="---","",IFERROR(AY170,"")) ->  | I62: =IF($C$7="---","",IFERROR(AZ170,"")) ->  | J62: =IFERROR(SUM(F62+I62),"") ->  | K62: =IF($C$7="---","",IFERROR($BA149,"")) ->  | L62: =IF($C$7="---","",IFERROR($BB149,"")) ->  | M62: =IF($C$7="---","",IFERROR($BC149,"")) ->  | N62: =IF($C$7="---","",IFERROR(BA170,"")) ->  | O62: =IF($C$7="---","",IFERROR(BB170,"")) ->  | P62: =IF($C$7="---","",IFERROR(BC170,"")) ->  | Q62: =IFERROR(SUM(M62+P62),"") ->  | R62: =IF($C$7="---","",IFERROR($BD149,"")) ->  | S62: =IF($C$7="---","",IFERROR($BE149,"")) ->  | T62: =IF($C$7="---","",IFERROR($BF149,"")) ->  | U62: =IF($C$7="---","",IFERROR(BD170,"")) ->  | V62: =IF($C$7="---","",IFERROR(BE170,"")) ->  | W62: =IF($C$7="---","",IFERROR(BF170,"")) ->  | X62: =IFERROR(SUM(T62+W62),"") -> 
C63: 5 | D63: =IF($C$7="---","",IFERROR($AX150,"")) ->  | G63: =IF($C$7="---","",IFERROR(AX171,"")) ->  | J63: =IFERROR(SUM(F63+I63),"") ->  | K63: =IF($C$7="---","",IFERROR($BA150,"")) ->  | L63: =IF($C$7="---","",IFERROR($BB150,"")) ->  | M63: =IF($C$7="---","",IFERROR($BC150,"")) ->  | N63: =IF($C$7="---","",IFERROR(BA171,"")) ->  | Q63: =IFERROR(SUM(M63+P63),"") ->  | R63: =IF($C$7="---","",IFERROR($BD150,"")) ->  | S63: =IF($C$7="---","",IFERROR($BE150,"")) ->  | T63: =IF($C$7="---","",IFERROR($BF150,"")) ->  | U63: =IF($C$7="---","",IFERROR(BD171,"")) ->  | X63: =IFERROR(SUM(T63+W63),"") -> 
C64: 6 | G64: =IF($C$7="---","",IFERROR(AX172,"")) ->  | J64: =IFERROR(SUM(F64+I64),"") ->  | N64: =IF($C$7="---","",IFERROR(BA172,"")) ->  | U64: =IF($C$7="---","",IFERROR(BD172,"")) -> 
C65: 7 | G65: =IF($C$7="---","",IFERROR(AX173,"")) ->  | N65: =IF($C$7="---","",IFERROR(BA173,"")) ->  | U65: =IF($C$7="---","",IFERROR(BD173,"")) -> 
C66: 8 | G66: =IF($C$7="---","",IFERROR(AX174,"")) ->  | N66: =IF($C$7="---","",IFERROR(BA174,"")) ->  | U66: =IF($C$7="---","",IFERROR(BD174,"")) -> 
C67: 9 | G67: =IF($C$7="---","",IFERROR(AX175,"")) ->  | N67: =IF($C$7="---","",IFERROR(BA175,"")) ->  | U67: =IF($C$7="---","",IFERROR(BD175,"")) -> 
C68: 10 | G68: =IF($C$7="---","",IFERROR(AX176,"")) ->  | N68: =IF($C$7="---","",IFERROR(BA176,"")) ->  | Q68: =IFERROR(SUM(M68+P68),"") ->  | U68: =IF($C$7="---","",IFERROR(BD176,"")) ->  | X68: =IFERROR(SUM(T68+W68),"") -> 
C69: 11 | G69: =IF($C$7="---","",IFERROR(AX177,"")) ->  | N69: =IF($C$7="---","",IFERROR(BA177,"")) ->  | U69: =IF($C$7="---","",IFERROR(BD177,"")) -> 
C70: 12 | G70: =IF($C$7="---","",IFERROR(AX178,"")) ->  | J70: =IFERROR(SUM(F70+I70),"") ->  | N70: =IF($C$7="---","",IFERROR(BA178,"")) ->  | Q70: =IFERROR(SUM(M70+P70),"") ->  | U70: =IF($C$7="---","",IFERROR(BD178,"")) ->  | X70: =IFERROR(SUM(T70+W70),"") -> 
C71: 1 | G71: =IF($C$7="---","",IFERROR(AX179,"")) ->  | N71: =IF($C$7="---","",IFERROR(BA179,"")) ->  | U71: =IF($C$7="---","",IFERROR(BD179,"")) -> 
C72: 2 | G72: =IF($C$7="---","",IFERROR(AX180,"")) ->  | J72: =IFERROR(SUM(F72+I72),"") ->  | N72: =IF($C$7="---","",IFERROR(BA180,"")) ->  | Q72: =IFERROR(SUM(M72+P72),"") ->  | U72: =IF($C$7="---","",IFERROR(BD180,"")) -> 
C73: 3 | G73: =IF($C$7="---","",IFERROR(AX181,"")) ->  | J73: =IFERROR(SUM(F73+I73),"") ->  | N73: =IF($C$7="---","",IFERROR(BA181,"")) ->  | U73: =IF($C$7="---","",IFERROR(BD181,"")) -> 
C74: 合計 | D74: =IFERROR(SUM($D$62:$D$73),"") -> 0 | E74: =IFERROR(SUM($E$62:$E$73),"") -> 0 | F74: =IFERROR(SUM(F$62:F$73),"") -> 0 | G74: =IFERROR(SUM(G$62:G$73),"") -> 0 | H74: =IFERROR(SUM(H$62:H$73),"") -> 0 | I74: =IFERROR(SUM(I$62:I$73),"") -> 0 | J74: 0 | K74: 0 | L74: 0 | M74: 0 | N74: 0 | O74: 0 | P74: 0 | Q74: 0 | R74: 0 | S74: 0 | T74: =IFERROR(SUM(T$62:T$73),"") -> 0 | U74: 0 | V74: 0 | W74: 0 | X74: 0
C77: 設備導入後年間電力使用量[kWh]
D78: 冷却(Ec) | F78: 加熱(Ew) | H78: 合計(Ecw)
D79: =IFERROR($F$95+$M$95+$T$95,"") -> 0 | F79: =IFERROR($I$95+$P$95+$W$95,"") -> 0 | H79: =IFERROR($J$95+$Q$95+$X$95,"") -> 0
D81: 後1 | K81: 後2 | R81: 後3
C82: 月 期間 | D82: 主機(Ecc) | E82: 補機(Eaxc) | F82: 全体(Ec) | G82: 主機(Eww) | H82: 補機(Eaxw) | I82: 全体(Ew) | J82: 月合計 | K82: 主機(Ecc) | L82: 補機(Eaxc) | M82: 全体(Ec) | N82: 主機(Eww) | O82: 補機(Eaxw) | P82: 全体(Ew) | Q82: 月合計 | R82: 主機(Ecc) | S82: 補機(Eaxc) | T82: 全体(Ec) | U82: 主機(Eww) | V82: 補機(Eaxw) | W82: 全体(Ew) | X82: 月合計
C83: 4 | D83: =IF($C$7="---","",IFERROR($BH149,"")) ->  | E83: =IF($C$7="---","",IFERROR($BI149,"")) ->  | F83: =IF($C$7="---","",IFERROR($BJ149,"")) ->  | G83: =IF($C$7="---","",IFERROR($BH170,"")) ->  | H83: =IF($C$7="---","",IFERROR($BI170,"")) ->  | I83: =IF($C$7="---","",IFERROR($BJ170,"")) ->  | J83: =IFERROR(SUM(F83+I83),"") ->  | K83: =IF($C$7="---","",IFERROR($BK149,"")) ->  | L83: =IF($C$7="---","",IFERROR($BL149,"")) ->  | M83: =IF($C$7="---","",IFERROR($BM149,"")) ->  | N83: =IF($C$7="---","",IFERROR($BK170,"")) ->  | O83: =IF($C$7="---","",IFERROR($BL170,"")) ->  | P83: =IF($C$7="---","",IFERROR($BM170,"")) ->  | Q83: =IFERROR(SUM(M83+P83),"") ->  | R83: =IF($C$7="---","",IFERROR($BN149,"")) ->  | S83: =IF($C$7="---","",IFERROR($BO149,"")) ->  | T83: =IF($C$7="---","",IFERROR($BP149,"")) ->  | U83: =IF($C$7="---","",IFERROR($BN170,"")) ->  | V83: =IF($C$7="---","",IFERROR($BO170,"")) ->  | W83: =IF($C$7="---","",IFERROR($BP170,"")) ->  | X83: =IFERROR(SUM(T83+W83),"") -> 
C84: 5 | D84: =IF($C$7="---","",IFERROR($BH150,"")) ->  | E84: =IF($C$7="---","",IFERROR($BI150,"")) ->  | F84: =IF($C$7="---","",IFERROR($BJ150,"")) ->  | G84: =IF($C$7="---","",IFERROR($BH171,"")) ->  | H84: =IF($C$7="---","",IFERROR($BI171,"")) ->  | I84: =IF($C$7="---","",IFERROR($BJ171,"")) ->  | J84: =IFERROR(SUM(F84+I84),"") ->  | K84: =IF($C$7="---","",IFERROR($BK150,"")) ->  | L84: =IF($C$7="---","",IFERROR($BL150,"")) ->  | M84: =IF($C$7="---","",IFERROR($BM150,"")) ->  | N84: =IF($C$7="---","",IFERROR($BK171,"")) ->  | O84: =IF($C$7="---","",IFERROR($BL171,"")) ->  | P84: =IF($C$7="---","",IFERROR($BM171,"")) ->  | Q84: =IFERROR(SUM(M84+P84),"") ->  | R84: =IF($C$7="---","",IFERROR($BN150,"")) ->  | S84: =IF($C$7="---","",IFERROR($BO150,"")) ->  | T84: =IF($C$7="---","",IFERROR($BP150,"")) ->  | U84: =IF($C$7="---","",IFERROR($BN171,"")) ->  | V84: =IF($C$7="---","",IFERROR($BO171,"")) ->  | W84: =IF($C$7="---","",IFERROR($BP171,"")) ->  | X84: =IFERROR(SUM(T84+W84),"") -> 
C85: 6 | Q85: =IFERROR(SUM(M85+P85),"") -> 
C86: 7
C87: 8
C88: 9
C89: 10
C90: 11 | X90: =IFERROR(SUM(T90+W90),"") -> 
C91: 12 | J91: =IFERROR(SUM(F91+I91),"") ->  | Q91: =IFERROR(SUM(M91+P91),"") ->  | X91: =IFERROR(SUM(T91+W91),"") -> 
C92: 1
C93: 2
C94: 3
C95: 合計 | D95: =IFERROR(SUM(D83:D94),"") -> 0 | E95: =IFERROR(SUM(E83:E94),"") -> 0 | F95: 0 | G95: 0 | H95: 0 | I95: 0 | J95: 0 | K95: 0 | L95: 0 | M95: 0 | N95: 0 | O95: 0 | P95: 0 | Q95: 0 | R95: 0 | S95: 0 | T95: 0 | U95: 0 | V95: 0 | W95: 0 | X95: 0
C98: 作業表1(青色のセルを「24」、オレンジ色のセルを「19」として抽出）
D99: 時刻
C100: 月 | D100: 0 | E100: 1 | F100: 2 | G100: 3 | H100: 4 | I100: 5 | J100: 6 | K100: 7 | L100: 8 | M100: 9 | N100: 10 | O100: 11 | P100: 12 | Q100: 13 | R100: 14 | S100: 15 | T100: 16 | U100: 17 | V100: 18 | W100: 19 | X100: 20 | Y100: 21 | Z100: 22 | AA100: 23 | AB100: 月
C101: 4 | D101: =CELLCOLOR($D$12) -> -4142 | E101: =CELLCOLOR($E$12) -> -4142 | F101: =CELLCOLOR($F$12) -> -4142 | G101: =CELLCOLOR($G$12) -> -4142 | H101: =CELLCOLOR($H$12) -> -4142 | I101: =CELLCOLOR($I$12) -> -4142 | J101: =CELLCOLOR($J$12) -> -4142 | K101: =CELLCOLOR($K$12) -> -4142 | L101: =CELLCOLOR($L$12) -> -4142 | M101: =CELLCOLOR($M$12) -> -4142 | N101: =CELLCOLOR($N$12) -> -4142 | O101: =CELLCOLOR($O$12) -> -4142 | P101: =CELLCOLOR($P$12) -> -4142 | Q101: =CELLCOLOR($Q$12) -> -4142 | R101: =CELLCOLOR($R$12) -> -4142 | S101: =CELLCOLOR($S$12) -> -4142 | T101: =CELLCOLOR($T$12) -> -4142 | U101: =CELLCOLOR($U$12) -> -4142 | V101: =CELLCOLOR($V$12) -> -4142 | W101: =CELLCOLOR($W$12) -> -4142 | X101: =CELLCOLOR($X$12) -> -4142 | Y101: =CELLCOLOR($Y$12) -> -4142 | Z101: =CELLCOLOR($Z$12) -> -4142 | AA101: =CELLCOLOR($AA$12) -> -4142 | AB101: 4
C102: 5 | D102: =CELLCOLOR($D$13) -> -4142 | E102: =CELLCOLOR($E$13) -> -4142 | F102: =CELLCOLOR($F$13) -> -4142 | G102: =CELLCOLOR($G$13) -> -4142 | H102: =CELLCOLOR($H$13) -> -4142 | I102: =CELLCOLOR($I$13) -> -4142 | J102: =CELLCOLOR($J$13) -> -4142 | K102: =CELLCOLOR($K$13) -> -4142 | L102: =CELLCOLOR($L$13) -> -4142 | M102: =CELLCOLOR($M$13) -> -4142 | N102: =CELLCOLOR($N$13) -> -4142 | O102: =CELLCOLOR($O$13) -> -4142 | P102: =CELLCOLOR($P$13) -> -4142 | Q102: =CELLCOLOR($Q$13) -> -4142 | R102: =CELLCOLOR($R$13) -> -4142 | S102: =CELLCOLOR($S$13) -> -4142 | T102: =CELLCOLOR($T$13) -> -4142 | U102: =CELLCOLOR($U$13) -> -4142 | V102: =CELLCOLOR($V$13) -> -4142 | W102: =CELLCOLOR($W$13) -> -4142 | X102: =CELLCOLOR($X$13) -> -4142 | Y102: =CELLCOLOR($Y$13) -> -4142 | Z102: =CELLCOLOR($Z$13) -> -4142 | AA102: =CELLCOLOR($AA$13) -> -4142 | AB102: 5
C103: 6 | D103: =CELLCOLOR($D$14) -> -4142 | E103: =CELLCOLOR($E$14) -> -4142 | F103: =CELLCOLOR($F$14) -> -4142 | G103: =CELLCOLOR($G$14) -> -4142 | H103: =CELLCOLOR($H$14) -> -4142 | I103: =CELLCOLOR($I$14) -> -4142 | J103: =CELLCOLOR($J$14) -> -4142 | K103: =CELLCOLOR($K$14) -> -4142 | L103: =CELLCOLOR($L$14) -> -4142 | M103: =CELLCOLOR($M$14) -> -4142 | N103: =CELLCOLOR($N$14) -> -4142 | O103: =CELLCOLOR($O$14) -> -4142 | P103: =CELLCOLOR($P$14) -> -4142 | Q103: =CELLCOLOR($Q$14) -> -4142 | R103: =CELLCOLOR($R$14) -> -4142 | S103: =CELLCOLOR($S$14) -> -4142 | T103: =CELLCOLOR($T$14) -> -4142 | U103: =CELLCOLOR($U$14) -> -4142 | V103: =CELLCOLOR($V$14) -> -4142 | W103: =CELLCOLOR($W$14) -> -4142 | X103: =CELLCOLOR($X$14) -> -4142 | Y103: =CELLCOLOR($Y$14) -> -4142 | Z103: =CELLCOLOR($Z$14) -> -4142 | AA103: =CELLCOLOR($AA$14) -> -4142 | AB103: 6
C104: 7 | D104: =CELLCOLOR($D$15) -> -4142 | E104: =CELLCOLOR($E$15) -> -4142 | F104: =CELLCOLOR($F$15) -> -4142 | G104: =CELLCOLOR($G$15) -> -4142 | H104: =CELLCOLOR($H$15) -> -4142 | I104: =CELLCOLOR($I$15) -> -4142 | J104: =CELLCOLOR($J$15) -> -4142 | K104: =CELLCOLOR($K$15) -> -4142 | L104: =CELLCOLOR($L$15) -> -4142 | M104: =CELLCOLOR($M$15) -> -4142 | N104: =CELLCOLOR($N$15) -> -4142 | O104: =CELLCOLOR($O$15) -> -4142 | P104: =CELLCOLOR($P$15) -> -4142 | Q104: =CELLCOLOR($Q$15) -> -4142 | R104: =CELLCOLOR($R$15) -> -4142 | S104: =CELLCOLOR($S$15) -> -4142 | T104: =CELLCOLOR($T$15) -> -4142 | U104: =CELLCOLOR($U$15) -> -4142 | V104: =CELLCOLOR($V$15) -> -4142 | W104: =CELLCOLOR($W$15) -> -4142 | X104: =CELLCOLOR($X$15) -> -4142 | Y104: =CELLCOLOR($Y$15) -> -4142 | Z104: =CELLCOLOR($Z$15) -> -4142 | AA104: =CELLCOLOR($AA$15) -> -4142 | AB104: 7
C105: 8 | D105: =CELLCOLOR($D$16) -> -4142 | E105: =CELLCOLOR($E$16) -> -4142 | F105: =CELLCOLOR($F$16) -> -4142 | G105: =CELLCOLOR($G$16) -> -4142 | H105: =CELLCOLOR($H$16) -> -4142 | I105: =CELLCOLOR($I$16) -> -4142 | J105: =CELLCOLOR($J$16) -> -4142 | K105: =CELLCOLOR($K$16) -> -4142 | L105: =CELLCOLOR($L$16) -> -4142 | M105: =CELLCOLOR($M$16) -> -4142 | N105: =CELLCOLOR($N$16) -> -4142 | O105: =CELLCOLOR($O$16) -> -4142 | P105: =CELLCOLOR($P$16) -> -4142 | Q105: =CELLCOLOR($Q$16) -> -4142 | R105: =CELLCOLOR($R$16) -> -4142 | S105: =CELLCOLOR($S$16) -> -4142 | T105: =CELLCOLOR($T$16) -> -4142 | U105: =CELLCOLOR($U$16) -> -4142 | V105: =CELLCOLOR($V$16) -> -4142 | W105: =CELLCOLOR($W$16) -> -4142 | X105: =CELLCOLOR($X$16) -> -4142 | Y105: =CELLCOLOR($Y$16) -> -4142 | Z105: =CELLCOLOR($Z$16) -> -4142 | AA105: =CELLCOLOR($AA$16) -> -4142 | AB105: 8
C106: 9 | D106: =CELLCOLOR($D$17) -> -4142 | E106: =CELLCOLOR($E$17) -> -4142 | F106: =CELLCOLOR($F$17) -> -4142 | G106: =CELLCOLOR($G$17) -> -4142 | H106: =CELLCOLOR($H$17) -> -4142 | I106: =CELLCOLOR($I$17) -> -4142 | J106: =CELLCOLOR($J$17) -> -4142 | K106: =CELLCOLOR($K$17) -> -4142 | L106: =CELLCOLOR($L$17) -> -4142 | M106: =CELLCOLOR($M$17) -> -4142 | N106: =CELLCOLOR($N$17) -> -4142 | O106: =CELLCOLOR($O$17) -> -4142 | P106: =CELLCOLOR($P$17) -> -4142 | Q106: =CELLCOLOR($Q$17) -> -4142 | R106: =CELLCOLOR($R$17) -> -4142 | S106: =CELLCOLOR($S$17) -> -4142 | T106: =CELLCOLOR($T$17) -> -4142 | U106: =CELLCOLOR($U$17) -> -4142 | V106: =CELLCOLOR($V$17) -> -4142 | W106: =CELLCOLOR($W$17) -> -4142 | X106: =CELLCOLOR($X$17) -> -4142 | Y106: =CELLCOLOR($Y$17) -> -4142 | Z106: =CELLCOLOR($Z$17) -> -4142 | AA106: =CELLCOLOR($AA$17) -> -4142 | AB106: 9
C107: 10 | D107: =CELLCOLOR($D$18) -> -4142 | E107: =CELLCOLOR($E$18) -> -4142 | F107: =CELLCOLOR($F$18) -> -4142 | G107: =CELLCOLOR($G$18) -> -4142 | H107: =CELLCOLOR($H$18) -> -4142 | I107: =CELLCOLOR($I$18) -> -4142 | J107: =CELLCOLOR($J$18) -> -4142 | K107: =CELLCOLOR($K$18) -> -4142 | L107: =CELLCOLOR($L$18) -> -4142 | M107: =CELLCOLOR($M$18) -> -4142 | N107: =CELLCOLOR($N$18) -> -4142 | O107: =CELLCOLOR($O$18) -> -4142 | P107: =CELLCOLOR($P$18) -> -4142 | Q107: =CELLCOLOR($Q$18) -> -4142 | R107: =CELLCOLOR($R$18) -> -4142 | S107: =CELLCOLOR($S$18) -> -4142 | T107: =CELLCOLOR($T$18) -> -4142 | U107: =CELLCOLOR($U$18) -> -4142 | V107: =CELLCOLOR($V$18) -> -4142 | W107: =CELLCOLOR($W$18) -> -4142 | X107: =CELLCOLOR($X$18) -> -4142 | Y107: =CELLCOLOR($Y$18) -> -4142 | Z107: =CELLCOLOR($Z$18) -> -4142 | AA107: =CELLCOLOR($AA$18) -> -4142 | AB107: 10
C108: 11 | D108: =CELLCOLOR($D$19) -> -4142 | E108: =CELLCOLOR($E$19) -> -4142 | F108: =CELLCOLOR($F$19) -> -4142 | G108: =CELLCOLOR($G$19) -> -4142 | H108: =CELLCOLOR($H$19) -> -4142 | I108: =CELLCOLOR($I$19) -> -4142 | J108: =CELLCOLOR($J$19) -> -4142 | K108: =CELLCOLOR($K$19) -> -4142 | L108: =CELLCOLOR($L$19) -> -4142 | M108: =CELLCOLOR($M$19) -> -4142 | N108: =CELLCOLOR($N$19) -> -4142 | O108: =CELLCOLOR($O$19) -> -4142 | P108: =CELLCOLOR($P$19) -> -4142 | Q108: =CELLCOLOR($Q$19) -> -4142 | R108: =CELLCOLOR($R$19) -> -4142 | S108: =CELLCOLOR($S$19) -> -4142 | T108: =CELLCOLOR($T$19) -> -4142 | U108: =CELLCOLOR($U$19) -> -4142 | V108: =CELLCOLOR($V$19) -> -4142 | W108: =CELLCOLOR($W$19) -> -4142 | X108: =CELLCOLOR($X$19) -> -4142 | Y108: =CELLCOLOR($Y$19) -> -4142 | Z108: =CELLCOLOR($Z$19) -> -4142 | AA108: =CELLCOLOR($AA$19) -> -4142 | AB108: 11
C109: 12 | D109: =CELLCOLOR($D$20) -> -4142 | E109: =CELLCOLOR($E$20) -> -4142 | F109: =CELLCOLOR($F$20) -> -4142 | G109: =CELLCOLOR($G$20) -> -4142 | H109: =CELLCOLOR($H$20) -> -4142 | I109: =CELLCOLOR($I$20) -> -4142 | J109: =CELLCOLOR($J$20) -> -4142 | K109: =CELLCOLOR($K$20) -> -4142 | L109: =CELLCOLOR($L$20) -> -4142 | M109: =CELLCOLOR($M$20) -> -4142 | N109: =CELLCOLOR($N$20) -> -4142 | O109: =CELLCOLOR($O$20) -> -4142 | P109: =CELLCOLOR($P$20) -> -4142 | Q109: =CELLCOLOR($Q$20) -> -4142 | R109: =CELLCOLOR($R$20) -> -4142 | S109: =CELLCOLOR($S$20) -> -4142 | T109: =CELLCOLOR($T$20) -> -4142 | U109: =CELLCOLOR($U$20) -> -4142 | V109: =CELLCOLOR($V$20) -> -4142 | W109: =CELLCOLOR($W$20) -> -4142 | X109: =CELLCOLOR($X$20) -> -4142 | Y109: =CELLCOLOR($Y$20) -> -4142 | Z109: =CELLCOLOR($Z$20) -> -4142 | AA109: =CELLCOLOR($AA$20) -> -4142 | AB109: 12
C110: 1 | D110: =CELLCOLOR($D$21) -> -4142 | E110: =CELLCOLOR($E$21) -> -4142 | F110: =CELLCOLOR($F$21) -> -4142 | G110: =CELLCOLOR($G$21) -> -4142 | H110: =CELLCOLOR($H$21) -> -4142 | I110: =CELLCOLOR($I$21) -> -4142 | J110: =CELLCOLOR($J$21) -> -4142 | K110: =CELLCOLOR($K$21) -> -4142 | L110: =CELLCOLOR($L$21) -> -4142 | M110: =CELLCOLOR($M$21) -> -4142 | N110: =CELLCOLOR($N$21) -> -4142 | O110: =CELLCOLOR($O$21) -> -4142 | P110: =CELLCOLOR($P$21) -> -4142 | Q110: =CELLCOLOR($Q$21) -> -4142 | R110: =CELLCOLOR($R$21) -> -4142 | S110: =CELLCOLOR($S$21) -> -4142 | T110: =CELLCOLOR($T$21) -> -4142 | U110: =CELLCOLOR($U$21) -> -4142 | V110: =CELLCOLOR($V$21) -> -4142 | W110: =CELLCOLOR($W$21) -> -4142 | X110: =CELLCOLOR($X$21) -> -4142 | Y110: =CELLCOLOR($Y$21) -> -4142 | Z110: =CELLCOLOR($Z$21) -> -4142 | AA110: =CELLCOLOR($AA$21) -> -4142 | AB110: 1
C111: 2 | D111: =CELLCOLOR($D$22) -> -4142 | E111: =CELLCOLOR($E$22) -> -4142 | F111: =CELLCOLOR($F$22) -> -4142 | G111: =CELLCOLOR($G$22) -> -4142 | H111: =CELLCOLOR($H$22) -> -4142 | I111: =CELLCOLOR($I$22) -> -4142 | J111: =CELLCOLOR($J$22) -> -4142 | K111: =CELLCOLOR($K$22) -> -4142 | L111: =CELLCOLOR($L$22) -> -4142 | M111: =CELLCOLOR($M$22) -> -4142 | N111: =CELLCOLOR($N$22) -> -4142 | O111: =CELLCOLOR($O$22) -> -4142 | P111: =CELLCOLOR($P$22) -> -4142 | Q111: =CELLCOLOR($Q$22) -> -4142 | R111: =CELLCOLOR($R$22) -> -4142 | S111: =CELLCOLOR($S$22) -> -4142 | T111: =CELLCOLOR($T$22) -> -4142 | U111: =CELLCOLOR($U$22) -> -4142 | V111: =CELLCOLOR($V$22) -> -4142 | W111: =CELLCOLOR($W$22) -> -4142 | X111: =CELLCOLOR($X$22) -> -4142 | Y111: =CELLCOLOR($Y$22) -> -4142 | Z111: =CELLCOLOR($Z$22) -> -4142 | AA111: =CELLCOLOR($AA$22) -> -4142 | AB111: 2
C112: 3 | D112: =CELLCOLOR($D$23) -> -4142 | E112: =CELLCOLOR($E$23) -> -4142 | F112: =CELLCOLOR($F$23) -> -4142 | G112: =CELLCOLOR($G$23) -> -4142 | H112: =CELLCOLOR($H$23) -> -4142 | I112: =CELLCOLOR($I$23) -> -4142 | J112: =CELLCOLOR($J$23) -> -4142 | K112: =CELLCOLOR($K$23) -> -4142 | L112: =CELLCOLOR($L$23) -> -4142 | M112: =CELLCOLOR($M$23) -> -4142 | N112: =CELLCOLOR($N$23) -> -4142 | O112: =CELLCOLOR($O$23) -> -4142 | P112: =CELLCOLOR($P$23) -> -4142 | Q112: =CELLCOLOR($Q$23) -> -4142 | R112: =CELLCOLOR($R$23) -> -4142 | S112: =CELLCOLOR($S$23) -> -4142 | T112: =CELLCOLOR($T$23) -> -4142 | U112: =CELLCOLOR($U$23) -> -4142 | V112: =CELLCOLOR($V$23) -> -4142 | W112: =CELLCOLOR($W$23) -> -4142 | X112: =CELLCOLOR($X$23) -> -4142 | Y112: =CELLCOLOR($Y$23) -> -4142 | Z112: =CELLCOLOR($Z$23) -> -4142 | AA112: =CELLCOLOR($AA$23) -> -4142 | AB112: 3
C114: 作業表2-1(冷却) | E114: ●月▲時の平均気温(四捨五入で表示）
D115: 時刻
C116: 月 | D116: 0 | E116: 1 | F116: 2 | G116: 3 | H116: 4 | I116: 5 | J116: 6 | K116: 7 | L116: 8 | M116: 9 | N116: 10 | O116: 11 | P116: 12 | Q116: 13 | R116: 14 | S116: 15 | T116: 16 | U116: 17 | V116: 18 | W116: 19 | X116: 20 | Y116: 21 | Z116: 22 | AA116: 23 | AB116: 月
C117: 4 | D117: =IF($D$101=24,ROUND($D$12,0),"")&"" ->  | E117: =IF($E$101=24,ROUND($E$12,0),"")&"" ->  | F117: =IF($F$101=24,ROUND($F$12,0),"")&"" ->  | G117: =IF($G$101=24,ROUND($G$12,0),"")&"" ->  | H117: =IF($H$101=24,ROUND($H$12,0),"")&"" ->  | I117: =IF($I$101=24,ROUND($I$12,0),"")&"" ->  | J117: =IF($J$101=24,ROUND($J$12,0),"")&"" ->  | K117: =IF($K$101=24,ROUND($K$12,0),"")&"" ->  | L117: =IF($L$101=24,ROUND($L$12,0),"")&"" ->  | M117: =IF($M$101=24,ROUND($M$12,0),"")&"" ->  | N117: =IF($N$101=24,ROUND($N$12,0),"")&"" ->  | O117: =IF($O$101=24,ROUND($O$12,0),"")&"" ->  | P117: =IF($P$101=24,ROUND($P$12,0),"")&"" ->  | Q117: =IF($Q$101=24,ROUND($Q$12,0),"")&"" ->  | R117: =IF($R$101=24,ROUND($R$12,0),"")&"" ->  | S117: =IF($S$101=24,ROUND($S$12,0),"")&"" ->  | T117: =IF($T$101=24,ROUND($T$12,0),"")&"" ->  | U117: =IF($U$101=24,ROUND($U$12,0),"")&"" ->  | V117: =IF($V$101=24,ROUND($V$12,0),"")&"" ->  | W117: =IF($W$101=24,ROUND($W$12,0),"")&"" ->  | X117: =IF($X$101=24,ROUND($X$12,0),"")&"" ->  | Y117: =IF($Y$101=24,ROUND($Y$12,0),"")&"" ->  | Z117: =IF($Z$101=24,ROUND($Z$12,0),"")&"" ->  | AA117: =IF($AA$101=24,ROUND($AA$12,0),"")&"" ->  | AB117: 4
C118: 5 | D118: =IF($D$102=24,ROUND($D$13,0),"")&"" ->  | E118: =IF($E$102=24,ROUND($E$13,0),"")&"" ->  | F118: =IF($F$102=24,ROUND($F$13,0),"")&"" ->  | G118: =IF($G$102=24,ROUND($G$13,0),"")&"" ->  | H118: =IF($H$102=24,ROUND($H$13,0),"")&"" ->  | I118: =IF($I$102=24,ROUND($I$13,0),"")&"" ->  | J118: =IF($J$102=24,ROUND($J$13,0),"")&"" ->  | K118: =IF($K$102=24,ROUND($K$13,0),"")&"" ->  | L118: =IF($L$102=24,ROUND($L$13,0),"")&"" ->  | M118: =IF($M$102=24,ROUND($M$13,0),"")&"" ->  | N118: =IF($N$102=24,ROUND($N$13,0),"")&"" ->  | O118: =IF($O$102=24,ROUND($O$13,0),"")&"" ->  | P118: =IF($P$102=24,ROUND($P$13,0),"")&"" ->  | Q118: =IF($Q$102=24,ROUND($Q$13,0),"")&"" ->  | R118: =IF($R$102=24,ROUND($R$13,0),"")&"" ->  | S118: =IF($S$102=24,ROUND($S$13,0),"")&"" ->  | T118: =IF($T$102=24,ROUND($T$13,0),"")&"" ->  | U118: =IF($U$102=24,ROUND($U$13,0),"")&"" ->  | V118: =IF($V$102=24,ROUND($V$13,0),"")&"" ->  | W118: =IF($W$102=24,ROUND($W$13,0),"")&"" ->  | X118: =IF($X$102=24,ROUND($X$13,0),"")&"" ->  | Y118: =IF($Y$102=24,ROUND($Y$13,0),"")&"" ->  | Z118: =IF($Z$102=24,ROUND($Z$13,0),"")&"" ->  | AA118: =IF($AA$102=24,ROUND($AA$13,0),"")&"" ->  | AB118: 5
C119: 6 | D119: =IF($D$103=24,ROUND($D$14,0),"")&"" ->  | E119: =IF($E$103=24,ROUND($E$14,0),"")&"" ->  | F119: =IF($F$103=24,ROUND($F$14,0),"")&"" ->  | G119: =IF($G$103=24,ROUND($G$14,0),"")&"" ->  | H119: =IF($H$103=24,ROUND($H$14,0),"")&"" ->  | I119: =IF($I$103=24,ROUND($I$14,0),"")&"" ->  | J119: =IF($J$103=24,ROUND($J$14,0),"")&"" ->  | K119: =IF($K$103=24,ROUND($K$14,0),"")&"" ->  | L119: =IF($L$103=24,ROUND($L$14,0),"")&"" ->  | M119: =IF($M$103=24,ROUND($M$14,0),"")&"" ->  | N119: =IF($N$103=24,ROUND($N$14,0),"")&"" ->  | O119: =IF($O$103=24,ROUND($O$14,0),"")&"" ->  | P119: =IF($P$103=24,ROUND($P$14,0),"")&"" ->  | Q119: =IF($Q$103=24,ROUND($Q$14,0),"")&"" ->  | R119: =IF($R$103=24,ROUND($R$14,0),"")&"" ->  | S119: =IF($S$103=24,ROUND($S$14,0),"")&"" ->  | T119: =IF($T$103=24,ROUND($T$14,0),"")&"" ->  | U119: =IF($U$103=24,ROUND($U$14,0),"")&"" ->  | V119: =IF($V$103=24,ROUND($V$14,0),"")&"" ->  | W119: =IF($W$103=24,ROUND($W$14,0),"")&"" ->  | X119: =IF($X$103=24,ROUND($X$14,0),"")&"" ->  | Y119: =IF($Y$103=24,ROUND($Y$14,0),"")&"" ->  | Z119: =IF($Z$103=24,ROUND($Z$14,0),"")&"" ->  | AA119: =IF($AA$103=24,ROUND($AA$14,0),"")&"" ->  | AB119: 6
C120: 7 | D120: =IF($D$104=24,ROUND($D$15,0),"")&"" ->  | E120: =IF($E$104=24,ROUND($E$15,0),"")&"" ->  | F120: =IF($F$104=24,ROUND($F$15,0),"")&"" ->  | G120: =IF($G$104=24,ROUND($G$15,0),"")&"" ->  | H120: =IF($H$104=24,ROUND($H$15,0),"")&"" ->  | I120: =IF($I$104=24,ROUND($I$15,0),"")&"" ->  | J120: =IF($J$104=24,ROUND($J$15,0),"")&"" ->  | K120: =IF($K$104=24,ROUND($K$15,0),"")&"" ->  | L120: =IF($L$104=24,ROUND($L$15,0),"")&"" ->  | M120: =IF($M$104=24,ROUND($M$15,0),"")&"" ->  | N120: =IF($N$104=24,ROUND($N$15,0),"")&"" ->  | O120: =IF($O$104=24,ROUND($O$15,0),"")&"" ->  | P120: =IF($P$104=24,ROUND($P$15,0),"")&"" ->  | Q120: =IF($Q$104=24,ROUND($Q$15,0),"")&"" ->  | R120: =IF($R$104=24,ROUND($R$15,0),"")&"" ->  | S120: =IF($S$104=24,ROUND($S$15,0),"")&"" ->  | T120: =IF($T$104=24,ROUND($T$15,0),"")&"" ->  | U120: =IF($U$104=24,ROUND($U$15,0),"")&"" ->  | V120: =IF($V$104=24,ROUND($V$15,0),"")&"" ->  | W120: =IF($W$104=24,ROUND($W$15,0),"")&"" ->  | X120: =IF($X$104=24,ROUND($X$15,0),"")&"" ->  | Y120: =IF($Y$104=24,ROUND($Y$15,0),"")&"" ->  | Z120: =IF($Z$104=24,ROUND($Z$15,0),"")&"" ->  | AA120: =IF($AA$104=24,ROUND($AA$15,0),"")&"" ->  | AB120: 7
C121: 8 | D121: =IF($D$105=24,ROUND($D$16,0),"")&"" ->  | E121: =IF($E$105=24,ROUND($E$16,0),"")&"" ->  | F121: =IF($F$105=24,ROUND($F$16,0),"")&"" ->  | G121: =IF($G$105=24,ROUND($G$16,0),"")&"" ->  | H121: =IF($H$105=24,ROUND($H$16,0),"")&"" ->  | I121: =IF($I$105=24,ROUND($I$16,0),"")&"" ->  | J121: =IF($J$105=24,ROUND($J$16,0),"")&"" ->  | K121: =IF($K$105=24,ROUND($K$16,0),"")&"" ->  | L121: =IF($L$105=24,ROUND($L$16,0),"")&"" ->  | M121: =IF($M$105=24,ROUND($M$16,0),"")&"" ->  | N121: =IF($N$105=24,ROUND($N$16,0),"")&"" ->  | O121: =IF($O$105=24,ROUND($O$16,0),"")&"" ->  | P121: =IF($P$105=24,ROUND($P$16,0),"")&"" ->  | Q121: =IF($Q$105=24,ROUND($Q$16,0),"")&"" ->  | R121: =IF($R$105=24,ROUND($R$16,0),"")&"" ->  | S121: =IF($S$105=24,ROUND($S$16,0),"")&"" ->  | T121: =IF($T$105=24,ROUND($T$16,0),"")&"" ->  | U121: =IF($U$105=24,ROUND($U$16,0),"")&"" ->  | V121: =IF($V$105=24,ROUND($V$16,0),"")&"" ->  | W121: =IF($W$105=24,ROUND($W$16,0),"")&"" ->  | X121: =IF($X$105=24,ROUND($X$16,0),"")&"" ->  | Y121: =IF($Y$105=24,ROUND($Y$16,0),"")&"" ->  | Z121: =IF($Z$105=24,ROUND($Z$16,0),"")&"" ->  | AA121: =IF($AA$105=24,ROUND($AA$16,0),"")&"" ->  | AB121: 8
C122: 9 | D122: =IF($D$106=24,ROUND($D$17,0),"")&"" ->  | E122: =IF($E$106=24,ROUND($E$17,0),"")&"" ->  | F122: =IF($F$106=24,ROUND($F$17,0),"")&"" ->  | G122: =IF($G$106=24,ROUND($G$17,0),"")&"" ->  | H122: =IF($H$106=24,ROUND($H$17,0),"")&"" ->  | I122: =IF($I$106=24,ROUND($I$17,0),"")&"" ->  | J122: =IF($J$106=24,ROUND($J$17,0),"")&"" ->  | K122: =IF($K$106=24,ROUND($K$17,0),"")&"" ->  | L122: =IF($L$106=24,ROUND($L$17,0),"")&"" ->  | M122: =IF($M$106=24,ROUND($M$17,0),"")&"" ->  | N122: =IF($N$106=24,ROUND($N$17,0),"")&"" ->  | O122: =IF($O$106=24,ROUND($O$17,0),"")&"" ->  | P122: =IF($P$106=24,ROUND($P$17,0),"")&"" ->  | Q122: =IF($Q$106=24,ROUND($Q$17,0),"")&"" ->  | R122: =IF($R$106=24,ROUND($R$17,0),"")&"" ->  | S122: =IF($S$106=24,ROUND($S$17,0),"")&"" ->  | T122: =IF($T$106=24,ROUND($T$17,0),"")&"" ->  | U122: =IF($U$106=24,ROUND($U$17,0),"")&"" ->  | V122: =IF($V$106=24,ROUND($V$17,0),"")&"" ->  | W122: =IF($W$106=24,ROUND($W$17,0),"")&"" ->  | X122: =IF($X$106=24,ROUND($X$17,0),"")&"" ->  | Y122: =IF($Y$106=24,ROUND($Y$17,0),"")&"" ->  | Z122: =IF($Z$106=24,ROUND($Z$17,0),"")&"" ->  | AA122: =IF($AA$106=24,ROUND($AA$17,0),"")&"" ->  | AB122: 9
C123: 10 | D123: =IF($D$107=24,ROUND($D$18,0),"")&"" ->  | E123: =IF($E$107=24,ROUND($E$18,0),"")&"" ->  | F123: =IF($F$107=24,ROUND($F$18,0),"")&"" ->  | G123: =IF($G$107=24,ROUND($G$18,0),"")&"" ->  | H123: =IF($H$107=24,ROUND($H$18,0),"")&"" ->  | I123: =IF($I$107=24,ROUND($I$18,0),"")&"" ->  | J123: =IF($J$107=24,ROUND($J$18,0),"")&"" ->  | K123: =IF($K$107=24,ROUND($K$18,0),"")&"" ->  | L123: =IF($L$107=24,ROUND($L$18,0),"")&"" ->  | M123: =IF($M$107=24,ROUND($M$18,0),"")&"" ->  | N123: =IF($N$107=24,ROUND($N$18,0),"")&"" ->  | O123: =IF($O$107=24,ROUND($O$18,0),"")&"" ->  | P123: =IF($P$107=24,ROUND($P$18,0),"")&"" ->  | Q123: =IF($Q$107=24,ROUND($Q$18,0),"")&"" ->  | R123: =IF($R$107=24,ROUND($R$18,0),"")&"" ->  | S123: =IF($S$107=24,ROUND($S$18,0),"")&"" ->  | T123: =IF($T$107=24,ROUND($T$18,0),"")&"" ->  | U123: =IF($U$107=24,ROUND($U$18,0),"")&"" ->  | V123: =IF($V$107=24,ROUND($V$18,0),"")&"" ->  | W123: =IF($W$107=24,ROUND($W$18,0),"")&"" ->  | X123: =IF($X$107=24,ROUND($X$18,0),"")&"" ->  | Y123: =IF($Y$107=24,ROUND($Y$18,0),"")&"" ->  | Z123: =IF($Z$107=24,ROUND($Z$18,0),"")&"" ->  | AA123: =IF($AA$107=24,ROUND($AA$18,0),"")&"" ->  | AB123: 10
C124: 11 | D124: =IF($D$108=24,ROUND($D$19,0),"")&"" ->  | E124: =IF($E$108=24,ROUND($E$19,0),"")&"" ->  | F124: =IF($F$108=24,ROUND($F$19,0),"")&"" ->  | G124: =IF($G$108=24,ROUND($G$19,0),"")&"" ->  | H124: =IF($H$108=24,ROUND($H$19,0),"")&"" ->  | I124: =IF($I$108=24,ROUND($I$19,0),"")&"" ->  | J124: =IF($J$108=24,ROUND($J$19,0),"")&"" ->  | K124: =IF($K$108=24,ROUND($K$19,0),"")&"" ->  | L124: =IF($L$108=24,ROUND($L$19,0),"")&"" ->  | M124: =IF($M$108=24,ROUND($M$19,0),"")&"" ->  | N124: =IF($N$108=24,ROUND($N$19,0),"")&"" ->  | O124: =IF($O$108=24,ROUND($O$19,0),"")&"" ->  | P124: =IF($P$108=24,ROUND($P$19,0),"")&"" ->  | Q124: =IF($Q$108=24,ROUND($Q$19,0),"")&"" ->  | R124: =IF($R$108=24,ROUND($R$19,0),"")&"" ->  | S124: =IF($S$108=24,ROUND($S$19,0),"")&"" ->  | T124: =IF($T$108=24,ROUND($T$19,0),"")&"" ->  | U124: =IF($U$108=24,ROUND($U$19,0),"")&"" ->  | V124: =IF($V$108=24,ROUND($V$19,0),"")&"" ->  | W124: =IF($W$108=24,ROUND($W$19,0),"")&"" ->  | X124: =IF($X$108=24,ROUND($X$19,0),"")&"" ->  | Y124: =IF($Y$108=24,ROUND($Y$19,0),"")&"" ->  | Z124: =IF($Z$108=24,ROUND($Z$19,0),"")&"" ->  | AA124: =IF($AA$108=24,ROUND($AA$19,0),"")&"" ->  | AB124: 11
C125: 12 | D125: =IF($D$109=24,ROUND($D$20,0),"")&"" ->  | E125: =IF($E$109=24,ROUND($E$20,0),"")&"" ->  | F125: =IF($F$109=24,ROUND($F$20,0),"")&"" ->  | G125: =IF($G$109=24,ROUND($G$20,0),"")&"" ->  | H125: =IF($H$109=24,ROUND($H$20,0),"")&"" ->  | I125: =IF($I$109=24,ROUND($I$20,0),"")&"" ->  | J125: =IF($J$109=24,ROUND($J$20,0),"")&"" ->  | K125: =IF($K$109=24,ROUND($K$20,0),"")&"" ->  | L125: =IF($L$109=24,ROUND($L$20,0),"")&"" ->  | M125: =IF($M$109=24,ROUND($M$20,0),"")&"" ->  | N125: =IF($N$109=24,ROUND($N$20,0),"")&"" ->  | O125: =IF($O$109=24,ROUND($O$20,0),"")&"" ->  | P125: =IF($P$109=24,ROUND($P$20,0),"")&"" ->  | Q125: =IF($Q$109=24,ROUND($Q$20,0),"")&"" ->  | R125: =IF($R$109=24,ROUND($R$20,0),"")&"" ->  | S125: =IF($S$109=24,ROUND($S$20,0),"")&"" ->  | T125: =IF($T$109=24,ROUND($T$20,0),"")&"" ->  | U125: =IF($U$109=24,ROUND($U$20,0),"")&"" ->  | V125: =IF($V$109=24,ROUND($V$20,0),"")&"" ->  | W125: =IF($W$109=24,ROUND($W$20,0),"")&"" ->  | X125: =IF($X$109=24,ROUND($X$20,0),"")&"" ->  | Y125: =IF($Y$109=24,ROUND($Y$20,0),"")&"" ->  | Z125: =IF($Z$109=24,ROUND($Z$20,0),"")&"" ->  | AA125: =IF($AA$109=24,ROUND($AA$20,0),"")&"" ->  | AB125: 12
C126: 1 | D126: =IF($D$110=24,ROUND($D$21,0),"")&"" ->  | E126: =IF($E$110=24,ROUND($E$21,0),"")&"" ->  | F126: =IF($F$110=24,ROUND($F$21,0),"")&"" ->  | G126: =IF($G$110=24,ROUND($G$21,0),"")&"" ->  | H126: =IF($H$110=24,ROUND($H$21,0),"")&"" ->  | I126: =IF($I$110=24,ROUND($I$21,0),"")&"" ->  | J126: =IF($J$110=24,ROUND($J$21,0),"")&"" ->  | K126: =IF($K$110=24,ROUND($K$21,0),"")&"" ->  | L126: =IF($L$110=24,ROUND($L$21,0),"")&"" ->  | M126: =IF($M$110=24,ROUND($M$21,0),"")&"" ->  | N126: =IF($N$110=24,ROUND($N$21,0),"")&"" ->  | O126: =IF($O$110=24,ROUND($O$21,0),"")&"" ->  | P126: =IF($P$110=24,ROUND($P$21,0),"")&"" ->  | Q126: =IF($Q$110=24,ROUND($Q$21,0),"")&"" ->  | R126: =IF($R$110=24,ROUND($R$21,0),"")&"" ->  | S126: =IF($S$110=24,ROUND($S$21,0),"")&"" ->  | T126: =IF($T$110=24,ROUND($T$21,0),"")&"" ->  | U126: =IF($U$110=24,ROUND($U$21,0),"")&"" ->  | V126: =IF($V$110=24,ROUND($V$21,0),"")&"" ->  | W126: =IF($W$110=24,ROUND($W$21,0),"")&"" ->  | X126: =IF($X$110=24,ROUND($X$21,0),"")&"" ->  | Y126: =IF($Y$110=24,ROUND($Y$21,0),"")&"" ->  | Z126: =IF($Z$110=24,ROUND($Z$21,0),"")&"" ->  | AA126: =IF($AA$110=24,ROUND($AA$21,0),"")&"" ->  | AB126: 1
C127: 2 | D127: =IF($D$111=24,ROUND($D$22,0),"")&"" ->  | E127: =IF($E$111=24,ROUND($E$22,0),"")&"" ->  | F127: =IF($F$111=24,ROUND($F$22,0),"")&"" ->  | G127: =IF($G$111=24,ROUND($G$22,0),"")&"" ->  | H127: =IF($H$111=24,ROUND($H$22,0),"")&"" ->  | I127: =IF($I$111=24,ROUND($I$22,0),"")&"" ->  | J127: =IF($J$111=24,ROUND($J$22,0),"")&"" ->  | K127: =IF($K$111=24,ROUND($K$22,0),"")&"" ->  | L127: =IF($L$111=24,ROUND($L$22,0),"")&"" ->  | M127: =IF($M$111=24,ROUND($M$22,0),"")&"" ->  | N127: =IF($N$111=24,ROUND($N$22,0),"")&"" ->  | O127: =IF($O$111=24,ROUND($O$22,0),"")&"" ->  | P127: =IF($P$111=24,ROUND($P$22,0),"")&"" ->  | Q127: =IF($Q$111=24,ROUND($Q$22,0),"")&"" ->  | R127: =IF($R$111=24,ROUND($R$22,0),"")&"" ->  | S127: =IF($S$111=24,ROUND($S$22,0),"")&"" ->  | T127: =IF($T$111=24,ROUND($T$22,0),"")&"" ->  | U127: =IF($U$111=24,ROUND($U$22,0),"")&"" ->  | V127: =IF($V$111=24,ROUND($V$22,0),"")&"" ->  | W127: =IF($W$111=24,ROUND($W$22,0),"")&"" ->  | X127: =IF($X$111=24,ROUND($X$22,0),"")&"" ->  | Y127: =IF($Y$111=24,ROUND($Y$22,0),"")&"" ->  | Z127: =IF($Z$111=24,ROUND($Z$22,0),"")&"" ->  | AA127: =IF($AA$111=24,ROUND($AA$22,0),"")&"" ->  | AB127: 2
C128: 3 | D128: =IF($D$112=24,ROUND($D$23,0),"")&"" ->  | E128: =IF($E$112=24,ROUND($E$23,0),"")&"" ->  | F128: =IF($F$112=24,ROUND($F$23,0),"")&"" ->  | G128: =IF($G$112=24,ROUND($G$23,0),"")&"" ->  | H128: =IF($H$112=24,ROUND($H$23,0),"")&"" ->  | I128: =IF($I$112=24,ROUND($I$23,0),"")&"" ->  | J128: =IF($J$112=24,ROUND($J$23,0),"")&"" ->  | K128: =IF($K$112=24,ROUND($K$23,0),"")&"" ->  | L128: =IF($L$112=24,ROUND($L$23,0),"")&"" ->  | M128: =IF($M$112=24,ROUND($M$23,0),"")&"" ->  | N128: =IF($N$112=24,ROUND($N$23,0),"")&"" ->  | O128: =IF($O$112=24,ROUND($O$23,0),"")&"" ->  | P128: =IF($P$112=24,ROUND($P$23,0),"")&"" ->  | Q128: =IF($Q$112=24,ROUND($Q$23,0),"")&"" ->  | R128: =IF($R$112=24,ROUND($R$23,0),"")&"" ->  | S128: =IF($S$112=24,ROUND($S$23,0),"")&"" ->  | T128: =IF($T$112=24,ROUND($T$23,0),"")&"" ->  | U128: =IF($U$112=24,ROUND($U$23,0),"")&"" ->  | V128: =IF($V$112=24,ROUND($V$23,0),"")&"" ->  | W128: =IF($W$112=24,ROUND($W$23,0),"")&"" ->  | X128: =IF($X$112=24,ROUND($X$23,0),"")&"" ->  | Y128: =IF($Y$112=24,ROUND($Y$23,0),"")&"" ->  | Z128: =IF($Z$112=24,ROUND($Z$23,0),"")&"" ->  | AA128: =IF($AA$112=24,ROUND($AA$23,0),"")&"" ->  | AB128: 3
C130: 作業表2-2(加熱) | E130: ●月▲時の平均気温(四捨五入で表示）
D131: 時刻
C132: 月 | D132: 0 | E132: 1 | F132: 2 | G132: 3 | H132: 4 | I132: 5 | J132: 6 | K132: 7 | L132: 8 | M132: 9 | N132: 10 | O132: 11 | P132: 12 | Q132: 13 | R132: 14 | S132: 15 | T132: 16 | U132: 17 | V132: 18 | W132: 19 | X132: 20 | Y132: 21 | Z132: 22 | AA132: 23 | AB132: 月
C133: 4 | D133: =IF($D$101=19,ROUND($D$12,0),"")&"" ->  | E133: =IF($E$101=19,ROUND($E$12,0),"")&"" ->  | F133: =IF($F$101=19,ROUND($F$12,0),"")&"" ->  | G133: =IF($G$101=19,ROUND($G$12,0),"")&"" ->  | H133: =IF($H$101=19,ROUND($H$12,0),"")&"" ->  | I133: =IF($I$101=19,ROUND($I$12,0),"")&"" ->  | J133: =IF($J$101=19,ROUND($J$12,0),"")&"" ->  | K133: =IF($K$101=19,ROUND($K$12,0),"")&"" ->  | L133: =IF($L$101=19,ROUND($L$12,0),"")&"" ->  | M133: =IF($M$101=19,ROUND($M$12,0),"")&"" ->  | N133: =IF($N$101=19,ROUND($N$12,0),"")&"" ->  | O133: =IF($O$101=19,ROUND($O$12,0),"")&"" ->  | P133: =IF($P$101=19,ROUND($P$12,0),"")&"" ->  | Q133: =IF($Q$101=19,ROUND($Q$12,0),"")&"" ->  | R133: =IF($R$101=19,ROUND($R$12,0),"")&"" ->  | S133: =IF($S$101=19,ROUND($S$12,0),"")&"" ->  | T133: =IF($T$101=19,ROUND($T$12,0),"")&"" ->  | U133: =IF($U$101=19,ROUND($U$12,0),"")&"" ->  | V133: =IF($V$101=19,ROUND($V$12,0),"")&"" ->  | W133: =IF($W$101=19,ROUND($W$12,0),"")&"" ->  | X133: =IF($X$101=19,ROUND($X$12,0),"")&"" ->  | Y133: =IF($Y$101=19,ROUND($Y$12,0),"")&"" ->  | Z133: =IF($Z$101=19,ROUND($Z$12,0),"")&"" ->  | AA133: =IF($AA$101=19,ROUND($AA$12,0),"")&"" ->  | AB133: 4
C134: 5 | D134: =IF($D$102=19,ROUND($D$13,0),"")&"" ->  | E134: =IF($E$102=19,ROUND($E$13,0),"")&"" ->  | F134: =IF($F$102=19,ROUND($F$13,0),"")&"" ->  | G134: =IF($G$102=19,ROUND($G$13,0),"")&"" ->  | H134: =IF($H$102=19,ROUND($H$13,0),"")&"" ->  | I134: =IF($I$102=19,ROUND($I$13,0),"")&"" ->  | J134: =IF($J$102=19,ROUND($J$13,0),"")&"" ->  | K134: =IF($K$102=19,ROUND($K$13,0),"")&"" ->  | L134: =IF($L$102=19,ROUND($L$13,0),"")&"" ->  | M134: =IF($M$102=19,ROUND($M$13,0),"")&"" ->  | N134: =IF($N$102=19,ROUND($N$13,0),"")&"" ->  | O134: =IF($O$102=19,ROUND($O$13,0),"")&"" ->  | P134: =IF($P$102=19,ROUND($P$13,0),"")&"" ->  | Q134: =IF($Q$102=19,ROUND($Q$13,0),"")&"" ->  | R134: =IF($R$102=19,ROUND($R$13,0),"")&"" ->  | S134: =IF($S$102=19,ROUND($S$13,0),"")&"" ->  | T134: =IF($T$102=19,ROUND($T$13,0),"")&"" ->  | U134: =IF($U$102=19,ROUND($U$13,0),"")&"" ->  | V134: =IF($V$102=19,ROUND($V$13,0),"")&"" ->  | W134: =IF($W$102=19,ROUND($W$13,0),"")&"" ->  | X134: =IF($X$102=19,ROUND($X$13,0),"")&"" ->  | Y134: =IF($Y$102=19,ROUND($Y$13,0),"")&"" ->  | Z134: =IF($Z$102=19,ROUND($Z$13,0),"")&"" ->  | AA134: =IF($AA$102=19,ROUND($AA$13,0),"")&"" ->  | AB134: 5
C135: 6 | D135: =IF($D$103=19,ROUND($D$14,0),"")&"" ->  | E135: =IF($E$103=19,ROUND($E$14,0),"")&"" ->  | F135: =IF($F$103=19,ROUND($F$14,0),"")&"" ->  | G135: =IF($G$103=19,ROUND($G$14,0),"")&"" ->  | H135: =IF($H$103=19,ROUND($H$14,0),"")&"" ->  | I135: =IF($I$103=19,ROUND($I$14,0),"")&"" ->  | J135: =IF($J$103=19,ROUND($J$14,0),"")&"" ->  | K135: =IF($K$103=19,ROUND($K$14,0),"")&"" ->  | L135: =IF($L$103=19,ROUND($L$14,0),"")&"" ->  | M135: =IF($M$103=19,ROUND($M$14,0),"")&"" ->  | N135: =IF($N$103=19,ROUND($N$14,0),"")&"" ->  | O135: =IF($O$103=19,ROUND($O$14,0),"")&"" ->  | P135: =IF($P$103=19,ROUND($P$14,0),"")&"" ->  | Q135: =IF($Q$103=19,ROUND($Q$14,0),"")&"" ->  | R135: =IF($R$103=19,ROUND($R$14,0),"")&"" ->  | S135: =IF($S$103=19,ROUND($S$14,0),"")&"" ->  | T135: =IF($T$103=19,ROUND($T$14,0),"")&"" ->  | U135: =IF($U$103=19,ROUND($U$14,0),"")&"" ->  | V135: =IF($V$103=19,ROUND($V$14,0),"")&"" ->  | W135: =IF($W$103=19,ROUND($W$14,0),"")&"" ->  | X135: =IF($X$103=19,ROUND($X$14,0),"")&"" ->  | Y135: =IF($Y$103=19,ROUND($Y$14,0),"")&"" ->  | Z135: =IF($Z$103=19,ROUND($Z$14,0),"")&"" ->  | AA135: =IF($AA$103=19,ROUND($AA$14,0),"")&"" ->  | AB135: 6
C136: 7 | D136: =IF($D$104=19,ROUND($D$15,0),"")&"" ->  | E136: =IF($E$104=19,ROUND($E$15,0),"")&"" ->  | F136: =IF($F$104=19,ROUND($F$15,0),"")&"" ->  | G136: =IF($G$104=19,ROUND($G$15,0),"")&"" ->  | H136: =IF($H$104=19,ROUND($H$15,0),"")&"" ->  | I136: =IF($I$104=19,ROUND($I$15,0),"")&"" ->  | J136: =IF($J$104=19,ROUND($J$15,0),"")&"" ->  | K136: =IF($K$104=19,ROUND($K$15,0),"")&"" ->  | L136: =IF($L$104=19,ROUND($L$15,0),"")&"" ->  | M136: =IF($M$104=19,ROUND($M$15,0),"")&"" ->  | N136: =IF($N$104=19,ROUND($N$15,0),"")&"" ->  | O136: =IF($O$104=19,ROUND($O$15,0),"")&"" ->  | P136: =IF($P$104=19,ROUND($P$15,0),"")&"" ->  | Q136: =IF($Q$104=19,ROUND($Q$15,0),"")&"" ->  | R136: =IF($R$104=19,ROUND($R$15,0),"")&"" ->  | S136: =IF($S$104=19,ROUND($S$15,0),"")&"" ->  | T136: =IF($T$104=19,ROUND($T$15,0),"")&"" ->  | U136: =IF($U$104=19,ROUND($U$15,0),"")&"" ->  | V136: =IF($V$104=19,ROUND($V$15,0),"")&"" ->  | W136: =IF($W$104=19,ROUND($W$15,0),"")&"" ->  | X136: =IF($X$104=19,ROUND($X$15,0),"")&"" ->  | Y136: =IF($Y$104=19,ROUND($Y$15,0),"")&"" ->  | Z136: =IF($Z$104=19,ROUND($Z$15,0),"")&"" ->  | AA136: =IF($AA$104=19,ROUND($AA$15,0),"")&"" ->  | AB136: 7
C137: 8 | D137: =IF($D$105=19,ROUND($D$16,0),"")&"" ->  | E137: =IF($E$105=19,ROUND($E$16,0),"")&"" ->  | F137: =IF($F$105=19,ROUND($F$16,0),"")&"" ->  | G137: =IF($G$105=19,ROUND($G$16,0),"")&"" ->  | H137: =IF($H$105=19,ROUND($H$16,0),"")&"" ->  | I137: =IF($I$105=19,ROUND($I$16,0),"")&"" ->  | J137: =IF($J$105=19,ROUND($J$16,0),"")&"" ->  | K137: =IF($K$105=19,ROUND($K$16,0),"")&"" ->  | L137: =IF($L$105=19,ROUND($L$16,0),"")&"" ->  | M137: =IF($M$105=19,ROUND($M$16,0),"")&"" ->  | N137: =IF($N$105=19,ROUND($N$16,0),"")&"" ->  | O137: =IF($O$105=19,ROUND($O$16,0),"")&"" ->  | P137: =IF($P$105=19,ROUND($P$16,0),"")&"" ->  | Q137: =IF($Q$105=19,ROUND($Q$16,0),"")&"" ->  | R137: =IF($R$105=19,ROUND($R$16,0),"")&"" ->  | S137: =IF($S$105=19,ROUND($S$16,0),"")&"" ->  | T137: =IF($T$105=19,ROUND($T$16,0),"")&"" ->  | U137: =IF($U$105=19,ROUND($U$16,0),"")&"" ->  | V137: =IF($V$105=19,ROUND($V$16,0),"")&"" ->  | W137: =IF($W$105=19,ROUND($W$16,0),"")&"" ->  | X137: =IF($X$105=19,ROUND($X$16,0),"")&"" ->  | Y137: =IF($Y$105=19,ROUND($Y$16,0),"")&"" ->  | Z137: =IF($Z$105=19,ROUND($Z$16,0),"")&"" ->  | AA137: =IF($AA$105=19,ROUND($AA$16,0),"")&"" ->  | AB137: 8
C138: 9 | D138: =IF($D$106=19,ROUND($D$17,0),"")&"" ->  | E138: =IF($E$106=19,ROUND($E$17,0),"")&"" ->  | F138: =IF($F$106=19,ROUND($F$17,0),"")&"" ->  | G138: =IF($G$106=19,ROUND($G$17,0),"")&"" ->  | H138: =IF($H$106=19,ROUND($H$17,0),"")&"" ->  | I138: =IF($I$106=19,ROUND($I$17,0),"")&"" ->  | J138: =IF($J$106=19,ROUND($J$17,0),"")&"" ->  | K138: =IF($K$106=19,ROUND($K$17,0),"")&"" ->  | L138: =IF($L$106=19,ROUND($L$17,0),"")&"" ->  | M138: =IF($M$106=19,ROUND($M$17,0),"")&"" ->  | N138: =IF($N$106=19,ROUND($N$17,0),"")&"" ->  | O138: =IF($O$106=19,ROUND($O$17,0),"")&"" ->  | P138: =IF($P$106=19,ROUND($P$17,0),"")&"" ->  | Q138: =IF($Q$106=19,ROUND($Q$17,0),"")&"" ->  | R138: =IF($R$106=19,ROUND($R$17,0),"")&"" ->  | S138: =IF($S$106=19,ROUND($S$17,0),"")&"" ->  | T138: =IF($T$106=19,ROUND($T$17,0),"")&"" ->  | U138: =IF($U$106=19,ROUND($U$17,0),"")&"" ->  | V138: =IF($V$106=19,ROUND($V$17,0),"")&"" ->  | W138: =IF($W$106=19,ROUND($W$17,0),"")&"" ->  | X138: =IF($X$106=19,ROUND($X$17,0),"")&"" ->  | Y138: =IF($Y$106=19,ROUND($Y$17,0),"")&"" ->  | Z138: =IF($Z$106=19,ROUND($Z$17,0),"")&"" ->  | AA138: =IF($AA$106=19,ROUND($AA$17,0),"")&"" ->  | AB138: 9
C139: 10 | D139: =IF($D$107=19,ROUND($D$18,0),"")&"" ->  | E139: =IF($E$107=19,ROUND($E$18,0),"")&"" ->  | F139: =IF($F$107=19,ROUND($F$18,0),"")&"" ->  | G139: =IF($G$107=19,ROUND($G$18,0),"")&"" ->  | H139: =IF($H$107=19,ROUND($H$18,0),"")&"" ->  | I139: =IF($I$107=19,ROUND($I$18,0),"")&"" ->  | J139: =IF($J$107=19,ROUND($J$18,0),"")&"" ->  | K139: =IF($K$107=19,ROUND($K$18,0),"")&"" ->  | L139: =IF($L$107=19,ROUND($L$18,0),"")&"" ->  | M139: =IF($M$107=19,ROUND($M$18,0),"")&"" ->  | N139: =IF($N$107=19,ROUND($N$18,0),"")&"" ->  | O139: =IF($O$107=19,ROUND($O$18,0),"")&"" ->  | P139: =IF($P$107=19,ROUND($P$18,0),"")&"" ->  | Q139: =IF($Q$107=19,ROUND($Q$18,0),"")&"" ->  | R139: =IF($R$107=19,ROUND($R$18,0),"")&"" ->  | S139: =IF($S$107=19,ROUND($S$18,0),"")&"" ->  | T139: =IF($T$107=19,ROUND($T$18,0),"")&"" ->  | U139: =IF($U$107=19,ROUND($U$18,0),"")&"" ->  | V139: =IF($V$107=19,ROUND($V$18,0),"")&"" ->  | W139: =IF($W$107=19,ROUND($W$18,0),"")&"" ->  | X139: =IF($X$107=19,ROUND($X$18,0),"")&"" ->  | Y139: =IF($Y$107=19,ROUND($Y$18,0),"")&"" ->  | Z139: =IF($Z$107=19,ROUND($Z$18,0),"")&"" ->  | AA139: =IF($AA$107=19,ROUND($AA$18,0),"")&"" ->  | AB139: 10
C140: 11 | D140: =IF($D$108=19,ROUND($D$19,0),"")&"" ->  | E140: =IF($E$108=19,ROUND($E$19,0),"")&"" ->  | F140: =IF($F$108=19,ROUND($F$19,0),"")&"" ->  | G140: =IF($G$108=19,ROUND($G$19,0),"")&"" ->  | H140: =IF($H$108=19,ROUND($H$19,0),"")&"" ->  | I140: =IF($I$108=19,ROUND($I$19,0),"")&"" ->  | J140: =IF($J$108=19,ROUND($J$19,0),"")&"" ->  | K140: =IF($K$108=19,ROUND($K$19,0),"")&"" ->  | L140: =IF($L$108=19,ROUND($L$19,0),"")&"" ->  | M140: =IF($M$108=19,ROUND($M$19,0),"")&"" ->  | N140: =IF($N$108=19,ROUND($N$19,0),"")&"" ->  | O140: =IF($O$108=19,ROUND($O$19,0),"")&"" ->  | P140: =IF($P$108=19,ROUND($P$19,0),"")&"" ->  | Q140: =IF($Q$108=19,ROUND($Q$19,0),"")&"" ->  | R140: =IF($R$108=19,ROUND($R$19,0),"")&"" ->  | S140: =IF($S$108=19,ROUND($S$19,0),"")&"" ->  | T140: =IF($T$108=19,ROUND($T$19,0),"")&"" ->  | U140: =IF($U$108=19,ROUND($U$19,0),"")&"" ->  | V140: =IF($V$108=19,ROUND($V$19,0),"")&"" ->  | W140: =IF($W$108=19,ROUND($W$19,0),"")&"" ->  | X140: =IF($X$108=19,ROUND($X$19,0),"")&"" ->  | Y140: =IF($Y$108=19,ROUND($Y$19,0),"")&"" ->  | Z140: =IF($Z$108=19,ROUND($Z$19,0),"")&"" ->  | AA140: =IF($AA$108=19,ROUND($AA$19,0),"")&"" ->  | AB140: 11
C141: 12 | D141: =IF($D$109=19,ROUND($D$20,0),"")&"" ->  | E141: =IF($E$109=19,ROUND($E$20,0),"")&"" ->  | F141: =IF($F$109=19,ROUND($F$20,0),"")&"" ->  | G141: =IF($G$109=19,ROUND($G$20,0),"")&"" ->  | H141: =IF($H$109=19,ROUND($H$20,0),"")&"" ->  | I141: =IF($I$109=19,ROUND($I$20,0),"")&"" ->  | J141: =IF($J$109=19,ROUND($J$20,0),"")&"" ->  | K141: =IF($K$109=19,ROUND($K$20,0),"")&"" ->  | L141: =IF($L$109=19,ROUND($L$20,0),"")&"" ->  | M141: =IF($M$109=19,ROUND($M$20,0),"")&"" ->  | N141: =IF($N$109=19,ROUND($N$20,0),"")&"" ->  | O141: =IF($O$109=19,ROUND($O$20,0),"")&"" ->  | P141: =IF($P$109=19,ROUND($P$20,0),"")&"" ->  | Q141: =IF($Q$109=19,ROUND($Q$20,0),"")&"" ->  | R141: =IF($R$109=19,ROUND($R$20,0),"")&"" ->  | S141: =IF($S$109=19,ROUND($S$20,0),"")&"" ->  | T141: =IF($T$109=19,ROUND($T$20,0),"")&"" ->  | U141: =IF($U$109=19,ROUND($U$20,0),"")&"" ->  | V141: =IF($V$109=19,ROUND($V$20,0),"")&"" ->  | W141: =IF($W$109=19,ROUND($W$20,0),"")&"" ->  | X141: =IF($X$109=19,ROUND($X$20,0),"")&"" ->  | Y141: =IF($Y$109=19,ROUND($Y$20,0),"")&"" ->  | Z141: =IF($Z$109=19,ROUND($Z$20,0),"")&"" ->  | AA141: =IF($AA$109=19,ROUND($AA$20,0),"")&"" ->  | AB141: 12
C142: 1 | D142: =IF($D$110=19,ROUND($D$21,0),"")&"" ->  | E142: =IF($E$110=19,ROUND($E$21,0),"")&"" ->  | F142: =IF($F$110=19,ROUND($F$21,0),"")&"" ->  | G142: =IF($G$110=19,ROUND($G$21,0),"")&"" ->  | H142: =IF($H$110=19,ROUND($H$21,0),"")&"" ->  | I142: =IF($I$110=19,ROUND($I$21,0),"")&"" ->  | J142: =IF($J$110=19,ROUND($J$21,0),"")&"" ->  | K142: =IF($K$110=19,ROUND($K$21,0),"")&"" ->  | L142: =IF($L$110=19,ROUND($L$21,0),"")&"" ->  | M142: =IF($M$110=19,ROUND($M$21,0),"")&"" ->  | N142: =IF($N$110=19,ROUND($N$21,0),"")&"" ->  | O142: =IF($O$110=19,ROUND($O$21,0),"")&"" ->  | P142: =IF($P$110=19,ROUND($P$21,0),"")&"" ->  | Q142: =IF($Q$110=19,ROUND($Q$21,0),"")&"" ->  | R142: =IF($R$110=19,ROUND($R$21,0),"")&"" ->  | S142: =IF($S$110=19,ROUND($S$21,0),"")&"" ->  | T142: =IF($T$110=19,ROUND($T$21,0),"")&"" ->  | U142: =IF($U$110=19,ROUND($U$21,0),"")&"" ->  | V142: =IF($V$110=19,ROUND($V$21,0),"")&"" ->  | W142: =IF($W$110=19,ROUND($W$21,0),"")&"" ->  | X142: =IF($X$110=19,ROUND($X$21,0),"")&"" ->  | Y142: =IF($Y$110=19,ROUND($Y$21,0),"")&"" ->  | Z142: =IF($Z$110=19,ROUND($Z$21,0),"")&"" ->  | AA142: =IF($AA$110=19,ROUND($AA$21,0),"")&"" ->  | AB142: 1
C143: 2 | D143: =IF($D$111=19,ROUND($D$22,0),"")&"" ->  | E143: =IF($E$111=19,ROUND($E$22,0),"")&"" ->  | F143: =IF($F$111=19,ROUND($F$22,0),"")&"" ->  | G143: =IF($G$111=19,ROUND($G$22,0),"")&"" ->  | H143: =IF($H$111=19,ROUND($H$22,0),"")&"" ->  | I143: =IF($I$111=19,ROUND($I$22,0),"")&"" ->  | J143: =IF($J$111=19,ROUND($J$22,0),"")&"" ->  | K143: =IF($K$111=19,ROUND($K$22,0),"")&"" ->  | L143: =IF($L$111=19,ROUND($L$22,0),"")&"" ->  | M143: =IF($M$111=19,ROUND($M$22,0),"")&"" ->  | N143: =IF($N$111=19,ROUND($N$22,0),"")&"" ->  | O143: =IF($O$111=19,ROUND($O$22,0),"")&"" ->  | P143: =IF($P$111=19,ROUND($P$22,0),"")&"" ->  | Q143: =IF($Q$111=19,ROUND($Q$22,0),"")&"" ->  | R143: =IF($R$111=19,ROUND($R$22,0),"")&"" ->  | S143: =IF($S$111=19,ROUND($S$22,0),"")&"" ->  | T143: =IF($T$111=19,ROUND($T$22,0),"")&"" ->  | U143: =IF($U$111=19,ROUND($U$22,0),"")&"" ->  | V143: =IF($V$111=19,ROUND($V$22,0),"")&"" ->  | W143: =IF($W$111=19,ROUND($W$22,0),"")&"" ->  | X143: =IF($X$111=19,ROUND($X$22,0),"")&"" ->  | Y143: =IF($Y$111=19,ROUND($Y$22,0),"")&"" ->  | Z143: =IF($Z$111=19,ROUND($Z$22,0),"")&"" ->  | AA143: =IF($AA$111=19,ROUND($AA$22,0),"")&"" ->  | AB143: 2
C144: 3 | D144: =IF($D$112=19,ROUND($D$23,0),"")&"" ->  | E144: =IF($E$112=19,ROUND($E$23,0),"")&"" ->  | F144: =IF($F$112=19,ROUND($F$23,0),"")&"" ->  | G144: =IF($G$112=19,ROUND($G$23,0),"")&"" ->  | H144: =IF($H$112=19,ROUND($H$23,0),"")&"" ->  | I144: =IF($I$112=19,ROUND($I$23,0),"")&"" ->  | J144: =IF($J$112=19,ROUND($J$23,0),"")&"" ->  | K144: =IF($K$112=19,ROUND($K$23,0),"")&"" ->  | L144: =IF($L$112=19,ROUND($L$23,0),"")&"" ->  | M144: =IF($M$112=19,ROUND($M$23,0),"")&"" ->  | N144: =IF($N$112=19,ROUND($N$23,0),"")&"" ->  | O144: =IF($O$112=19,ROUND($O$23,0),"")&"" ->  | P144: =IF($P$112=19,ROUND($P$23,0),"")&"" ->  | Q144: =IF($Q$112=19,ROUND($Q$23,0),"")&"" ->  | R144: =IF($R$112=19,ROUND($R$23,0),"")&"" ->  | S144: =IF($S$112=19,ROUND($S$23,0),"")&"" ->  | T144: =IF($T$112=19,ROUND($T$23,0),"")&"" ->  | U144: =IF($U$112=19,ROUND($U$23,0),"")&"" ->  | V144: =IF($V$112=19,ROUND($V$23,0),"")&"" ->  | W144: =IF($W$112=19,ROUND($W$23,0),"")&"" ->  | X144: =IF($X$112=19,ROUND($X$23,0),"")&"" ->  | Y144: =IF($Y$112=19,ROUND($Y$23,0),"")&"" ->  | Z144: =IF($Z$112=19,ROUND($Z$23,0),"")&"" ->  | AA144: =IF($AA$112=19,ROUND($AA$23,0),"")&"" ->  | AB144: 3
C146: 冷却期間中 外気温度(T)が発生する時間[hour]
D147: 外気温度(T) | AV147: 共通 | AW147: 共通 | AX147: 前1 | BA147: 前2 | BD147: 前3 | BH147: 後1 | BK147: 後2 | BN147: 後3
C148: 月 | D148: -6 | E148: -5 | F148: -4 | G148: -3 | H148: -2 | I148: -1 | J148: 0 | K148: 1 | L148: 2 | M148: 3 | N148: 4 | O148: 5 | P148: 6 | Q148: 7 | R148: 8 | S148: 9 | T148: 10 | U148: 11 | V148: 12 | W148: 13 | X148: 14 | Y148: 15 | Z148: 16 | AA148: 17 | AB148: 18 | AC148: 19 | AD148: 20 | AE148: 21 | AF148: 22 | AG148: 23 | AH148: 24 | AI148: 25 | AJ148: 26 | AK148: 27 | AL148: 28 | AM148: 29 | AN148: 30 | AO148: 31 | AP148: 32 | AQ148: 33 | AR148: 34 | AS148: 35 | AT148: 月 | AV148: EccのΣ | AW148: EaxcのΣ | AX148: Ecc | AY148: Eaxc | AZ148: Ec | BA148: Ecc | BB148: Eaxc | BC148: Ec | BD148: Ecc | BE148: Eaxc | BF148: Ec | BH148: Ecc | BI148: Eaxc | BJ148: Ec | BK148: Ecc | BL148: Eaxc | BM148: Ec | BN148: Ecc | BO148: Eaxc | BP148: Ec
C149: 4 | D149: =COUNTIF($D$117:$AA$117,$D$148)*$AB$12 -> 0 | E149: =COUNTIF($D$117:$AA$117,$E$148)*$AB$12 -> 0 | F149: =COUNTIF($D$117:$AA$117,$F$148)*$AB$12 -> 0 | G149: =COUNTIF($D$117:$AA$117,$G$148)*$AB$12 -> 0 | H149: =COUNTIF($D$117:$AA$117,$H$148)*$AB$12 -> 0 | I149: =COUNTIF($D$117:$AA$117,$I$148)*$AB$12 -> 0 | J149: =COUNTIF($D$117:$AA$117,$J$148)*$AB$12 -> 0 | K149: =COUNTIF($D$117:$AA$117,$K$148)*$AB$12 -> 0 | L149: =COUNTIF($D$117:$AA$117,$L$148)*$AB$12 -> 0 | M149: =COUNTIF($D$117:$AA$117,$M$148)*$AB$12 -> 0 | N149: =COUNTIF($D$117:$AA$117,$N$148)*$AB$12 -> 0 | O149: =COUNTIF($D$117:$AA$117,$O$148)*$AB$12 -> 0 | P149: =COUNTIF($D$117:$AA$117,$P$148)*$AB$12 -> 0 | Q149: =COUNTIF($D$117:$AA$117,$Q$148)*$AB$12 -> 0 | R149: =COUNTIF($D$117:$AA$117,$R$148)*$AB$12 -> 0 | S149: =COUNTIF($D$117:$AA$117,$S$148)*$AB$12 -> 0 | T149: =COUNTIF($D$117:$AA$117,$T$148)*$AB$12 -> 0 | U149: =COUNTIF($D$117:$AA$117,$U$148)*$AB$12 -> 0 | V149: =COUNTIF($D$117:$AA$117,$V$148)*$AB$12 -> 0 | W149: =COUNTIF($D$117:$AA$117,$W$148)*$AB$12 -> 0 | X149: =COUNTIF($D$117:$AA$117,$X$148)*$AB$12 -> 0 | Y149: =COUNTIF($D$117:$AA$117,$Y$148)*$AB$12 -> 0 | Z149: =COUNTIF($D$117:$AA$117,$Z$148)*$AB$12 -> 0 | AA149: =COUNTIF($D$117:$AA$117,$AA$148)*$AB$12 -> 0 | AB149: =COUNTIF($D$117:$AA$117,$AB$148)*$AB$12 -> 0 | AC149: =COUNTIF($D$117:$AA$117,$AC$148)*$AB$12 -> 0 | AD149: =COUNTIF($D$117:$AA$117,$AD$148)*$AB$12 -> 0 | AE149: =COUNTIF($D$117:$AA$117,$AE$148)*$AB$12 -> 0 | AF149: =COUNTIF($D$117:$AA$117,$AF$148)*$AB$12 -> 0 | AG149: =COUNTIF($D$117:$AA$117,$AG$148)*$AB$12 -> 0 | AH149: =COUNTIF($D$117:$AA$117,$AH$148)*$AB$12 -> 0 | AI149: =COUNTIF($D$117:$AA$117,$AI$148)*$AB$12 -> 0 | AJ149: =COUNTIF($D$117:$AA$117,$AJ$148)*$AB$12 -> 0 | AK149: =COUNTIF($D$117:$AA$117,$AK$148)*$AB$12 -> 0 | AL149: =COUNTIF($D$117:$AA$117,$AL$148)*$AB$12 -> 0 | AM149: =COUNTIF($D$117:$AA$117,$AM$148)*$AB$12 -> 0 | AN149: =COUNTIF($D$117:$AA$117,$AN$148)*$AB$12 -> 0 | AO149: =COUNTIF($D$117:$AA$117,$AO$148)*$AB$12 -> 0 | AP149: =COUNTIF($D$117:$AA$117,$AP$148)*$AB$12 -> 0 | AQ149: =COUNTIF($D$117:$AA$117,$AQ$148)*$AB$12 -> 0 | AR149: =COUNTIF($D$117:$AA$117,$AR$148)*$AB$12 -> 0 | AS149: =COUNTIF($D$117:$AA$117,$AS$148)*$AB$12 -> 0 | AT149: 4 | AV149: =SUMPRODUCT(D149:AS149,$D$162:$AS$162) -> 0 | AW149: =SUMPRODUCT(D149:AS149,$D$189:$AS$189) -> 0 | AX149: =$Q$29/$Q$31*AV149*$Q$37 -> 0 | AY149: =$Q$35*AW149 -> 0 | AZ149: =SUM(AX149:AY149) -> 0 | BA149: =$R$29/$R$31*AV149*$R$37 ->  | BB149: =$R$35*AW149 -> 0 | BC149: =SUM(BA149:BB149) ->  | BD149: =$S$29/$S$31*AV149*$S$37 ->  | BE149: =$S$35*AW149 -> 0 | BF149: =SUM(BD149:BE149) ->  | BH149: =$Q$43/$Q$45*AV149*$Q$51 ->  | BI149: =$Q$49*AW149 -> 0 | BJ149: =SUM(BH149:BI149) ->  | BK149: =$R$43/$R$45*AV149*$R$51 ->  | BL149: =$R$49*AW149 -> 0 | BM149: =SUM(BK149:BL149) ->  | BN149: =$S$43/$S$45*AV149*$S$51 ->  | BO149: =$S$49*AW149 -> 0 | BP149: =SUM(BN149:BO149) -> 
C150: 5 | D150: =COUNTIF($D$118:$AA$118,$D$148)*$AB$13 -> 0 | E150: =COUNTIF($D$118:$AA$118,$E$148)*$AB$13 -> 0 | F150: =COUNTIF($D$118:$AA$118,$F$148)*$AB$13 -> 0 | G150: =COUNTIF($D$118:$AA$118,$G$148)*$AB$13 -> 0 | H150: =COUNTIF($D$118:$AA$118,$H$148)*$AB$13 -> 0 | I150: =COUNTIF($D$118:$AA$118,$I$148)*$AB$13 -> 0 | J150: =COUNTIF($D$118:$AA$118,$J$148)*$AB$13 -> 0 | K150: =COUNTIF($D$118:$AA$118,$K$148)*$AB$13 -> 0 | L150: =COUNTIF($D$118:$AA$118,$L$148)*$AB$13 -> 0 | M150: =COUNTIF($D$118:$AA$118,$M$148)*$AB$13 -> 0 | N150: =COUNTIF($D$118:$AA$118,$N$148)*$AB$13 -> 0 | O150: =COUNTIF($D$118:$AA$118,$O$148)*$AB$13 -> 0 | P150: =COUNTIF($D$118:$AA$118,$P$148)*$AB$13 -> 0 | Q150: =COUNTIF($D$118:$AA$118,$Q$148)*$AB$13 -> 0 | R150: =COUNTIF($D$118:$AA$118,$R$148)*$AB$13 -> 0 | S150: =COUNTIF($D$118:$AA$118,$S$148)*$AB$13 -> 0 | T150: =COUNTIF($D$118:$AA$118,$T$148)*$AB$13 -> 0 | U150: =COUNTIF($D$118:$AA$118,$U$148)*$AB$13 -> 0 | V150: =COUNTIF($D$118:$AA$118,$V$148)*$AB$13 -> 0 | W150: =COUNTIF($D$118:$AA$118,$W$148)*$AB$13 -> 0 | X150: =COUNTIF($D$118:$AA$118,$X$148)*$AB$13 -> 0 | Y150: =COUNTIF($D$118:$AA$118,$Y$148)*$AB$13 -> 0 | Z150: =COUNTIF($D$118:$AA$118,$Z$148)*$AB$13 -> 0 | AA150: =COUNTIF($D$118:$AA$118,$AA$148)*$AB$13 -> 0 | AB150: =COUNTIF($D$118:$AA$118,$AB$148)*$AB$13 -> 0 | AC150: =COUNTIF($D$118:$AA$118,$AC$148)*$AB$13 -> 0 | AD150: =COUNTIF($D$118:$AA$118,$AD$148)*$AB$13 -> 0 | AE150: =COUNTIF($D$118:$AA$118,$AE$148)*$AB$13 -> 0 | AF150: =COUNTIF($D$118:$AA$118,$AF$148)*$AB$13 -> 0 | AG150: =COUNTIF($D$118:$AA$118,$AG$148)*$AB$13 -> 0 | AH150: =COUNTIF($D$118:$AA$118,$AH$148)*$AB$13 -> 0 | AI150: =COUNTIF($D$118:$AA$118,$AI$148)*$AB$13 -> 0 | AJ150: =COUNTIF($D$118:$AA$118,$AJ$148)*$AB$13 -> 0 | AK150: =COUNTIF($D$118:$AA$118,$AK$148)*$AB$13 -> 0 | AL150: =COUNTIF($D$118:$AA$118,$AL$148)*$AB$13 -> 0 | AM150: =COUNTIF($D$118:$AA$118,$AM$148)*$AB$13 -> 0 | AN150: =COUNTIF($D$118:$AA$118,$AN$148)*$AB$13 -> 0 | AO150: =COUNTIF($D$118:$AA$118,$AO$148)*$AB$13 -> 0 | AP150: =COUNTIF($D$118:$AA$118,$AP$148)*$AB$13 -> 0 | AQ150: =COUNTIF($D$118:$AA$118,$AQ$148)*$AB$13 -> 0 | AR150: =COUNTIF($D$118:$AA$118,$AR$148)*$AB$13 -> 0 | AS150: =COUNTIF($D$118:$AA$118,$AS$148)*$AD$13 -> 0 | AT150: 5 | AV150: =SUMPRODUCT(D150:AS150,$D$162:$AS$162) -> 0 | AW150: =SUMPRODUCT(D150:AS150,$D$189:$AS$189) -> 0 | AX150: =$Q$29/$Q$31*AV150*$Q$37 -> 0 | AY150: =$Q$35*AW150 -> 0 | AZ150: =SUM(AX150:AY150) -> 0 | BA150: =$R$29/$R$31*AV150*$R$37 ->  | BB150: =$R$35*AW150 -> 0 | BC150: =SUM(BA150:BB150) ->  | BD150: =$S$29/$S$31*AV150*$S$37 ->  | BE150: =$S$35*AW150 -> 0 | BF150: =SUM(BD150:BE150) ->  | BH150: =$Q$43/$Q$45*AV150*$Q$51 ->  | BI150: =$Q$49*AW150 -> 0 | BJ150: =SUM(BH150:BI150) ->  | BK150: =$R$43/$R$45*AV150*$R$51 ->  | BL150: =$R$49*AW150 -> 0 | BM150: =SUM(BK150:BL150) ->  | BN150: =$S$43/$S$45*AV150*$S$51 ->  | BO150: =$S$49*AW150 -> 0 | BP150: =SUM(BN150:BO150) -> 
C151: 6 | D151: =COUNTIF($D$119:$AA$119,$D$148)*$AB$14 -> 0 | E151: =COUNTIF($D$119:$AA$119,$E$148)*$AB$14 -> 0 | F151: =COUNTIF($D$119:$AA$119,$F$148)*$AB$14 -> 0 | G151: =COUNTIF($D$119:$AA$119,$G$148)*$AB$14 -> 0 | H151: =COUNTIF($D$119:$AA$119,$H$148)*$AB$14 -> 0 | I151: =COUNTIF($D$119:$AA$119,$I$148)*$AB$14 -> 0 | J151: =COUNTIF($D$119:$AA$119,$J$148)*$AB$14 -> 0 | K151: =COUNTIF($D$119:$AA$119,$K$148)*$AB$14 -> 0 | L151: =COUNTIF($D$119:$AA$119,$L$148)*$AB$14 -> 0 | M151: =COUNTIF($D$119:$AA$119,$M$148)*$AB$14 -> 0 | N151: =COUNTIF($D$119:$AA$119,$N$148)*$AB$14 -> 0 | O151: =COUNTIF($D$119:$AA$119,$O$148)*$AB$14 -> 0 | P151: =COUNTIF($D$119:$AA$119,$P$148)*$AB$14 -> 0 | Q151: =COUNTIF($D$119:$AA$119,$Q$148)*$AB$14 -> 0 | R151: =COUNTIF($D$119:$AA$119,$R$148)*$AB$14 -> 0 | S151: =COUNTIF($D$119:$AA$119,$S$148)*$AB$14 -> 0 | T151: =COUNTIF($D$119:$AA$119,$T$148)*$AB$14 -> 0 | U151: =COUNTIF($D$119:$AA$119,$U$148)*$AB$14 -> 0 | V151: =COUNTIF($D$119:$AA$119,$V$148)*$AB$14 -> 0 | W151: =COUNTIF($D$119:$AA$119,$W$148)*$AB$14 -> 0 | X151: =COUNTIF($D$119:$AA$119,$X$148)*$AB$14 -> 0 | Y151: =COUNTIF($D$119:$AA$119,$Y$148)*$AB$14 -> 0 | Z151: =COUNTIF($D$119:$AA$119,$Z$148)*$AB$14 -> 0 | AA151: =COUNTIF($D$119:$AA$119,$AA$148)*$AB$14 -> 0 | AB151: =COUNTIF($D$119:$AA$119,$AB$148)*$AB$14 -> 0 | AC151: =COUNTIF($D$119:$AA$119,$AC$148)*$AB$14 -> 0 | AD151: =COUNTIF($D$119:$AA$119,$AD$148)*$AB$14 -> 0 | AE151: =COUNTIF($D$119:$AA$119,$AE$148)*$AB$14 -> 0 | AF151: =COUNTIF($D$119:$AA$119,$AF$148)*$AB$14 -> 0 | AG151: =COUNTIF($D$119:$AA$119,$AG$148)*$AB$14 -> 0 | AH151: =COUNTIF($D$119:$AA$119,$AH$148)*$AB$14 -> 0 | AI151: =COUNTIF($D$119:$AA$119,$AI$148)*$AB$14 -> 0 | AJ151: =COUNTIF($D$119:$AA$119,$AJ$148)*$AB$14 -> 0 | AK151: =COUNTIF($D$119:$AA$119,$AK$148)*$AB$14 -> 0 | AL151: =COUNTIF($D$119:$AA$119,$AL$148)*$AB$14 -> 0 | AM151: =COUNTIF($D$119:$AA$119,$AM$148)*$AB$14 -> 0 | AN151: =COUNTIF($D$119:$AA$119,$AN$148)*$AB$14 -> 0 | AO151: =COUNTIF($D$119:$AA$119,$AO$148)*$AB$14 -> 0 | AP151: =COUNTIF($D$119:$AA$119,$AP$148)*$AB$14 -> 0 | AQ151: =COUNTIF($D$119:$AA$119,$AQ$148)*$AB$14 -> 0 | AR151: =COUNTIF($D$119:$AA$119,$AR$148)*$AB$14 -> 0 | AS151: =COUNTIF($D$119:$AA$119,$AS$148)*$AB$14 -> 0 | AT151: 6 | AV151: 0 | AW151: 0 | AX151: 0 | AY151: 0 | AZ151: =SUM(AX151:AY151) -> 0 | BB151: 0 | BE151: 0 | BI151: 0 | BL151: 0 | BO151: 0
C152: 7 | D152: =COUNTIF($D$120:$AA$120,$D$148)*$AB$15 -> 0 | E152: =COUNTIF($D$120:$AA$120,$E$148)*$AB$15 -> 0 | F152: =COUNTIF($D$120:$AA$120,$F$148)*$AB$15 -> 0 | G152: =COUNTIF($D$120:$AA$120,$G$148)*$AB$15 -> 0 | H152: =COUNTIF($D$120:$AA$120,$H$148)*$AB$15 -> 0 | I152: =COUNTIF($D$120:$AA$120,$I$148)*$AB$15 -> 0 | J152: =COUNTIF($D$120:$AA$120,$J$148)*$AB$15 -> 0 | K152: =COUNTIF($D$120:$AA$120,$K$148)*$AB$15 -> 0 | L152: =COUNTIF($D$120:$AA$120,$L$148)*$AB$15 -> 0 | M152: =COUNTIF($D$120:$AA$120,$M$148)*$AB$15 -> 0 | N152: =COUNTIF($D$120:$AA$120,$N$148)*$AB$15 -> 0 | O152: =COUNTIF($D$120:$AA$120,$O$148)*$AB$15 -> 0 | P152: =COUNTIF($D$120:$AA$120,$P$148)*$AB$15 -> 0 | Q152: =COUNTIF($D$120:$AA$120,$Q$148)*$AB$15 -> 0 | R152: =COUNTIF($D$120:$AA$120,$R$148)*$AB$15 -> 0 | S152: =COUNTIF($D$120:$AA$120,$S$148)*$AB$15 -> 0 | T152: =COUNTIF($D$120:$AA$120,$T$148)*$AB$15 -> 0 | U152: =COUNTIF($D$120:$AA$120,$U$148)*$AB$15 -> 0 | V152: =COUNTIF($D$120:$AA$120,$V$148)*$AB$15 -> 0 | W152: =COUNTIF($D$120:$AA$120,$W$148)*$AB$15 -> 0 | X152: =COUNTIF($D$120:$AA$120,$X$148)*$AB$15 -> 0 | Y152: =COUNTIF($D$120:$AA$120,$Y$148)*$AB$15 -> 0 | Z152: =COUNTIF($D$120:$AA$120,$Z$148)*$AB$15 -> 0 | AA152: =COUNTIF($D$120:$AA$120,$AA$148)*$AB$15 -> 0 | AB152: =COUNTIF($D$120:$AA$120,$AB$148)*$AB$15 -> 0 | AC152: =COUNTIF($D$120:$AA$120,$AC$148)*$AB$15 -> 0 | AD152: =COUNTIF($D$120:$AA$120,$AD$148)*$AB$15 -> 0 | AE152: =COUNTIF($D$120:$AA$120,$AE$148)*$AB$15 -> 0 | AF152: =COUNTIF($D$120:$AA$120,$AF$148)*$AB$15 -> 0 | AG152: =COUNTIF($D$120:$AA$120,$AG$148)*$AB$15 -> 0 | AH152: =COUNTIF($D$120:$AA$120,$AH$148)*$AB$15 -> 0 | AI152: =COUNTIF($D$120:$AA$120,$AI$148)*$AB$15 -> 0 | AJ152: =COUNTIF($D$120:$AA$120,$AJ$148)*$AB$15 -> 0 | AK152: =COUNTIF($D$120:$AA$120,$AK$148)*$AB$15 -> 0 | AL152: =COUNTIF($D$120:$AA$120,$AL$148)*$AB$15 -> 0 | AM152: =COUNTIF($D$120:$AA$120,$AM$148)*$AB$15 -> 0 | AN152: =COUNTIF($D$120:$AA$120,$AN$148)*$AB$15 -> 0 | AO152: =COUNTIF($D$120:$AA$120,$AO$148)*$AB$15 -> 0 | AP152: =COUNTIF($D$120:$AA$120,$AP$148)*$AB$15 -> 0 | AQ152: =COUNTIF($D$120:$AA$120,$AQ$148)*$AB$15 -> 0 | AR152: =COUNTIF($D$120:$AA$120,$AR$148)*$AB$15 -> 0 | AS152: =COUNTIF($D$120:$AA$120,$AS$148)*$AB$15 -> 0 | AT152: 7 | AV152: 0 | AW152: 0 | AX152: 0 | AY152: 0 | AZ152: 0 | BB152: 0 | BE152: 0 | BI152: 0 | BL152: 0 | BO152: 0
C153: 8 | D153: =COUNTIF($D$121:$AA$121,$D$148)*$AB$16 -> 0 | E153: =COUNTIF($D$121:$AA$121,$E$148)*$AB$16 -> 0 | F153: =COUNTIF($D$121:$AA$121,$F$148)*$AB$16 -> 0 | G153: =COUNTIF($D$121:$AA$121,$G$148)*$AB$16 -> 0 | H153: =COUNTIF($D$121:$AA$121,$H$148)*$AB$16 -> 0 | I153: =COUNTIF($D$121:$AA$121,$I$148)*$AB$16 -> 0 | J153: =COUNTIF($D$121:$AA$121,$J$148)*$AB$16 -> 0 | K153: =COUNTIF($D$121:$AA$121,$K$148)*$AB$16 -> 0 | L153: =COUNTIF($D$121:$AA$121,$L$148)*$AB$16 -> 0 | M153: =COUNTIF($D$121:$AA$121,$M$148)*$AB$16 -> 0 | N153: =COUNTIF($D$121:$AA$121,$N$148)*$AB$16 -> 0 | O153: =COUNTIF($D$121:$AA$121,$O$148)*$AB$16 -> 0 | P153: =COUNTIF($D$121:$AA$121,$P$148)*$AB$16 -> 0 | Q153: =COUNTIF($D$121:$AA$121,$Q$148)*$AB$16 -> 0 | R153: =COUNTIF($D$121:$AA$121,$R$148)*$AB$16 -> 0 | S153: =COUNTIF($D$121:$AA$121,$S$148)*$AB$16 -> 0 | T153: =COUNTIF($D$121:$AA$121,$T$148)*$AB$16 -> 0 | U153: =COUNTIF($D$121:$AA$121,$U$148)*$AB$16 -> 0 | V153: =COUNTIF($D$121:$AA$121,$V$148)*$AB$16 -> 0 | W153: =COUNTIF($D$121:$AA$121,$W$148)*$AB$16 -> 0 | X153: =COUNTIF($D$121:$AA$121,$X$148)*$AB$16 -> 0 | Y153: =COUNTIF($D$121:$AA$121,$Y$148)*$AB$16 -> 0 | Z153: =COUNTIF($D$121:$AA$121,$Z$148)*$AB$16 -> 0 | AA153: =COUNTIF($D$121:$AA$121,$AA$148)*$AB$16 -> 0 | AB153: =COUNTIF($D$121:$AA$121,$AB$148)*$AB$16 -> 0 | AC153: =COUNTIF($D$121:$AA$121,$AC$148)*$AB$16 -> 0 | AD153: =COUNTIF($D$121:$AA$121,$AD$148)*$AB$16 -> 0 | AE153: =COUNTIF($D$121:$AA$121,$AE$148)*$AB$16 -> 0 | AF153: =COUNTIF($D$121:$AA$121,$AF$148)*$AB$16 -> 0 | AG153: =COUNTIF($D$121:$AA$121,$AG$148)*$AB$16 -> 0 | AH153: =COUNTIF($D$121:$AA$121,$AH$148)*$AB$16 -> 0 | AI153: =COUNTIF($D$121:$AA$121,$AI$148)*$AB$16 -> 0 | AJ153: =COUNTIF($D$121:$AA$121,$AJ$148)*$AB$16 -> 0 | AK153: =COUNTIF($D$121:$AA$121,$AK$148)*$AB$16 -> 0 | AL153: =COUNTIF($D$121:$AA$121,$AL$148)*$AB$16 -> 0 | AM153: =COUNTIF($D$121:$AA$121,$AM$148)*$AB$16 -> 0 | AN153: =COUNTIF($D$121:$AA$121,$AN$148)*$AB$16 -> 0 | AO153: =COUNTIF($D$121:$AA$121,$AO$148)*$AB$16 -> 0 | AP153: =COUNTIF($D$121:$AA$121,$AP$148)*$AB$16 -> 0 | AQ153: =COUNTIF($D$121:$AA$121,$AQ$148)*$AB$16 -> 0 | AR153: =COUNTIF($D$121:$AA$121,$AR$148)*$AB$16 -> 0 | AS153: =COUNTIF($D$121:$AA$121,$AS$148)*$AB$16 -> 0 | AT153: 8 | AV153: 0 | AW153: 0 | AX153: 0 | AY153: 0 | AZ153: 0 | BB153: 0 | BE153: 0 | BI153: 0 | BL153: 0 | BO153: 0
C154: 9 | D154: =COUNTIF($D$122:$AA$122,$D$148)*$AB$17 -> 0 | E154: =COUNTIF($D$122:$AA$122,$E$148)*$AB$17 -> 0 | F154: =COUNTIF($D$122:$AA$122,$F$148)*$AB$17 -> 0 | G154: =COUNTIF($D$122:$AA$122,$G$148)*$AB$17 -> 0 | H154: =COUNTIF($D$122:$AA$122,$H$148)*$AB$17 -> 0 | I154: =COUNTIF($D$122:$AA$122,$I$148)*$AB$17 -> 0 | J154: =COUNTIF($D$122:$AA$122,$J$148)*$AB$17 -> 0 | K154: =COUNTIF($D$122:$AA$122,$K$148)*$AB$17 -> 0 | L154: =COUNTIF($D$122:$AA$122,$L$148)*$AB$17 -> 0 | M154: =COUNTIF($D$122:$AA$122,$M$148)*$AB$17 -> 0 | N154: =COUNTIF($D$122:$AA$122,$N$148)*$AB$17 -> 0 | O154: =COUNTIF($D$122:$AA$122,$O$148)*$AB$17 -> 0 | P154: =COUNTIF($D$122:$AA$122,$P$148)*$AB$17 -> 0 | Q154: =COUNTIF($D$122:$AA$122,$Q$148)*$AB$17 -> 0 | R154: =COUNTIF($D$122:$AA$122,$R$148)*$AB$17 -> 0 | S154: =COUNTIF($D$122:$AA$122,$S$148)*$AB$17 -> 0 | T154: =COUNTIF($D$122:$AA$122,$T$148)*$AB$17 -> 0 | U154: =COUNTIF($D$122:$AA$122,$U$148)*$AB$17 -> 0 | V154: =COUNTIF($D$122:$AA$122,$V$148)*$AB$17 -> 0 | W154: =COUNTIF($D$122:$AA$122,$W$148)*$AB$17 -> 0 | X154: =COUNTIF($D$122:$AA$122,$X$148)*$AB$17 -> 0 | Y154: =COUNTIF($D$122:$AA$122,$Y$148)*$AB$17 -> 0 | Z154: =COUNTIF($D$122:$AA$122,$Z$148)*$AB$17 -> 0 | AA154: =COUNTIF($D$122:$AA$122,$AA$148)*$AB$17 -> 0 | AB154: =COUNTIF($D$122:$AA$122,$AB$148)*$AB$17 -> 0 | AC154: =COUNTIF($D$122:$AA$122,$AC$148)*$AB$17 -> 0 | AD154: =COUNTIF($D$122:$AA$122,$AD$148)*$AB$17 -> 0 | AE154: =COUNTIF($D$122:$AA$122,$AE$148)*$AB$17 -> 0 | AF154: =COUNTIF($D$122:$AA$122,$AF$148)*$AB$17 -> 0 | AG154: =COUNTIF($D$122:$AA$122,$AG$148)*$AB$17 -> 0 | AH154: =COUNTIF($D$122:$AA$122,$AH$148)*$AB$17 -> 0 | AI154: =COUNTIF($D$122:$AA$122,$AI$148)*$AB$17 -> 0 | AJ154: =COUNTIF($D$122:$AA$122,$AJ$148)*$AB$17 -> 0 | AK154: =COUNTIF($D$122:$AA$122,$AK$148)*$AB$17 -> 0 | AL154: =COUNTIF($D$122:$AA$122,$AL$148)*$AB$17 -> 0 | AM154: =COUNTIF($D$122:$AA$122,$AM$148)*$AB$17 -> 0 | AN154: =COUNTIF($D$122:$AA$122,$AN$148)*$AB$17 -> 0 | AO154: =COUNTIF($D$122:$AA$122,$AO$148)*$AB$17 -> 0 | AP154: =COUNTIF($D$122:$AA$122,$AP$148)*$AB$17 -> 0 | AQ154: =COUNTIF($D$122:$AA$122,$AQ$148)*$AB$17 -> 0 | AR154: =COUNTIF($D$122:$AA$122,$AR$148)*$AB$17 -> 0 | AS154: =COUNTIF($D$122:$AA$122,$AS$148)*$AB$17 -> 0 | AT154: 9 | AV154: 0 | AW154: =SUMPRODUCT(D154:AS154,$D$189:$AS$189) -> 0 | AX154: 0 | AY154: =$Q$35*AW154 -> 0 | AZ154: 0 | BB154: 0 | BE154: 0 | BI154: 0 | BL154: 0 | BO154: 0 | BP154: =SUM(BN154:BO154) -> 
C155: 10 | D155: =COUNTIF($D$123:$AA$123,$D$148)*$AB$18 -> 0 | E155: =COUNTIF($D$123:$AA$123,$E$148)*$AB$18 -> 0 | F155: =COUNTIF($D$123:$AA$123,$F$148)*$AB$18 -> 0 | G155: =COUNTIF($D$123:$AA$123,$G$148)*$AB$18 -> 0 | H155: =COUNTIF($D$123:$AA$123,$H$148)*$AB$18 -> 0 | I155: =COUNTIF($D$123:$AA$123,$I$148)*$AB$18 -> 0 | J155: =COUNTIF($D$123:$AA$123,$J$148)*$AB$18 -> 0 | K155: =COUNTIF($D$123:$AA$123,$K$148)*$AB$18 -> 0 | L155: =COUNTIF($D$123:$AA$123,$L$148)*$AB$18 -> 0 | M155: =COUNTIF($D$123:$AA$123,$M$148)*$AB$18 -> 0 | N155: =COUNTIF($D$123:$AA$123,$N$148)*$AB$18 -> 0 | O155: =COUNTIF($D$123:$AA$123,$O$148)*$AB$18 -> 0 | P155: =COUNTIF($D$123:$AA$123,$P$148)*$AB$18 -> 0 | Q155: =COUNTIF($D$123:$AA$123,$Q$148)*$AB$18 -> 0 | R155: =COUNTIF($D$123:$AA$123,$R$148)*$AB$18 -> 0 | S155: =COUNTIF($D$123:$AA$123,$S$148)*$AB$18 -> 0 | T155: =COUNTIF($D$123:$AA$123,$T$148)*$AB$18 -> 0 | U155: =COUNTIF($D$123:$AA$123,$U$148)*$AB$18 -> 0 | V155: =COUNTIF($D$123:$AA$123,$V$148)*$AB$18 -> 0 | W155: =COUNTIF($D$123:$AA$123,$W$148)*$AB$18 -> 0 | X155: =COUNTIF($D$123:$AA$123,$X$148)*$AB$18 -> 0 | Y155: =COUNTIF($D$123:$AA$123,$Y$148)*$AB$18 -> 0 | Z155: =COUNTIF($D$123:$AA$123,$Z$148)*$AB$18 -> 0 | AA155: =COUNTIF($D$123:$AA$123,$AA$148)*$AB$18 -> 0 | AB155: =COUNTIF($D$123:$AA$123,$AB$148)*$AB$18 -> 0 | AC155: =COUNTIF($D$123:$AA$123,$AC$148)*$AB$18 -> 0 | AD155: =COUNTIF($D$123:$AA$123,$AD$148)*$AB$18 -> 0 | AE155: =COUNTIF($D$123:$AA$123,$AE$148)*$AB$18 -> 0 | AF155: =COUNTIF($D$123:$AA$123,$AF$148)*$AB$18 -> 0 | AG155: =COUNTIF($D$123:$AA$123,$AG$148)*$AB$18 -> 0 | AH155: =COUNTIF($D$123:$AA$123,$AH$148)*$AB$18 -> 0 | AI155: =COUNTIF($D$123:$AA$123,$AI$148)*$AB$18 -> 0 | AJ155: =COUNTIF($D$123:$AA$123,$AJ$148)*$AB$18 -> 0 | AK155: =COUNTIF($D$123:$AA$123,$AK$148)*$AB$18 -> 0 | AL155: =COUNTIF($D$123:$AA$123,$AL$148)*$AB$18 -> 0 | AM155: =COUNTIF($D$123:$AA$123,$AM$148)*$AB$18 -> 0 | AN155: =COUNTIF($D$123:$AA$123,$AN$148)*$AB$18 -> 0 | AO155: =COUNTIF($D$123:$AA$123,$AO$148)*$AB$18 -> 0 | AP155: =COUNTIF($D$123:$AA$123,$AP$148)*$AB$18 -> 0 | AQ155: =COUNTIF($D$123:$AA$123,$AQ$148)*$AB$18 -> 0 | AR155: =COUNTIF($D$123:$AA$123,$AR$148)*$AB$18 -> 0 | AS155: =COUNTIF($D$123:$AA$123,$AS$148)*$AB$18 -> 0 | AT155: 10 | AV155: 0 | AW155: 0 | AX155: 0 | AY155: 0 | AZ155: 0 | BB155: 0 | BE155: 0 | BI155: 0 | BL155: 0 | BO155: 0
C156: 11 | D156: =COUNTIF($D$124:$AA$124,$D$148)*$AB$19 -> 0 | E156: =COUNTIF($D$124:$AA$124,$E$148)*$AB$19 -> 0 | F156: =COUNTIF($D$124:$AA$124,$F$148)*$AB$19 -> 0 | G156: =COUNTIF($D$124:$AA$124,$G$148)*$AB$19 -> 0 | H156: =COUNTIF($D$124:$AA$124,$H$148)*$AB$19 -> 0 | I156: =COUNTIF($D$124:$AA$124,$I$148)*$AB$19 -> 0 | J156: =COUNTIF($D$124:$AA$124,$J$148)*$AB$19 -> 0 | K156: =COUNTIF($D$124:$AA$124,$K$148)*$AB$19 -> 0 | L156: =COUNTIF($D$124:$AA$124,$L$148)*$AB$19 -> 0 | M156: =COUNTIF($D$124:$AA$124,$M$148)*$AB$19 -> 0 | N156: =COUNTIF($D$124:$AA$124,$N$148)*$AB$19 -> 0 | O156: =COUNTIF($D$124:$AA$124,$O$148)*$AB$19 -> 0 | P156: =COUNTIF($D$124:$AA$124,$P$148)*$AB$19 -> 0 | Q156: =COUNTIF($D$124:$AA$124,$Q$148)*$AB$19 -> 0 | R156: =COUNTIF($D$124:$AA$124,$R$148)*$AB$19 -> 0 | S156: =COUNTIF($D$124:$AA$124,$S$148)*$AB$19 -> 0 | T156: =COUNTIF($D$124:$AA$124,$T$148)*$AB$19 -> 0 | U156: =COUNTIF($D$124:$AA$124,$U$148)*$AB$19 -> 0 | V156: =COUNTIF($D$124:$AA$124,$V$148)*$AB$19 -> 0 | W156: =COUNTIF($D$124:$AA$124,$W$148)*$AB$19 -> 0 | X156: =COUNTIF($D$124:$AA$124,$X$148)*$AB$19 -> 0 | Y156: =COUNTIF($D$124:$AA$124,$Y$148)*$AB$19 -> 0 | Z156: =COUNTIF($D$124:$AA$124,$Z$148)*$AB$19 -> 0 | AA156: =COUNTIF($D$124:$AA$124,$AA$148)*$AB$19 -> 0 | AB156: =COUNTIF($D$124:$AA$124,$AB$148)*$AB$19 -> 0 | AC156: =COUNTIF($D$124:$AA$124,$AC$148)*$AB$19 -> 0 | AD156: =COUNTIF($D$124:$AA$124,$AD$148)*$AB$19 -> 0 | AE156: =COUNTIF($D$124:$AA$124,$AE$148)*$AB$19 -> 0 | AF156: =COUNTIF($D$124:$AA$124,$AF$148)*$AB$19 -> 0 | AG156: =COUNTIF($D$124:$AA$124,$AG$148)*$AB$19 -> 0 | AH156: =COUNTIF($D$124:$AA$124,$AH$148)*$AB$19 -> 0 | AI156: =COUNTIF($D$124:$AA$124,$AI$148)*$AB$19 -> 0 | AJ156: =COUNTIF($D$124:$AA$124,$AJ$148)*$AB$19 -> 0 | AK156: =COUNTIF($D$124:$AA$124,$AK$148)*$AB$19 -> 0 | AL156: =COUNTIF($D$124:$AA$124,$AL$148)*$AB$19 -> 0 | AM156: =COUNTIF($D$124:$AA$124,$AM$148)*$AB$19 -> 0 | AN156: =COUNTIF($D$124:$AA$124,$AN$148)*$AB$19 -> 0 | AO156: =COUNTIF($D$124:$AA$124,$AO$148)*$AB$19 -> 0 | AP156: =COUNTIF($D$124:$AA$124,$AP$148)*$AB$19 -> 0 | AQ156: =COUNTIF($D$124:$AA$124,$AQ$148)*$AB$19 -> 0 | AR156: =COUNTIF($D$124:$AA$124,$AR$148)*$AB$19 -> 0 | AS156: =COUNTIF($D$124:$AA$124,$AS$148)*$AB$19 -> 0 | AT156: 11 | AV156: 0 | AW156: 0 | AX156: 0 | AY156: 0 | AZ156: 0 | BB156: 0 | BC156: =SUM(BA156:BB156) ->  | BE156: 0 | BI156: 0 | BL156: 0 | BO156: 0
C157: 12 | D157: =COUNTIF($D$125:$AA$125,$D$148)*$AB$20 -> 0 | E157: =COUNTIF($D$125:$AA$125,$E$148)*$AB$20 -> 0 | F157: =COUNTIF($D$125:$AA$125,$F$148)*$AB$20 -> 0 | G157: =COUNTIF($D$125:$AA$125,$G$148)*$AB$20 -> 0 | H157: =COUNTIF($D$125:$AA$125,$H$148)*$AB$20 -> 0 | I157: =COUNTIF($D$125:$AA$125,$I$148)*$AB$20 -> 0 | J157: =COUNTIF($D$125:$AA$125,$J$148)*$AB$20 -> 0 | K157: =COUNTIF($D$125:$AA$125,$K$148)*$AB$20 -> 0 | L157: =COUNTIF($D$125:$AA$125,$L$148)*$AB$20 -> 0 | M157: =COUNTIF($D$125:$AA$125,$M$148)*$AB$20 -> 0 | N157: =COUNTIF($D$125:$AA$125,$N$148)*$AB$20 -> 0 | O157: =COUNTIF($D$125:$AA$125,$O$148)*$AB$20 -> 0 | P157: =COUNTIF($D$125:$AA$125,$P$148)*$AB$20 -> 0 | Q157: =COUNTIF($D$125:$AA$125,$Q$148)*$AB$20 -> 0 | R157: =COUNTIF($D$125:$AA$125,$R$148)*$AB$20 -> 0 | S157: =COUNTIF($D$125:$AA$125,$S$148)*$AB$20 -> 0 | T157: =COUNTIF($D$125:$AA$125,$T$148)*$AB$20 -> 0 | U157: =COUNTIF($D$125:$AA$125,$U$148)*$AB$20 -> 0 | V157: =COUNTIF($D$125:$AA$125,$V$148)*$AB$20 -> 0 | W157: =COUNTIF($D$125:$AA$125,$W$148)*$AB$20 -> 0 | X157: =COUNTIF($D$125:$AA$125,$X$148)*$AB$20 -> 0 | Y157: =COUNTIF($D$125:$AA$125,$Y$148)*$AB$20 -> 0 | Z157: =COUNTIF($D$125:$AA$125,$Z$148)*$AB$20 -> 0 | AA157: =COUNTIF($D$125:$AA$125,$AA$148)*$AB$20 -> 0 | AB157: =COUNTIF($D$125:$AA$125,$AB$148)*$AB$20 -> 0 | AC157: =COUNTIF($D$125:$AA$125,$AC$148)*$AB$20 -> 0 | AD157: =COUNTIF($D$125:$AA$125,$AD$148)*$AB$20 -> 0 | AE157: =COUNTIF($D$125:$AA$125,$AE$148)*$AB$20 -> 0 | AF157: =COUNTIF($D$125:$AA$125,$AF$148)*$AB$20 -> 0 | AG157: =COUNTIF($D$125:$AA$125,$AG$148)*$AB$20 -> 0 | AH157: =COUNTIF($D$125:$AA$125,$AH$148)*$AB$20 -> 0 | AI157: =COUNTIF($D$125:$AA$125,$AI$148)*$AB$20 -> 0 | AJ157: =COUNTIF($D$125:$AA$125,$AJ$148)*$AB$20 -> 0 | AK157: =COUNTIF($D$125:$AA$125,$AK$148)*$AB$20 -> 0 | AL157: =COUNTIF($D$125:$AA$125,$AL$148)*$AB$20 -> 0 | AM157: =COUNTIF($D$125:$AA$125,$AM$148)*$AB$20 -> 0 | AN157: =COUNTIF($D$125:$AA$125,$AN$148)*$AB$20 -> 0 | AO157: =COUNTIF($D$125:$AA$125,$AO$148)*$AB$20 -> 0 | AP157: =COUNTIF($D$125:$AA$125,$AP$148)*$AB$20 -> 0 | AQ157: =COUNTIF($D$125:$AA$125,$AQ$148)*$AB$20 -> 0 | AR157: =COUNTIF($D$125:$AA$125,$AR$148)*$AB$20 -> 0 | AS157: =COUNTIF($D$125:$AA$125,$AS$148)*$AB$20 -> 0 | AT157: 12 | AV157: 0 | AW157: 0 | AX157: 0 | AY157: 0 | AZ157: =SUM(AX157:AY157) -> 0 | BB157: 0 | BE157: 0 | BF157: =SUM(BD157:BE157) ->  | BI157: 0 | BL157: 0 | BM157: =SUM(BK157:BL157) ->  | BO157: 0
C158: 1 | D158: =COUNTIF($D$126:$AA$126,$D$148)*$AB$21 -> 0 | E158: =COUNTIF($D$126:$AA$126,$E$148)*$AB$21 -> 0 | F158: =COUNTIF($D$126:$AA$126,$F$148)*$AB$21 -> 0 | G158: =COUNTIF($D$126:$AA$126,$G$148)*$AB$21 -> 0 | H158: =COUNTIF($D$126:$AA$126,$H$148)*$AB$21 -> 0 | I158: =COUNTIF($D$126:$AA$126,$I$148)*$AB$21 -> 0 | J158: =COUNTIF($D$126:$AA$126,$J$148)*$AB$21 -> 0 | K158: =COUNTIF($D$126:$AA$126,$K$148)*$AB$21 -> 0 | L158: =COUNTIF($D$126:$AA$126,$L$148)*$AB$21 -> 0 | M158: =COUNTIF($D$126:$AA$126,$M$148)*$AB$21 -> 0 | N158: =COUNTIF($D$126:$AA$126,$N$148)*$AB$21 -> 0 | O158: =COUNTIF($D$126:$AA$126,$O$148)*$AB$21 -> 0 | P158: =COUNTIF($D$126:$AA$126,$P$148)*$AB$21 -> 0 | Q158: =COUNTIF($D$126:$AA$126,$Q$148)*$AB$21 -> 0 | R158: =COUNTIF($D$126:$AA$126,$R$148)*$AB$21 -> 0 | S158: =COUNTIF($D$126:$AA$126,$S$148)*$AB$21 -> 0 | T158: =COUNTIF($D$126:$AA$126,$T$148)*$AB$21 -> 0 | U158: =COUNTIF($D$126:$AA$126,$U$148)*$AB$21 -> 0 | V158: =COUNTIF($D$126:$AA$126,$V$148)*$AB$21 -> 0 | W158: =COUNTIF($D$126:$AA$126,$W$148)*$AB$21 -> 0 | X158: =COUNTIF($D$126:$AA$126,$X$148)*$AB$21 -> 0 | Y158: =COUNTIF($D$126:$AA$126,$Y$148)*$AB$21 -> 0 | Z158: =COUNTIF($D$126:$AA$126,$Z$148)*$AB$21 -> 0 | AA158: =COUNTIF($D$126:$AA$126,$AA$148)*$AB$21 -> 0 | AB158: =COUNTIF($D$126:$AA$126,$AB$148)*$AB$21 -> 0 | AC158: =COUNTIF($D$126:$AA$126,$AC$148)*$AB$21 -> 0 | AD158: =COUNTIF($D$126:$AA$126,$AD$148)*$AB$21 -> 0 | AE158: =COUNTIF($D$126:$AA$126,$AE$148)*$AB$21 -> 0 | AF158: =COUNTIF($D$126:$AA$126,$AF$148)*$AB$21 -> 0 | AG158: =COUNTIF($D$126:$AA$126,$AG$148)*$AB$21 -> 0 | AH158: =COUNTIF($D$126:$AA$126,$AH$148)*$AB$21 -> 0 | AI158: =COUNTIF($D$126:$AA$126,$AI$148)*$AB$21 -> 0 | AJ158: =COUNTIF($D$126:$AA$126,$AJ$148)*$AB$21 -> 0 | AK158: =COUNTIF($D$126:$AA$126,$AK$148)*$AB$21 -> 0 | AL158: =COUNTIF($D$126:$AA$126,$AL$148)*$AB$21 -> 0 | AM158: =COUNTIF($D$126:$AA$126,$AM$148)*$AB$21 -> 0 | AN158: =COUNTIF($D$126:$AA$126,$AN$148)*$AB$21 -> 0 | AO158: =COUNTIF($D$126:$AA$126,$AO$148)*$AB$21 -> 0 | AP158: =COUNTIF($D$126:$AA$126,$AP$148)*$AB$21 -> 0 | AQ158: =COUNTIF($D$126:$AA$126,$AQ$148)*$AB$21 -> 0 | AR158: =COUNTIF($D$126:$AA$126,$AR$148)*$AB$21 -> 0 | AS158: =COUNTIF($D$126:$AA$126,$AS$148)*$AB$21 -> 0 | AT158: 1 | AV158: 0 | AW158: 0 | AX158: 0 | AY158: 0 | AZ158: 0 | BB158: 0 | BE158: 0 | BI158: 0 | BL158: 0 | BO158: 0
C159: 2 | D159: =COUNTIF($D$127:$AA$127,$D$148)*$AB$22 -> 0 | E159: =COUNTIF($D$127:$AA$127,$E$148)*$AB$22 -> 0 | F159: =COUNTIF($D$127:$AA$127,$F$148)*$AB$22 -> 0 | G159: =COUNTIF($D$127:$AA$127,$G$148)*$AB$22 -> 0 | H159: =COUNTIF($D$127:$AA$127,$H$148)*$AB$22 -> 0 | I159: =COUNTIF($D$127:$AA$127,$I$148)*$AB$22 -> 0 | J159: =COUNTIF($D$127:$AA$127,$J$148)*$AB$22 -> 0 | K159: =COUNTIF($D$127:$AA$127,$K$148)*$AB$22 -> 0 | L159: =COUNTIF($D$127:$AA$127,$L$148)*$AB$22 -> 0 | M159: =COUNTIF($D$127:$AA$127,$M$148)*$AB$22 -> 0 | N159: =COUNTIF($D$127:$AA$127,$N$148)*$AB$22 -> 0 | O159: =COUNTIF($D$127:$AA$127,$O$148)*$AB$22 -> 0 | P159: =COUNTIF($D$127:$AA$127,$P$148)*$AB$22 -> 0 | Q159: =COUNTIF($D$127:$AA$127,$Q$148)*$AB$22 -> 0 | R159: =COUNTIF($D$127:$AA$127,$R$148)*$AB$22 -> 0 | S159: =COUNTIF($D$127:$AA$127,$S$148)*$AB$22 -> 0 | T159: =COUNTIF($D$127:$AA$127,$T$148)*$AB$22 -> 0 | U159: =COUNTIF($D$127:$AA$127,$U$148)*$AB$22 -> 0 | V159: =COUNTIF($D$127:$AA$127,$V$148)*$AB$22 -> 0 | W159: =COUNTIF($D$127:$AA$127,$W$148)*$AB$22 -> 0 | X159: =COUNTIF($D$127:$AA$127,$X$148)*$AB$22 -> 0 | Y159: =COUNTIF($D$127:$AA$127,$Y$148)*$AB$22 -> 0 | Z159: =COUNTIF($D$127:$AA$127,$Z$148)*$AB$22 -> 0 | AA159: =COUNTIF($D$127:$AA$127,$AA$148)*$AB$22 -> 0 | AB159: =COUNTIF($D$127:$AA$127,$AB$148)*$AB$22 -> 0 | AC159: =COUNTIF($D$127:$AA$127,$AC$148)*$AB$22 -> 0 | AD159: =COUNTIF($D$127:$AA$127,$AD$148)*$AB$22 -> 0 | AE159: =COUNTIF($D$127:$AA$127,$AE$148)*$AB$22 -> 0 | AF159: =COUNTIF($D$127:$AA$127,$AF$148)*$AB$22 -> 0 | AG159: =COUNTIF($D$127:$AA$127,$AG$148)*$AB$22 -> 0 | AH159: =COUNTIF($D$127:$AA$127,$AH$148)*$AB$22 -> 0 | AI159: =COUNTIF($D$127:$AA$127,$AI$148)*$AB$22 -> 0 | AJ159: =COUNTIF($D$127:$AA$127,$AJ$148)*$AB$22 -> 0 | AK159: =COUNTIF($D$127:$AA$127,$AK$148)*$AB$22 -> 0 | AL159: =COUNTIF($D$127:$AA$127,$AL$148)*$AB$22 -> 0 | AM159: =COUNTIF($D$127:$AA$127,$AM$148)*$AB$22 -> 0 | AN159: =COUNTIF($D$127:$AA$127,$AN$148)*$AB$22 -> 0 | AO159: =COUNTIF($D$127:$AA$127,$AO$148)*$AB$22 -> 0 | AP159: =COUNTIF($D$127:$AA$127,$AP$148)*$AB$22 -> 0 | AQ159: =COUNTIF($D$127:$AA$127,$AQ$148)*$AB$22 -> 0 | AR159: =COUNTIF($D$127:$AA$127,$AR$148)*$AB$22 -> 0 | AS159: =COUNTIF($D$127:$AA$127,$AS$148)*$AB$22 -> 0 | AT159: 2 | AV159: 0 | AW159: 0 | AX159: 0 | AY159: 0 | AZ159: 0 | BB159: 0 | BE159: 0 | BI159: 0 | BJ159: =SUM(BH159:BI159) ->  | BL159: 0 | BO159: 0
C160: 3 | D160: =COUNTIF($D$128:$AA$128,$D$148)*$AB$23 -> 0 | E160: =COUNTIF($D$128:$AA$128,$E$148)*$AB$23 -> 0 | F160: =COUNTIF($D$128:$AA$128,$F$148)*$AB$23 -> 0 | G160: =COUNTIF($D$128:$AA$128,$G$148)*$AB$23 -> 0 | H160: =COUNTIF($D$128:$AA$128,$H$148)*$AB$23 -> 0 | I160: =COUNTIF($D$128:$AA$128,$I$148)*$AB$23 -> 0 | J160: =COUNTIF($D$128:$AA$128,$J$148)*$AB$23 -> 0 | K160: =COUNTIF($D$128:$AA$128,$K$148)*$AB$23 -> 0 | L160: =COUNTIF($D$128:$AA$128,$L$148)*$AB$23 -> 0 | M160: =COUNTIF($D$128:$AA$128,$M$148)*$AB$23 -> 0 | N160: =COUNTIF($D$128:$AA$128,$N$148)*$AB$23 -> 0 | O160: =COUNTIF($D$128:$AA$128,$O$148)*$AB$23 -> 0 | P160: =COUNTIF($D$128:$AA$128,$P$148)*$AB$23 -> 0 | Q160: =COUNTIF($D$128:$AA$128,$Q$148)*$AB$23 -> 0 | R160: =COUNTIF($D$128:$AA$128,$R$148)*$AB$23 -> 0 | S160: =COUNTIF($D$128:$AA$128,$S$148)*$AB$23 -> 0 | T160: =COUNTIF($D$128:$AA$128,$T$148)*$AB$23 -> 0 | U160: =COUNTIF($D$128:$AA$128,$U$148)*$AB$23 -> 0 | V160: =COUNTIF($D$128:$AA$128,$V$148)*$AB$23 -> 0 | W160: =COUNTIF($D$128:$AA$128,$W$148)*$AB$23 -> 0 | X160: =COUNTIF($D$128:$AA$128,$X$148)*$AB$23 -> 0 | Y160: =COUNTIF($D$128:$AA$128,$Y$148)*$AB$23 -> 0 | Z160: =COUNTIF($D$128:$AA$128,$Z$148)*$AB$23 -> 0 | AA160: =COUNTIF($D$128:$AA$128,$AA$148)*$AB$23 -> 0 | AB160: =COUNTIF($D$128:$AA$128,$AB$148)*$AB$23 -> 0 | AC160: =COUNTIF($D$128:$AA$128,$AC$148)*$AB$23 -> 0 | AD160: =COUNTIF($D$128:$AA$128,$AD$148)*$AB$23 -> 0 | AE160: =COUNTIF($D$128:$AA$128,$AE$148)*$AB$23 -> 0 | AF160: =COUNTIF($D$128:$AA$128,$AF$148)*$AB$23 -> 0 | AG160: =COUNTIF($D$128:$AA$128,$AG$148)*$AB$23 -> 0 | AH160: =COUNTIF($D$128:$AA$128,$AH$148)*$AB$23 -> 0 | AI160: =COUNTIF($D$128:$AA$128,$AI$148)*$AB$23 -> 0 | AJ160: =COUNTIF($D$128:$AA$128,$AJ$148)*$AB$23 -> 0 | AK160: =COUNTIF($D$128:$AA$128,$AK$148)*$AB$23 -> 0 | AL160: =COUNTIF($D$128:$AA$128,$AL$148)*$AB$23 -> 0 | AM160: =COUNTIF($D$128:$AA$128,$AM$148)*$AB$23 -> 0 | AN160: =COUNTIF($D$128:$AA$128,$AN$148)*$AB$23 -> 0 | AO160: =COUNTIF($D$128:$AA$128,$AO$148)*$AB$23 -> 0 | AP160: =COUNTIF($D$128:$AA$128,$AP$148)*$AB$23 -> 0 | AQ160: =COUNTIF($D$128:$AA$128,$AQ$148)*$AB$23 -> 0 | AR160: =COUNTIF($D$128:$AA$128,$AR$148)*$AB$23 -> 0 | AS160: =COUNTIF($D$128:$AA$128,$AS$148)*$AB$23 -> 0 | AT160: 3 | AV160: 0 | AW160: 0 | AX160: 0 | AY160: 0 | AZ160: =SUM(AX160:AY160) -> 0 | BB160: 0 | BC160: =SUM(BA160:BB160) ->  | BE160: 0 | BF160: =SUM(BD160:BE160) ->  | BI160: 0 | BJ160: =SUM(BH160:BI160) ->  | BL160: 0 | BM160: =SUM(BK160:BL160) ->  | BO160: 0 | BP160: =SUM(BN160:BO160) -> 
B161: tc | C161: 冷却運転時間 | D161: =SUM($D$149:$D$160) -> 0 | E161: =SUM($E$149:$E$160) -> 0 | F161: =SUM($F$149:$F$160) -> 0 | G161: =SUM($G$149:$G$160) -> 0 | H161: =SUM($H$149:$H$160) -> 0 | I161: =SUM($I$149:$I$160) -> 0 | J161: =SUM($J$149:$J$160) -> 0 | K161: =SUM($K$149:$K$160) -> 0 | L161: =SUM($L$149:$L$160) -> 0 | M161: =SUM($M$149:$M$160) -> 0 | N161: =SUM($N$149:$N$160) -> 0 | O161: =SUM($O$149:$O$160) -> 0 | P161: =SUM($P$149:$P$160) -> 0 | Q161: =SUM($Q$149:$Q$160) -> 0 | R161: =SUM($R$149:$R$160) -> 0 | S161: =SUM($S$149:$S$160) -> 0 | T161: =SUM($T$149:$T$160) -> 0 | U161: =SUM($U$149:$U$160) -> 0 | V161: =SUM($V$149:$V$160) -> 0 | W161: =SUM($W$149:$W$160) -> 0 | X161: =SUM($X$149:$X$160) -> 0 | Y161: =SUM($Y$149:$Y$160) -> 0 | Z161: =SUM($Z$149:$Z$160) -> 0 | AA161: =SUM($AA$149:$AA$160) -> 0 | AB161: =SUM($AB$149:$AB$160) -> 0 | AC161: =SUM($AC$149:$AC$160) -> 0 | AD161: =SUM($AD$149:$AD$160) -> 0 | AE161: =SUM($AE$149:$AE$160) -> 0 | AF161: =SUM($AF$149:$AF$160) -> 0 | AG161: =SUM($AG$149:$AG$160) -> 0 | AH161: =SUM($AH$149:$AH$160) -> 0 | AI161: =SUM($AI$149:$AI$160) -> 0 | AJ161: =SUM($AJ$149:$AJ$160) -> 0 | AK161: =SUM($AK$149:$AK$160) -> 0 | AL161: =SUM($AL$149:$AL$160) -> 0 | AM161: =SUM($AM$149:$AM$160) -> 0 | AN161: =SUM($AN$149:$AN$160) -> 0 | AO161: =SUM($AO$149:$AO$160) -> 0 | AP161: =SUM($AP$149:$AP$160) -> 0 | AQ161: =SUM($AQ$149:$AQ$160) -> 0 | AR161: =SUM($AR$149:$AR$160) -> 0 | AS161: =SUM($AS$149:$AS$160) -> 0 | AT161: 冷却運転時間 | AV161: =SUM(AV149:AV160) -> 0 | AW161: =SUM(AW149:AW160) -> 0 | AX161: 0 | AY161: 0 | AZ161: 0 | BB161: 0 | BE161: 0 | BI161: 0 | BL161: 0 | BO161: 0
B162: εc | C162: 冷却時消費電力比 | D162: =$D$163/$D$164 -> 0 | E162: =$E$163/$E$164 -> 0 | F162: =$F$163/$F$164 -> 0 | G162: =$G$163/$G$164 -> 0 | H162: =$H$163/$H$164 -> 0 | I162: =$I$163/$I$164 -> 0 | J162: =$J$163/$J$164 -> 0 | K162: =$K$163/$K$164 -> 0 | L162: =$L$163/$L$164 -> 0 | M162: =$M$163/$M$164 -> 0 | N162: =$N$163/$N$164 -> 0 | O162: =$O$163/$O$164 -> 0 | P162: =$P$163/$P$164 -> 0 | Q162: =$Q$163/$Q$164 -> 0 | R162: =$R$163/$R$164 -> 0 | S162: =$S$163/$S$164 -> 0 | T162: =$T$163/$T$164 -> 0 | U162: =$U$163/$U$164 -> 0 | V162: =$V$163/$V$164 -> 0 | W162: =$W$163/$W$164 -> 0 | X162: =$X$163/$X$164 -> 0 | Y162: =$Y$163/$Y$164 -> 0 | Z162: =$Z$163/$Z$164 -> 0.02795495004 | AA162: =$AA$163/$AA$164 -> 0.05729598475 | AB162: =$AB$163/$AB$164 -> 0.08811773469 | AC162: =$AC$163/$AC$164 -> 0.1205235301 | AD162: =$AD$163/$AD$164 -> 0.1546264226 | AE162: =$AE$163/$AE$164 -> 0.1905503539 | AF162: =$AF$163/$AF$164 -> 0.228431498 | AG162: =$AG$163/$AG$164 -> 0.2684198059 | AH162: =$AH$163/$AH$164 -> 0.3106807914 | AI162: =$AI$163/$AI$164 -> 0.3553976011 | AJ162: =$AJ$163/$AJ$164 -> 0.4027734246 | AK162: =$AK$163/$AK$164 -> 0.4530343106 | AL162: =$AL$163/$AL$164 -> 0.5064324715 | AM162: =$AM$163/$AM$164 -> 0.5632501788 | AN162: =$AN$163/$AN$164 -> 0.6238043749 | AO162: =$AO$163/$AO$164 -> 0.6884521616 | AP162: =$AP$163/$AP$164 -> 0.7575973646 | AQ162: =$AQ$163/$AQ$164 -> 0.8316984298 | AR162: =$AR$163/$AR$164 -> 0.9112779762 | AS162: =$AS$163/$AS$164 -> 0.9969344266 | AT162: 冷却時消費電力比
B163: αc | C163: 冷却空調負荷率 | D163: =IF((1/20)*(D$148-35)+1<0,0,IF((1/20)*(D$148-35)+1>1,1,(1/20)*(D$148-35)+1)) -> 0 | E163: =IF((1/20)*(E$148-35)+1<0,0,IF((1/20)*(E$148-35)+1>1,1,(1/20)*(E$148-35)+1)) -> 0 | F163: 0 | G163: 0 | H163: 0 | I163: 0 | J163: 0 | K163: 0 | L163: 0 | M163: 0 | N163: 0 | O163: 0 | P163: 0 | Q163: 0 | R163: 0 | S163: 0 | T163: 0 | U163: 0 | V163: 0 | W163: 0 | X163: 0 | Y163: 0 | Z163: 0.05 | AA163: 0.1 | AB163: 0.15 | AC163: 0.2 | AD163: 0.25 | AE163: 0.3 | AF163: 0.35 | AG163: 0.4 | AH163: 0.45 | AI163: 0.5 | AJ163: 0.55 | AK163: 0.6 | AL163: 0.65 | AM163: 0.7 | AN163: 0.75 | AO163: 0.8 | AP163: 0.85 | AQ163: 0.9 | AR163: 0.95 | AS163: 1 | AT163: 冷却空調負荷率
B164: βc | C164: 冷却COP比 | D164: =1.07/10000*D$148*D$148-0.0468*D$148+2.51 -> 2.794652 | E164: =1.07/10000*E$148*E$148-0.0468*E$148+2.51 -> 2.746675 | F164: =1.07/10000*F$148*F$148-0.0468*F$148+2.51 -> 2.698912 | G164: 2.651363 | H164: 2.604028 | I164: 2.556907 | J164: 2.51 | K164: 2.463307 | L164: 2.416828 | M164: 2.370563 | N164: 2.324512 | O164: 2.278675 | P164: 2.233052 | Q164: 2.187643 | R164: 2.142448 | S164: 2.097467 | T164: 2.0527 | U164: =1.07/10000*U$148*U$148-0.0468*U$148+2.51 -> 2.008147 | V164: 1.963808 | W164: 1.919683 | X164: 1.875772 | Y164: 1.832075 | Z164: 1.788592 | AA164: 1.745323 | AB164: 1.702268 | AC164: =1.07/10000*AC$148*AC$148-0.0468*AC$148+2.51 -> 1.659427 | AD164: 1.6168 | AE164: 1.574387 | AF164: 1.532188 | AG164: 1.490203 | AH164: 1.448432 | AI164: 1.406875 | AJ164: 1.365532 | AK164: 1.324403 | AL164: 1.283488 | AM164: 1.242787 | AN164: 1.2023 | AO164: 1.162027 | AP164: 1.121968 | AQ164: 1.082123 | AR164: 1.042492 | AS164: =1.07/10000*AS$148*AS$148-0.0468*AS$148+2.51 -> 1.003075 | AT164: 冷却COP比
C165: Σ | D165: =$D$161*$D$162 -> 0 | E165: =$E$161*$E$162 -> 0 | F165: =$F$161*$F$162 -> 0 | G165: =$G$161*$G$162 -> 0 | H165: =$H$161*$H$162 -> 0 | I165: =$I$161*$I$162 -> 0 | J165: =$J$161*$J$162 -> 0 | K165: =$K$161*$K$162 -> 0 | L165: =$L$161*$L$162 -> 0 | M165: =$M$161*$M$162 -> 0 | N165: =$N$161*$N$162 -> 0 | O165: =$O$161*$O$162 -> 0 | P165: =$P$161*$P$162 -> 0 | Q165: =$Q$161*$Q$162 -> 0 | R165: =$R$161*$R$162 -> 0 | S165: =$S$161*$S$162 -> 0 | T165: =$T$161*$T$162 -> 0 | U165: =$U$161*$U$162 -> 0 | V165: =$V$161*$V$162 -> 0 | W165: =$W$161*$W$162 -> 0 | X165: =$X$161*$X$162 -> 0 | Y165: =$Y$161*$Y$162 -> 0 | Z165: =$Z$161*$Z$162 -> 0 | AA165: =$AA$161*$AA$162 -> 0 | AB165: =$AB$161*$AB$162 -> 0 | AC165: =$AC$161*$AC$162 -> 0 | AD165: =$AD$161*$AD$162 -> 0 | AE165: =$AE$161*$AE$162 -> 0 | AF165: =$AF$161*$AF$162 -> 0 | AG165: =$AG$161*$AG$162 -> 0 | AH165: =$AH$161*$AH$162 -> 0 | AI165: =$AI$161*$AI$162 -> 0 | AJ165: =$AJ$161*$AJ$162 -> 0 | AK165: =$AK$161*$AK$162 -> 0 | AL165: =$AL$161*$AL$162 -> 0 | AM165: =$AM$161*$AM$162 -> 0 | AN165: =$AN$161*$AN$162 -> 0 | AO165: =$AO$161*$AO$162 -> 0 | AP165: =$AP$161*$AP$162 -> 0 | AQ165: =$AQ$161*$AQ$162 -> 0 | AR165: =$AR$161*$AR$162 -> 0 | AS165: =$AS$161*$AS$162 -> 0 | AT165: =SUM($D$165:$AS$165) -> 0
C167: 加熱期間中 外気温度(T)が発生する時間[hour]
D168: 外気温度(T) | AV168: 共通 | AW168: 共通 | AX168: 前1 | BA168: 前2 | BD168: 前3 | BH168: 後1 | BK168: 後2 | BN168: 後3
C169: 月 | D169: -6 | E169: -5 | F169: -4 | G169: -3 | H169: -2 | I169: -1 | J169: 0 | K169: 1 | L169: 2 | M169: 3 | N169: 4 | O169: 5 | P169: 6 | Q169: 7 | R169: 8 | S169: 9 | T169: 10 | U169: 11 | V169: 12 | W169: 13 | X169: 14 | Y169: 15 | Z169: 16 | AA169: 17 | AB169: 18 | AC169: 19 | AD169: 20 | AE169: 21 | AF169: 22 | AG169: 23 | AH169: 24 | AI169: 25 | AJ169: 26 | AK169: 27 | AL169: 28 | AM169: 29 | AN169: 30 | AO169: 31 | AP169: 32 | AQ169: 33 | AR169: 34 | AS169: 35 | AT169: 月 | AV169: EwwのΣ | AW169: EaxwのΣ | AX169: Eww | AY169: Eaxw | AZ169: Ew | BA169: Eww | BB169: Eaxw | BC169: Ew | BD169: Eww | BE169: Eaxw | BF169: Ew | BH169: Eww | BI169: Eaxw | BJ169: Ew | BK169: Eww | BL169: Eaxw | BM169: Ew | BN169: Eww | BO169: Eaxw | BP169: Ew
C170: 4 | D170: =COUNTIF($D$133:$AA$133,$D$169)*$AB$12 -> 0 | E170: =COUNTIF($D$133:$AA$133,$E$169)*$AB$12 -> 0 | F170: =COUNTIF($D$133:$AA$133,$F$169)*$AB$12 -> 0 | G170: =COUNTIF($D$133:$AA$133,$G$169)*$AB$12 -> 0 | H170: =COUNTIF($D$133:$AA$133,$H$169)*$AB$12 -> 0 | I170: =COUNTIF($D$133:$AA$133,$I$169)*$AB$12 -> 0 | J170: =COUNTIF($D$133:$AA$133,$J$169)*$AB$12 -> 0 | K170: =COUNTIF($D$133:$AA$133,$K$169)*$AB$12 -> 0 | L170: =COUNTIF($D$133:$AA$133,$L$169)*$AB$12 -> 0 | M170: =COUNTIF($D$133:$AA$133,$M$169)*$AB$12 -> 0 | N170: =COUNTIF($D$133:$AA$133,$N$169)*$AB$12 -> 0 | O170: =COUNTIF($D$133:$AA$133,$O$169)*$AB$12 -> 0 | P170: =COUNTIF($D$133:$AA$133,$P$169)*$AB$12 -> 0 | Q170: =COUNTIF($D$133:$AA$133,$Q$169)*$AB$12 -> 0 | R170: =COUNTIF($D$133:$AA$133,$R$169)*$AB$12 -> 0 | S170: =COUNTIF($D$133:$AA$133,$S$169)*$AB$12 -> 0 | T170: =COUNTIF($D$133:$AA$133,$T$169)*$AB$12 -> 0 | U170: =COUNTIF($D$133:$AA$133,$U$169)*$AB$12 -> 0 | V170: =COUNTIF($D$133:$AA$133,$V$169)*$AB$12 -> 0 | W170: =COUNTIF($D$133:$AA$133,$W$169)*$AB$12 -> 0 | X170: =COUNTIF($D$133:$AA$133,$X$169)*$AB$12 -> 0 | Y170: =COUNTIF($D$133:$AA$133,$Y$169)*$AB$12 -> 0 | Z170: =COUNTIF($D$133:$AA$133,$Z$169)*$AB$12 -> 0 | AA170: =COUNTIF($D$133:$AA$133,$AA$169)*$AB$12 -> 0 | AB170: =COUNTIF($D$133:$AA$133,$AB$169)*$AB$12 -> 0 | AC170: =COUNTIF($D$133:$AA$133,$AC$169)*$AB$12 -> 0 | AD170: =COUNTIF($D$133:$AA$133,$AD$169)*$AB$12 -> 0 | AE170: =COUNTIF($D$133:$AA$133,$AE$169)*$AB$12 -> 0 | AF170: =COUNTIF($D$133:$AA$133,$AF$169)*$AB$12 -> 0 | AG170: =COUNTIF($D$133:$AA$133,$AG$169)*$AB$12 -> 0 | AH170: =COUNTIF($D$133:$AA$133,$AH$169)*$AB$12 -> 0 | AI170: =COUNTIF($D$133:$AA$133,$AI$169)*$AB$12 -> 0 | AJ170: =COUNTIF($D$133:$AA$133,$AJ$169)*$AB$12 -> 0 | AK170: =COUNTIF($D$133:$AA$133,$AK$169)*$AB$12 -> 0 | AL170: =COUNTIF($D$133:$AA$133,$AL$169)*$AB$12 -> 0 | AM170: =COUNTIF($D$133:$AA$133,$AM$169)*$AB$12 -> 0 | AN170: =COUNTIF($D$133:$AA$133,$AN$169)*$AB$12 -> 0 | AO170: =COUNTIF($D$133:$AA$133,$AO$169)*$AB$12 -> 0 | AP170: =COUNTIF($D$133:$AA$133,$AP$169)*$AB$12 -> 0 | AQ170: =COUNTIF($D$133:$AA$133,$AQ$169)*$AB$12 -> 0 | AR170: =COUNTIF($D$133:$AA$133,$AR$169)*$AB$12 -> 0 | AS170: =COUNTIF($D$133:$AA$133,$AS$169)*$AB$12 -> 0 | AT170: 4 | AV170: =SUMPRODUCT(D170:AS170,$D$183:$AS$183) -> 0 | AW170: =SUMPRODUCT(D170:AS170,$D$192:$AS$192) -> 0 | AX170: =($Q$29*$C$7)/$Q$34*$AV170*$Q$37 ->  | AY170: =$Q$35*$AW170 -> 0 | AZ170: =SUM(AX170:AY170) ->  | BA170: =($R$29*$C$7)/$R$34*$AV170*$R$37 ->  | BB170: =$R$35*$AW170 -> 0 | BC170: =SUM(BA170:BB170) ->  | BD170: =($S$29*$C$7)/$S$34*$AV170*$S$37 ->  | BE170: =$S$35*$AW170 -> 0 | BF170: =SUM(BD170:BE170) ->  | BH170: =($Q$43*$C$7)/$Q$48*$AV170*$Q$51 ->  | BI170: =$Q$49*$AW170 -> 0 | BJ170: =SUM(BH170:BI170) ->  | BK170: =($R$43*$C$7)/$R$48*$AV170*$R$51 ->  | BL170: =$R$49*$AW170 -> 0 | BM170: =SUM(BK170:BL170) ->  | BN170: =($S$43*$C$7)/$S$48*$AV170*$S$51 ->  | BO170: =$S$49*$AW170 -> 0 | BP170: =SUM(BN170:BO170) -> 
C171: 5 | D171: =COUNTIF($D$134:$AA$134,$D$169)*$AB$13 -> 0 | E171: =COUNTIF($D$134:$AA$134,$E$169)*$AB$13 -> 0 | F171: =COUNTIF($D$134:$AA$134,$F$169)*$AB$13 -> 0 | G171: =COUNTIF($D$134:$AA$134,$G$169)*$AB$13 -> 0 | H171: =COUNTIF($D$134:$AA$134,$H$169)*$AB$13 -> 0 | I171: =COUNTIF($D$134:$AA$134,$I$169)*$AB$13 -> 0 | J171: =COUNTIF($D$134:$AA$134,$J$169)*$AB$13 -> 0 | K171: =COUNTIF($D$134:$AA$134,$K$169)*$AB$13 -> 0 | L171: =COUNTIF($D$134:$AA$134,$L$169)*$AB$13 -> 0 | M171: =COUNTIF($D$134:$AA$134,$M$169)*$AB$13 -> 0 | N171: =COUNTIF($D$134:$AA$134,$N$169)*$AB$13 -> 0 | O171: =COUNTIF($D$134:$AA$134,$O$169)*$AB$13 -> 0 | P171: =COUNTIF($D$134:$AA$134,$P$169)*$AB$13 -> 0 | Q171: =COUNTIF($D$134:$AA$134,$Q$169)*$AB$13 -> 0 | R171: =COUNTIF($D$134:$AA$134,$R$169)*$AB$13 -> 0 | S171: =COUNTIF($D$134:$AA$134,$S$169)*$AB$13 -> 0 | T171: =COUNTIF($D$134:$AA$134,$T$169)*$AB$13 -> 0 | U171: =COUNTIF($D$134:$AA$134,$U$169)*$AB$13 -> 0 | V171: =COUNTIF($D$134:$AA$134,$V$169)*$AB$13 -> 0 | W171: =COUNTIF($D$134:$AA$134,$W$169)*$AB$13 -> 0 | X171: =COUNTIF($D$134:$AA$134,$X$169)*$AB$13 -> 0 | Y171: =COUNTIF($D$134:$AA$134,$Y$169)*$AB$13 -> 0 | Z171: =COUNTIF($D$134:$AA$134,$Z$169)*$AB$13 -> 0 | AA171: =COUNTIF($D$134:$AA$134,$AA$169)*$AB$13 -> 0 | AB171: =COUNTIF($D$134:$AA$134,$AB$169)*$AB$13 -> 0 | AC171: =COUNTIF($D$134:$AA$134,$AC$169)*$AB$13 -> 0 | AD171: =COUNTIF($D$134:$AA$134,$AD$169)*$AB$13 -> 0 | AE171: =COUNTIF($D$134:$AA$134,$AE$169)*$AB$13 -> 0 | AF171: =COUNTIF($D$134:$AA$134,$AF$169)*$AB$13 -> 0 | AG171: =COUNTIF($D$134:$AA$134,$AG$169)*$AB$13 -> 0 | AH171: =COUNTIF($D$134:$AA$134,$AH$169)*$AB$13 -> 0 | AI171: =COUNTIF($D$134:$AA$134,$AI$169)*$AB$13 -> 0 | AJ171: =COUNTIF($D$134:$AA$134,$AJ$169)*$AB$13 -> 0 | AK171: =COUNTIF($D$134:$AA$134,$AK$169)*$AB$13 -> 0 | AL171: =COUNTIF($D$134:$AA$134,$AL$169)*$AB$13 -> 0 | AM171: =COUNTIF($D$134:$AA$134,$AM$169)*$AB$13 -> 0 | AN171: =COUNTIF($D$134:$AA$134,$AN$169)*$AB$13 -> 0 | AO171: =COUNTIF($D$134:$AA$134,$AO$169)*$AB$13 -> 0 | AP171: =COUNTIF($D$134:$AA$134,$AP$169)*$AB$13 -> 0 | AQ171: =COUNTIF($D$134:$AA$134,$AQ$169)*$AB$13 -> 0 | AR171: =COUNTIF($D$134:$AA$134,$AR$169)*$AB$13 -> 0 | AS171: =COUNTIF($D$134:$AA$134,$AS$169)*$AB$13 -> 0 | AT171: 5 | AV171: =SUMPRODUCT(D171:AS171,$D$183:$AS$183) -> 0 | AW171: =SUMPRODUCT(D171:AS171,$D$192:$AS$192) -> 0 | AX171: =($Q$29*$C$7)/$Q$34*$AV171*$Q$37 ->  | AY171: =$Q$35*$AW171 -> 0 | AZ171: =SUM(AX171:AY171) ->  | BA171: =($R$29*$C$7)/$R$34*$AV171*$R$37 ->  | BB171: =$R$35*$AW171 -> 0 | BC171: =SUM(BA171:BB171) ->  | BD171: =($S$29*$C$7)/$S$34*$AV171*$S$37 ->  | BE171: =$S$35*$AW171 -> 0 | BF171: =SUM(BD171:BE171) ->  | BH171: =($Q$43*$C$7)/$Q$48*$AV171*$Q$51 ->  | BI171: =$Q$49*$AW171 -> 0 | BJ171: =SUM(BH171:BI171) ->  | BK171: =($R$43*$C$7)/$R$48*$AV171*$R$51 ->  | BL171: =$R$49*$AW171 -> 0 | BM171: =SUM(BK171:BL171) ->  | BN171: =($S$43*$C$7)/$S$48*$AV171*$S$51 ->  | BO171: =$S$49*$AW171 -> 0 | BP171: =SUM(BN171:BO171) -> 
C172: 6 | D172: =COUNTIF($D$135:$AA$135,$D$169)*$AB$14 -> 0 | E172: =COUNTIF($D$135:$AA$135,$E$169)*$AB$14 -> 0 | F172: =COUNTIF($D$135:$AA$135,$F$169)*$AB$14 -> 0 | G172: =COUNTIF($D$135:$AA$135,$G$169)*$AB$14 -> 0 | H172: =COUNTIF($D$135:$AA$135,$H$169)*$AB$14 -> 0 | I172: =COUNTIF($D$135:$AA$135,$I$169)*$AB$14 -> 0 | J172: =COUNTIF($D$135:$AA$135,$J$169)*$AB$14 -> 0 | K172: =COUNTIF($D$135:$AA$135,$K$169)*$AB$14 -> 0 | L172: =COUNTIF($D$135:$AA$135,$L$169)*$AB$14 -> 0 | M172: =COUNTIF($D$135:$AA$135,$M$169)*$AB$14 -> 0 | N172: =COUNTIF($D$135:$AA$135,$N$169)*$AB$14 -> 0 | O172: =COUNTIF($D$135:$AA$135,$O$169)*$AB$14 -> 0 | P172: =COUNTIF($D$135:$AA$135,$P$169)*$AB$14 -> 0 | Q172: =COUNTIF($D$135:$AA$135,$Q$169)*$AB$14 -> 0 | R172: =COUNTIF($D$135:$AA$135,$R$169)*$AB$14 -> 0 | S172: =COUNTIF($D$135:$AA$135,$S$169)*$AB$14 -> 0 | T172: =COUNTIF($D$135:$AA$135,$T$169)*$AB$14 -> 0 | U172: =COUNTIF($D$135:$AA$135,$U$169)*$AB$14 -> 0 | V172: =COUNTIF($D$135:$AA$135,$V$169)*$AB$14 -> 0 | W172: =COUNTIF($D$135:$AA$135,$W$169)*$AB$14 -> 0 | X172: =COUNTIF($D$135:$AA$135,$X$169)*$AB$14 -> 0 | Y172: =COUNTIF($D$135:$AA$135,$Y$169)*$AB$14 -> 0 | Z172: =COUNTIF($D$135:$AA$135,$Z$169)*$AB$14 -> 0 | AA172: =COUNTIF($D$135:$AA$135,$AA$169)*$AB$14 -> 0 | AB172: =COUNTIF($D$135:$AA$135,$AB$169)*$AB$14 -> 0 | AC172: =COUNTIF($D$135:$AA$135,$AC$169)*$AB$14 -> 0 | AD172: =COUNTIF($D$135:$AA$135,$AD$169)*$AB$14 -> 0 | AE172: =COUNTIF($D$135:$AA$135,$AE$169)*$AB$14 -> 0 | AF172: =COUNTIF($D$135:$AA$135,$AF$169)*$AB$14 -> 0 | AG172: =COUNTIF($D$135:$AA$135,$AG$169)*$AB$14 -> 0 | AH172: =COUNTIF($D$135:$AA$135,$AH$169)*$AB$14 -> 0 | AI172: =COUNTIF($D$135:$AA$135,$AI$169)*$AB$14 -> 0 | AJ172: =COUNTIF($D$135:$AA$135,$AJ$169)*$AB$14 -> 0 | AK172: =COUNTIF($D$135:$AA$135,$AK$169)*$AB$14 -> 0 | AL172: =COUNTIF($D$135:$AA$135,$AL$169)*$AB$14 -> 0 | AM172: =COUNTIF($D$135:$AA$135,$AM$169)*$AB$14 -> 0 | AN172: =COUNTIF($D$135:$AA$135,$AN$169)*$AB$14 -> 0 | AO172: =COUNTIF($D$135:$AA$135,$AO$169)*$AB$14 -> 0 | AP172: =COUNTIF($D$135:$AA$135,$AP$169)*$AB$14 -> 0 | AQ172: =COUNTIF($D$135:$AA$135,$AQ$169)*$AB$14 -> 0 | AR172: =COUNTIF($D$135:$AA$135,$AR$169)*$AB$14 -> 0 | AS172: =COUNTIF($D$135:$AA$135,$AS$169)*$AB$14 -> 0 | AT172: 6 | AV172: 0 | AW172: 0 | AY172: 0 | AZ172: =SUM(AX172:AY172) ->  | BB172: 0 | BE172: 0 | BI172: 0 | BL172: 0 | BO172: 0
C173: 7 | D173: =COUNTIF($D$136:$AA$136,$D$169)*$AB$15 -> 0 | E173: =COUNTIF($D$136:$AA$136,$E$169)*$AB$15 -> 0 | F173: =COUNTIF($D$136:$AA$136,$F$169)*$AB$15 -> 0 | G173: =COUNTIF($D$136:$AA$136,$G$169)*$AB$15 -> 0 | H173: =COUNTIF($D$136:$AA$136,$H$169)*$AB$15 -> 0 | I173: =COUNTIF($D$136:$AA$136,$I$169)*$AB$15 -> 0 | J173: =COUNTIF($D$136:$AA$136,$J$169)*$AB$15 -> 0 | K173: =COUNTIF($D$136:$AA$136,$K$169)*$AB$15 -> 0 | L173: =COUNTIF($D$136:$AA$136,$L$169)*$AB$15 -> 0 | M173: =COUNTIF($D$136:$AA$136,$M$169)*$AB$15 -> 0 | N173: =COUNTIF($D$136:$AA$136,$N$169)*$AB$15 -> 0 | O173: =COUNTIF($D$136:$AA$136,$O$169)*$AB$15 -> 0 | P173: =COUNTIF($D$136:$AA$136,$P$169)*$AB$15 -> 0 | Q173: =COUNTIF($D$136:$AA$136,$Q$169)*$AB$15 -> 0 | R173: =COUNTIF($D$136:$AA$136,$R$169)*$AB$15 -> 0 | S173: =COUNTIF($D$136:$AA$136,$S$169)*$AB$15 -> 0 | T173: =COUNTIF($D$136:$AA$136,$T$169)*$AB$15 -> 0 | U173: =COUNTIF($D$136:$AA$136,$U$169)*$AB$15 -> 0 | V173: =COUNTIF($D$136:$AA$136,$V$169)*$AB$15 -> 0 | W173: =COUNTIF($D$136:$AA$136,$W$169)*$AB$15 -> 0 | X173: =COUNTIF($D$136:$AA$136,$X$169)*$AB$15 -> 0 | Y173: =COUNTIF($D$136:$AA$136,$Y$169)*$AB$15 -> 0 | Z173: =COUNTIF($D$136:$AA$136,$Z$169)*$AB$15 -> 0 | AA173: =COUNTIF($D$136:$AA$136,$AA$169)*$AB$15 -> 0 | AB173: =COUNTIF($D$136:$AA$136,$AB$169)*$AB$15 -> 0 | AC173: =COUNTIF($D$136:$AA$136,$AC$169)*$AB$15 -> 0 | AD173: =COUNTIF($D$136:$AA$136,$AD$169)*$AB$15 -> 0 | AE173: =COUNTIF($D$136:$AA$136,$AE$169)*$AB$15 -> 0 | AF173: =COUNTIF($D$136:$AA$136,$AF$169)*$AB$15 -> 0 | AG173: =COUNTIF($D$136:$AA$136,$AG$169)*$AB$15 -> 0 | AH173: =COUNTIF($D$136:$AA$136,$AH$169)*$AB$15 -> 0 | AI173: =COUNTIF($D$136:$AA$136,$AI$169)*$AB$15 -> 0 | AJ173: =COUNTIF($D$136:$AA$136,$AJ$169)*$AB$15 -> 0 | AK173: =COUNTIF($D$136:$AA$136,$AK$169)*$AB$15 -> 0 | AL173: =COUNTIF($D$136:$AA$136,$AL$169)*$AB$15 -> 0 | AM173: =COUNTIF($D$136:$AA$136,$AM$169)*$AB$15 -> 0 | AN173: =COUNTIF($D$136:$AA$136,$AN$169)*$AB$15 -> 0 | AO173: =COUNTIF($D$136:$AA$136,$AO$169)*$AB$15 -> 0 | AP173: =COUNTIF($D$136:$AA$136,$AP$169)*$AB$15 -> 0 | AQ173: =COUNTIF($D$136:$AA$136,$AQ$169)*$AB$15 -> 0 | AR173: =COUNTIF($D$136:$AA$136,$AR$169)*$AB$15 -> 0 | AS173: =COUNTIF($D$136:$AA$136,$AS$169)*$AB$15 -> 0 | AT173: 7 | AV173: 0 | AW173: 0 | AY173: 0 | BB173: 0 | BC173: =SUM(BA173:BB173) ->  | BE173: 0 | BI173: 0 | BL173: 0 | BO173: 0
C174: 8 | D174: =COUNTIF($D$137:$AA$137,$D$169)*$AB$16 -> 0 | E174: =COUNTIF($D$137:$AA$137,$E$169)*$AB$16 -> 0 | F174: =COUNTIF($D$137:$AA$137,$F$169)*$AB$16 -> 0 | G174: =COUNTIF($D$137:$AA$137,$G$169)*$AB$16 -> 0 | H174: =COUNTIF($D$137:$AA$137,$H$169)*$AB$16 -> 0 | I174: =COUNTIF($D$137:$AA$137,$I$169)*$AB$16 -> 0 | J174: =COUNTIF($D$137:$AA$137,$J$169)*$AB$16 -> 0 | K174: =COUNTIF($D$137:$AA$137,$K$169)*$AB$16 -> 0 | L174: =COUNTIF($D$137:$AA$137,$L$169)*$AB$16 -> 0 | M174: =COUNTIF($D$137:$AA$137,$M$169)*$AB$16 -> 0 | N174: =COUNTIF($D$137:$AA$137,$N$169)*$AB$16 -> 0 | O174: =COUNTIF($D$137:$AA$137,$O$169)*$AB$16 -> 0 | P174: =COUNTIF($D$137:$AA$137,$P$169)*$AB$16 -> 0 | Q174: =COUNTIF($D$137:$AA$137,$Q$169)*$AB$16 -> 0 | R174: =COUNTIF($D$137:$AA$137,$R$169)*$AB$16 -> 0 | S174: =COUNTIF($D$137:$AA$137,$S$169)*$AB$16 -> 0 | T174: =COUNTIF($D$137:$AA$137,$T$169)*$AB$16 -> 0 | U174: =COUNTIF($D$137:$AA$137,$U$169)*$AB$16 -> 0 | V174: =COUNTIF($D$137:$AA$137,$V$169)*$AB$16 -> 0 | W174: =COUNTIF($D$137:$AA$137,$W$169)*$AB$16 -> 0 | X174: =COUNTIF($D$137:$AA$137,$X$169)*$AB$16 -> 0 | Y174: =COUNTIF($D$137:$AA$137,$Y$169)*$AB$16 -> 0 | Z174: =COUNTIF($D$137:$AA$137,$Z$169)*$AB$16 -> 0 | AA174: =COUNTIF($D$137:$AA$137,$AA$169)*$AB$16 -> 0 | AB174: =COUNTIF($D$137:$AA$137,$AB$169)*$AB$16 -> 0 | AC174: =COUNTIF($D$137:$AA$137,$AC$169)*$AB$16 -> 0 | AD174: =COUNTIF($D$137:$AA$137,$AD$169)*$AB$16 -> 0 | AE174: =COUNTIF($D$137:$AA$137,$AE$169)*$AB$16 -> 0 | AF174: =COUNTIF($D$137:$AA$137,$AF$169)*$AB$16 -> 0 | AG174: =COUNTIF($D$137:$AA$137,$AG$169)*$AB$16 -> 0 | AH174: =COUNTIF($D$137:$AA$137,$AH$169)*$AB$16 -> 0 | AI174: =COUNTIF($D$137:$AA$137,$AI$169)*$AB$16 -> 0 | AJ174: =COUNTIF($D$137:$AA$137,$AJ$169)*$AB$16 -> 0 | AK174: =COUNTIF($D$137:$AA$137,$AK$169)*$AB$16 -> 0 | AL174: =COUNTIF($D$137:$AA$137,$AL$169)*$AB$16 -> 0 | AM174: =COUNTIF($D$137:$AA$137,$AM$169)*$AB$16 -> 0 | AN174: =COUNTIF($D$137:$AA$137,$AN$169)*$AB$16 -> 0 | AO174: =COUNTIF($D$137:$AA$137,$AO$169)*$AB$16 -> 0 | AP174: =COUNTIF($D$137:$AA$137,$AP$169)*$AB$16 -> 0 | AQ174: =COUNTIF($D$137:$AA$137,$AQ$169)*$AB$16 -> 0 | AR174: =COUNTIF($D$137:$AA$137,$AR$169)*$AB$16 -> 0 | AS174: =COUNTIF($D$137:$AA$137,$AS$169)*$AB$16 -> 0 | AT174: 8 | AV174: 0 | AW174: 0 | AY174: 0 | BB174: 0 | BE174: 0 | BI174: 0 | BL174: 0 | BO174: 0
C175: 9 | D175: =COUNTIF($D$138:$AA$138,$D$169)*$AB$17 -> 0 | E175: =COUNTIF($D$138:$AA$138,$E$169)*$AB$17 -> 0 | F175: =COUNTIF($D$138:$AA$138,$F$169)*$AB$17 -> 0 | G175: =COUNTIF($D$138:$AA$138,$G$169)*$AB$17 -> 0 | H175: =COUNTIF($D$138:$AA$138,$H$169)*$AB$17 -> 0 | I175: =COUNTIF($D$138:$AA$138,$I$169)*$AB$17 -> 0 | J175: =COUNTIF($D$138:$AA$138,$J$169)*$AB$17 -> 0 | K175: =COUNTIF($D$138:$AA$138,$K$169)*$AB$17 -> 0 | L175: =COUNTIF($D$138:$AA$138,$L$169)*$AB$17 -> 0 | M175: =COUNTIF($D$138:$AA$138,$M$169)*$AB$17 -> 0 | N175: =COUNTIF($D$138:$AA$138,$N$169)*$AB$17 -> 0 | O175: =COUNTIF($D$138:$AA$138,$O$169)*$AB$17 -> 0 | P175: =COUNTIF($D$138:$AA$138,$P$169)*$AB$17 -> 0 | Q175: =COUNTIF($D$138:$AA$138,$Q$169)*$AB$17 -> 0 | R175: =COUNTIF($D$138:$AA$138,$R$169)*$AB$17 -> 0 | S175: =COUNTIF($D$138:$AA$138,$S$169)*$AB$17 -> 0 | T175: =COUNTIF($D$138:$AA$138,$T$169)*$AB$17 -> 0 | U175: =COUNTIF($D$138:$AA$138,$U$169)*$AB$17 -> 0 | V175: =COUNTIF($D$138:$AA$138,$V$169)*$AB$17 -> 0 | W175: =COUNTIF($D$138:$AA$138,$W$169)*$AB$17 -> 0 | X175: =COUNTIF($D$138:$AA$138,$X$169)*$AB$17 -> 0 | Y175: =COUNTIF($D$138:$AA$138,$Y$169)*$AB$17 -> 0 | Z175: =COUNTIF($D$138:$AA$138,$Z$169)*$AB$17 -> 0 | AA175: =COUNTIF($D$138:$AA$138,$AA$169)*$AB$17 -> 0 | AB175: =COUNTIF($D$138:$AA$138,$AB$169)*$AB$17 -> 0 | AC175: =COUNTIF($D$138:$AA$138,$AC$169)*$AB$17 -> 0 | AD175: =COUNTIF($D$138:$AA$138,$AD$169)*$AB$17 -> 0 | AE175: =COUNTIF($D$138:$AA$138,$AE$169)*$AB$17 -> 0 | AF175: =COUNTIF($D$138:$AA$138,$AF$169)*$AB$17 -> 0 | AG175: =COUNTIF($D$138:$AA$138,$AG$169)*$AB$17 -> 0 | AH175: =COUNTIF($D$138:$AA$138,$AH$169)*$AB$17 -> 0 | AI175: =COUNTIF($D$138:$AA$138,$AI$169)*$AB$17 -> 0 | AJ175: =COUNTIF($D$138:$AA$138,$AJ$169)*$AB$17 -> 0 | AK175: =COUNTIF($D$138:$AA$138,$AK$169)*$AB$17 -> 0 | AL175: =COUNTIF($D$138:$AA$138,$AL$169)*$AB$17 -> 0 | AM175: =COUNTIF($D$138:$AA$138,$AM$169)*$AB$17 -> 0 | AN175: =COUNTIF($D$138:$AA$138,$AN$169)*$AB$17 -> 0 | AO175: =COUNTIF($D$138:$AA$138,$AO$169)*$AB$17 -> 0 | AP175: =COUNTIF($D$138:$AA$138,$AP$169)*$AB$17 -> 0 | AQ175: =COUNTIF($D$138:$AA$138,$AQ$169)*$AB$17 -> 0 | AR175: =COUNTIF($D$138:$AA$138,$AR$169)*$AB$17 -> 0 | AS175: =COUNTIF($D$138:$AA$138,$AS$169)*$AB$17 -> 0 | AT175: 9 | AV175: 0 | AW175: 0 | AY175: 0 | BB175: 0 | BE175: 0 | BI175: 0 | BJ175: =SUM(BH175:BI175) ->  | BL175: 0 | BO175: 0
C176: 10 | D176: =COUNTIF($D$139:$AA$139,$D$169)*$AB$18 -> 0 | E176: =COUNTIF($D$139:$AA$139,$E$169)*$AB$18 -> 0 | F176: =COUNTIF($D$139:$AA$139,$F$169)*$AB$18 -> 0 | G176: =COUNTIF($D$139:$AA$139,$G$169)*$AB$18 -> 0 | H176: =COUNTIF($D$139:$AA$139,$H$169)*$AB$18 -> 0 | I176: =COUNTIF($D$139:$AA$139,$I$169)*$AB$18 -> 0 | J176: =COUNTIF($D$139:$AA$139,$J$169)*$AB$18 -> 0 | K176: =COUNTIF($D$139:$AA$139,$K$169)*$AB$18 -> 0 | L176: =COUNTIF($D$139:$AA$139,$L$169)*$AB$18 -> 0 | M176: =COUNTIF($D$139:$AA$139,$M$169)*$AB$18 -> 0 | N176: =COUNTIF($D$139:$AA$139,$N$169)*$AB$18 -> 0 | O176: =COUNTIF($D$139:$AA$139,$O$169)*$AB$18 -> 0 | P176: =COUNTIF($D$139:$AA$139,$P$169)*$AB$18 -> 0 | Q176: =COUNTIF($D$139:$AA$139,$Q$169)*$AB$18 -> 0 | R176: =COUNTIF($D$139:$AA$139,$R$169)*$AB$18 -> 0 | S176: =COUNTIF($D$139:$AA$139,$S$169)*$AB$18 -> 0 | T176: =COUNTIF($D$139:$AA$139,$T$169)*$AB$18 -> 0 | U176: =COUNTIF($D$139:$AA$139,$U$169)*$AB$18 -> 0 | V176: =COUNTIF($D$139:$AA$139,$V$169)*$AB$18 -> 0 | W176: =COUNTIF($D$139:$AA$139,$W$169)*$AB$18 -> 0 | X176: =COUNTIF($D$139:$AA$139,$X$169)*$AB$18 -> 0 | Y176: =COUNTIF($D$139:$AA$139,$Y$169)*$AB$18 -> 0 | Z176: =COUNTIF($D$139:$AA$139,$Z$169)*$AB$18 -> 0 | AA176: =COUNTIF($D$139:$AA$139,$AA$169)*$AB$18 -> 0 | AB176: =COUNTIF($D$139:$AA$139,$AB$169)*$AB$18 -> 0 | AC176: =COUNTIF($D$139:$AA$139,$AC$169)*$AB$18 -> 0 | AD176: =COUNTIF($D$139:$AA$139,$AD$169)*$AB$18 -> 0 | AE176: =COUNTIF($D$139:$AA$139,$AE$169)*$AB$18 -> 0 | AF176: =COUNTIF($D$139:$AA$139,$AF$169)*$AB$18 -> 0 | AG176: =COUNTIF($D$139:$AA$139,$AG$169)*$AB$18 -> 0 | AH176: =COUNTIF($D$139:$AA$139,$AH$169)*$AB$18 -> 0 | AI176: =COUNTIF($D$139:$AA$139,$AI$169)*$AB$18 -> 0 | AJ176: =COUNTIF($D$139:$AA$139,$AJ$169)*$AB$18 -> 0 | AK176: =COUNTIF($D$139:$AA$139,$AK$169)*$AB$18 -> 0 | AL176: =COUNTIF($D$139:$AA$139,$AL$169)*$AB$18 -> 0 | AM176: =COUNTIF($D$139:$AA$139,$AM$169)*$AB$18 -> 0 | AN176: =COUNTIF($D$139:$AA$139,$AN$169)*$AB$18 -> 0 | AO176: =COUNTIF($D$139:$AA$139,$AO$169)*$AB$18 -> 0 | AP176: =COUNTIF($D$139:$AA$139,$AP$169)*$AB$18 -> 0 | AQ176: =COUNTIF($D$139:$AA$139,$AQ$169)*$AB$18 -> 0 | AR176: =COUNTIF($D$139:$AA$139,$AR$169)*$AB$18 -> 0 | AS176: =COUNTIF($D$139:$AA$139,$AS$169)*$AB$18 -> 0 | AT176: 10 | AV176: 0 | AW176: 0 | AY176: 0 | BB176: 0 | BE176: 0 | BI176: 0 | BL176: 0 | BO176: 0
C177: 11 | D177: =COUNTIF($D$140:$AA$140,$D$169)*$AB$19 -> 0 | E177: =COUNTIF($D$140:$AA$140,$E$169)*$AB$19 -> 0 | F177: =COUNTIF($D$140:$AA$140,$F$169)*$AB$19 -> 0 | G177: =COUNTIF($D$140:$AA$140,$G$169)*$AB$19 -> 0 | H177: =COUNTIF($D$140:$AA$140,$H$169)*$AB$19 -> 0 | I177: =COUNTIF($D$140:$AA$140,$I$169)*$AB$19 -> 0 | J177: =COUNTIF($D$140:$AA$140,$J$169)*$AB$19 -> 0 | K177: =COUNTIF($D$140:$AA$140,$K$169)*$AB$19 -> 0 | L177: =COUNTIF($D$140:$AA$140,$L$169)*$AB$19 -> 0 | M177: =COUNTIF($D$140:$AA$140,$M$169)*$AB$19 -> 0 | N177: =COUNTIF($D$140:$AA$140,$N$169)*$AB$19 -> 0 | O177: =COUNTIF($D$140:$AA$140,$O$169)*$AB$19 -> 0 | P177: =COUNTIF($D$140:$AA$140,$P$169)*$AB$19 -> 0 | Q177: =COUNTIF($D$140:$AA$140,$Q$169)*$AB$19 -> 0 | R177: =COUNTIF($D$140:$AA$140,$R$169)*$AB$19 -> 0 | S177: =COUNTIF($D$140:$AA$140,$S$169)*$AB$19 -> 0 | T177: =COUNTIF($D$140:$AA$140,$T$169)*$AB$19 -> 0 | U177: =COUNTIF($D$140:$AA$140,$U$169)*$AB$19 -> 0 | V177: =COUNTIF($D$140:$AA$140,$V$169)*$AB$19 -> 0 | W177: =COUNTIF($D$140:$AA$140,$W$169)*$AB$19 -> 0 | X177: =COUNTIF($D$140:$AA$140,$X$169)*$AB$19 -> 0 | Y177: =COUNTIF($D$140:$AA$140,$Y$169)*$AB$19 -> 0 | Z177: =COUNTIF($D$140:$AA$140,$Z$169)*$AB$19 -> 0 | AA177: =COUNTIF($D$140:$AA$140,$AA$169)*$AB$19 -> 0 | AB177: =COUNTIF($D$140:$AA$140,$AB$169)*$AB$19 -> 0 | AC177: =COUNTIF($D$140:$AA$140,$AC$169)*$AB$19 -> 0 | AD177: =COUNTIF($D$140:$AA$140,$AD$169)*$AB$19 -> 0 | AE177: =COUNTIF($D$140:$AA$140,$AE$169)*$AB$19 -> 0 | AF177: =COUNTIF($D$140:$AA$140,$AF$169)*$AB$19 -> 0 | AG177: =COUNTIF($D$140:$AA$140,$AG$169)*$AB$19 -> 0 | AH177: =COUNTIF($D$140:$AA$140,$AH$169)*$AB$19 -> 0 | AI177: =COUNTIF($D$140:$AA$140,$AI$169)*$AB$19 -> 0 | AJ177: =COUNTIF($D$140:$AA$140,$AJ$169)*$AB$19 -> 0 | AK177: =COUNTIF($D$140:$AA$140,$AK$169)*$AB$19 -> 0 | AL177: =COUNTIF($D$140:$AA$140,$AL$169)*$AB$19 -> 0 | AM177: =COUNTIF($D$140:$AA$140,$AM$169)*$AB$19 -> 0 | AN177: =COUNTIF($D$140:$AA$140,$AN$169)*$AB$19 -> 0 | AO177: =COUNTIF($D$140:$AA$140,$AO$169)*$AB$19 -> 0 | AP177: =COUNTIF($D$140:$AA$140,$AP$169)*$AB$19 -> 0 | AQ177: =COUNTIF($D$140:$AA$140,$AQ$169)*$AB$19 -> 0 | AR177: =COUNTIF($D$140:$AA$140,$AR$169)*$AB$19 -> 0 | AS177: =COUNTIF($D$140:$AA$140,$AS$169)*$AB$19 -> 0 | AT177: 11 | AV177: 0 | AW177: 0 | AY177: 0 | BB177: 0 | BE177: 0 | BI177: 0 | BL177: 0 | BO177: 0
C178: 12 | D178: =COUNTIF($D$141:$AA$141,$D$169)*$AB$20 -> 0 | E178: =COUNTIF($D$141:$AA$141,$E$169)*$AB$20 -> 0 | F178: =COUNTIF($D$141:$AA$141,$F$169)*$AB$20 -> 0 | G178: =COUNTIF($D$141:$AA$141,$G$169)*$AB$20 -> 0 | H178: =COUNTIF($D$141:$AA$141,$H$169)*$AB$20 -> 0 | I178: =COUNTIF($D$141:$AA$141,$I$169)*$AB$20 -> 0 | J178: =COUNTIF($D$141:$AA$141,$J$169)*$AB$20 -> 0 | K178: =COUNTIF($D$141:$AA$141,$K$169)*$AB$20 -> 0 | L178: =COUNTIF($D$141:$AA$141,$L$169)*$AB$20 -> 0 | M178: =COUNTIF($D$141:$AA$141,$M$169)*$AB$20 -> 0 | N178: =COUNTIF($D$141:$AA$141,$N$169)*$AB$20 -> 0 | O178: =COUNTIF($D$141:$AA$141,$O$169)*$AB$20 -> 0 | P178: =COUNTIF($D$141:$AA$141,$P$169)*$AB$20 -> 0 | Q178: =COUNTIF($D$141:$AA$141,$Q$169)*$AB$20 -> 0 | R178: =COUNTIF($D$141:$AA$141,$R$169)*$AB$20 -> 0 | S178: =COUNTIF($D$141:$AA$141,$S$169)*$AB$20 -> 0 | T178: =COUNTIF($D$141:$AA$141,$T$169)*$AB$20 -> 0 | U178: =COUNTIF($D$141:$AA$141,$U$169)*$AB$20 -> 0 | V178: =COUNTIF($D$141:$AA$141,$V$169)*$AB$20 -> 0 | W178: =COUNTIF($D$141:$AA$141,$W$169)*$AB$20 -> 0 | X178: =COUNTIF($D$141:$AA$141,$X$169)*$AB$20 -> 0 | Y178: =COUNTIF($D$141:$AA$141,$Y$169)*$AB$20 -> 0 | Z178: =COUNTIF($D$141:$AA$141,$Z$169)*$AB$20 -> 0 | AA178: =COUNTIF($D$141:$AA$141,$AA$169)*$AB$20 -> 0 | AB178: =COUNTIF($D$141:$AA$141,$AB$169)*$AB$20 -> 0 | AC178: =COUNTIF($D$141:$AA$141,$AC$169)*$AB$20 -> 0 | AD178: =COUNTIF($D$141:$AA$141,$AD$169)*$AB$20 -> 0 | AE178: =COUNTIF($D$141:$AA$141,$AE$169)*$AB$20 -> 0 | AF178: =COUNTIF($D$141:$AA$141,$AF$169)*$AB$20 -> 0 | AG178: =COUNTIF($D$141:$AA$141,$AG$169)*$AB$20 -> 0 | AH178: =COUNTIF($D$141:$AA$141,$AH$169)*$AB$20 -> 0 | AI178: =COUNTIF($D$141:$AA$141,$AI$169)*$AB$20 -> 0 | AJ178: =COUNTIF($D$141:$AA$141,$AJ$169)*$AB$20 -> 0 | AK178: =COUNTIF($D$141:$AA$141,$AK$169)*$AB$20 -> 0 | AL178: =COUNTIF($D$141:$AA$141,$AL$169)*$AB$20 -> 0 | AM178: =COUNTIF($D$141:$AA$141,$AM$169)*$AB$20 -> 0 | AN178: =COUNTIF($D$141:$AA$141,$AN$169)*$AB$20 -> 0 | AO178: =COUNTIF($D$141:$AA$141,$AO$169)*$AB$20 -> 0 | AP178: =COUNTIF($D$141:$AA$141,$AP$169)*$AB$20 -> 0 | AQ178: =COUNTIF($D$141:$AA$141,$AQ$169)*$AB$20 -> 0 | AR178: =COUNTIF($D$141:$AA$141,$AR$169)*$AB$20 -> 0 | AS178: =COUNTIF($D$141:$AA$141,$AS$169)*$AB$20 -> 0 | AT178: 12 | AV178: 0 | AW178: 0 | AY178: 0 | BB178: 0 | BE178: 0 | BI178: 0 | BL178: 0 | BO178: 0
C179: 1 | D179: =COUNTIF($D$142:$AA$142,$D$169)*$AB$21 -> 0 | E179: =COUNTIF($D$142:$AA$142,$E$169)*$AB$21 -> 0 | F179: =COUNTIF($D$142:$AA$142,$F$169)*$AB$21 -> 0 | G179: =COUNTIF($D$142:$AA$142,$G$169)*$AB$21 -> 0 | H179: =COUNTIF($D$142:$AA$142,$H$169)*$AB$21 -> 0 | I179: =COUNTIF($D$142:$AA$142,$I$169)*$AB$21 -> 0 | J179: =COUNTIF($D$142:$AA$142,$J$169)*$AB$21 -> 0 | K179: =COUNTIF($D$142:$AA$142,$K$169)*$AB$21 -> 0 | L179: =COUNTIF($D$142:$AA$142,$L$169)*$AB$21 -> 0 | M179: =COUNTIF($D$142:$AA$142,$M$169)*$AB$21 -> 0 | N179: =COUNTIF($D$142:$AA$142,$N$169)*$AB$21 -> 0 | O179: =COUNTIF($D$142:$AA$142,$O$169)*$AB$21 -> 0 | P179: =COUNTIF($D$142:$AA$142,$P$169)*$AB$21 -> 0 | Q179: =COUNTIF($D$142:$AA$142,$Q$169)*$AB$21 -> 0 | R179: =COUNTIF($D$142:$AA$142,$R$169)*$AB$21 -> 0 | S179: =COUNTIF($D$142:$AA$142,$S$169)*$AB$21 -> 0 | T179: =COUNTIF($D$142:$AA$142,$T$169)*$AB$21 -> 0 | U179: =COUNTIF($D$142:$AA$142,$U$169)*$AB$21 -> 0 | V179: =COUNTIF($D$142:$AA$142,$V$169)*$AB$21 -> 0 | W179: =COUNTIF($D$142:$AA$142,$W$169)*$AB$21 -> 0 | X179: =COUNTIF($D$142:$AA$142,$X$169)*$AB$21 -> 0 | Y179: =COUNTIF($D$142:$AA$142,$Y$169)*$AB$21 -> 0 | Z179: =COUNTIF($D$142:$AA$142,$Z$169)*$AB$21 -> 0 | AA179: =COUNTIF($D$142:$AA$142,$AA$169)*$AB$21 -> 0 | AB179: =COUNTIF($D$142:$AA$142,$AB$169)*$AB$21 -> 0 | AC179: =COUNTIF($D$142:$AA$142,$AC$169)*$AB$21 -> 0 | AD179: =COUNTIF($D$142:$AA$142,$AD$169)*$AB$21 -> 0 | AE179: =COUNTIF($D$142:$AA$142,$AE$169)*$AB$21 -> 0 | AF179: =COUNTIF($D$142:$AA$142,$AF$169)*$AB$21 -> 0 | AG179: =COUNTIF($D$142:$AA$142,$AG$169)*$AB$21 -> 0 | AH179: =COUNTIF($D$142:$AA$142,$AH$169)*$AB$21 -> 0 | AI179: =COUNTIF($D$142:$AA$142,$AI$169)*$AB$21 -> 0 | AJ179: =COUNTIF($D$142:$AA$142,$AJ$169)*$AB$21 -> 0 | AK179: =COUNTIF($D$142:$AA$142,$AK$169)*$AB$21 -> 0 | AL179: =COUNTIF($D$142:$AA$142,$AL$169)*$AB$21 -> 0 | AM179: =COUNTIF($D$142:$AA$142,$AM$169)*$AB$21 -> 0 | AN179: =COUNTIF($D$142:$AA$142,$AN$169)*$AB$21 -> 0 | AO179: =COUNTIF($D$142:$AA$142,$AO$169)*$AB$21 -> 0 | AP179: =COUNTIF($D$142:$AA$142,$AP$169)*$AB$21 -> 0 | AQ179: =COUNTIF($D$142:$AA$142,$AQ$169)*$AB$21 -> 0 | AR179: =COUNTIF($D$142:$AA$142,$AR$169)*$AB$21 -> 0 | AS179: =COUNTIF($D$142:$AA$142,$AS$169)*$AB$21 -> 0 | AT179: 1 | AV179: 0 | AW179: 0 | AY179: 0 | BB179: 0 | BE179: 0 | BI179: 0 | BL179: 0 | BO179: 0
C180: 2 | D180: =COUNTIF($D$143:$AA$143,$D$169)*$AB$22 -> 0 | E180: =COUNTIF($D$143:$AA$143,$E$169)*$AB$22 -> 0 | F180: =COUNTIF($D$143:$AA$143,$F$169)*$AB$22 -> 0 | G180: =COUNTIF($D$143:$AA$143,$G$169)*$AB$22 -> 0 | H180: =COUNTIF($D$143:$AA$143,$H$169)*$AB$22 -> 0 | I180: =COUNTIF($D$143:$AA$143,$I$169)*$AB$22 -> 0 | J180: =COUNTIF($D$143:$AA$143,$J$169)*$AB$22 -> 0 | K180: =COUNTIF($D$143:$AA$143,$K$169)*$AB$22 -> 0 | L180: =COUNTIF($D$143:$AA$143,$L$169)*$AB$22 -> 0 | M180: =COUNTIF($D$143:$AA$143,$M$169)*$AB$22 -> 0 | N180: =COUNTIF($D$143:$AA$143,$N$169)*$AB$22 -> 0 | O180: =COUNTIF($D$143:$AA$143,$O$169)*$AB$22 -> 0 | P180: =COUNTIF($D$143:$AA$143,$P$169)*$AB$22 -> 0 | Q180: =COUNTIF($D$143:$AA$143,$Q$169)*$AB$22 -> 0 | R180: =COUNTIF($D$143:$AA$143,$R$169)*$AB$22 -> 0 | S180: =COUNTIF($D$143:$AA$143,$S$169)*$AB$22 -> 0 | T180: =COUNTIF($D$143:$AA$143,$T$169)*$AB$22 -> 0 | U180: =COUNTIF($D$143:$AA$143,$U$169)*$AB$22 -> 0 | V180: =COUNTIF($D$143:$AA$143,$V$169)*$AB$22 -> 0 | W180: =COUNTIF($D$143:$AA$143,$W$169)*$AB$22 -> 0 | X180: =COUNTIF($D$143:$AA$143,$X$169)*$AB$22 -> 0 | Y180: =COUNTIF($D$143:$AA$143,$Y$169)*$AB$22 -> 0 | Z180: =COUNTIF($D$143:$AA$143,$Z$169)*$AB$22 -> 0 | AA180: =COUNTIF($D$143:$AA$143,$AA$169)*$AB$22 -> 0 | AB180: =COUNTIF($D$143:$AA$143,$AB$169)*$AB$22 -> 0 | AC180: =COUNTIF($D$143:$AA$143,$AC$169)*$AB$22 -> 0 | AD180: =COUNTIF($D$143:$AA$143,$AD$169)*$AB$22 -> 0 | AE180: =COUNTIF($D$143:$AA$143,$AE$169)*$AB$22 -> 0 | AF180: =COUNTIF($D$143:$AA$143,$AF$169)*$AB$22 -> 0 | AG180: =COUNTIF($D$143:$AA$143,$AG$169)*$AB$22 -> 0 | AH180: =COUNTIF($D$143:$AA$143,$AH$169)*$AB$22 -> 0 | AI180: =COUNTIF($D$143:$AA$143,$AI$169)*$AB$22 -> 0 | AJ180: =COUNTIF($D$143:$AA$143,$AJ$169)*$AB$22 -> 0 | AK180: =COUNTIF($D$143:$AA$143,$AK$169)*$AB$22 -> 0 | AL180: =COUNTIF($D$143:$AA$143,$AL$169)*$AB$22 -> 0 | AM180: =COUNTIF($D$143:$AA$143,$AM$169)*$AB$22 -> 0 | AN180: =COUNTIF($D$143:$AA$143,$AN$169)*$AB$22 -> 0 | AO180: =COUNTIF($D$143:$AA$143,$AO$169)*$AB$22 -> 0 | AP180: =COUNTIF($D$143:$AA$143,$AP$169)*$AB$22 -> 0 | AQ180: =COUNTIF($D$143:$AA$143,$AQ$169)*$AB$22 -> 0 | AR180: =COUNTIF($D$143:$AA$143,$AR$169)*$AB$22 -> 0 | AS180: =COUNTIF($D$143:$AA$143,$AS$169)*$AB$22 -> 0 | AT180: 2 | AV180: 0 | AW180: 0 | AY180: 0 | BB180: 0 | BE180: 0 | BI180: 0 | BL180: 0 | BO180: 0
C181: 3 | D181: =COUNTIF($D$144:$AA$144,$D$169)*$AB$23 -> 0 | E181: =COUNTIF($D$144:$AA$144,$E$169)*$AB$23 -> 0 | F181: =COUNTIF($D$144:$AA$144,$F$169)*$AB$23 -> 0 | G181: =COUNTIF($D$144:$AA$144,$G$169)*$AB$23 -> 0 | H181: =COUNTIF($D$144:$AA$144,$H$169)*$AB$23 -> 0 | I181: =COUNTIF($D$144:$AA$144,$I$169)*$AB$23 -> 0 | J181: =COUNTIF($D$144:$AA$144,$J$169)*$AB$23 -> 0 | K181: =COUNTIF($D$144:$AA$144,$K$169)*$AB$23 -> 0 | L181: =COUNTIF($D$144:$AA$144,$L$169)*$AB$23 -> 0 | M181: =COUNTIF($D$144:$AA$144,$M$169)*$AB$23 -> 0 | N181: =COUNTIF($D$144:$AA$144,$N$169)*$AB$23 -> 0 | O181: =COUNTIF($D$144:$AA$144,$O$169)*$AB$23 -> 0 | P181: =COUNTIF($D$144:$AA$144,$P$169)*$AB$23 -> 0 | Q181: =COUNTIF($D$144:$AA$144,$Q$169)*$AB$23 -> 0 | R181: =COUNTIF($D$144:$AA$144,$R$169)*$AB$23 -> 0 | S181: =COUNTIF($D$144:$AA$144,$S$169)*$AB$23 -> 0 | T181: =COUNTIF($D$144:$AA$144,$T$169)*$AB$23 -> 0 | U181: =COUNTIF($D$144:$AA$144,$U$169)*$AB$23 -> 0 | V181: =COUNTIF($D$144:$AA$144,$V$169)*$AB$23 -> 0 | W181: =COUNTIF($D$144:$AA$144,$W$169)*$AB$23 -> 0 | X181: =COUNTIF($D$144:$AA$144,$X$169)*$AB$23 -> 0 | Y181: =COUNTIF($D$144:$AA$144,$Y$169)*$AB$23 -> 0 | Z181: =COUNTIF($D$144:$AA$144,$Z$169)*$AB$23 -> 0 | AA181: =COUNTIF($D$144:$AA$144,$AA$169)*$AB$23 -> 0 | AB181: =COUNTIF($D$144:$AA$144,$AB$169)*$AB$23 -> 0 | AC181: =COUNTIF($D$144:$AA$144,$AC$169)*$AB$23 -> 0 | AD181: =COUNTIF($D$144:$AA$144,$AD$169)*$AB$23 -> 0 | AE181: =COUNTIF($D$144:$AA$144,$AE$169)*$AB$23 -> 0 | AF181: =COUNTIF($D$144:$AA$144,$AF$169)*$AB$23 -> 0 | AG181: =COUNTIF($D$144:$AA$144,$AG$169)*$AB$23 -> 0 | AH181: =COUNTIF($D$144:$AA$144,$AH$169)*$AB$23 -> 0 | AI181: =COUNTIF($D$144:$AA$144,$AI$169)*$AB$23 -> 0 | AJ181: =COUNTIF($D$144:$AA$144,$AJ$169)*$AB$23 -> 0 | AK181: =COUNTIF($D$144:$AA$144,$AK$169)*$AB$23 -> 0 | AL181: =COUNTIF($D$144:$AA$144,$AL$169)*$AB$23 -> 0 | AM181: =COUNTIF($D$144:$AA$144,$AM$169)*$AB$23 -> 0 | AN181: =COUNTIF($D$144:$AA$144,$AN$169)*$AB$23 -> 0 | AO181: =COUNTIF($D$144:$AA$144,$AO$169)*$AB$23 -> 0 | AP181: =COUNTIF($D$144:$AA$144,$AP$169)*$AB$23 -> 0 | AQ181: =COUNTIF($D$144:$AA$144,$AQ$169)*$AB$23 -> 0 | AR181: =COUNTIF($D$144:$AA$144,$AR$169)*$AB$23 -> 0 | AS181: =COUNTIF($D$144:$AA$144,$AS$169)*$AB$23 -> 0 | AT181: 3 | AV181: 0 | AW181: 0 | AY181: 0 | AZ181: =SUM(AX181:AY181) ->  | BB181: 0 | BC181: =SUM(BA181:BB181) ->  | BE181: 0 | BF181: =SUM(BD181:BE181) ->  | BI181: 0 | BJ181: =SUM(BH181:BI181) ->  | BL181: 0 | BM181: =SUM(BK181:BL181) ->  | BO181: 0 | BP181: =SUM(BN181:BO181) -> 
B182: tw | C182: 加熱運転時間 | D182: =SUM($D$170:$D$181) -> 0 | E182: =SUM($E$170:$E$181) -> 0 | F182: =SUM($F$170:$F$181) -> 0 | G182: =SUM($G$170:$G$181) -> 0 | H182: =SUM($H$170:$H$181) -> 0 | I182: =SUM($I$170:$I$181) -> 0 | J182: =SUM($J$170:$J$181) -> 0 | K182: =SUM($K$170:$K$181) -> 0 | L182: =SUM($L$170:$L$181) -> 0 | M182: =SUM($M$170:$M$181) -> 0 | N182: =SUM($N$170:$N$181) -> 0 | O182: =SUM($O$170:$O$181) -> 0 | P182: =SUM($P$170:$P$181) -> 0 | Q182: =SUM($Q$170:$Q$181) -> 0 | R182: =SUM($R$170:$R$181) -> 0 | S182: =SUM($S$170:$S$181) -> 0 | T182: =SUM($T$170:$T$181) -> 0 | U182: =SUM($U$170:$U$181) -> 0 | V182: =SUM($V$170:$V$181) -> 0 | W182: =SUM($W$170:$W$181) -> 0 | X182: =SUM($X$170:$X$181) -> 0 | Y182: =SUM($Y$170:$Y$181) -> 0 | Z182: =SUM($Z$170:$Z$181) -> 0 | AA182: =SUM($AA$170:$AA$181) -> 0 | AB182: =SUM($AB$170:$AB$181) -> 0 | AC182: =SUM($AC$170:$AC$181) -> 0 | AD182: =SUM($AD$170:$AD$181) -> 0 | AE182: =SUM($AE$170:$AE$181) -> 0 | AF182: =SUM($AF$170:$AF$181) -> 0 | AG182: =SUM($AG$170:$AG$181) -> 0 | AH182: =SUM($AH$170:$AH$181) -> 0 | AI182: =SUM($AI$170:$AI$181) -> 0 | AJ182: =SUM($AJ$170:$AJ$181) -> 0 | AK182: =SUM($AK$170:$AK$181) -> 0 | AL182: =SUM($AL$170:$AL$181) -> 0 | AM182: =SUM($AM$170:$AM$181) -> 0 | AN182: =SUM($AN$170:$AN$181) -> 0 | AO182: =SUM($AO$170:$AO$181) -> 0 | AP182: =SUM($AP$170:$AP$181) -> 0 | AQ182: =SUM($AQ$170:$AQ$181) -> 0 | AR182: =SUM($AR$170:$AR$181) -> 0 | AS182: =SUM($AS$170:$AS$181) -> 0 | AT182: 加熱運転時間 | AV182: =SUM(AV170:AV181) -> 0 | AW182: =SUM(AW170:AW181) -> 0 | AX182: =SUM(AX170:AX181) ->  | AY182: 0 | BB182: 0 | BE182: 0 | BI182: 0 | BL182: 0 | BO182: 0
B183: εw | C183: 加熱時消費電力比 | D183: =$D$184/$D$185 -> 1.286497947 | E183: =$E$184/$E$185 -> 1.299376299 | F183: =$F$184/$F$185 -> 1.314364426 | G183: =$G$184/$G$185 -> 1.331600477 | H183: =$H$184/$H$185 -> 1.351249095 | I183: =$I$184/$I$185 -> 1.373505626 | J183: =$J$184/$J$185 -> 1.398601399 | K183: =$K$184/$K$185 -> 1.224213741 | L183: =$L$184/$L$185 -> 1.069990023 | M183: =$M$184/$M$185 -> 0.932676061 | N183: =$N$184/$N$185 -> 0.8096817921 | O183: =$O$184/$O$185 -> 0.6989200811 | P183: =$P$184/$P$185 -> 0.6086256867 | Q183: =$Q$184/$Q$185 -> 0.5325234185 | R183: =$R$184/$R$185 -> 0.4587836623 | S183: =$S$184/$S$185 -> 0.3872921318 | T183: =$T$184/$T$185 -> 0.3179417721 | U183: =$U$184/$U$185 -> 0.2506321962 | V183: =$V$184/$V$185 -> 0.1852691739 | W183: =$W$184/$W$185 -> 0.1217641667 | X183: =$X$184/$X$185 -> 0.06003390475 | Y183: =$Y$184/$Y$185 -> 0 | Z183: =$Z$184/$Z$185 -> 0 | AA183: =$AA$184/$AA$185 -> 0 | AB183: =$AB$184/$AB$185 -> 0 | AC183: =$AC$184/$AC$185 -> 0 | AD183: =$AD$184/$AD$185 -> 0 | AE183: =$AE$184/$AE$185 -> 0 | AF183: =$AF$184/$AF$185 -> 0 | AG183: =$AG$184/$AG$185 -> 0 | AH183: =$AH$184/$AH$185 -> 0 | AI183: =$AI$184/$AI$185 -> 0 | AJ183: =$AJ$184/$AJ$185 -> 0 | AK183: =$AK$184/$AK$185 -> 0 | AL183: =$AL$184/$AL$185 -> 0 | AM183: =$AM$184/$AM$185 -> 0 | AN183: =$AN$184/$AN$185 -> 0 | AO183: =$AO$184/$AO$185 -> 0 | AP183: =$AP$184/$AP$185 -> 0 | AQ183: =$AQ$184/$AQ$185 -> 0 | AR183: =$AR$184/$AR$185 -> 0 | AS183: =$AS$184/$AS$185 -> 0 | AT183: 加熱時消費電力比
B184: αw | C184: 加熱空調負荷率 | D184: =IF((-1/15)*D$169+1<0,0,IF((-1/15)*D$169+1>1,1,(-1/15)*D$169+1)) -> 1 | E184: =IF((-1/15)*E$169+1<0,0,IF((-1/15)*E$169+1>1,1,(-1/15)*E$169+1)) -> 1 | F184: 1 | G184: 1 | H184: 1 | I184: 1 | J184: 1 | K184: 0.9333333333 | L184: 0.8666666667 | M184: 0.8 | N184: 0.7333333333 | O184: 0.6666666667 | P184: 0.6 | Q184: 0.5333333333 | R184: 0.4666666667 | S184: 0.4 | T184: 0.3333333333 | U184: 0.2666666667 | V184: 0.2 | W184: 0.1333333333 | X184: 0.06666666667 | Y184: 0 | Z184: =IF((-1/15)*Z$169+1<0,0,IF((-1/15)*Z$169+1>1,1,(-1/15)*Z$169+1)) -> 0 | AA184: 0 | AB184: 0 | AC184: 0 | AD184: 0 | AE184: 0 | AF184: 0 | AG184: 0 | AH184: 0 | AI184: 0 | AJ184: 0 | AK184: 0 | AL184: 0 | AM184: 0 | AN184: 0 | AO184: 0 | AP184: 0 | AQ184: 0 | AR184: 0 | AS184: 0 | AT184: 加熱空調負荷率
B185: βw | C185: 加熱COP比 | D185: =-5.36/10000*D$169*D$169-0.0136*D$169+0.715 -> 0.777304 | E185: =-5.36/10000*E$169*E$169-0.0136*E$169+0.715 -> 0.7696 | F185: 0.760824 | G185: 0.750976 | H185: 0.740056 | I185: 0.728064 | J185: =9.41/100000*J$169*J$169+0.0473*J$169+0.715 -> 0.715 | K185: 0.7623941 | L185: 0.8099764 | M185: 0.8577469 | N185: 0.9057056 | O185: 0.9538525 | P185: =-1.59/100000*P$169*P$169+0.0159*P$169+0.891 -> 0.9858276 | Q185: =-1.59/100000*Q$169*Q$169+0.0159*Q$169+0.891 -> 1.0015209 | R185: 1.0171824 | S185: 1.0328121 | T185: 1.04841 | U185: 1.0639761 | V185: 1.0795104 | W185: 1.0950129 | X185: 1.1104836 | Y185: 1.1259225 | Z185: =-1.59/100000*Z$169*Z$169+0.0159*Z$169+0.891 -> 1.1413296 | AA185: 1.1567049 | AB185: 1.1720484 | AC185: 1.1873601 | AD185: =-1.59/100000*AD$169*AD$169+0.0159*AD$169+0.891 -> 1.20264 | AE185: 1.2178881 | AF185: 1.2331044 | AG185: 1.2482889 | AH185: =-1.59/100000*AH$169*AH$169+0.0159*AH$169+0.891 -> 1.2634416 | AI185: 1.2785625 | AJ185: 1.2936516 | AK185: 1.3087089 | AL185: 1.3237344 | AM185: 1.3387281 | AN185: 1.35369 | AO185: 1.3686201 | AP185: 1.3835184 | AQ185: 1.3983849 | AR185: =-1.59/100000*AR$169*AR$169+0.0159*AR$169+0.891 -> 1.4132196 | AS185: 1.4280225 | AT185: 加熱COP比
C186: Σ | D186: =$D$182*$D$183 -> 0 | E186: =$E$182*$E$183 -> 0 | F186: =$F$182*$F$183 -> 0 | G186: =$G$182*$G$183 -> 0 | H186: =$H$182*$H$183 -> 0 | I186: =$I$182*$I$183 -> 0 | J186: =$J$182*$J$183 -> 0 | K186: =$K$182*$K$183 -> 0 | L186: =$L$182*$L$183 -> 0 | M186: =$M$182*$M$183 -> 0 | N186: =$N$182*$N$183 -> 0 | O186: =$O$182*$O$183 -> 0 | P186: =$P$182*$P$183 -> 0 | Q186: =$Q$182*$Q$183 -> 0 | R186: =$R$182*$R$183 -> 0 | S186: =$S$182*$S$183 -> 0 | T186: =$T$182*$T$183 -> 0 | U186: =$U$182*$U$183 -> 0 | V186: =$V$182*$V$183 -> 0 | W186: =$W$182*$W$183 -> 0 | X186: =$X$182*$X$183 -> 0 | Y186: =$Y$182*$Y$183 -> 0 | Z186: =$Z$182*$Z$183 -> 0 | AA186: =$AA$182*$AA$183 -> 0 | AB186: =$AB$182*$AB$183 -> 0 | AC186: =$AC$182*$AC$183 -> 0 | AD186: =$AD$182*$AD$183 -> 0 | AE186: =$AE$182*$AE$183 -> 0 | AF186: =$AF$182*$AF$183 -> 0 | AG186: =$AG$182*$AG$183 -> 0 | AH186: =$AH$182*$AH$183 -> 0 | AI186: =$AI$182*$AI$183 -> 0 | AJ186: =$AJ$182*$AJ$183 -> 0 | AK186: =$AK$182*$AK$183 -> 0 | AL186: =$AL$182*$AL$183 -> 0 | AM186: =$AM$182*$AM$183 -> 0 | AN186: =$AN$182*$AN$183 -> 0 | AO186: =$AO$182*$AO$183 -> 0 | AP186: =$AP$182*$AP$183 -> 0 | AQ186: =$AQ$182*$AQ$183 -> 0 | AR186: =$AR$182*$AR$183 -> 0 | AS186: =$AS$182*$AS$183 -> 0 | AT186: =SUM($D$186:$AS$186) -> 0
D187: ←着霜領域② | I187: 着霜領域②→ | J187: ←着霜領域① | O187: 着霜領域①→ | P187: ←非着霜領域 | AS187: 非着霜領域→
C189: αc^0.6 | D189: =D163^0.6 -> 0 | E189: =E163^0.6 -> 0 | F189: 0 | G189: 0 | H189: 0 | I189: 0 | J189: 0 | K189: 0 | L189: 0 | M189: 0 | N189: 0 | O189: 0 | P189: 0 | Q189: 0 | R189: 0 | S189: 0 | T189: 0 | U189: 0 | V189: 0 | W189: 0 | X189: 0 | Y189: 0 | Z189: 0.1657227009 | AA189: 0.2511886432 | AB189: 0.3203721498 | AC189: 0.3807307877 | AD189: 0.4352752816 | AE189: 0.4855933748 | AF189: 0.5326486451 | AG189: 0.5770799624 | AH189: 0.6193376876 | AI189: 0.6597539554 | AJ189: 0.6985823579 | AK189: 0.7360219228 | AL189: 0.772232391 | AM189: 0.8073443754 | AN189: 0.8414663591 | AO189: 0.8746896592 | AP189: 0.907092039 | AQ189: 0.9387403934 | AR189: 0.9696927826 | AS189: 1 | AT189: αc^0.6
C190: Σ | D190: =D161*D189 -> 0 | E190: =E161*E189 -> 0 | F190: 0 | G190: 0 | H190: 0 | I190: 0 | J190: 0 | K190: 0 | L190: 0 | M190: 0 | N190: 0 | O190: 0 | P190: 0 | Q190: 0 | R190: 0 | S190: 0 | T190: 0 | U190: 0 | V190: 0 | W190: 0 | X190: 0 | Y190: 0 | Z190: 0 | AA190: 0 | AB190: 0 | AC190: 0 | AD190: 0 | AE190: 0 | AF190: 0 | AG190: 0 | AH190: 0 | AI190: 0 | AJ190: 0 | AK190: 0 | AL190: 0 | AM190: 0 | AN190: 0 | AO190: 0 | AP190: 0 | AQ190: 0 | AR190: 0 | AS190: 0 | AT190: =SUM(D190:AS190) -> 0
C192: αw^0.6 | D192: =D184^0.6 -> 1 | E192: =E184^0.6 -> 1 | F192: 1 | G192: 1 | H192: 1 | I192: 1 | J192: 1 | K192: 0.9594493787 | L192: 0.9177222389 | M192: 0.8746896592 | N192: 0.8301964188 | O192: 0.7840526817 | P192: 0.7360219228 | Q192: 0.6858027729 | R192: 0.6330005226 | S192: 0.5770799624 | T192: 0.517281858 | U192: 0.452461092 | V192: 0.3807307877 | W192: 0.2985129951 | X192: 0.1969451293 | Y192: 0 | Z192: 0 | AA192: 0 | AB192: 0 | AC192: 0 | AD192: 0 | AE192: 0 | AF192: 0 | AG192: 0 | AH192: 0 | AI192: 0 | AJ192: 0 | AK192: 0 | AL192: 0 | AM192: 0 | AN192: 0 | AO192: 0 | AP192: 0 | AQ192: 0 | AR192: 0 | AS192: 0 | AT192: αw^0.6
C193: Σ | D193: =D182*D192 -> 0 | E193: =E182*E192 -> 0 | F193: 0 | G193: 0 | H193: 0 | I193: 0 | J193: 0 | K193: 0 | L193: 0 | M193: 0 | N193: 0 | O193: 0 | P193: 0 | Q193: 0 | R193: 0 | S193: 0 | T193: 0 | U193: 0 | V193: 0 | W193: 0 | X193: 0 | Y193: 0 | Z193: 0 | AA193: 0 | AB193: 0 | AC193: 0 | AD193: 0 | AE193: 0 | AF193: 0 | AG193: 0 | AH193: 0 | AI193: 0 | AJ193: 0 | AK193: 0 | AL193: 0 | AM193: 0 | AN193: 0 | AO193: 0 | AP193: 0 | AQ193: 0 | AR193: 0 | AS193: 0 | AT193: =SUM(D193:AS193) -> 0

Sheet 寒冷地(γ既定値)
C2: 空冷HPチラーの設置場所
C3: =IF(必ずこのシートから始めてください!$L$8="","",必ずこのシートから始めてください!$L$8) ->  | F3: 手順1：空調を行う月、時間を下記の指定の色で塗る(指定の色以外で塗ると計算できません。)
C4: =VLOOKUP($C$3,γ一覧表!$C$3:$E$50,2,FALSE) ->  | G4: 冷却 | H4: 青 | I4: 【左から5列目、一番薄い色(アクセント1,白＋基本色80％)】
G5: 加熱 | H5: オレンジ | I5: 【左から6番目、一番薄い色(アクセント2,白＋基本色80％)】
C6: 使用するγ値 | F6: 手順2：各月の運転日数を入力する
C7: =IFERROR(IF(VLOOKUP($C$3,γ一覧表!$C$3:$E$50,3,FALSE)<=1,"---",IFERROR(VLOOKUP($C$3,γ一覧表!$C$3:$E$50,3,FALSE),"---")),"---") -> --- | F7: 手順3：Ctrl + Alt + F9を同時に押す | R7: ●時刻別平均気温表記載の数値は、選択された都道府県の県庁所在地の月別、時刻別平均気温
F8: 手順4：黄色のセルに値を入力する(緑は自動計算) | R8: ●本データは気象庁発表の1992年4月1日から2022年3月31日までの30年の1時間データを整理したもの
C9: 時刻別平均気温[℃] | R9: ●2月はうるう日を含みます
D10: 時刻 | AB10: =SUM(AB12:AB23) -> 0 | AC10: =必ずこのシートから始めてください!$M$3 -> Ver.1.0
C11: 月 | D11: 0 | E11: 1 | F11: 2 | G11: 3 | H11: 4 | I11: 5 | J11: 6 | K11: 7 | L11: 8 | M11: 9 | N11: 10 | O11: 11 | P11: 12 | Q11: 13 | R11: 14 | S11: 15 | T11: 16 | U11: 17 | V11: 18 | W11: 19 | X11: 20 | Y11: 21 | Z11: 22 | AA11: 23 | AB11: 運転日数 | AC11: 月
C12: 4 | D12: =IFERROR(INDIRECT($C$4&"!B5"),"") ->  | E12: =IFERROR(INDIRECT($C$4&"!C5"),"") ->  | F12: =IFERROR(INDIRECT($C$4&"!D5"),"") ->  | G12: =IFERROR(INDIRECT($C$4&"!E5"),"") ->  | H12: =IFERROR(INDIRECT($C$4&"!F5"),"") ->  | I12: =IFERROR(INDIRECT($C$4&"!G5"),"") ->  | J12: =IFERROR(INDIRECT($C$4&"!H5"),"") ->  | K12: =IFERROR(INDIRECT($C$4&"!I5"),"") ->  | L12: =IFERROR(INDIRECT($C$4&"!J5"),"") ->  | M12: =IFERROR(INDIRECT($C$4&"!K5"),"") ->  | N12: =IFERROR(INDIRECT($C$4&"!L5"),"") ->  | O12: =IFERROR(INDIRECT($C$4&"!M5"),"") ->  | P12: =IFERROR(INDIRECT($C$4&"!N5"),"") ->  | Q12: =IFERROR(INDIRECT($C$4&"!O5"),"") ->  | R12: =IFERROR(INDIRECT($C$4&"!P5"),"") ->  | S12: =IFERROR(INDIRECT($C$4&"!Q5"),"") ->  | T12: =IFERROR(INDIRECT($C$4&"!R5"),"") ->  | U12: =IFERROR(INDIRECT($C$4&"!S5"),"") ->  | V12: =IFERROR(INDIRECT($C$4&"!T5"),"") ->  | W12: =IFERROR(INDIRECT($C$4&"!U5"),"") ->  | X12: =IFERROR(INDIRECT($C$4&"!V5"),"") ->  | Y12: =IFERROR(INDIRECT($C$4&"!W5"),"") ->  | Z12: =IFERROR(INDIRECT($C$4&"!X5"),"") ->  | AA12: =IFERROR(INDIRECT($C$4&"!Y5"),"") ->  | AC12: 4
C13: 5 | D13: =IFERROR(INDIRECT($C$4&"!B6"),"") ->  | E13: =IFERROR(INDIRECT($C$4&"!C6"),"") ->  | F13: =IFERROR(INDIRECT($C$4&"!D6"),"") ->  | G13: =IFERROR(INDIRECT($C$4&"!E6"),"") ->  | H13: =IFERROR(INDIRECT($C$4&"!F6"),"") ->  | I13: =IFERROR(INDIRECT($C$4&"!G6"),"") ->  | J13: =IFERROR(INDIRECT($C$4&"!H6"),"") ->  | K13: =IFERROR(INDIRECT($C$4&"!I6"),"") ->  | L13: =IFERROR(INDIRECT($C$4&"!J6"),"") ->  | M13: =IFERROR(INDIRECT($C$4&"!K6"),"") ->  | N13: =IFERROR(INDIRECT($C$4&"!L6"),"") ->  | O13: =IFERROR(INDIRECT($C$4&"!M6"),"") ->  | P13: =IFERROR(INDIRECT($C$4&"!N6"),"") ->  | Q13: =IFERROR(INDIRECT($C$4&"!O6"),"") ->  | R13: =IFERROR(INDIRECT($C$4&"!P6"),"") ->  | S13: =IFERROR(INDIRECT($C$4&"!Q6"),"") ->  | T13: =IFERROR(INDIRECT($C$4&"!R6"),"") ->  | U13: =IFERROR(INDIRECT($C$4&"!S6"),"") ->  | V13: =IFERROR(INDIRECT($C$4&"!T6"),"") ->  | W13: =IFERROR(INDIRECT($C$4&"!U6"),"") ->  | X13: =IFERROR(INDIRECT($C$4&"!V6"),"") ->  | Y13: =IFERROR(INDIRECT($C$4&"!W6"),"") ->  | Z13: =IFERROR(INDIRECT($C$4&"!X6"),"") ->  | AA13: =IFERROR(INDIRECT($C$4&"!Y6"),"") ->  | AC13: 5
C14: 6 | D14: =IFERROR(INDIRECT($C$4&"!B7"),"") ->  | E14: =IFERROR(INDIRECT($C$4&"!C7"),"") ->  | F14: =IFERROR(INDIRECT($C$4&"!D7"),"") ->  | G14: =IFERROR(INDIRECT($C$4&"!E7"),"") ->  | H14: =IFERROR(INDIRECT($C$4&"!F7"),"") ->  | I14: =IFERROR(INDIRECT($C$4&"!G7"),"") ->  | J14: =IFERROR(INDIRECT($C$4&"!H7"),"") ->  | K14: =IFERROR(INDIRECT($C$4&"!I7"),"") ->  | L14: =IFERROR(INDIRECT($C$4&"!J7"),"") ->  | M14: =IFERROR(INDIRECT($C$4&"!K7"),"") ->  | N14: =IFERROR(INDIRECT($C$4&"!L7"),"") ->  | O14: =IFERROR(INDIRECT($C$4&"!M7"),"") ->  | P14: =IFERROR(INDIRECT($C$4&"!N7"),"") ->  | Q14: =IFERROR(INDIRECT($C$4&"!O7"),"") ->  | R14: =IFERROR(INDIRECT($C$4&"!P7"),"") ->  | S14: =IFERROR(INDIRECT($C$4&"!Q7"),"") ->  | T14: =IFERROR(INDIRECT($C$4&"!R7"),"") ->  | U14: =IFERROR(INDIRECT($C$4&"!S7"),"") ->  | V14: =IFERROR(INDIRECT($C$4&"!T7"),"") ->  | W14: =IFERROR(INDIRECT($C$4&"!U7"),"") ->  | X14: =IFERROR(INDIRECT($C$4&"!V7"),"") ->  | Y14: =IFERROR(INDIRECT($C$4&"!W7"),"") ->  | Z14: =IFERROR(INDIRECT($C$4&"!X7"),"") ->  | AA14: =IFERROR(INDIRECT($C$4&"!Y7"),"") ->  | AC14: 6
C15: 7 | D15: =IFERROR(INDIRECT($C$4&"!B8"),"") ->  | E15: =IFERROR(INDIRECT($C$4&"!C8"),"") ->  | F15: =IFERROR(INDIRECT($C$4&"!D8"),"") ->  | G15: =IFERROR(INDIRECT($C$4&"!E8"),"") ->  | H15: =IFERROR(INDIRECT($C$4&"!F8"),"") ->  | I15: =IFERROR(INDIRECT($C$4&"!G8"),"") ->  | J15: =IFERROR(INDIRECT($C$4&"!H8"),"") ->  | K15: =IFERROR(INDIRECT($C$4&"!I8"),"") ->  | L15: =IFERROR(INDIRECT($C$4&"!J8"),"") ->  | M15: =IFERROR(INDIRECT($C$4&"!K8"),"") ->  | N15: =IFERROR(INDIRECT($C$4&"!L8"),"") ->  | O15: =IFERROR(INDIRECT($C$4&"!M8"),"") ->  | P15: =IFERROR(INDIRECT($C$4&"!N8"),"") ->  | Q15: =IFERROR(INDIRECT($C$4&"!O8"),"") ->  | R15: =IFERROR(INDIRECT($C$4&"!P8"),"") ->  | S15: =IFERROR(INDIRECT($C$4&"!Q8"),"") ->  | T15: =IFERROR(INDIRECT($C$4&"!R8"),"") ->  | U15: =IFERROR(INDIRECT($C$4&"!S8"),"") ->  | V15: =IFERROR(INDIRECT($C$4&"!T8"),"") ->  | W15: =IFERROR(INDIRECT($C$4&"!U8"),"") ->  | X15: =IFERROR(INDIRECT($C$4&"!V8"),"") ->  | Y15: =IFERROR(INDIRECT($C$4&"!W8"),"") ->  | Z15: =IFERROR(INDIRECT($C$4&"!X8"),"") ->  | AA15: =IFERROR(INDIRECT($C$4&"!Y8"),"") ->  | AC15: 7
C16: 8 | D16: =IFERROR(INDIRECT($C$4&"!B9"),"") ->  | E16: =IFERROR(INDIRECT($C$4&"!C9"),"") ->  | F16: =IFERROR(INDIRECT($C$4&"!D9"),"") ->  | G16: =IFERROR(INDIRECT($C$4&"!E9"),"") ->  | H16: =IFERROR(INDIRECT($C$4&"!F9"),"") ->  | I16: =IFERROR(INDIRECT($C$4&"!G9"),"") ->  | J16: =IFERROR(INDIRECT($C$4&"!H9"),"") ->  | K16: =IFERROR(INDIRECT($C$4&"!I9"),"") ->  | L16: =IFERROR(INDIRECT($C$4&"!J9"),"") ->  | M16: =IFERROR(INDIRECT($C$4&"!K9"),"") ->  | N16: =IFERROR(INDIRECT($C$4&"!L9"),"") ->  | O16: =IFERROR(INDIRECT($C$4&"!M9"),"") ->  | P16: =IFERROR(INDIRECT($C$4&"!N9"),"") ->  | Q16: =IFERROR(INDIRECT($C$4&"!O9"),"") ->  | R16: =IFERROR(INDIRECT($C$4&"!P9"),"") ->  | S16: =IFERROR(INDIRECT($C$4&"!Q9"),"") ->  | T16: =IFERROR(INDIRECT($C$4&"!R9"),"") ->  | U16: =IFERROR(INDIRECT($C$4&"!S9"),"") ->  | V16: =IFERROR(INDIRECT($C$4&"!T9"),"") ->  | W16: =IFERROR(INDIRECT($C$4&"!U9"),"") ->  | X16: =IFERROR(INDIRECT($C$4&"!V9"),"") ->  | Y16: =IFERROR(INDIRECT($C$4&"!W9"),"") ->  | Z16: =IFERROR(INDIRECT($C$4&"!X9"),"") ->  | AA16: =IFERROR(INDIRECT($C$4&"!Y9"),"") ->  | AC16: 8
C17: 9 | D17: =IFERROR(INDIRECT($C$4&"!B10"),"") ->  | E17: =IFERROR(INDIRECT($C$4&"!C10"),"") ->  | F17: =IFERROR(INDIRECT($C$4&"!D10"),"") ->  | G17: =IFERROR(INDIRECT($C$4&"!E10"),"") ->  | H17: =IFERROR(INDIRECT($C$4&"!F10"),"") ->  | I17: =IFERROR(INDIRECT($C$4&"!G10"),"") ->  | J17: =IFERROR(INDIRECT($C$4&"!H10"),"") ->  | K17: =IFERROR(INDIRECT($C$4&"!I10"),"") ->  | L17: =IFERROR(INDIRECT($C$4&"!J10"),"") ->  | M17: =IFERROR(INDIRECT($C$4&"!K10"),"") ->  | N17: =IFERROR(INDIRECT($C$4&"!L10"),"") ->  | O17: =IFERROR(INDIRECT($C$4&"!M10"),"") ->  | P17: =IFERROR(INDIRECT($C$4&"!N10"),"") ->  | Q17: =IFERROR(INDIRECT($C$4&"!O10"),"") ->  | R17: =IFERROR(INDIRECT($C$4&"!P10"),"") ->  | S17: =IFERROR(INDIRECT($C$4&"!Q10"),"") ->  | T17: =IFERROR(INDIRECT($C$4&"!R10"),"") ->  | U17: =IFERROR(INDIRECT($C$4&"!S10"),"") ->  | V17: =IFERROR(INDIRECT($C$4&"!T10"),"") ->  | W17: =IFERROR(INDIRECT($C$4&"!U10"),"") ->  | X17: =IFERROR(INDIRECT($C$4&"!V10"),"") ->  | Y17: =IFERROR(INDIRECT($C$4&"!W10"),"") ->  | Z17: =IFERROR(INDIRECT($C$4&"!X10"),"") ->  | AA17: =IFERROR(INDIRECT($C$4&"!Y10"),"") ->  | AC17: 9
C18: 10 | D18: =IFERROR(INDIRECT($C$4&"!B11"),"") ->  | E18: =IFERROR(INDIRECT($C$4&"!C11"),"") ->  | F18: =IFERROR(INDIRECT($C$4&"!D11"),"") ->  | G18: =IFERROR(INDIRECT($C$4&"!E11"),"") ->  | H18: =IFERROR(INDIRECT($C$4&"!F11"),"") ->  | I18: =IFERROR(INDIRECT($C$4&"!G11"),"") ->  | J18: =IFERROR(INDIRECT($C$4&"!H11"),"") ->  | K18: =IFERROR(INDIRECT($C$4&"!I11"),"") ->  | L18: =IFERROR(INDIRECT($C$4&"!J11"),"") ->  | M18: =IFERROR(INDIRECT($C$4&"!K11"),"") ->  | N18: =IFERROR(INDIRECT($C$4&"!L11"),"") ->  | O18: =IFERROR(INDIRECT($C$4&"!M11"),"") ->  | P18: =IFERROR(INDIRECT($C$4&"!N11"),"") ->  | Q18: =IFERROR(INDIRECT($C$4&"!O11"),"") ->  | R18: =IFERROR(INDIRECT($C$4&"!P11"),"") ->  | S18: =IFERROR(INDIRECT($C$4&"!Q11"),"") ->  | T18: =IFERROR(INDIRECT($C$4&"!R11"),"") ->  | U18: =IFERROR(INDIRECT($C$4&"!S11"),"") ->  | V18: =IFERROR(INDIRECT($C$4&"!T11"),"") ->  | W18: =IFERROR(INDIRECT($C$4&"!U11"),"") ->  | X18: =IFERROR(INDIRECT($C$4&"!V11"),"") ->  | Y18: =IFERROR(INDIRECT($C$4&"!W11"),"") ->  | Z18: =IFERROR(INDIRECT($C$4&"!X11"),"") ->  | AA18: =IFERROR(INDIRECT($C$4&"!Y11"),"") ->  | AC18: 10
C19: 11 | D19: =IFERROR(INDIRECT($C$4&"!B12"),"") ->  | E19: =IFERROR(INDIRECT($C$4&"!C12"),"") ->  | F19: =IFERROR(INDIRECT($C$4&"!D12"),"") ->  | G19: =IFERROR(INDIRECT($C$4&"!E12"),"") ->  | H19: =IFERROR(INDIRECT($C$4&"!F12"),"") ->  | I19: =IFERROR(INDIRECT($C$4&"!G12"),"") ->  | J19: =IFERROR(INDIRECT($C$4&"!H12"),"") ->  | K19: =IFERROR(INDIRECT($C$4&"!I12"),"") ->  | L19: =IFERROR(INDIRECT($C$4&"!J12"),"") ->  | M19: =IFERROR(INDIRECT($C$4&"!K12"),"") ->  | N19: =IFERROR(INDIRECT($C$4&"!L12"),"") ->  | O19: =IFERROR(INDIRECT($C$4&"!M12"),"") ->  | P19: =IFERROR(INDIRECT($C$4&"!N12"),"") ->  | Q19: =IFERROR(INDIRECT($C$4&"!O12"),"") ->  | R19: =IFERROR(INDIRECT($C$4&"!P12"),"") ->  | S19: =IFERROR(INDIRECT($C$4&"!Q12"),"") ->  | T19: =IFERROR(INDIRECT($C$4&"!R12"),"") ->  | U19: =IFERROR(INDIRECT($C$4&"!S12"),"") ->  | V19: =IFERROR(INDIRECT($C$4&"!T12"),"") ->  | W19: =IFERROR(INDIRECT($C$4&"!U12"),"") ->  | X19: =IFERROR(INDIRECT($C$4&"!V12"),"") ->  | Y19: =IFERROR(INDIRECT($C$4&"!W12"),"") ->  | Z19: =IFERROR(INDIRECT($C$4&"!X12"),"") ->  | AA19: =IFERROR(INDIRECT($C$4&"!Y12"),"") ->  | AC19: 11
C20: 12 | D20: =IFERROR(INDIRECT($C$4&"!B13"),"") ->  | E20: =IFERROR(INDIRECT($C$4&"!C13"),"") ->  | F20: =IFERROR(INDIRECT($C$4&"!D13"),"") ->  | G20: =IFERROR(INDIRECT($C$4&"!E13"),"") ->  | H20: =IFERROR(INDIRECT($C$4&"!F13"),"") ->  | I20: =IFERROR(INDIRECT($C$4&"!G13"),"") ->  | J20: =IFERROR(INDIRECT($C$4&"!H13"),"") ->  | K20: =IFERROR(INDIRECT($C$4&"!I13"),"") ->  | L20: =IFERROR(INDIRECT($C$4&"!J13"),"") ->  | M20: =IFERROR(INDIRECT($C$4&"!K13"),"") ->  | N20: =IFERROR(INDIRECT($C$4&"!L13"),"") ->  | O20: =IFERROR(INDIRECT($C$4&"!M13"),"") ->  | P20: =IFERROR(INDIRECT($C$4&"!N13"),"") ->  | Q20: =IFERROR(INDIRECT($C$4&"!O13"),"") ->  | R20: =IFERROR(INDIRECT($C$4&"!P13"),"") ->  | S20: =IFERROR(INDIRECT($C$4&"!Q13"),"") ->  | T20: =IFERROR(INDIRECT($C$4&"!R13"),"") ->  | U20: =IFERROR(INDIRECT($C$4&"!S13"),"") ->  | V20: =IFERROR(INDIRECT($C$4&"!T13"),"") ->  | W20: =IFERROR(INDIRECT($C$4&"!U13"),"") ->  | X20: =IFERROR(INDIRECT($C$4&"!V13"),"") ->  | Y20: =IFERROR(INDIRECT($C$4&"!W13"),"") ->  | Z20: =IFERROR(INDIRECT($C$4&"!X13"),"") ->  | AA20: =IFERROR(INDIRECT($C$4&"!Y13"),"") ->  | AC20: 12
C21: 1 | D21: =IFERROR(INDIRECT($C$4&"!B14"),"") ->  | E21: =IFERROR(INDIRECT($C$4&"!C14"),"") ->  | F21: =IFERROR(INDIRECT($C$4&"!D14"),"") ->  | G21: =IFERROR(INDIRECT($C$4&"!E14"),"") ->  | H21: =IFERROR(INDIRECT($C$4&"!F14"),"") ->  | I21: =IFERROR(INDIRECT($C$4&"!G14"),"") ->  | J21: =IFERROR(INDIRECT($C$4&"!H14"),"") ->  | K21: =IFERROR(INDIRECT($C$4&"!I14"),"") ->  | L21: =IFERROR(INDIRECT($C$4&"!J14"),"") ->  | M21: =IFERROR(INDIRECT($C$4&"!K14"),"") ->  | N21: =IFERROR(INDIRECT($C$4&"!L14"),"") ->  | O21: =IFERROR(INDIRECT($C$4&"!M14"),"") ->  | P21: =IFERROR(INDIRECT($C$4&"!N14"),"") ->  | Q21: =IFERROR(INDIRECT($C$4&"!O14"),"") ->  | R21: =IFERROR(INDIRECT($C$4&"!P14"),"") ->  | S21: =IFERROR(INDIRECT($C$4&"!Q14"),"") ->  | T21: =IFERROR(INDIRECT($C$4&"!R14"),"") ->  | U21: =IFERROR(INDIRECT($C$4&"!S14"),"") ->  | V21: =IFERROR(INDIRECT($C$4&"!T14"),"") ->  | W21: =IFERROR(INDIRECT($C$4&"!U14"),"") ->  | X21: =IFERROR(INDIRECT($C$4&"!V14"),"") ->  | Y21: =IFERROR(INDIRECT($C$4&"!W14"),"") ->  | Z21: =IFERROR(INDIRECT($C$4&"!X14"),"") ->  | AA21: =IFERROR(INDIRECT($C$4&"!Y14"),"") ->  | AC21: 1
C22: 2 | D22: =IFERROR(INDIRECT($C$4&"!B15"),"") ->  | E22: =IFERROR(INDIRECT($C$4&"!C15"),"") ->  | F22: =IFERROR(INDIRECT($C$4&"!D15"),"") ->  | G22: =IFERROR(INDIRECT($C$4&"!E15"),"") ->  | H22: =IFERROR(INDIRECT($C$4&"!F15"),"") ->  | I22: =IFERROR(INDIRECT($C$4&"!G15"),"") ->  | J22: =IFERROR(INDIRECT($C$4&"!H15"),"") ->  | K22: =IFERROR(INDIRECT($C$4&"!I15"),"") ->  | L22: =IFERROR(INDIRECT($C$4&"!J15"),"") ->  | M22: =IFERROR(INDIRECT($C$4&"!K15"),"") ->  | N22: =IFERROR(INDIRECT($C$4&"!L15"),"") ->  | O22: =IFERROR(INDIRECT($C$4&"!M15"),"") ->  | P22: =IFERROR(INDIRECT($C$4&"!N15"),"") ->  | Q22: =IFERROR(INDIRECT($C$4&"!O15"),"") ->  | R22: =IFERROR(INDIRECT($C$4&"!P15"),"") ->  | S22: =IFERROR(INDIRECT($C$4&"!Q15"),"") ->  | T22: =IFERROR(INDIRECT($C$4&"!R15"),"") ->  | U22: =IFERROR(INDIRECT($C$4&"!S15"),"") ->  | V22: =IFERROR(INDIRECT($C$4&"!T15"),"") ->  | W22: =IFERROR(INDIRECT($C$4&"!U15"),"") ->  | X22: =IFERROR(INDIRECT($C$4&"!V15"),"") ->  | Y22: =IFERROR(INDIRECT($C$4&"!W15"),"") ->  | Z22: =IFERROR(INDIRECT($C$4&"!X15"),"") ->  | AA22: =IFERROR(INDIRECT($C$4&"!Y15"),"") ->  | AC22: 2
C23: 3 | D23: =IFERROR(INDIRECT($C$4&"!B16"),"") ->  | E23: =IFERROR(INDIRECT($C$4&"!C16"),"") ->  | F23: =IFERROR(INDIRECT($C$4&"!D16"),"") ->  | G23: =IFERROR(INDIRECT($C$4&"!E16"),"") ->  | H23: =IFERROR(INDIRECT($C$4&"!F16"),"") ->  | I23: =IFERROR(INDIRECT($C$4&"!G16"),"") ->  | J23: =IFERROR(INDIRECT($C$4&"!H16"),"") ->  | K23: =IFERROR(INDIRECT($C$4&"!I16"),"") ->  | L23: =IFERROR(INDIRECT($C$4&"!J16"),"") ->  | M23: =IFERROR(INDIRECT($C$4&"!K16"),"") ->  | N23: =IFERROR(INDIRECT($C$4&"!L16"),"") ->  | O23: =IFERROR(INDIRECT($C$4&"!M16"),"") ->  | P23: =IFERROR(INDIRECT($C$4&"!N16"),"") ->  | Q23: =IFERROR(INDIRECT($C$4&"!O16"),"") ->  | R23: =IFERROR(INDIRECT($C$4&"!P16"),"") ->  | S23: =IFERROR(INDIRECT($C$4&"!Q16"),"") ->  | T23: =IFERROR(INDIRECT($C$4&"!R16"),"") ->  | U23: =IFERROR(INDIRECT($C$4&"!S16"),"") ->  | V23: =IFERROR(INDIRECT($C$4&"!T16"),"") ->  | W23: =IFERROR(INDIRECT($C$4&"!U16"),"") ->  | X23: =IFERROR(INDIRECT($C$4&"!V16"),"") ->  | Y23: =IFERROR(INDIRECT($C$4&"!W16"),"") ->  | Z23: =IFERROR(INDIRECT($C$4&"!X16"),"") ->  | AA23: =IFERROR(INDIRECT($C$4&"!Y16"),"") ->  | AC23: 3
D25: 共通 | E25: 暖房設計外気温度 | G25: 設備設計時に最大暖房負荷計算を行った外気温度(JIS B8613のth100に相当) | P25: Td | Q25: -5 | R25: ℃ | T25: 定格条件 【外気温度】 | V25: 冷却 | W25: 35℃ | Y25: 定格条件 【冷温水温度】 | AA25: 冷却 | AB25: 入口温度 | AC25: 12℃ | AD25: 加熱 | AE25: 入口温度 | AF25: 40℃
V26: 加熱 | W26: 7℃ | AB26: 出口温度 | AC26: 7℃ | AE26: 出口温度 | AF26: 45℃
D28: 設備導入前 | Q28: 前1 | R28: 前2 | S28: 前3
E29: 設計加熱能力 | G29: 最大暖房負荷に対して選定した空冷HPチラーの暖房能力(原則、最大空調負荷に等しい) | P29: Φwd | Q29: 150 | T29: kW
E30: 定格冷却能力 | I30: 空冷HPチラーの仕様を入力 | P30: Φco | Q30: 250 | T30: kW
E31: 定格冷却消費電力 | I31: 空冷HPチラーの仕様を入力 | P31: Pco | Q31: 71 | T31: kW
E32: 定格冷却COP | I32: 自動計算 | P32: σco | Q32: =IFERROR(Q$30/Q$31,"") -> 3.521126761 | R32: =IFERROR(R$30/R$31,"") ->  | S32: =IFERROR(S$30/S$31,"") ->  | T32: σco＝Φco／Pco
E33: 定格加熱能力 | I33: 空冷HPチラーの仕様を入力 | P33: Φwo | Q33: 250 | T33: kW
E34: 定格加熱消費電力 | I34: 空冷HPチラーの仕様を入力 | P34: Pwo | Q34: 69 | T34: kW
E35: 定格加熱COP | I35: 自動計算 | P35: σwo | Q35: =IFERROR(Q$33/Q$34,"") -> 3.623188406 | R35: =IFERROR(R$33/R$34,"") ->  | S35: =IFERROR(S$33/S$34,"") ->  | T35: σwo＝Φwo／Pwo
E36: 冷温水ポンプモータ定格出力 | I36: 空冷HPチラーの仕様を入力 | P36: Pp2 | Q36: 3.7 | T36: kW
D42: 設備導入後 | Q42: 後1 | R42: 後2 | S42: 後3
E43: 設計加熱能力 | G43: 最大暖房負荷に対して選定した空冷HPチラーの暖房能力(原則、最大空調負荷に等しい) | P43: Φwd | T43: kW
E44: 定格冷却能力 | I44: 空冷HPチラーの仕様を入力 | P44: Φco | T44: kW
E45: 定格冷却消費電力 | I45: 空冷HPチラーの仕様を入力 | P45: Pco | T45: kW
E46: 定格冷却COP | I46: 自動計算 | P46: σco | Q46: =IFERROR(Q$44/Q$45,"") ->  | R46: =IFERROR(R$44/R$45,"") ->  | S46: =IFERROR(S$44/S$45,"") ->  | T46: σco＝Φco／Pco
E47: 定格加熱能力 | I47: 空冷HPチラーの仕様を入力 | P47: Φwo | T47: kW
E48: 定格加熱消費電力 | I48: 空冷HPチラーの仕様を入力 | P48: Pwo | T48: kW
E49: 定格加熱COP | I49: 自動計算 | P49: σwo | Q49: =IFERROR(Q$47/Q$48,"") ->  | R49: =IFERROR(R$47/R$48,"") ->  | S49: =IFERROR(S$47/S$48,"") ->  | T49: σwo＝Φwo／Pwo
E50: 冷温水ポンプモータ定格出力 | I50: 空冷HPチラーの仕様を入力 | P50: Pp2 | T50: kW
C56: 設備導入前年間電力使用量[kWh]
D57: 冷却(Ec) | F57: 加熱(Ew) | H57: 合計(Ecw)
D58: =IFERROR($F$74+$M$74+$T$74,"") -> 0 | F58: =IFERROR($I$74+$P$74+$W$74,"") -> 0 | H58: =IFERROR($J$74+$Q$74+$X$74,"") -> 0
D60: 前1 | K60: 前2 | R60: 前3
C61: 月 期間 | D61: 主機(Ecc) | E61: 補機(Eaxc) | F61: 全体(Ec) | G61: 主機(Eww) | H61: 補機(Eaxw) | I61: 全体(Ew) | J61: 月合計 | K61: 主機(Ecc) | L61: 補機(Eaxc) | M61: 全体(Ec) | N61: 主機(Eww) | O61: 補機(Eaxw) | P61: 全体(Ew) | Q61: 月合計 | R61: 主機(Ecc) | S61: 補機(Eaxc) | T61: 全体(Ec) | U61: 主機(Eww) | V61: 補機(Eaxw) | W61: 全体(Ew) | X61: 月合計
C62: 4 | D62: =IF($C$7="---","",IFERROR($AX149,"")) ->  | E62: =IF($C$7="---","",IFERROR($AY149,"")) ->  | F62: =IF($C$7="---","",IFERROR($AZ149,"")) ->  | G62: =IF($C$7="---","",IFERROR($AX170,"")) ->  | H62: =IF($C$7="---","",IFERROR($AY170,"")) ->  | I62: =IF($C$7="---","",IFERROR($AZ170,"")) ->  | J62: =IFERROR(SUM(F62+I62),"") ->  | K62: =IF($C$7="---","",IFERROR($BA149,"")) ->  | L62: =IF($C$7="---","",IFERROR($BB149,"")) ->  | M62: =IF($C$7="---","",IFERROR($BC149,"")) ->  | N62: =IF($C$7="---","",IFERROR($BA170,"")) ->  | O62: =IF($C$7="---","",IFERROR($BB170,"")) ->  | P62: =IF($C$7="---","",IFERROR($BC170,"")) ->  | Q62: =IFERROR(SUM(M62+P62),"") ->  | R62: =IF($C$7="---","",IFERROR($BD149,"")) ->  | S62: =IF($C$7="---","",IFERROR($BE149,"")) ->  | T62: =IF($C$7="---","",IFERROR($BF149,"")) ->  | U62: =IF($C$7="---","",IFERROR($BD170,"")) ->  | V62: =IF($C$7="---","",IFERROR($BE170,"")) ->  | W62: =IF($C$7="---","",IFERROR($BF170,"")) ->  | X62: =IFERROR(SUM(T62+W62),"") -> 
C63: 5 | D63: =IF($C$7="---","",IFERROR($AX150,"")) ->  | E63: =IF($C$7="---","",IFERROR($AY150,"")) ->  | F63: =IF($C$7="---","",IFERROR($AZ150,"")) ->  | G63: =IF($C$7="---","",IFERROR($AX171,"")) ->  | H63: =IF($C$7="---","",IFERROR($AY171,"")) ->  | I63: =IF($C$7="---","",IFERROR($AZ171,"")) ->  | J63: =IFERROR(SUM(F63+I63),"") ->  | K63: =IF($C$7="---","",IFERROR($BA150,"")) ->  | L63: =IF($C$7="---","",IFERROR($BB150,"")) ->  | M63: =IF($C$7="---","",IFERROR($BC150,"")) ->  | N63: =IF($C$7="---","",IFERROR($BA171,"")) ->  | O63: =IF($C$7="---","",IFERROR($BB171,"")) ->  | P63: =IF($C$7="---","",IFERROR($BC171,"")) ->  | Q63: =IFERROR(SUM(M63+P63),"") ->  | R63: =IF($C$7="---","",IFERROR($BD150,"")) ->  | S63: =IF($C$7="---","",IFERROR($BE150,"")) ->  | T63: =IF($C$7="---","",IFERROR($BF150,"")) ->  | U63: =IF($C$7="---","",IFERROR($BD171,"")) ->  | V63: =IF($C$7="---","",IFERROR($BE171,"")) ->  | W63: =IF($C$7="---","",IFERROR($BF171,"")) ->  | X63: =IFERROR(SUM(T63+W63),"") -> 
C64: 6
C65: 7
C66: 8
C67: 9
C68: 10
C69: 11
C70: 12 | J70: =IFERROR(SUM(F70+I70),"") ->  | Q70: =IFERROR(SUM(M70+P70),"") ->  | X70: =IFERROR(SUM(T70+W70),"") -> 
C71: 1
C72: 2 | J72: =IFERROR(SUM(F72+I72),"") ->  | Q72: =IFERROR(SUM(M72+P72),"") -> 
C73: 3
C74: 合計 | D74: =IFERROR(SUM($D$62:$D$73),"") -> 0 | E74: =IFERROR(SUM($E$62:$E$73),"") -> 0 | F74: =IFERROR(SUM(F$62:F$73),"") -> 0 | G74: 0 | H74: 0 | I74: 0 | J74: 0 | K74: 0 | L74: 0 | M74: 0 | N74: 0 | O74: 0 | P74: 0 | Q74: 0 | R74: 0 | S74: 0 | T74: 0 | U74: 0 | V74: 0 | W74: 0 | X74: 0
C77: 設備導入後年間電力使用量[kWh]
D78: 冷却(Ec) | F78: 加熱(Ew) | H78: 合計(Ecw)
D79: =IFERROR($F$95+$M$95+$T$95,"") -> 0 | F79: =IFERROR($I$95+$P$95+$W$95,"") -> 0 | H79: =IFERROR($J$95+$Q$95+$X$95,"") -> 0
D81: 後1 | K81: 後2 | R81: 後3
C82: 月 期間 | D82: 主機(Ecc) | E82: 補機(Eaxc) | F82: 全体(Ec) | G82: 主機(Eww) | H82: 補機(Eaxw) | I82: 全体(Ew) | J82: 月合計 | K82: 主機(Ecc) | L82: 補機(Eaxc) | M82: 全体(Ec) | N82: 主機(Eww) | O82: 補機(Eaxw) | P82: 全体(Ew) | Q82: 月合計 | R82: 主機(Ecc) | S82: 補機(Eaxc) | T82: 全体(Ec) | U82: 主機(Eww) | V82: 補機(Eaxw) | W82: 全体(Ew) | X82: 月合計
C83: 4 | D83: =IF($C$7="---","",IFERROR($BH149,"")) ->  | E83: =IF($C$7="---","",IFERROR($BI149,"")) ->  | F83: =IF($C$7="---","",IFERROR($BJ149,"")) ->  | G83: =IF($C$7="---","",IFERROR($BH170,"")) ->  | H83: =IF($C$7="---","",IFERROR($BI170,"")) ->  | I83: =IF($C$7="---","",IFERROR($BJ170,"")) ->  | J83: =IFERROR(SUM(F83+I83),"") ->  | K83: =IF($C$7="---","",IFERROR($BK149,"")) ->  | L83: =IF($C$7="---","",IFERROR($BL149,"")) ->  | M83: =IF($C$7="---","",IFERROR($BM149,"")) ->  | N83: =IF($C$7="---","",IFERROR($BK170,"")) ->  | O83: =IF($C$7="---","",IFERROR($BL170,"")) ->  | P83: =IF($C$7="---","",IFERROR($BM170,"")) ->  | Q83: =IFERROR(SUM(M83+P83),"") ->  | R83: =IF($C$7="---","",IFERROR($BN149,"")) ->  | S83: =IF($C$7="---","",IFERROR($BO149,"")) ->  | T83: =IF($C$7="---","",IFERROR($BP149,"")) ->  | U83: =IF($C$7="---","",IFERROR($BN170,"")) ->  | V83: =IF($C$7="---","",IFERROR($BO170,"")) ->  | W83: =IF($C$7="---","",IFERROR($BP170,"")) ->  | X83: =IFERROR(SUM(T83+W83),"") -> 
C84: 5 | D84: =IF($C$7="---","",IFERROR($BH150,"")) ->  | E84: =IF($C$7="---","",IFERROR($BI150,"")) ->  | F84: =IF($C$7="---","",IFERROR($BJ150,"")) ->  | G84: =IF($C$7="---","",IFERROR($BH171,"")) ->  | H84: =IF($C$7="---","",IFERROR($BI171,"")) ->  | I84: =IF($C$7="---","",IFERROR($BJ171,"")) ->  | J84: =IFERROR(SUM(F84+I84),"") ->  | K84: =IF($C$7="---","",IFERROR($BK150,"")) ->  | L84: =IF($C$7="---","",IFERROR($BL150,"")) ->  | M84: =IF($C$7="---","",IFERROR($BM150,"")) ->  | N84: =IF($C$7="---","",IFERROR($BK171,"")) ->  | O84: =IF($C$7="---","",IFERROR($BL171,"")) ->  | P84: =IF($C$7="---","",IFERROR($BM171,"")) ->  | Q84: =IFERROR(SUM(M84+P84),"") ->  | R84: =IF($C$7="---","",IFERROR($BN150,"")) ->  | S84: =IF($C$7="---","",IFERROR($BO150,"")) ->  | T84: =IF($C$7="---","",IFERROR($BP150,"")) ->  | U84: =IF($C$7="---","",IFERROR($BN171,"")) ->  | V84: =IF($C$7="---","",IFERROR($BO171,"")) ->  | W84: =IF($C$7="---","",IFERROR($BP171,"")) ->  | X84: =IFERROR(SUM(T84+W84),"") -> 
C85: 6
C86: 7
C87: 8
C88: 9
C89: 10
C90: 11 | X90: =IFERROR(SUM(T90+W90),"") -> 
C91: 12 | J91: =IFERROR(SUM(F91+I91),"") ->  | Q91: =IFERROR(SUM(M91+P91),"") ->  | X91: =IFERROR(SUM(T91+W91),"") -> 
C92: 1
C93: 2
C94: 3 | J94: =IFERROR(SUM(F94+I94),"") -> 
C95: 合計 | D95: =IFERROR(SUM(D83:D94),"") -> 0 | E95: 0 | F95: 0 | G95: 0 | H95: 0 | I95: 0 | J95: 0 | K95: 0 | L95: 0 | M95: 0 | N95: 0 | O95: 0 | P95: 0 | Q95: 0 | R95: 0 | S95: 0 | T95: 0 | U95: 0 | V95: 0 | W95: 0 | X95: 0
C98: 作業表1(青色のセルを「24」、オレンジ色のセルを「19」として抽出）
D99: 時刻
C100: 月 | D100: 0 | E100: 1 | F100: 2 | G100: 3 | H100: 4 | I100: 5 | J100: 6 | K100: 7 | L100: 8 | M100: 9 | N100: 10 | O100: 11 | P100: 12 | Q100: 13 | R100: 14 | S100: 15 | T100: 16 | U100: 17 | V100: 18 | W100: 19 | X100: 20 | Y100: 21 | Z100: 22 | AA100: 23 | AB100: 月
C101: 4 | D101: =CELLCOLOR($D$12) -> -4142 | E101: =CELLCOLOR($E$12) -> -4142 | F101: =CELLCOLOR($F$12) -> -4142 | G101: =CELLCOLOR($G$12) -> -4142 | H101: =CELLCOLOR($H$12) -> -4142 | I101: =CELLCOLOR($I$12) -> -4142 | J101: =CELLCOLOR($J$12) -> -4142 | K101: =CELLCOLOR($K$12) -> -4142 | L101: =CELLCOLOR($L$12) -> -4142 | M101: =CELLCOLOR($M$12) -> -4142 | N101: =CELLCOLOR($N$12) -> -4142 | O101: =CELLCOLOR($O$12) -> -4142 | P101: =CELLCOLOR($P$12) -> -4142 | Q101: =CELLCOLOR($Q$12) -> -4142 | R101: =CELLCOLOR($R$12) -> -4142 | S101: =CELLCOLOR($S$12) -> -4142 | T101: =CELLCOLOR($T$12) -> -4142 | U101: =CELLCOLOR($U$12) -> -4142 | V101: =CELLCOLOR($V$12) -> -4142 | W101: =CELLCOLOR($W$12) -> -4142 | X101: =CELLCOLOR($X$12) -> -4142 | Y101: =CELLCOLOR($Y$12) -> -4142 | Z101: =CELLCOLOR($Z$12) -> -4142 | AA101: =CELLCOLOR($AA$12) -> -4142 | AB101: 4
C102: 5 | D102: =CELLCOLOR($D$13) -> -4142 | E102: =CELLCOLOR($E$13) -> -4142 | F102: =CELLCOLOR($F$13) -> -4142 | G102: =CELLCOLOR($G$13) -> -4142 | H102: =CELLCOLOR($H$13) -> -4142 | I102: =CELLCOLOR($I$13) -> -4142 | J102: =CELLCOLOR($J$13) -> -4142 | K102: =CELLCOLOR($K$13) -> -4142 | L102: =CELLCOLOR($L$13) -> -4142 | M102: =CELLCOLOR($M$13) -> -4142 | N102: =CELLCOLOR($N$13) -> -4142 | O102: =CELLCOLOR($O$13) -> -4142 | P102: =CELLCOLOR($P$13) -> -4142 | Q102: =CELLCOLOR($Q$13) -> -4142 | R102: =CELLCOLOR($R$13) -> -4142 | S102: =CELLCOLOR($S$13) -> -4142 | T102: =CELLCOLOR($T$13) -> -4142 | U102: =CELLCOLOR($U$13) -> -4142 | V102: =CELLCOLOR($V$13) -> -4142 | W102: =CELLCOLOR($W$13) -> -4142 | X102: =CELLCOLOR($X$13) -> -4142 | Y102: =CELLCOLOR($Y$13) -> -4142 | Z102: =CELLCOLOR($Z$13) -> -4142 | AA102: =CELLCOLOR($AA$13) -> -4142 | AB102: 5
C103: 6 | D103: =CELLCOLOR($D$14) -> -4142 | E103: =CELLCOLOR($E$14) -> -4142 | F103: =CELLCOLOR($F$14) -> -4142 | G103: =CELLCOLOR($G$14) -> -4142 | H103: =CELLCOLOR($H$14) -> -4142 | I103: =CELLCOLOR($I$14) -> -4142 | J103: =CELLCOLOR($J$14) -> -4142 | K103: =CELLCOLOR($K$14) -> -4142 | L103: =CELLCOLOR($L$14) -> -4142 | M103: =CELLCOLOR($M$14) -> -4142 | N103: =CELLCOLOR($N$14) -> -4142 | O103: =CELLCOLOR($O$14) -> -4142 | P103: =CELLCOLOR($P$14) -> -4142 | Q103: =CELLCOLOR($Q$14) -> -4142 | R103: =CELLCOLOR($R$14) -> -4142 | S103: =CELLCOLOR($S$14) -> -4142 | T103: =CELLCOLOR($T$14) -> -4142 | U103: =CELLCOLOR($U$14) -> -4142 | V103: =CELLCOLOR($V$14) -> -4142 | W103: =CELLCOLOR($W$14) -> -4142 | X103: =CELLCOLOR($X$14) -> -4142 | Y103: =CELLCOLOR($Y$14) -> -4142 | Z103: =CELLCOLOR($Z$14) -> -4142 | AA103: =CELLCOLOR($AA$14) -> -4142 | AB103: 6
C104: 7 | D104: =CELLCOLOR($D$15) -> -4142 | E104: =CELLCOLOR($E$15) -> -4142 | F104: =CELLCOLOR($F$15) -> -4142 | G104: =CELLCOLOR($G$15) -> -4142 | H104: =CELLCOLOR($H$15) -> -4142 | I104: =CELLCOLOR($I$15) -> -4142 | J104: =CELLCOLOR($J$15) -> -4142 | K104: =CELLCOLOR($K$15) -> -4142 | L104: =CELLCOLOR($L$15) -> -4142 | M104: =CELLCOLOR($M$15) -> -4142 | N104: =CELLCOLOR($N$15) -> -4142 | O104: =CELLCOLOR($O$15) -> -4142 | P104: =CELLCOLOR($P$15) -> -4142 | Q104: =CELLCOLOR($Q$15) -> -4142 | R104: =CELLCOLOR($R$15) -> -4142 | S104: =CELLCOLOR($S$15) -> -4142 | T104: =CELLCOLOR($T$15) -> -4142 | U104: =CELLCOLOR($U$15) -> -4142 | V104: =CELLCOLOR($V$15) -> -4142 | W104: =CELLCOLOR($W$15) -> -4142 | X104: =CELLCOLOR($X$15) -> -4142 | Y104: =CELLCOLOR($Y$15) -> -4142 | Z104: =CELLCOLOR($Z$15) -> -4142 | AA104: =CELLCOLOR($AA$15) -> -4142 | AB104: 7
C105: 8 | D105: =CELLCOLOR($D$16) -> -4142 | E105: =CELLCOLOR($E$16) -> -4142 | F105: =CELLCOLOR($F$16) -> -4142 | G105: =CELLCOLOR($G$16) -> -4142 | H105: =CELLCOLOR($H$16) -> -4142 | I105: =CELLCOLOR($I$16) -> -4142 | J105: =CELLCOLOR($J$16) -> -4142 | K105: =CELLCOLOR($K$16) -> -4142 | L105: =CELLCOLOR($L$16) -> -4142 | M105: =CELLCOLOR($M$16) -> -4142 | N105: =CELLCOLOR($N$16) -> -4142 | O105: =CELLCOLOR($O$16) -> -4142 | P105: =CELLCOLOR($P$16) -> -4142 | Q105: =CELLCOLOR($Q$16) -> -4142 | R105: =CELLCOLOR($R$16) -> -4142 | S105: =CELLCOLOR($S$16) -> -4142 | T105: =CELLCOLOR($T$16) -> -4142 | U105: =CELLCOLOR($U$16) -> -4142 | V105: =CELLCOLOR($V$16) -> -4142 | W105: =CELLCOLOR($W$16) -> -4142 | X105: =CELLCOLOR($X$16) -> -4142 | Y105: =CELLCOLOR($Y$16) -> -4142 | Z105: =CELLCOLOR($Z$16) -> -4142 | AA105: =CELLCOLOR($AA$16) -> -4142 | AB105: 8
C106: 9 | D106: =CELLCOLOR($D$17) -> -4142 | E106: =CELLCOLOR($E$17) -> -4142 | F106: =CELLCOLOR($F$17) -> -4142 | G106: =CELLCOLOR($G$17) -> -4142 | H106: =CELLCOLOR($H$17) -> -4142 | I106: =CELLCOLOR($I$17) -> -4142 | J106: =CELLCOLOR($J$17) -> -4142 | K106: =CELLCOLOR($K$17) -> -4142 | L106: =CELLCOLOR($L$17) -> -4142 | M106: =CELLCOLOR($M$17) -> -4142 | N106: =CELLCOLOR($N$17) -> -4142 | O106: =CELLCOLOR($O$17) -> -4142 | P106: =CELLCOLOR($P$17) -> -4142 | Q106: =CELLCOLOR($Q$17) -> -4142 | R106: =CELLCOLOR($R$17) -> -4142 | S106: =CELLCOLOR($S$17) -> -4142 | T106: =CELLCOLOR($T$17) -> -4142 | U106: =CELLCOLOR($U$17) -> -4142 | V106: =CELLCOLOR($V$17) -> -4142 | W106: =CELLCOLOR($W$17) -> -4142 | X106: =CELLCOLOR($X$17) -> -4142 | Y106: =CELLCOLOR($Y$17) -> -4142 | Z106: =CELLCOLOR($Z$17) -> -4142 | AA106: =CELLCOLOR($AA$17) -> -4142 | AB106: 9
C107: 10 | D107: =CELLCOLOR($D$18) -> -4142 | E107: =CELLCOLOR($E$18) -> -4142 | F107: =CELLCOLOR($F$18) -> -4142 | G107: =CELLCOLOR($G$18) -> -4142 | H107: =CELLCOLOR($H$18) -> -4142 | I107: =CELLCOLOR($I$18) -> -4142 | J107: =CELLCOLOR($J$18) -> -4142 | K107: =CELLCOLOR($K$18) -> -4142 | L107: =CELLCOLOR($L$18) -> -4142 | M107: =CELLCOLOR($M$18) -> -4142 | N107: =CELLCOLOR($N$18) -> -4142 | O107: =CELLCOLOR($O$18) -> -4142 | P107: =CELLCOLOR($P$18) -> -4142 | Q107: =CELLCOLOR($Q$18) -> -4142 | R107: =CELLCOLOR($R$18) -> -4142 | S107: =CELLCOLOR($S$18) -> -4142 | T107: =CELLCOLOR($T$18) -> -4142 | U107: =CELLCOLOR($U$18) -> -4142 | V107: =CELLCOLOR($V$18) -> -4142 | W107: =CELLCOLOR($W$18) -> -4142 | X107: =CELLCOLOR($X$18) -> -4142 | Y107: =CELLCOLOR($Y$18) -> -4142 | Z107: =CELLCOLOR($Z$18) -> -4142 | AA107: =CELLCOLOR($AA$18) -> -4142 | AB107: 10
C108: 11 | D108: =CELLCOLOR($D$19) -> -4142 | E108: =CELLCOLOR($E$19) -> -4142 | F108: =CELLCOLOR($F$19) -> -4142 | G108: =CELLCOLOR($G$19) -> -4142 | H108: =CELLCOLOR($H$19) -> -4142 | I108: =CELLCOLOR($I$19) -> -4142 | J108: =CELLCOLOR($J$19) -> -4142 | K108: =CELLCOLOR($K$19) -> -4142 | L108: =CELLCOLOR($L$19) -> -4142 | M108: =CELLCOLOR($M$19) -> -4142 | N108: =CELLCOLOR($N$19) -> -4142 | O108: =CELLCOLOR($O$19) -> -4142 | P108: =CELLCOLOR($P$19) -> -4142 | Q108: =CELLCOLOR($Q$19) -> -4142 | R108: =CELLCOLOR($R$19) -> -4142 | S108: =CELLCOLOR($S$19) -> -4142 | T108: =CELLCOLOR($T$19) -> -4142 | U108: =CELLCOLOR($U$19) -> -4142 | V108: =CELLCOLOR($V$19) -> -4142 | W108: =CELLCOLOR($W$19) -> -4142 | X108: =CELLCOLOR($X$19) -> -4142 | Y108: =CELLCOLOR($Y$19) -> -4142 | Z108: =CELLCOLOR($Z$19) -> -4142 | AA108: =CELLCOLOR($AA$19) -> -4142 | AB108: 11
C109: 12 | D109: =CELLCOLOR($D$20) -> -4142 | E109: =CELLCOLOR($E$20) -> -4142 | F109: =CELLCOLOR($F$20) -> -4142 | G109: =CELLCOLOR($G$20) -> -4142 | H109: =CELLCOLOR($H$20) -> -4142 | I109: =CELLCOLOR($I$20) -> -4142 | J109: =CELLCOLOR($J$20) -> -4142 | K109: =CELLCOLOR($K$20) -> -4142 | L109: =CELLCOLOR($L$20) -> -4142 | M109: =CELLCOLOR($M$20) -> -4142 | N109: =CELLCOLOR($N$20) -> -4142 | O109: =CELLCOLOR($O$20) -> -4142 | P109: =CELLCOLOR($P$20) -> -4142 | Q109: =CELLCOLOR($Q$20) -> -4142 | R109: =CELLCOLOR($R$20) -> -4142 | S109: =CELLCOLOR($S$20) -> -4142 | T109: =CELLCOLOR($T$20) -> -4142 | U109: =CELLCOLOR($U$20) -> -4142 | V109: =CELLCOLOR($V$20) -> -4142 | W109: =CELLCOLOR($W$20) -> -4142 | X109: =CELLCOLOR($X$20) -> -4142 | Y109: =CELLCOLOR($Y$20) -> -4142 | Z109: =CELLCOLOR($Z$20) -> -4142 | AA109: =CELLCOLOR($AA$20) -> -4142 | AB109: 12
C110: 1 | D110: =CELLCOLOR($D$21) -> -4142 | E110: =CELLCOLOR($E$21) -> -4142 | F110: =CELLCOLOR($F$21) -> -4142 | G110: =CELLCOLOR($G$21) -> -4142 | H110: =CELLCOLOR($H$21) -> -4142 | I110: =CELLCOLOR($I$21) -> -4142 | J110: =CELLCOLOR($J$21) -> -4142 | K110: =CELLCOLOR($K$21) -> -4142 | L110: =CELLCOLOR($L$21) -> -4142 | M110: =CELLCOLOR($M$21) -> -4142 | N110: =CELLCOLOR($N$21) -> -4142 | O110: =CELLCOLOR($O$21) -> -4142 | P110: =CELLCOLOR($P$21) -> -4142 | Q110: =CELLCOLOR($Q$21) -> -4142 | R110: =CELLCOLOR($R$21) -> -4142 | S110: =CELLCOLOR($S$21) -> -4142 | T110: =CELLCOLOR($T$21) -> -4142 | U110: =CELLCOLOR($U$21) -> -4142 | V110: =CELLCOLOR($V$21) -> -4142 | W110: =CELLCOLOR($W$21) -> -4142 | X110: =CELLCOLOR($X$21) -> -4142 | Y110: =CELLCOLOR($Y$21) -> -4142 | Z110: =CELLCOLOR($Z$21) -> -4142 | AA110: =CELLCOLOR($AA$21) -> -4142 | AB110: 1
C111: 2 | D111: =CELLCOLOR($D$22) -> -4142 | E111: =CELLCOLOR($E$22) -> -4142 | F111: =CELLCOLOR($F$22) -> -4142 | G111: =CELLCOLOR($G$22) -> -4142 | H111: =CELLCOLOR($H$22) -> -4142 | I111: =CELLCOLOR($I$22) -> -4142 | J111: =CELLCOLOR($J$22) -> -4142 | K111: =CELLCOLOR($K$22) -> -4142 | L111: =CELLCOLOR($L$22) -> -4142 | M111: =CELLCOLOR($M$22) -> -4142 | N111: =CELLCOLOR($N$22) -> -4142 | O111: =CELLCOLOR($O$22) -> -4142 | P111: =CELLCOLOR($P$22) -> -4142 | Q111: =CELLCOLOR($Q$22) -> -4142 | R111: =CELLCOLOR($R$22) -> -4142 | S111: =CELLCOLOR($S$22) -> -4142 | T111: =CELLCOLOR($T$22) -> -4142 | U111: =CELLCOLOR($U$22) -> -4142 | V111: =CELLCOLOR($V$22) -> -4142 | W111: =CELLCOLOR($W$22) -> -4142 | X111: =CELLCOLOR($X$22) -> -4142 | Y111: =CELLCOLOR($Y$22) -> -4142 | Z111: =CELLCOLOR($Z$22) -> -4142 | AA111: =CELLCOLOR($AA$22) -> -4142 | AB111: 2
C112: 3 | D112: =CELLCOLOR($D$23) -> -4142 | E112: =CELLCOLOR($E$23) -> -4142 | F112: =CELLCOLOR($F$23) -> -4142 | G112: =CELLCOLOR($G$23) -> -4142 | H112: =CELLCOLOR($H$23) -> -4142 | I112: =CELLCOLOR($I$23) -> -4142 | J112: =CELLCOLOR($J$23) -> -4142 | K112: =CELLCOLOR($K$23) -> -4142 | L112: =CELLCOLOR($L$23) -> -4142 | M112: =CELLCOLOR($M$23) -> -4142 | N112: =CELLCOLOR($N$23) -> -4142 | O112: =CELLCOLOR($O$23) -> -4142 | P112: =CELLCOLOR($P$23) -> -4142 | Q112: =CELLCOLOR($Q$23) -> -4142 | R112: =CELLCOLOR($R$23) -> -4142 | S112: =CELLCOLOR($S$23) -> -4142 | T112: =CELLCOLOR($T$23) -> -4142 | U112: =CELLCOLOR($U$23) -> -4142 | V112: =CELLCOLOR($V$23) -> -4142 | W112: =CELLCOLOR($W$23) -> -4142 | X112: =CELLCOLOR($X$23) -> -4142 | Y112: =CELLCOLOR($Y$23) -> -4142 | Z112: =CELLCOLOR($Z$23) -> -4142 | AA112: =CELLCOLOR($AA$23) -> -4142 | AB112: 3
C114: 作業表2-1(冷却) | E114: ●月▲時の平均気温(四捨五入で表示）
D115: 時刻
C116: 月 | D116: 0 | E116: 1 | F116: 2 | G116: 3 | H116: 4 | I116: 5 | J116: 6 | K116: 7 | L116: 8 | M116: 9 | N116: 10 | O116: 11 | P116: 12 | Q116: 13 | R116: 14 | S116: 15 | T116: 16 | U116: 17 | V116: 18 | W116: 19 | X116: 20 | Y116: 21 | Z116: 22 | AA116: 23 | AB116: 月
C117: 4 | D117: =IF($D$101=24,ROUND($D$12,0),"")&"" ->  | E117: =IF($E$101=24,ROUND($E$12,0),"")&"" ->  | F117: =IF($F$101=24,ROUND($F$12,0),"")&"" ->  | G117: =IF($G$101=24,ROUND($G$12,0),"")&"" ->  | H117: =IF($H$101=24,ROUND($H$12,0),"")&"" ->  | I117: =IF($I$101=24,ROUND($I$12,0),"")&"" ->  | J117: =IF($J$101=24,ROUND($J$12,0),"")&"" ->  | K117: =IF($K$101=24,ROUND($K$12,0),"")&"" ->  | L117: =IF($L$101=24,ROUND($L$12,0),"")&"" ->  | M117: =IF($M$101=24,ROUND($M$12,0),"")&"" ->  | N117: =IF($N$101=24,ROUND($N$12,0),"")&"" ->  | O117: =IF($O$101=24,ROUND($O$12,0),"")&"" ->  | P117: =IF($P$101=24,ROUND($P$12,0),"")&"" ->  | Q117: =IF($Q$101=24,ROUND($Q$12,0),"")&"" ->  | R117: =IF($R$101=24,ROUND($R$12,0),"")&"" ->  | S117: =IF($S$101=24,ROUND($S$12,0),"")&"" ->  | T117: =IF($T$101=24,ROUND($T$12,0),"")&"" ->  | U117: =IF($U$101=24,ROUND($U$12,0),"")&"" ->  | V117: =IF($V$101=24,ROUND($V$12,0),"")&"" ->  | W117: =IF($W$101=24,ROUND($W$12,0),"")&"" ->  | X117: =IF($X$101=24,ROUND($X$12,0),"")&"" ->  | Y117: =IF($Y$101=24,ROUND($Y$12,0),"")&"" ->  | Z117: =IF($Z$101=24,ROUND($Z$12,0),"")&"" ->  | AA117: =IF($AA$101=24,ROUND($AA$12,0),"")&"" ->  | AB117: 4
C118: 5 | D118: =IF($D$102=24,ROUND($D$13,0),"")&"" ->  | E118: =IF($E$102=24,ROUND($E$13,0),"")&"" ->  | F118: =IF($F$102=24,ROUND($F$13,0),"")&"" ->  | G118: =IF($G$102=24,ROUND($G$13,0),"")&"" ->  | H118: =IF($H$102=24,ROUND($H$13,0),"")&"" ->  | I118: =IF($I$102=24,ROUND($I$13,0),"")&"" ->  | J118: =IF($J$102=24,ROUND($J$13,0),"")&"" ->  | K118: =IF($K$102=24,ROUND($K$13,0),"")&"" ->  | L118: =IF($L$102=24,ROUND($L$13,0),"")&"" ->  | M118: =IF($M$102=24,ROUND($M$13,0),"")&"" ->  | N118: =IF($N$102=24,ROUND($N$13,0),"")&"" ->  | O118: =IF($O$102=24,ROUND($O$13,0),"")&"" ->  | P118: =IF($P$102=24,ROUND($P$13,0),"")&"" ->  | Q118: =IF($Q$102=24,ROUND($Q$13,0),"")&"" ->  | R118: =IF($R$102=24,ROUND($R$13,0),"")&"" ->  | S118: =IF($S$102=24,ROUND($S$13,0),"")&"" ->  | T118: =IF($T$102=24,ROUND($T$13,0),"")&"" ->  | U118: =IF($U$102=24,ROUND($U$13,0),"")&"" ->  | V118: =IF($V$102=24,ROUND($V$13,0),"")&"" ->  | W118: =IF($W$102=24,ROUND($W$13,0),"")&"" ->  | X118: =IF($X$102=24,ROUND($X$13,0),"")&"" ->  | Y118: =IF($Y$102=24,ROUND($Y$13,0),"")&"" ->  | Z118: =IF($Z$102=24,ROUND($Z$13,0),"")&"" ->  | AA118: =IF($AA$102=24,ROUND($AA$13,0),"")&"" ->  | AB118: 5
C119: 6 | D119: =IF($D$103=24,ROUND($D$14,0),"")&"" ->  | E119: =IF($E$103=24,ROUND($E$14,0),"")&"" ->  | F119: =IF($F$103=24,ROUND($F$14,0),"")&"" ->  | G119: =IF($G$103=24,ROUND($G$14,0),"")&"" ->  | H119: =IF($H$103=24,ROUND($H$14,0),"")&"" ->  | I119: =IF($I$103=24,ROUND($I$14,0),"")&"" ->  | J119: =IF($J$103=24,ROUND($J$14,0),"")&"" ->  | K119: =IF($K$103=24,ROUND($K$14,0),"")&"" ->  | L119: =IF($L$103=24,ROUND($L$14,0),"")&"" ->  | M119: =IF($M$103=24,ROUND($M$14,0),"")&"" ->  | N119: =IF($N$103=24,ROUND($N$14,0),"")&"" ->  | O119: =IF($O$103=24,ROUND($O$14,0),"")&"" ->  | P119: =IF($P$103=24,ROUND($P$14,0),"")&"" ->  | Q119: =IF($Q$103=24,ROUND($Q$14,0),"")&"" ->  | R119: =IF($R$103=24,ROUND($R$14,0),"")&"" ->  | S119: =IF($S$103=24,ROUND($S$14,0),"")&"" ->  | T119: =IF($T$103=24,ROUND($T$14,0),"")&"" ->  | U119: =IF($U$103=24,ROUND($U$14,0),"")&"" ->  | V119: =IF($V$103=24,ROUND($V$14,0),"")&"" ->  | W119: =IF($W$103=24,ROUND($W$14,0),"")&"" ->  | X119: =IF($X$103=24,ROUND($X$14,0),"")&"" ->  | Y119: =IF($Y$103=24,ROUND($Y$14,0),"")&"" ->  | Z119: =IF($Z$103=24,ROUND($Z$14,0),"")&"" ->  | AA119: =IF($AA$103=24,ROUND($AA$14,0),"")&"" ->  | AB119: 6
C120: 7 | D120: =IF($D$104=24,ROUND($D$15,0),"")&"" ->  | E120: =IF($E$104=24,ROUND($E$15,0),"")&"" ->  | F120: =IF($F$104=24,ROUND($F$15,0),"")&"" ->  | G120: =IF($G$104=24,ROUND($G$15,0),"")&"" ->  | H120: =IF($H$104=24,ROUND($H$15,0),"")&"" ->  | I120: =IF($I$104=24,ROUND($I$15,0),"")&"" ->  | J120: =IF($J$104=24,ROUND($J$15,0),"")&"" ->  | K120: =IF($K$104=24,ROUND($K$15,0),"")&"" ->  | L120: =IF($L$104=24,ROUND($L$15,0),"")&"" ->  | M120: =IF($M$104=24,ROUND($M$15,0),"")&"" ->  | N120: =IF($N$104=24,ROUND($N$15,0),"")&"" ->  | O120: =IF($O$104=24,ROUND($O$15,0),"")&"" ->  | P120: =IF($P$104=24,ROUND($P$15,0),"")&"" ->  | Q120: =IF($Q$104=24,ROUND($Q$15,0),"")&"" ->  | R120: =IF($R$104=24,ROUND($R$15,0),"")&"" ->  | S120: =IF($S$104=24,ROUND($S$15,0),"")&"" ->  | T120: =IF($T$104=24,ROUND($T$15,0),"")&"" ->  | U120: =IF($U$104=24,ROUND($U$15,0),"")&"" ->  | V120: =IF($V$104=24,ROUND($V$15,0),"")&"" ->  | W120: =IF($W$104=24,ROUND($W$15,0),"")&"" ->  | X120: =IF($X$104=24,ROUND($X$15,0),"")&"" ->  | Y120: =IF($Y$104=24,ROUND($Y$15,0),"")&"" ->  | Z120: =IF($Z$104=24,ROUND($Z$15,0),"")&"" ->  | AA120: =IF($AA$104=24,ROUND($AA$15,0),"")&"" ->  | AB120: 7
C121: 8 | D121: =IF($D$105=24,ROUND($D$16,0),"")&"" ->  | E121: =IF($E$105=24,ROUND($E$16,0),"")&"" ->  | F121: =IF($F$105=24,ROUND($F$16,0),"")&"" ->  | G121: =IF($G$105=24,ROUND($G$16,0),"")&"" ->  | H121: =IF($H$105=24,ROUND($H$16,0),"")&"" ->  | I121: =IF($I$105=24,ROUND($I$16,0),"")&"" ->  | J121: =IF($J$105=24,ROUND($J$16,0),"")&"" ->  | K121: =IF($K$105=24,ROUND($K$16,0),"")&"" ->  | L121: =IF($L$105=24,ROUND($L$16,0),"")&"" ->  | M121: =IF($M$105=24,ROUND($M$16,0),"")&"" ->  | N121: =IF($N$105=24,ROUND($N$16,0),"")&"" ->  | O121: =IF($O$105=24,ROUND($O$16,0),"")&"" ->  | P121: =IF($P$105=24,ROUND($P$16,0),"")&"" ->  | Q121: =IF($Q$105=24,ROUND($Q$16,0),"")&"" ->  | R121: =IF($R$105=24,ROUND($R$16,0),"")&"" ->  | S121: =IF($S$105=24,ROUND($S$16,0),"")&"" ->  | T121: =IF($T$105=24,ROUND($T$16,0),"")&"" ->  | U121: =IF($U$105=24,ROUND($U$16,0),"")&"" ->  | V121: =IF($V$105=24,ROUND($V$16,0),"")&"" ->  | W121: =IF($W$105=24,ROUND($W$16,0),"")&"" ->  | X121: =IF($X$105=24,ROUND($X$16,0),"")&"" ->  | Y121: =IF($Y$105=24,ROUND($Y$16,0),"")&"" ->  | Z121: =IF($Z$105=24,ROUND($Z$16,0),"")&"" ->  | AA121: =IF($AA$105=24,ROUND($AA$16,0),"")&"" ->  | AB121: 8
C122: 9 | D122: =IF($D$106=24,ROUND($D$17,0),"")&"" ->  | E122: =IF($E$106=24,ROUND($E$17,0),"")&"" ->  | F122: =IF($F$106=24,ROUND($F$17,0),"")&"" ->  | G122: =IF($G$106=24,ROUND($G$17,0),"")&"" ->  | H122: =IF($H$106=24,ROUND($H$17,0),"")&"" ->  | I122: =IF($I$106=24,ROUND($I$17,0),"")&"" ->  | J122: =IF($J$106=24,ROUND($J$17,0),"")&"" ->  | K122: =IF($K$106=24,ROUND($K$17,0),"")&"" ->  | L122: =IF($L$106=24,ROUND($L$17,0),"")&"" ->  | M122: =IF($M$106=24,ROUND($M$17,0),"")&"" ->  | N122: =IF($N$106=24,ROUND($N$17,0),"")&"" ->  | O122: =IF($O$106=24,ROUND($O$17,0),"")&"" ->  | P122: =IF($P$106=24,ROUND($P$17,0),"")&"" ->  | Q122: =IF($Q$106=24,ROUND($Q$17,0),"")&"" ->  | R122: =IF($R$106=24,ROUND($R$17,0),"")&"" ->  | S122: =IF($S$106=24,ROUND($S$17,0),"")&"" ->  | T122: =IF($T$106=24,ROUND($T$17,0),"")&"" ->  | U122: =IF($U$106=24,ROUND($U$17,0),"")&"" ->  | V122: =IF($V$106=24,ROUND($V$17,0),"")&"" ->  | W122: =IF($W$106=24,ROUND($W$17,0),"")&"" ->  | X122: =IF($X$106=24,ROUND($X$17,0),"")&"" ->  | Y122: =IF($Y$106=24,ROUND($Y$17,0),"")&"" ->  | Z122: =IF($Z$106=24,ROUND($Z$17,0),"")&"" ->  | AA122: =IF($AA$106=24,ROUND($AA$17,0),"")&"" ->  | AB122: 9
C123: 10 | D123: =IF($D$107=24,ROUND($D$18,0),"")&"" ->  | E123: =IF($E$107=24,ROUND($E$18,0),"")&"" ->  | F123: =IF($F$107=24,ROUND($F$18,0),"")&"" ->  | G123: =IF($G$107=24,ROUND($G$18,0),"")&"" ->  | H123: =IF($H$107=24,ROUND($H$18,0),"")&"" ->  | I123: =IF($I$107=24,ROUND($I$18,0),"")&"" ->  | J123: =IF($J$107=24,ROUND($J$18,0),"")&"" ->  | K123: =IF($K$107=24,ROUND($K$18,0),"")&"" ->  | L123: =IF($L$107=24,ROUND($L$18,0),"")&"" ->  | M123: =IF($M$107=24,ROUND($M$18,0),"")&"" ->  | N123: =IF($N$107=24,ROUND($N$18,0),"")&"" ->  | O123: =IF($O$107=24,ROUND($O$18,0),"")&"" ->  | P123: =IF($P$107=24,ROUND($P$18,0),"")&"" ->  | Q123: =IF($Q$107=24,ROUND($Q$18,0),"")&"" ->  | R123: =IF($R$107=24,ROUND($R$18,0),"")&"" ->  | S123: =IF($S$107=24,ROUND($S$18,0),"")&"" ->  | T123: =IF($T$107=24,ROUND($T$18,0),"")&"" ->  | U123: =IF($U$107=24,ROUND($U$18,0),"")&"" ->  | V123: =IF($V$107=24,ROUND($V$18,0),"")&"" ->  | W123: =IF($W$107=24,ROUND($W$18,0),"")&"" ->  | X123: =IF($X$107=24,ROUND($X$18,0),"")&"" ->  | Y123: =IF($Y$107=24,ROUND($Y$18,0),"")&"" ->  | Z123: =IF($Z$107=24,ROUND($Z$18,0),"")&"" ->  | AA123: =IF($AA$107=24,ROUND($AA$18,0),"")&"" ->  | AB123: 10
C124: 11 | D124: =IF($D$108=24,ROUND($D$19,0),"")&"" ->  | E124: =IF($E$108=24,ROUND($E$19,0),"")&"" ->  | F124: =IF($F$108=24,ROUND($F$19,0),"")&"" ->  | G124: =IF($G$108=24,ROUND($G$19,0),"")&"" ->  | H124: =IF($H$108=24,ROUND($H$19,0),"")&"" ->  | I124: =IF($I$108=24,ROUND($I$19,0),"")&"" ->  | J124: =IF($J$108=24,ROUND($J$19,0),"")&"" ->  | K124: =IF($K$108=24,ROUND($K$19,0),"")&"" ->  | L124: =IF($L$108=24,ROUND($L$19,0),"")&"" ->  | M124: =IF($M$108=24,ROUND($M$19,0),"")&"" ->  | N124: =IF($N$108=24,ROUND($N$19,0),"")&"" ->  | O124: =IF($O$108=24,ROUND($O$19,0),"")&"" ->  | P124: =IF($P$108=24,ROUND($P$19,0),"")&"" ->  | Q124: =IF($Q$108=24,ROUND($Q$19,0),"")&"" ->  | R124: =IF($R$108=24,ROUND($R$19,0),"")&"" ->  | S124: =IF($S$108=24,ROUND($S$19,0),"")&"" ->  | T124: =IF($T$108=24,ROUND($T$19,0),"")&"" ->  | U124: =IF($U$108=24,ROUND($U$19,0),"")&"" ->  | V124: =IF($V$108=24,ROUND($V$19,0),"")&"" ->  | W124: =IF($W$108=24,ROUND($W$19,0),"")&"" ->  | X124: =IF($X$108=24,ROUND($X$19,0),"")&"" ->  | Y124: =IF($Y$108=24,ROUND($Y$19,0),"")&"" ->  | Z124: =IF($Z$108=24,ROUND($Z$19,0),"")&"" ->  | AA124: =IF($AA$108=24,ROUND($AA$19,0),"")&"" ->  | AB124: 11
C125: 12 | D125: =IF($D$109=24,ROUND($D$20,0),"")&"" ->  | E125: =IF($E$109=24,ROUND($E$20,0),"")&"" ->  | F125: =IF($F$109=24,ROUND($F$20,0),"")&"" ->  | G125: =IF($G$109=24,ROUND($G$20,0),"")&"" ->  | H125: =IF($H$109=24,ROUND($H$20,0),"")&"" ->  | I125: =IF($I$109=24,ROUND($I$20,0),"")&"" ->  | J125: =IF($J$109=24,ROUND($J$20,0),"")&"" ->  | K125: =IF($K$109=24,ROUND($K$20,0),"")&"" ->  | L125: =IF($L$109=24,ROUND($L$20,0),"")&"" ->  | M125: =IF($M$109=24,ROUND($M$20,0),"")&"" ->  | N125: =IF($N$109=24,ROUND($N$20,0),"")&"" ->  | O125: =IF($O$109=24,ROUND($O$20,0),"")&"" ->  | P125: =IF($P$109=24,ROUND($P$20,0),"")&"" ->  | Q125: =IF($Q$109=24,ROUND($Q$20,0),"")&"" ->  | R125: =IF($R$109=24,ROUND($R$20,0),"")&"" ->  | S125: =IF($S$109=24,ROUND($S$20,0),"")&"" ->  | T125: =IF($T$109=24,ROUND($T$20,0),"")&"" ->  | U125: =IF($U$109=24,ROUND($U$20,0),"")&"" ->  | V125: =IF($V$109=24,ROUND($V$20,0),"")&"" ->  | W125: =IF($W$109=24,ROUND($W$20,0),"")&"" ->  | X125: =IF($X$109=24,ROUND($X$20,0),"")&"" ->  | Y125: =IF($Y$109=24,ROUND($Y$20,0),"")&"" ->  | Z125: =IF($Z$109=24,ROUND($Z$20,0),"")&"" ->  | AA125: =IF($AA$109=24,ROUND($AA$20,0),"")&"" ->  | AB125: 12
C126: 1 | D126: =IF($D$110=24,ROUND($D$21,0),"")&"" ->  | E126: =IF($E$110=24,ROUND($E$21,0),"")&"" ->  | F126: =IF($F$110=24,ROUND($F$21,0),"")&"" ->  | G126: =IF($G$110=24,ROUND($G$21,0),"")&"" ->  | H126: =IF($H$110=24,ROUND($H$21,0),"")&"" ->  | I126: =IF($I$110=24,ROUND($I$21,0),"")&"" ->  | J126: =IF($J$110=24,ROUND($J$21,0),"")&"" ->  | K126: =IF($K$110=24,ROUND($K$21,0),"")&"" ->  | L126: =IF($L$110=24,ROUND($L$21,0),"")&"" ->  | M126: =IF($M$110=24,ROUND($M$21,0),"")&"" ->  | N126: =IF($N$110=24,ROUND($N$21,0),"")&"" ->  | O126: =IF($O$110=24,ROUND($O$21,0),"")&"" ->  | P126: =IF($P$110=24,ROUND($P$21,0),"")&"" ->  | Q126: =IF($Q$110=24,ROUND($Q$21,0),"")&"" ->  | R126: =IF($R$110=24,ROUND($R$21,0),"")&"" ->  | S126: =IF($S$110=24,ROUND($S$21,0),"")&"" ->  | T126: =IF($T$110=24,ROUND($T$21,0),"")&"" ->  | U126: =IF($U$110=24,ROUND($U$21,0),"")&"" ->  | V126: =IF($V$110=24,ROUND($V$21,0),"")&"" ->  | W126: =IF($W$110=24,ROUND($W$21,0),"")&"" ->  | X126: =IF($X$110=24,ROUND($X$21,0),"")&"" ->  | Y126: =IF($Y$110=24,ROUND($Y$21,0),"")&"" ->  | Z126: =IF($Z$110=24,ROUND($Z$21,0),"")&"" ->  | AA126: =IF($AA$110=24,ROUND($AA$21,0),"")&"" ->  | AB126: 1
C127: 2 | D127: =IF($D$111=24,ROUND($D$22,0),"")&"" ->  | E127: =IF($E$111=24,ROUND($E$22,0),"")&"" ->  | F127: =IF($F$111=24,ROUND($F$22,0),"")&"" ->  | G127: =IF($G$111=24,ROUND($G$22,0),"")&"" ->  | H127: =IF($H$111=24,ROUND($H$22,0),"")&"" ->  | I127: =IF($I$111=24,ROUND($I$22,0),"")&"" ->  | J127: =IF($J$111=24,ROUND($J$22,0),"")&"" ->  | K127: =IF($K$111=24,ROUND($K$22,0),"")&"" ->  | L127: =IF($L$111=24,ROUND($L$22,0),"")&"" ->  | M127: =IF($M$111=24,ROUND($M$22,0),"")&"" ->  | N127: =IF($N$111=24,ROUND($N$22,0),"")&"" ->  | O127: =IF($O$111=24,ROUND($O$22,0),"")&"" ->  | P127: =IF($P$111=24,ROUND($P$22,0),"")&"" ->  | Q127: =IF($Q$111=24,ROUND($Q$22,0),"")&"" ->  | R127: =IF($R$111=24,ROUND($R$22,0),"")&"" ->  | S127: =IF($S$111=24,ROUND($S$22,0),"")&"" ->  | T127: =IF($T$111=24,ROUND($T$22,0),"")&"" ->  | U127: =IF($U$111=24,ROUND($U$22,0),"")&"" ->  | V127: =IF($V$111=24,ROUND($V$22,0),"")&"" ->  | W127: =IF($W$111=24,ROUND($W$22,0),"")&"" ->  | X127: =IF($X$111=24,ROUND($X$22,0),"")&"" ->  | Y127: =IF($Y$111=24,ROUND($Y$22,0),"")&"" ->  | Z127: =IF($Z$111=24,ROUND($Z$22,0),"")&"" ->  | AA127: =IF($AA$111=24,ROUND($AA$22,0),"")&"" ->  | AB127: 2
C128: 3 | D128: =IF($D$112=24,ROUND($D$23,0),"")&"" ->  | E128: =IF($E$112=24,ROUND($E$23,0),"")&"" ->  | F128: =IF($F$112=24,ROUND($F$23,0),"")&"" ->  | G128: =IF($G$112=24,ROUND($G$23,0),"")&"" ->  | H128: =IF($H$112=24,ROUND($H$23,0),"")&"" ->  | I128: =IF($I$112=24,ROUND($I$23,0),"")&"" ->  | J128: =IF($J$112=24,ROUND($J$23,0),"")&"" ->  | K128: =IF($K$112=24,ROUND($K$23,0),"")&"" ->  | L128: =IF($L$112=24,ROUND($L$23,0),"")&"" ->  | M128: =IF($M$112=24,ROUND($M$23,0),"")&"" ->  | N128: =IF($N$112=24,ROUND($N$23,0),"")&"" ->  | O128: =IF($O$112=24,ROUND($O$23,0),"")&"" ->  | P128: =IF($P$112=24,ROUND($P$23,0),"")&"" ->  | Q128: =IF($Q$112=24,ROUND($Q$23,0),"")&"" ->  | R128: =IF($R$112=24,ROUND($R$23,0),"")&"" ->  | S128: =IF($S$112=24,ROUND($S$23,0),"")&"" ->  | T128: =IF($T$112=24,ROUND($T$23,0),"")&"" ->  | U128: =IF($U$112=24,ROUND($U$23,0),"")&"" ->  | V128: =IF($V$112=24,ROUND($V$23,0),"")&"" ->  | W128: =IF($W$112=24,ROUND($W$23,0),"")&"" ->  | X128: =IF($X$112=24,ROUND($X$23,0),"")&"" ->  | Y128: =IF($Y$112=24,ROUND($Y$23,0),"")&"" ->  | Z128: =IF($Z$112=24,ROUND($Z$23,0),"")&"" ->  | AA128: =IF($AA$112=24,ROUND($AA$23,0),"")&"" ->  | AB128: 3
C130: 作業表2-2(加熱) | E130: ●月▲時の平均気温
D131: 時刻
C132: 月 | D132: 0 | E132: 1 | F132: 2 | G132: 3 | H132: 4 | I132: 5 | J132: 6 | K132: 7 | L132: 8 | M132: 9 | N132: 10 | O132: 11 | P132: 12 | Q132: 13 | R132: 14 | S132: 15 | T132: 16 | U132: 17 | V132: 18 | W132: 19 | X132: 20 | Y132: 21 | Z132: 22 | AA132: 23 | AB132: 月
C133: 4 | D133: =IF($D$101=19,ROUND($D$12,0),"")&"" ->  | E133: =IF($E$101=19,ROUND($E$12,0),"")&"" ->  | F133: =IF($F$101=19,ROUND($F$12,0),"")&"" ->  | G133: =IF($G$101=19,ROUND($G$12,0),"")&"" ->  | H133: =IF($H$101=19,ROUND($H$12,0),"")&"" ->  | I133: =IF($I$101=19,ROUND($I$12,0),"")&"" ->  | J133: =IF($J$101=19,ROUND($J$12,0),"")&"" ->  | K133: =IF($K$101=19,ROUND($K$12,0),"")&"" ->  | L133: =IF($L$101=19,ROUND($L$12,0),"")&"" ->  | M133: =IF($M$101=19,ROUND($M$12,0),"")&"" ->  | N133: =IF($N$101=19,ROUND($N$12,0),"")&"" ->  | O133: =IF($O$101=19,ROUND($O$12,0),"")&"" ->  | P133: =IF($P$101=19,ROUND($P$12,0),"")&"" ->  | Q133: =IF($Q$101=19,ROUND($Q$12,0),"")&"" ->  | R133: =IF($R$101=19,ROUND($R$12,0),"")&"" ->  | S133: =IF($S$101=19,ROUND($S$12,0),"")&"" ->  | T133: =IF($T$101=19,ROUND($T$12,0),"")&"" ->  | U133: =IF($U$101=19,ROUND($U$12,0),"")&"" ->  | V133: =IF($V$101=19,ROUND($V$12,0),"")&"" ->  | W133: =IF($W$101=19,ROUND($W$12,0),"")&"" ->  | X133: =IF($X$101=19,ROUND($X$12,0),"")&"" ->  | Y133: =IF($Y$101=19,ROUND($Y$12,0),"")&"" ->  | Z133: =IF($Z$101=19,ROUND($Z$12,0),"")&"" ->  | AA133: =IF($AA$101=19,ROUND($AA$12,0),"")&"" ->  | AB133: 4
C134: 5 | D134: =IF($D$102=19,ROUND($D$13,0),"")&"" ->  | E134: =IF($E$102=19,ROUND($E$13,0),"")&"" ->  | F134: =IF($F$102=19,ROUND($F$13,0),"")&"" ->  | G134: =IF($G$102=19,ROUND($G$13,0),"")&"" ->  | H134: =IF($H$102=19,ROUND($H$13,0),"")&"" ->  | I134: =IF($I$102=19,ROUND($I$13,0),"")&"" ->  | J134: =IF($J$102=19,ROUND($J$13,0),"")&"" ->  | K134: =IF($K$102=19,ROUND($K$13,0),"")&"" ->  | L134: =IF($L$102=19,ROUND($L$13,0),"")&"" ->  | M134: =IF($M$102=19,ROUND($M$13,0),"")&"" ->  | N134: =IF($N$102=19,ROUND($N$13,0),"")&"" ->  | O134: =IF($O$102=19,ROUND($O$13,0),"")&"" ->  | P134: =IF($P$102=19,ROUND($P$13,0),"")&"" ->  | Q134: =IF($Q$102=19,ROUND($Q$13,0),"")&"" ->  | R134: =IF($R$102=19,ROUND($R$13,0),"")&"" ->  | S134: =IF($S$102=19,ROUND($S$13,0),"")&"" ->  | T134: =IF($T$102=19,ROUND($T$13,0),"")&"" ->  | U134: =IF($U$102=19,ROUND($U$13,0),"")&"" ->  | V134: =IF($V$102=19,ROUND($V$13,0),"")&"" ->  | W134: =IF($W$102=19,ROUND($W$13,0),"")&"" ->  | X134: =IF($X$102=19,ROUND($X$13,0),"")&"" ->  | Y134: =IF($Y$102=19,ROUND($Y$13,0),"")&"" ->  | Z134: =IF($Z$102=19,ROUND($Z$13,0),"")&"" ->  | AA134: =IF($AA$102=19,ROUND($AA$13,0),"")&"" ->  | AB134: 5
C135: 6 | D135: =IF($D$103=19,ROUND($D$14,0),"")&"" ->  | E135: =IF($E$103=19,ROUND($E$14,0),"")&"" ->  | F135: =IF($F$103=19,ROUND($F$14,0),"")&"" ->  | G135: =IF($G$103=19,ROUND($G$14,0),"")&"" ->  | H135: =IF($H$103=19,ROUND($H$14,0),"")&"" ->  | I135: =IF($I$103=19,ROUND($I$14,0),"")&"" ->  | J135: =IF($J$103=19,ROUND($J$14,0),"")&"" ->  | K135: =IF($K$103=19,ROUND($K$14,0),"")&"" ->  | L135: =IF($L$103=19,ROUND($L$14,0),"")&"" ->  | M135: =IF($M$103=19,ROUND($M$14,0),"")&"" ->  | N135: =IF($N$103=19,ROUND($N$14,0),"")&"" ->  | O135: =IF($O$103=19,ROUND($O$14,0),"")&"" ->  | P135: =IF($P$103=19,ROUND($P$14,0),"")&"" ->  | Q135: =IF($Q$103=19,ROUND($Q$14,0),"")&"" ->  | R135: =IF($R$103=19,ROUND($R$14,0),"")&"" ->  | S135: =IF($S$103=19,ROUND($S$14,0),"")&"" ->  | T135: =IF($T$103=19,ROUND($T$14,0),"")&"" ->  | U135: =IF($U$103=19,ROUND($U$14,0),"")&"" ->  | V135: =IF($V$103=19,ROUND($V$14,0),"")&"" ->  | W135: =IF($W$103=19,ROUND($W$14,0),"")&"" ->  | X135: =IF($X$103=19,ROUND($X$14,0),"")&"" ->  | Y135: =IF($Y$103=19,ROUND($Y$14,0),"")&"" ->  | Z135: =IF($Z$103=19,ROUND($Z$14,0),"")&"" ->  | AA135: =IF($AA$103=19,ROUND($AA$14,0),"")&"" ->  | AB135: 6
C136: 7 | D136: =IF($D$104=19,ROUND($D$15,0),"")&"" ->  | E136: =IF($E$104=19,ROUND($E$15,0),"")&"" ->  | F136: =IF($F$104=19,ROUND($F$15,0),"")&"" ->  | G136: =IF($G$104=19,ROUND($G$15,0),"")&"" ->  | H136: =IF($H$104=19,ROUND($H$15,0),"")&"" ->  | I136: =IF($I$104=19,ROUND($I$15,0),"")&"" ->  | J136: =IF($J$104=19,ROUND($J$15,0),"")&"" ->  | K136: =IF($K$104=19,ROUND($K$15,0),"")&"" ->  | L136: =IF($L$104=19,ROUND($L$15,0),"")&"" ->  | M136: =IF($M$104=19,ROUND($M$15,0),"")&"" ->  | N136: =IF($N$104=19,ROUND($N$15,0),"")&"" ->  | O136: =IF($O$104=19,ROUND($O$15,0),"")&"" ->  | P136: =IF($P$104=19,ROUND($P$15,0),"")&"" ->  | Q136: =IF($Q$104=19,ROUND($Q$15,0),"")&"" ->  | R136: =IF($R$104=19,ROUND($R$15,0),"")&"" ->  | S136: =IF($S$104=19,ROUND($S$15,0),"")&"" ->  | T136: =IF($T$104=19,ROUND($T$15,0),"")&"" ->  | U136: =IF($U$104=19,ROUND($U$15,0),"")&"" ->  | V136: =IF($V$104=19,ROUND($V$15,0),"")&"" ->  | W136: =IF($W$104=19,ROUND($W$15,0),"")&"" ->  | X136: =IF($X$104=19,ROUND($X$15,0),"")&"" ->  | Y136: =IF($Y$104=19,ROUND($Y$15,0),"")&"" ->  | Z136: =IF($Z$104=19,ROUND($Z$15,0),"")&"" ->  | AA136: =IF($AA$104=19,ROUND($AA$15,0),"")&"" ->  | AB136: 7
C137: 8 | D137: =IF($D$105=19,ROUND($D$16,0),"")&"" ->  | E137: =IF($E$105=19,ROUND($E$16,0),"")&"" ->  | F137: =IF($F$105=19,ROUND($F$16,0),"")&"" ->  | G137: =IF($G$105=19,ROUND($G$16,0),"")&"" ->  | H137: =IF($H$105=19,ROUND($H$16,0),"")&"" ->  | I137: =IF($I$105=19,ROUND($I$16,0),"")&"" ->  | J137: =IF($J$105=19,ROUND($J$16,0),"")&"" ->  | K137: =IF($K$105=19,ROUND($K$16,0),"")&"" ->  | L137: =IF($L$105=19,ROUND($L$16,0),"")&"" ->  | M137: =IF($M$105=19,ROUND($M$16,0),"")&"" ->  | N137: =IF($N$105=19,ROUND($N$16,0),"")&"" ->  | O137: =IF($O$105=19,ROUND($O$16,0),"")&"" ->  | P137: =IF($P$105=19,ROUND($P$16,0),"")&"" ->  | Q137: =IF($Q$105=19,ROUND($Q$16,0),"")&"" ->  | R137: =IF($R$105=19,ROUND($R$16,0),"")&"" ->  | S137: =IF($S$105=19,ROUND($S$16,0),"")&"" ->  | T137: =IF($T$105=19,ROUND($T$16,0),"")&"" ->  | U137: =IF($U$105=19,ROUND($U$16,0),"")&"" ->  | V137: =IF($V$105=19,ROUND($V$16,0),"")&"" ->  | W137: =IF($W$105=19,ROUND($W$16,0),"")&"" ->  | X137: =IF($X$105=19,ROUND($X$16,0),"")&"" ->  | Y137: =IF($Y$105=19,ROUND($Y$16,0),"")&"" ->  | Z137: =IF($Z$105=19,ROUND($Z$16,0),"")&"" ->  | AA137: =IF($AA$105=19,ROUND($AA$16,0),"")&"" ->  | AB137: 8
C138: 9 | D138: =IF($D$106=19,ROUND($D$17,0),"")&"" ->  | E138: =IF($E$106=19,ROUND($E$17,0),"")&"" ->  | F138: =IF($F$106=19,ROUND($F$17,0),"")&"" ->  | G138: =IF($G$106=19,ROUND($G$17,0),"")&"" ->  | H138: =IF($H$106=19,ROUND($H$17,0),"")&"" ->  | I138: =IF($I$106=19,ROUND($I$17,0),"")&"" ->  | J138: =IF($J$106=19,ROUND($J$17,0),"")&"" ->  | K138: =IF($K$106=19,ROUND($K$17,0),"")&"" ->  | L138: =IF($L$106=19,ROUND($L$17,0),"")&"" ->  | M138: =IF($M$106=19,ROUND($M$17,0),"")&"" ->  | N138: =IF($N$106=19,ROUND($N$17,0),"")&"" ->  | O138: =IF($O$106=19,ROUND($O$17,0),"")&"" ->  | P138: =IF($P$106=19,ROUND($P$17,0),"")&"" ->  | Q138: =IF($Q$106=19,ROUND($Q$17,0),"")&"" ->  | R138: =IF($R$106=19,ROUND($R$17,0),"")&"" ->  | S138: =IF($S$106=19,ROUND($S$17,0),"")&"" ->  | T138: =IF($T$106=19,ROUND($T$17,0),"")&"" ->  | U138: =IF($U$106=19,ROUND($U$17,0),"")&"" ->  | V138: =IF($V$106=19,ROUND($V$17,0),"")&"" ->  | W138: =IF($W$106=19,ROUND($W$17,0),"")&"" ->  | X138: =IF($X$106=19,ROUND($X$17,0),"")&"" ->  | Y138: =IF($Y$106=19,ROUND($Y$17,0),"")&"" ->  | Z138: =IF($Z$106=19,ROUND($Z$17,0),"")&"" ->  | AA138: =IF($AA$106=19,ROUND($AA$17,0),"")&"" ->  | AB138: 9
C139: 10 | D139: =IF($D$107=19,ROUND($D$18,0),"")&"" ->  | E139: =IF($E$107=19,ROUND($E$18,0),"")&"" ->  | F139: =IF($F$107=19,ROUND($F$18,0),"")&"" ->  | G139: =IF($G$107=19,ROUND($G$18,0),"")&"" ->  | H139: =IF($H$107=19,ROUND($H$18,0),"")&"" ->  | I139: =IF($I$107=19,ROUND($I$18,0),"")&"" ->  | J139: =IF($J$107=19,ROUND($J$18,0),"")&"" ->  | K139: =IF($K$107=19,ROUND($K$18,0),"")&"" ->  | L139: =IF($L$107=19,ROUND($L$18,0),"")&"" ->  | M139: =IF($M$107=19,ROUND($M$18,0),"")&"" ->  | N139: =IF($N$107=19,ROUND($N$18,0),"")&"" ->  | O139: =IF($O$107=19,ROUND($O$18,0),"")&"" ->  | P139: =IF($P$107=19,ROUND($P$18,0),"")&"" ->  | Q139: =IF($Q$107=19,ROUND($Q$18,0),"")&"" ->  | R139: =IF($R$107=19,ROUND($R$18,0),"")&"" ->  | S139: =IF($S$107=19,ROUND($S$18,0),"")&"" ->  | T139: =IF($T$107=19,ROUND($T$18,0),"")&"" ->  | U139: =IF($U$107=19,ROUND($U$18,0),"")&"" ->  | V139: =IF($V$107=19,ROUND($V$18,0),"")&"" ->  | W139: =IF($W$107=19,ROUND($W$18,0),"")&"" ->  | X139: =IF($X$107=19,ROUND($X$18,0),"")&"" ->  | Y139: =IF($Y$107=19,ROUND($Y$18,0),"")&"" ->  | Z139: =IF($Z$107=19,ROUND($Z$18,0),"")&"" ->  | AA139: =IF($AA$107=19,ROUND($AA$18,0),"")&"" ->  | AB139: 10
C140: 11 | D140: =IF($D$108=19,ROUND($D$19,0),"")&"" ->  | E140: =IF($E$108=19,ROUND($E$19,0),"")&"" ->  | F140: =IF($F$108=19,ROUND($F$19,0),"")&"" ->  | G140: =IF($G$108=19,ROUND($G$19,0),"")&"" ->  | H140: =IF($H$108=19,ROUND($H$19,0),"")&"" ->  | I140: =IF($I$108=19,ROUND($I$19,0),"")&"" ->  | J140: =IF($J$108=19,ROUND($J$19,0),"")&"" ->  | K140: =IF($K$108=19,ROUND($K$19,0),"")&"" ->  | L140: =IF($L$108=19,ROUND($L$19,0),"")&"" ->  | M140: =IF($M$108=19,ROUND($M$19,0),"")&"" ->  | N140: =IF($N$108=19,ROUND($N$19,0),"")&"" ->  | O140: =IF($O$108=19,ROUND($O$19,0),"")&"" ->  | P140: =IF($P$108=19,ROUND($P$19,0),"")&"" ->  | Q140: =IF($Q$108=19,ROUND($Q$19,0),"")&"" ->  | R140: =IF($R$108=19,ROUND($R$19,0),"")&"" ->  | S140: =IF($S$108=19,ROUND($S$19,0),"")&"" ->  | T140: =IF($T$108=19,ROUND($T$19,0),"")&"" ->  | U140: =IF($U$108=19,ROUND($U$19,0),"")&"" ->  | V140: =IF($V$108=19,ROUND($V$19,0),"")&"" ->  | W140: =IF($W$108=19,ROUND($W$19,0),"")&"" ->  | X140: =IF($X$108=19,ROUND($X$19,0),"")&"" ->  | Y140: =IF($Y$108=19,ROUND($Y$19,0),"")&"" ->  | Z140: =IF($Z$108=19,ROUND($Z$19,0),"")&"" ->  | AA140: =IF($AA$108=19,ROUND($AA$19,0),"")&"" ->  | AB140: 11
C141: 12 | D141: =IF($D$109=19,ROUND($D$20,0),"")&"" ->  | E141: =IF($E$109=19,ROUND($E$20,0),"")&"" ->  | F141: =IF($F$109=19,ROUND($F$20,0),"")&"" ->  | G141: =IF($G$109=19,ROUND($G$20,0),"")&"" ->  | H141: =IF($H$109=19,ROUND($H$20,0),"")&"" ->  | I141: =IF($I$109=19,ROUND($I$20,0),"")&"" ->  | J141: =IF($J$109=19,ROUND($J$20,0),"")&"" ->  | K141: =IF($K$109=19,ROUND($K$20,0),"")&"" ->  | L141: =IF($L$109=19,ROUND($L$20,0),"")&"" ->  | M141: =IF($M$109=19,ROUND($M$20,0),"")&"" ->  | N141: =IF($N$109=19,ROUND($N$20,0),"")&"" ->  | O141: =IF($O$109=19,ROUND($O$20,0),"")&"" ->  | P141: =IF($P$109=19,ROUND($P$20,0),"")&"" ->  | Q141: =IF($Q$109=19,ROUND($Q$20,0),"")&"" ->  | R141: =IF($R$109=19,ROUND($R$20,0),"")&"" ->  | S141: =IF($S$109=19,ROUND($S$20,0),"")&"" ->  | T141: =IF($T$109=19,ROUND($T$20,0),"")&"" ->  | U141: =IF($U$109=19,ROUND($U$20,0),"")&"" ->  | V141: =IF($V$109=19,ROUND($V$20,0),"")&"" ->  | W141: =IF($W$109=19,ROUND($W$20,0),"")&"" ->  | X141: =IF($X$109=19,ROUND($X$20,0),"")&"" ->  | Y141: =IF($Y$109=19,ROUND($Y$20,0),"")&"" ->  | Z141: =IF($Z$109=19,ROUND($Z$20,0),"")&"" ->  | AA141: =IF($AA$109=19,ROUND($AA$20,0),"")&"" ->  | AB141: 12
C142: 1 | D142: =IF($D$110=19,ROUND($D$21,0),"")&"" ->  | E142: =IF($E$110=19,ROUND($E$21,0),"")&"" ->  | F142: =IF($F$110=19,ROUND($F$21,0),"")&"" ->  | G142: =IF($G$110=19,ROUND($G$21,0),"")&"" ->  | H142: =IF($H$110=19,ROUND($H$21,0),"")&"" ->  | I142: =IF($I$110=19,ROUND($I$21,0),"")&"" ->  | J142: =IF($J$110=19,ROUND($J$21,0),"")&"" ->  | K142: =IF($K$110=19,ROUND($K$21,0),"")&"" ->  | L142: =IF($L$110=19,ROUND($L$21,0),"")&"" ->  | M142: =IF($M$110=19,ROUND($M$21,0),"")&"" ->  | N142: =IF($N$110=19,ROUND($N$21,0),"")&"" ->  | O142: =IF($O$110=19,ROUND($O$21,0),"")&"" ->  | P142: =IF($P$110=19,ROUND($P$21,0),"")&"" ->  | Q142: =IF($Q$110=19,ROUND($Q$21,0),"")&"" ->  | R142: =IF($R$110=19,ROUND($R$21,0),"")&"" ->  | S142: =IF($S$110=19,ROUND($S$21,0),"")&"" ->  | T142: =IF($T$110=19,ROUND($T$21,0),"")&"" ->  | U142: =IF($U$110=19,ROUND($U$21,0),"")&"" ->  | V142: =IF($V$110=19,ROUND($V$21,0),"")&"" ->  | W142: =IF($W$110=19,ROUND($W$21,0),"")&"" ->  | X142: =IF($X$110=19,ROUND($X$21,0),"")&"" ->  | Y142: =IF($Y$110=19,ROUND($Y$21,0),"")&"" ->  | Z142: =IF($Z$110=19,ROUND($Z$21,0),"")&"" ->  | AA142: =IF($AA$110=19,ROUND($AA$21,0),"")&"" ->  | AB142: 1
C143: 2 | D143: =IF($D$111=19,ROUND($D$22,0),"")&"" ->  | E143: =IF($E$111=19,ROUND($E$22,0),"")&"" ->  | F143: =IF($F$111=19,ROUND($F$22,0),"")&"" ->  | G143: =IF($G$111=19,ROUND($G$22,0),"")&"" ->  | H143: =IF($H$111=19,ROUND($H$22,0),"")&"" ->  | I143: =IF($I$111=19,ROUND($I$22,0),"")&"" ->  | J143: =IF($J$111=19,ROUND($J$22,0),"")&"" ->  | K143: =IF($K$111=19,ROUND($K$22,0),"")&"" ->  | L143: =IF($L$111=19,ROUND($L$22,0),"")&"" ->  | M143: =IF($M$111=19,ROUND($M$22,0),"")&"" ->  | N143: =IF($N$111=19,ROUND($N$22,0),"")&"" ->  | O143: =IF($O$111=19,ROUND($O$22,0),"")&"" ->  | P143: =IF($P$111=19,ROUND($P$22,0),"")&"" ->  | Q143: =IF($Q$111=19,ROUND($Q$22,0),"")&"" ->  | R143: =IF($R$111=19,ROUND($R$22,0),"")&"" ->  | S143: =IF($S$111=19,ROUND($S$22,0),"")&"" ->  | T143: =IF($T$111=19,ROUND($T$22,0),"")&"" ->  | U143: =IF($U$111=19,ROUND($U$22,0),"")&"" ->  | V143: =IF($V$111=19,ROUND($V$22,0),"")&"" ->  | W143: =IF($W$111=19,ROUND($W$22,0),"")&"" ->  | X143: =IF($X$111=19,ROUND($X$22,0),"")&"" ->  | Y143: =IF($Y$111=19,ROUND($Y$22,0),"")&"" ->  | Z143: =IF($Z$111=19,ROUND($Z$22,0),"")&"" ->  | AA143: =IF($AA$111=19,ROUND($AA$22,0),"")&"" ->  | AB143: 2
C144: 3 | D144: =IF($D$112=19,ROUND($D$23,0),"")&"" ->  | E144: =IF($E$112=19,ROUND($E$23,0),"")&"" ->  | F144: =IF($F$112=19,ROUND($F$23,0),"")&"" ->  | G144: =IF($G$112=19,ROUND($G$23,0),"")&"" ->  | H144: =IF($H$112=19,ROUND($H$23,0),"")&"" ->  | I144: =IF($I$112=19,ROUND($I$23,0),"")&"" ->  | J144: =IF($J$112=19,ROUND($J$23,0),"")&"" ->  | K144: =IF($K$112=19,ROUND($K$23,0),"")&"" ->  | L144: =IF($L$112=19,ROUND($L$23,0),"")&"" ->  | M144: =IF($M$112=19,ROUND($M$23,0),"")&"" ->  | N144: =IF($N$112=19,ROUND($N$23,0),"")&"" ->  | O144: =IF($O$112=19,ROUND($O$23,0),"")&"" ->  | P144: =IF($P$112=19,ROUND($P$23,0),"")&"" ->  | Q144: =IF($Q$112=19,ROUND($Q$23,0),"")&"" ->  | R144: =IF($R$112=19,ROUND($R$23,0),"")&"" ->  | S144: =IF($S$112=19,ROUND($S$23,0),"")&"" ->  | T144: =IF($T$112=19,ROUND($T$23,0),"")&"" ->  | U144: =IF($U$112=19,ROUND($U$23,0),"")&"" ->  | V144: =IF($V$112=19,ROUND($V$23,0),"")&"" ->  | W144: =IF($W$112=19,ROUND($W$23,0),"")&"" ->  | X144: =IF($X$112=19,ROUND($X$23,0),"")&"" ->  | Y144: =IF($Y$112=19,ROUND($Y$23,0),"")&"" ->  | Z144: =IF($Z$112=19,ROUND($Z$23,0),"")&"" ->  | AA144: =IF($AA$112=19,ROUND($AA$23,0),"")&"" ->  | AB144: 3
C146: 冷却期間中 外気温度(T)が発生する時間[hour]
D147: 外気温度(T) | AU147: 月単位 | AV147: 共通 | AW147: 共通 | AX147: 前1 | BA147: 前2 | BD147: 前3 | BH147: 後1 | BK147: 後2 | BN147: 後3
C148: 月 | D148: -6 | E148: -5 | F148: -4 | G148: -3 | H148: -2 | I148: -1 | J148: 0 | K148: 1 | L148: 2 | M148: 3 | N148: 4 | O148: 5 | P148: 6 | Q148: 7 | R148: 8 | S148: 9 | T148: 10 | U148: 11 | V148: 12 | W148: 13 | X148: 14 | Y148: 15 | Z148: 16 | AA148: 17 | AB148: 18 | AC148: 19 | AD148: 20 | AE148: 21 | AF148: 22 | AG148: 23 | AH148: 24 | AI148: 25 | AJ148: 26 | AK148: 27 | AL148: 28 | AM148: 29 | AN148: 30 | AO148: 31 | AP148: 32 | AQ148: 33 | AR148: 34 | AS148: 35 | AT148: 月 | AV148: EccのΣ | AW148: EaxcのΣ | AX148: Ecc | AY148: Eaxc | AZ148: Ec | BA148: Ecc | BB148: Eaxc | BC148: Ec | BD148: Ecc | BE148: Eaxc | BF148: Ec | BH148: Ecc | BI148: Eaxc | BJ148: Ec | BK148: Ecc | BL148: Eaxc | BM148: Ec | BN148: Ecc | BO148: Eaxc | BP148: Ec
C149: 4 | D149: =COUNTIF($D$117:$AA$117,$D$148)*$AB$12 -> 0 | E149: =COUNTIF($D$117:$AA$117,$E$148)*$AB$12 -> 0 | F149: =COUNTIF($D$117:$AA$117,$F$148)*$AB$12 -> 0 | G149: =COUNTIF($D$117:$AA$117,$G$148)*$AB$12 -> 0 | H149: =COUNTIF($D$117:$AA$117,$H$148)*$AB$12 -> 0 | I149: =COUNTIF($D$117:$AA$117,$I$148)*$AB$12 -> 0 | J149: =COUNTIF($D$117:$AA$117,$J$148)*$AB$12 -> 0 | K149: =COUNTIF($D$117:$AA$117,$K$148)*$AB$12 -> 0 | L149: =COUNTIF($D$117:$AA$117,$L$148)*$AB$12 -> 0 | M149: =COUNTIF($D$117:$AA$117,$M$148)*$AB$12 -> 0 | N149: =COUNTIF($D$117:$AA$117,$N$148)*$AB$12 -> 0 | O149: =COUNTIF($D$117:$AA$117,$O$148)*$AB$12 -> 0 | P149: =COUNTIF($D$117:$AA$117,$P$148)*$AB$12 -> 0 | Q149: =COUNTIF($D$117:$AA$117,$Q$148)*$AB$12 -> 0 | R149: =COUNTIF($D$117:$AA$117,$R$148)*$AB$12 -> 0 | S149: =COUNTIF($D$117:$AA$117,$S$148)*$AB$12 -> 0 | T149: =COUNTIF($D$117:$AA$117,$T$148)*$AB$12 -> 0 | U149: =COUNTIF($D$117:$AA$117,$U$148)*$AB$12 -> 0 | V149: =COUNTIF($D$117:$AA$117,$V$148)*$AB$12 -> 0 | W149: =COUNTIF($D$117:$AA$117,$W$148)*$AB$12 -> 0 | X149: =COUNTIF($D$117:$AA$117,$X$148)*$AB$12 -> 0 | Y149: =COUNTIF($D$117:$AA$117,$Y$148)*$AB$12 -> 0 | Z149: =COUNTIF($D$117:$AA$117,$Z$148)*$AB$12 -> 0 | AA149: =COUNTIF($D$117:$AA$117,$AA$148)*$AB$12 -> 0 | AB149: =COUNTIF($D$117:$AA$117,$AB$148)*$AB$12 -> 0 | AC149: =COUNTIF($D$117:$AA$117,$AC$148)*$AB$12 -> 0 | AD149: =COUNTIF($D$117:$AA$117,$AD$148)*$AB$12 -> 0 | AE149: =COUNTIF($D$117:$AA$117,$AE$148)*$AB$12 -> 0 | AF149: =COUNTIF($D$117:$AA$117,$AF$148)*$AB$12 -> 0 | AG149: =COUNTIF($D$117:$AA$117,$AG$148)*$AB$12 -> 0 | AH149: =COUNTIF($D$117:$AA$117,$AH$148)*$AB$12 -> 0 | AI149: =COUNTIF($D$117:$AA$117,$AI$148)*$AB$12 -> 0 | AJ149: =COUNTIF($D$117:$AA$117,$AJ$148)*$AB$12 -> 0 | AK149: =COUNTIF($D$117:$AA$117,$AK$148)*$AB$12 -> 0 | AL149: =COUNTIF($D$117:$AA$117,$AL$148)*$AB$12 -> 0 | AM149: =COUNTIF($D$117:$AA$117,$AM$148)*$AB$12 -> 0 | AN149: =COUNTIF($D$117:$AA$117,$AN$148)*$AB$12 -> 0 | AO149: =COUNTIF($D$117:$AA$117,$AO$148)*$AB$12 -> 0 | AP149: =COUNTIF($D$117:$AA$117,$AP$148)*$AB$12 -> 0 | AQ149: =COUNTIF($D$117:$AA$117,$AQ$148)*$AB$12 -> 0 | AR149: =COUNTIF($D$117:$AA$117,$AR$148)*$AB$12 -> 0 | AS149: =COUNTIF($D$117:$AA$117,$AS$148)*$AB$12 -> 0 | AT149: 4 | AV149: =SUMPRODUCT(D149:AS149,$D$162:$AS$162) -> 0 | AW149: =SUMPRODUCT(D149:AS149,$D$189:$AS$189) -> 0 | AX149: =$Q$29/($C$7*$Q$32)*$AV149 ->  | AY149: =$Q$36*$AW149 -> 0 | AZ149: =SUM(AX149:AY149) ->  | BA149: =$R$29/($C$7*$R$32)*$AV149 ->  | BB149: =$R$36*$AW149 -> 0 | BC149: =SUM(BA149:BB149) ->  | BD149: =$S$29/($C$7*$S$32)*$AV149 ->  | BE149: =$S$36*$AW149 -> 0 | BF149: =SUM(BD149:BE149) ->  | BH149: =$Q$43/($C$7*$Q$46)*$AV149 ->  | BI149: =$Q$50*$AW149 -> 0 | BJ149: =SUM(BH149:BI149) ->  | BK149: =$R$43/($C$7*$R$46)*$AV149 ->  | BL149: =$R$50*$AW149 -> 0 | BM149: =SUM(BK149:BL149) ->  | BN149: =$S$43/($C$7*$S$46)*$AV149 ->  | BO149: =$S$50*$AW149 -> 0 | BP149: =SUM(BN149:BO149) -> 
C150: 5 | D150: =COUNTIF($D$118:$AA$118,$D$148)*$AB$13 -> 0 | E150: =COUNTIF($D$118:$AA$118,$E$148)*$AB$13 -> 0 | F150: =COUNTIF($D$118:$AA$118,$F$148)*$AB$13 -> 0 | G150: =COUNTIF($D$118:$AA$118,$G$148)*$AB$13 -> 0 | H150: =COUNTIF($D$118:$AA$118,$H$148)*$AB$13 -> 0 | I150: =COUNTIF($D$118:$AA$118,$I$148)*$AB$13 -> 0 | J150: =COUNTIF($D$118:$AA$118,$J$148)*$AB$13 -> 0 | K150: =COUNTIF($D$118:$AA$118,$K$148)*$AB$13 -> 0 | L150: =COUNTIF($D$118:$AA$118,$L$148)*$AB$13 -> 0 | M150: =COUNTIF($D$118:$AA$118,$M$148)*$AB$13 -> 0 | N150: =COUNTIF($D$118:$AA$118,$N$148)*$AB$13 -> 0 | O150: =COUNTIF($D$118:$AA$118,$O$148)*$AB$13 -> 0 | P150: =COUNTIF($D$118:$AA$118,$P$148)*$AB$13 -> 0 | Q150: =COUNTIF($D$118:$AA$118,$Q$148)*$AB$13 -> 0 | R150: =COUNTIF($D$118:$AA$118,$R$148)*$AB$13 -> 0 | S150: =COUNTIF($D$118:$AA$118,$S$148)*$AB$13 -> 0 | T150: =COUNTIF($D$118:$AA$118,$T$148)*$AB$13 -> 0 | U150: =COUNTIF($D$118:$AA$118,$U$148)*$AB$13 -> 0 | V150: =COUNTIF($D$118:$AA$118,$V$148)*$AB$13 -> 0 | W150: =COUNTIF($D$118:$AA$118,$W$148)*$AB$13 -> 0 | X150: =COUNTIF($D$118:$AA$118,$X$148)*$AB$13 -> 0 | Y150: =COUNTIF($D$118:$AA$118,$Y$148)*$AB$13 -> 0 | Z150: =COUNTIF($D$118:$AA$118,$Z$148)*$AB$13 -> 0 | AA150: =COUNTIF($D$118:$AA$118,$AA$148)*$AB$13 -> 0 | AB150: =COUNTIF($D$118:$AA$118,$AB$148)*$AB$13 -> 0 | AC150: =COUNTIF($D$118:$AA$118,$AC$148)*$AB$13 -> 0 | AD150: =COUNTIF($D$118:$AA$118,$AD$148)*$AB$13 -> 0 | AE150: =COUNTIF($D$118:$AA$118,$AE$148)*$AB$13 -> 0 | AF150: =COUNTIF($D$118:$AA$118,$AF$148)*$AB$13 -> 0 | AG150: =COUNTIF($D$118:$AA$118,$AG$148)*$AB$13 -> 0 | AH150: =COUNTIF($D$118:$AA$118,$AH$148)*$AB$13 -> 0 | AI150: =COUNTIF($D$118:$AA$118,$AI$148)*$AB$13 -> 0 | AJ150: =COUNTIF($D$118:$AA$118,$AJ$148)*$AB$13 -> 0 | AK150: =COUNTIF($D$118:$AA$118,$AK$148)*$AB$13 -> 0 | AL150: =COUNTIF($D$118:$AA$118,$AL$148)*$AB$13 -> 0 | AM150: =COUNTIF($D$118:$AA$118,$AM$148)*$AB$13 -> 0 | AN150: =COUNTIF($D$118:$AA$118,$AN$148)*$AB$13 -> 0 | AO150: =COUNTIF($D$118:$AA$118,$AO$148)*$AB$13 -> 0 | AP150: =COUNTIF($D$118:$AA$118,$AP$148)*$AB$13 -> 0 | AQ150: =COUNTIF($D$118:$AA$118,$AQ$148)*$AB$13 -> 0 | AR150: =COUNTIF($D$118:$AA$118,$AR$148)*$AB$13 -> 0 | AS150: =COUNTIF($D$118:$AA$118,$AS$148)*$AD$13 -> 0 | AT150: 5 | AV150: =SUMPRODUCT(D150:AS150,$D$162:$AS$162) -> 0 | AW150: =SUMPRODUCT(D150:AS150,$D$189:$AS$189) -> 0 | AX150: =$Q$29/($C$7*$Q$32)*$AV150 ->  | AY150: =$Q$36*$AW150 -> 0 | AZ150: =SUM(AX150:AY150) ->  | BA150: =$R$29/($C$7*$R$32)*$AV150 ->  | BB150: =$R$36*$AW150 -> 0 | BC150: =SUM(BA150:BB150) ->  | BD150: =$S$29/($C$7*$S$32)*$AV150 ->  | BE150: =$S$36*$AW150 -> 0 | BF150: =SUM(BD150:BE150) ->  | BH150: =$Q$43/($C$7*$Q$46)*$AV150 ->  | BI150: =$Q$50*$AW150 -> 0 | BJ150: =SUM(BH150:BI150) ->  | BK150: =$R$43/($C$7*$R$46)*$AV150 ->  | BL150: =$R$50*$AW150 -> 0 | BM150: =SUM(BK150:BL150) ->  | BN150: =$S$43/($C$7*$S$46)*$AV150 ->  | BO150: =$S$50*$AW150 -> 0 | BP150: =SUM(BN150:BO150) -> 
C151: 6 | D151: =COUNTIF($D$119:$AA$119,$D$148)*$AB$14 -> 0 | E151: =COUNTIF($D$119:$AA$119,$E$148)*$AB$14 -> 0 | F151: =COUNTIF($D$119:$AA$119,$F$148)*$AB$14 -> 0 | G151: =COUNTIF($D$119:$AA$119,$G$148)*$AB$14 -> 0 | H151: =COUNTIF($D$119:$AA$119,$H$148)*$AB$14 -> 0 | I151: =COUNTIF($D$119:$AA$119,$I$148)*$AB$14 -> 0 | J151: =COUNTIF($D$119:$AA$119,$J$148)*$AB$14 -> 0 | K151: =COUNTIF($D$119:$AA$119,$K$148)*$AB$14 -> 0 | L151: =COUNTIF($D$119:$AA$119,$L$148)*$AB$14 -> 0 | M151: =COUNTIF($D$119:$AA$119,$M$148)*$AB$14 -> 0 | N151: =COUNTIF($D$119:$AA$119,$N$148)*$AB$14 -> 0 | O151: =COUNTIF($D$119:$AA$119,$O$148)*$AB$14 -> 0 | P151: =COUNTIF($D$119:$AA$119,$P$148)*$AB$14 -> 0 | Q151: =COUNTIF($D$119:$AA$119,$Q$148)*$AB$14 -> 0 | R151: =COUNTIF($D$119:$AA$119,$R$148)*$AB$14 -> 0 | S151: =COUNTIF($D$119:$AA$119,$S$148)*$AB$14 -> 0 | T151: =COUNTIF($D$119:$AA$119,$T$148)*$AB$14 -> 0 | U151: =COUNTIF($D$119:$AA$119,$U$148)*$AB$14 -> 0 | V151: =COUNTIF($D$119:$AA$119,$V$148)*$AB$14 -> 0 | W151: =COUNTIF($D$119:$AA$119,$W$148)*$AB$14 -> 0 | X151: =COUNTIF($D$119:$AA$119,$X$148)*$AB$14 -> 0 | Y151: =COUNTIF($D$119:$AA$119,$Y$148)*$AB$14 -> 0 | Z151: =COUNTIF($D$119:$AA$119,$Z$148)*$AB$14 -> 0 | AA151: =COUNTIF($D$119:$AA$119,$AA$148)*$AB$14 -> 0 | AB151: =COUNTIF($D$119:$AA$119,$AB$148)*$AB$14 -> 0 | AC151: =COUNTIF($D$119:$AA$119,$AC$148)*$AB$14 -> 0 | AD151: =COUNTIF($D$119:$AA$119,$AD$148)*$AB$14 -> 0 | AE151: =COUNTIF($D$119:$AA$119,$AE$148)*$AB$14 -> 0 | AF151: =COUNTIF($D$119:$AA$119,$AF$148)*$AB$14 -> 0 | AG151: =COUNTIF($D$119:$AA$119,$AG$148)*$AB$14 -> 0 | AH151: =COUNTIF($D$119:$AA$119,$AH$148)*$AB$14 -> 0 | AI151: =COUNTIF($D$119:$AA$119,$AI$148)*$AB$14 -> 0 | AJ151: =COUNTIF($D$119:$AA$119,$AJ$148)*$AB$14 -> 0 | AK151: =COUNTIF($D$119:$AA$119,$AK$148)*$AB$14 -> 0 | AL151: =COUNTIF($D$119:$AA$119,$AL$148)*$AB$14 -> 0 | AM151: =COUNTIF($D$119:$AA$119,$AM$148)*$AB$14 -> 0 | AN151: =COUNTIF($D$119:$AA$119,$AN$148)*$AB$14 -> 0 | AO151: =COUNTIF($D$119:$AA$119,$AO$148)*$AB$14 -> 0 | AP151: =COUNTIF($D$119:$AA$119,$AP$148)*$AB$14 -> 0 | AQ151: =COUNTIF($D$119:$AA$119,$AQ$148)*$AB$14 -> 0 | AR151: =COUNTIF($D$119:$AA$119,$AR$148)*$AB$14 -> 0 | AS151: =COUNTIF($D$119:$AA$119,$AS$148)*$AB$14 -> 0 | AT151: 6 | AV151: 0 | AW151: 0 | AY151: 0 | BB151: 0 | BE151: 0 | BI151: 0 | BL151: 0 | BO151: 0
C152: 7 | D152: =COUNTIF($D$120:$AA$120,$D$148)*$AB$15 -> 0 | E152: =COUNTIF($D$120:$AA$120,$E$148)*$AB$15 -> 0 | F152: =COUNTIF($D$120:$AA$120,$F$148)*$AB$15 -> 0 | G152: =COUNTIF($D$120:$AA$120,$G$148)*$AB$15 -> 0 | H152: =COUNTIF($D$120:$AA$120,$H$148)*$AB$15 -> 0 | I152: =COUNTIF($D$120:$AA$120,$I$148)*$AB$15 -> 0 | J152: =COUNTIF($D$120:$AA$120,$J$148)*$AB$15 -> 0 | K152: =COUNTIF($D$120:$AA$120,$K$148)*$AB$15 -> 0 | L152: =COUNTIF($D$120:$AA$120,$L$148)*$AB$15 -> 0 | M152: =COUNTIF($D$120:$AA$120,$M$148)*$AB$15 -> 0 | N152: =COUNTIF($D$120:$AA$120,$N$148)*$AB$15 -> 0 | O152: =COUNTIF($D$120:$AA$120,$O$148)*$AB$15 -> 0 | P152: =COUNTIF($D$120:$AA$120,$P$148)*$AB$15 -> 0 | Q152: =COUNTIF($D$120:$AA$120,$Q$148)*$AB$15 -> 0 | R152: =COUNTIF($D$120:$AA$120,$R$148)*$AB$15 -> 0 | S152: =COUNTIF($D$120:$AA$120,$S$148)*$AB$15 -> 0 | T152: =COUNTIF($D$120:$AA$120,$T$148)*$AB$15 -> 0 | U152: =COUNTIF($D$120:$AA$120,$U$148)*$AB$15 -> 0 | V152: =COUNTIF($D$120:$AA$120,$V$148)*$AB$15 -> 0 | W152: =COUNTIF($D$120:$AA$120,$W$148)*$AB$15 -> 0 | X152: =COUNTIF($D$120:$AA$120,$X$148)*$AB$15 -> 0 | Y152: =COUNTIF($D$120:$AA$120,$Y$148)*$AB$15 -> 0 | Z152: =COUNTIF($D$120:$AA$120,$Z$148)*$AB$15 -> 0 | AA152: =COUNTIF($D$120:$AA$120,$AA$148)*$AB$15 -> 0 | AB152: =COUNTIF($D$120:$AA$120,$AB$148)*$AB$15 -> 0 | AC152: =COUNTIF($D$120:$AA$120,$AC$148)*$AB$15 -> 0 | AD152: =COUNTIF($D$120:$AA$120,$AD$148)*$AB$15 -> 0 | AE152: =COUNTIF($D$120:$AA$120,$AE$148)*$AB$15 -> 0 | AF152: =COUNTIF($D$120:$AA$120,$AF$148)*$AB$15 -> 0 | AG152: =COUNTIF($D$120:$AA$120,$AG$148)*$AB$15 -> 0 | AH152: =COUNTIF($D$120:$AA$120,$AH$148)*$AB$15 -> 0 | AI152: =COUNTIF($D$120:$AA$120,$AI$148)*$AB$15 -> 0 | AJ152: =COUNTIF($D$120:$AA$120,$AJ$148)*$AB$15 -> 0 | AK152: =COUNTIF($D$120:$AA$120,$AK$148)*$AB$15 -> 0 | AL152: =COUNTIF($D$120:$AA$120,$AL$148)*$AB$15 -> 0 | AM152: =COUNTIF($D$120:$AA$120,$AM$148)*$AB$15 -> 0 | AN152: =COUNTIF($D$120:$AA$120,$AN$148)*$AB$15 -> 0 | AO152: =COUNTIF($D$120:$AA$120,$AO$148)*$AB$15 -> 0 | AP152: =COUNTIF($D$120:$AA$120,$AP$148)*$AB$15 -> 0 | AQ152: =COUNTIF($D$120:$AA$120,$AQ$148)*$AB$15 -> 0 | AR152: =COUNTIF($D$120:$AA$120,$AR$148)*$AB$15 -> 0 | AS152: =COUNTIF($D$120:$AA$120,$AS$148)*$AB$15 -> 0 | AT152: 7 | AV152: 0 | AW152: 0 | AY152: 0 | BB152: 0 | BE152: 0 | BI152: 0 | BL152: 0 | BO152: 0
C153: 8 | D153: =COUNTIF($D$121:$AA$121,$D$148)*$AB$16 -> 0 | E153: =COUNTIF($D$121:$AA$121,$E$148)*$AB$16 -> 0 | F153: =COUNTIF($D$121:$AA$121,$F$148)*$AB$16 -> 0 | G153: =COUNTIF($D$121:$AA$121,$G$148)*$AB$16 -> 0 | H153: =COUNTIF($D$121:$AA$121,$H$148)*$AB$16 -> 0 | I153: =COUNTIF($D$121:$AA$121,$I$148)*$AB$16 -> 0 | J153: =COUNTIF($D$121:$AA$121,$J$148)*$AB$16 -> 0 | K153: =COUNTIF($D$121:$AA$121,$K$148)*$AB$16 -> 0 | L153: =COUNTIF($D$121:$AA$121,$L$148)*$AB$16 -> 0 | M153: =COUNTIF($D$121:$AA$121,$M$148)*$AB$16 -> 0 | N153: =COUNTIF($D$121:$AA$121,$N$148)*$AB$16 -> 0 | O153: =COUNTIF($D$121:$AA$121,$O$148)*$AB$16 -> 0 | P153: =COUNTIF($D$121:$AA$121,$P$148)*$AB$16 -> 0 | Q153: =COUNTIF($D$121:$AA$121,$Q$148)*$AB$16 -> 0 | R153: =COUNTIF($D$121:$AA$121,$R$148)*$AB$16 -> 0 | S153: =COUNTIF($D$121:$AA$121,$S$148)*$AB$16 -> 0 | T153: =COUNTIF($D$121:$AA$121,$T$148)*$AB$16 -> 0 | U153: =COUNTIF($D$121:$AA$121,$U$148)*$AB$16 -> 0 | V153: =COUNTIF($D$121:$AA$121,$V$148)*$AB$16 -> 0 | W153: =COUNTIF($D$121:$AA$121,$W$148)*$AB$16 -> 0 | X153: =COUNTIF($D$121:$AA$121,$X$148)*$AB$16 -> 0 | Y153: =COUNTIF($D$121:$AA$121,$Y$148)*$AB$16 -> 0 | Z153: =COUNTIF($D$121:$AA$121,$Z$148)*$AB$16 -> 0 | AA153: =COUNTIF($D$121:$AA$121,$AA$148)*$AB$16 -> 0 | AB153: =COUNTIF($D$121:$AA$121,$AB$148)*$AB$16 -> 0 | AC153: =COUNTIF($D$121:$AA$121,$AC$148)*$AB$16 -> 0 | AD153: =COUNTIF($D$121:$AA$121,$AD$148)*$AB$16 -> 0 | AE153: =COUNTIF($D$121:$AA$121,$AE$148)*$AB$16 -> 0 | AF153: =COUNTIF($D$121:$AA$121,$AF$148)*$AB$16 -> 0 | AG153: =COUNTIF($D$121:$AA$121,$AG$148)*$AB$16 -> 0 | AH153: =COUNTIF($D$121:$AA$121,$AH$148)*$AB$16 -> 0 | AI153: =COUNTIF($D$121:$AA$121,$AI$148)*$AB$16 -> 0 | AJ153: =COUNTIF($D$121:$AA$121,$AJ$148)*$AB$16 -> 0 | AK153: =COUNTIF($D$121:$AA$121,$AK$148)*$AB$16 -> 0 | AL153: =COUNTIF($D$121:$AA$121,$AL$148)*$AB$16 -> 0 | AM153: =COUNTIF($D$121:$AA$121,$AM$148)*$AB$16 -> 0 | AN153: =COUNTIF($D$121:$AA$121,$AN$148)*$AB$16 -> 0 | AO153: =COUNTIF($D$121:$AA$121,$AO$148)*$AB$16 -> 0 | AP153: =COUNTIF($D$121:$AA$121,$AP$148)*$AB$16 -> 0 | AQ153: =COUNTIF($D$121:$AA$121,$AQ$148)*$AB$16 -> 0 | AR153: =COUNTIF($D$121:$AA$121,$AR$148)*$AB$16 -> 0 | AS153: =COUNTIF($D$121:$AA$121,$AS$148)*$AB$16 -> 0 | AT153: 8 | AV153: 0 | AW153: 0 | AY153: 0 | BB153: 0 | BE153: 0 | BI153: 0 | BL153: 0 | BO153: 0
C154: 9 | D154: =COUNTIF($D$122:$AA$122,$D$148)*$AB$17 -> 0 | E154: =COUNTIF($D$122:$AA$122,$E$148)*$AB$17 -> 0 | F154: =COUNTIF($D$122:$AA$122,$F$148)*$AB$17 -> 0 | G154: =COUNTIF($D$122:$AA$122,$G$148)*$AB$17 -> 0 | H154: =COUNTIF($D$122:$AA$122,$H$148)*$AB$17 -> 0 | I154: =COUNTIF($D$122:$AA$122,$I$148)*$AB$17 -> 0 | J154: =COUNTIF($D$122:$AA$122,$J$148)*$AB$17 -> 0 | K154: =COUNTIF($D$122:$AA$122,$K$148)*$AB$17 -> 0 | L154: =COUNTIF($D$122:$AA$122,$L$148)*$AB$17 -> 0 | M154: =COUNTIF($D$122:$AA$122,$M$148)*$AB$17 -> 0 | N154: =COUNTIF($D$122:$AA$122,$N$148)*$AB$17 -> 0 | O154: =COUNTIF($D$122:$AA$122,$O$148)*$AB$17 -> 0 | P154: =COUNTIF($D$122:$AA$122,$P$148)*$AB$17 -> 0 | Q154: =COUNTIF($D$122:$AA$122,$Q$148)*$AB$17 -> 0 | R154: =COUNTIF($D$122:$AA$122,$R$148)*$AB$17 -> 0 | S154: =COUNTIF($D$122:$AA$122,$S$148)*$AB$17 -> 0 | T154: =COUNTIF($D$122:$AA$122,$T$148)*$AB$17 -> 0 | U154: =COUNTIF($D$122:$AA$122,$U$148)*$AB$17 -> 0 | V154: =COUNTIF($D$122:$AA$122,$V$148)*$AB$17 -> 0 | W154: =COUNTIF($D$122:$AA$122,$W$148)*$AB$17 -> 0 | X154: =COUNTIF($D$122:$AA$122,$X$148)*$AB$17 -> 0 | Y154: =COUNTIF($D$122:$AA$122,$Y$148)*$AB$17 -> 0 | Z154: =COUNTIF($D$122:$AA$122,$Z$148)*$AB$17 -> 0 | AA154: =COUNTIF($D$122:$AA$122,$AA$148)*$AB$17 -> 0 | AB154: =COUNTIF($D$122:$AA$122,$AB$148)*$AB$17 -> 0 | AC154: =COUNTIF($D$122:$AA$122,$AC$148)*$AB$17 -> 0 | AD154: =COUNTIF($D$122:$AA$122,$AD$148)*$AB$17 -> 0 | AE154: =COUNTIF($D$122:$AA$122,$AE$148)*$AB$17 -> 0 | AF154: =COUNTIF($D$122:$AA$122,$AF$148)*$AB$17 -> 0 | AG154: =COUNTIF($D$122:$AA$122,$AG$148)*$AB$17 -> 0 | AH154: =COUNTIF($D$122:$AA$122,$AH$148)*$AB$17 -> 0 | AI154: =COUNTIF($D$122:$AA$122,$AI$148)*$AB$17 -> 0 | AJ154: =COUNTIF($D$122:$AA$122,$AJ$148)*$AB$17 -> 0 | AK154: =COUNTIF($D$122:$AA$122,$AK$148)*$AB$17 -> 0 | AL154: =COUNTIF($D$122:$AA$122,$AL$148)*$AB$17 -> 0 | AM154: =COUNTIF($D$122:$AA$122,$AM$148)*$AB$17 -> 0 | AN154: =COUNTIF($D$122:$AA$122,$AN$148)*$AB$17 -> 0 | AO154: =COUNTIF($D$122:$AA$122,$AO$148)*$AB$17 -> 0 | AP154: =COUNTIF($D$122:$AA$122,$AP$148)*$AB$17 -> 0 | AQ154: =COUNTIF($D$122:$AA$122,$AQ$148)*$AB$17 -> 0 | AR154: =COUNTIF($D$122:$AA$122,$AR$148)*$AB$17 -> 0 | AS154: =COUNTIF($D$122:$AA$122,$AS$148)*$AB$17 -> 0 | AT154: 9 | AV154: 0 | AW154: 0 | AY154: 0 | BB154: 0 | BC154: =SUM(BA154:BB154) ->  | BE154: =$S$36*$AW154 -> 0 | BI154: 0 | BL154: 0 | BO154: 0
C155: 10 | D155: =COUNTIF($D$123:$AA$123,$D$148)*$AB$18 -> 0 | E155: =COUNTIF($D$123:$AA$123,$E$148)*$AB$18 -> 0 | F155: =COUNTIF($D$123:$AA$123,$F$148)*$AB$18 -> 0 | G155: =COUNTIF($D$123:$AA$123,$G$148)*$AB$18 -> 0 | H155: =COUNTIF($D$123:$AA$123,$H$148)*$AB$18 -> 0 | I155: =COUNTIF($D$123:$AA$123,$I$148)*$AB$18 -> 0 | J155: =COUNTIF($D$123:$AA$123,$J$148)*$AB$18 -> 0 | K155: =COUNTIF($D$123:$AA$123,$K$148)*$AB$18 -> 0 | L155: =COUNTIF($D$123:$AA$123,$L$148)*$AB$18 -> 0 | M155: =COUNTIF($D$123:$AA$123,$M$148)*$AB$18 -> 0 | N155: =COUNTIF($D$123:$AA$123,$N$148)*$AB$18 -> 0 | O155: =COUNTIF($D$123:$AA$123,$O$148)*$AB$18 -> 0 | P155: =COUNTIF($D$123:$AA$123,$P$148)*$AB$18 -> 0 | Q155: =COUNTIF($D$123:$AA$123,$Q$148)*$AB$18 -> 0 | R155: =COUNTIF($D$123:$AA$123,$R$148)*$AB$18 -> 0 | S155: =COUNTIF($D$123:$AA$123,$S$148)*$AB$18 -> 0 | T155: =COUNTIF($D$123:$AA$123,$T$148)*$AB$18 -> 0 | U155: =COUNTIF($D$123:$AA$123,$U$148)*$AB$18 -> 0 | V155: =COUNTIF($D$123:$AA$123,$V$148)*$AB$18 -> 0 | W155: =COUNTIF($D$123:$AA$123,$W$148)*$AB$18 -> 0 | X155: =COUNTIF($D$123:$AA$123,$X$148)*$AB$18 -> 0 | Y155: =COUNTIF($D$123:$AA$123,$Y$148)*$AB$18 -> 0 | Z155: =COUNTIF($D$123:$AA$123,$Z$148)*$AB$18 -> 0 | AA155: =COUNTIF($D$123:$AA$123,$AA$148)*$AB$18 -> 0 | AB155: =COUNTIF($D$123:$AA$123,$AB$148)*$AB$18 -> 0 | AC155: =COUNTIF($D$123:$AA$123,$AC$148)*$AB$18 -> 0 | AD155: =COUNTIF($D$123:$AA$123,$AD$148)*$AB$18 -> 0 | AE155: =COUNTIF($D$123:$AA$123,$AE$148)*$AB$18 -> 0 | AF155: =COUNTIF($D$123:$AA$123,$AF$148)*$AB$18 -> 0 | AG155: =COUNTIF($D$123:$AA$123,$AG$148)*$AB$18 -> 0 | AH155: =COUNTIF($D$123:$AA$123,$AH$148)*$AB$18 -> 0 | AI155: =COUNTIF($D$123:$AA$123,$AI$148)*$AB$18 -> 0 | AJ155: =COUNTIF($D$123:$AA$123,$AJ$148)*$AB$18 -> 0 | AK155: =COUNTIF($D$123:$AA$123,$AK$148)*$AB$18 -> 0 | AL155: =COUNTIF($D$123:$AA$123,$AL$148)*$AB$18 -> 0 | AM155: =COUNTIF($D$123:$AA$123,$AM$148)*$AB$18 -> 0 | AN155: =COUNTIF($D$123:$AA$123,$AN$148)*$AB$18 -> 0 | AO155: =COUNTIF($D$123:$AA$123,$AO$148)*$AB$18 -> 0 | AP155: =COUNTIF($D$123:$AA$123,$AP$148)*$AB$18 -> 0 | AQ155: =COUNTIF($D$123:$AA$123,$AQ$148)*$AB$18 -> 0 | AR155: =COUNTIF($D$123:$AA$123,$AR$148)*$AB$18 -> 0 | AS155: =COUNTIF($D$123:$AA$123,$AS$148)*$AB$18 -> 0 | AT155: 10 | AV155: 0 | AW155: 0 | AY155: 0 | BB155: 0 | BE155: 0 | BI155: 0 | BL155: 0 | BO155: 0
C156: 11 | D156: =COUNTIF($D$124:$AA$124,$D$148)*$AB$19 -> 0 | E156: =COUNTIF($D$124:$AA$124,$E$148)*$AB$19 -> 0 | F156: =COUNTIF($D$124:$AA$124,$F$148)*$AB$19 -> 0 | G156: =COUNTIF($D$124:$AA$124,$G$148)*$AB$19 -> 0 | H156: =COUNTIF($D$124:$AA$124,$H$148)*$AB$19 -> 0 | I156: =COUNTIF($D$124:$AA$124,$I$148)*$AB$19 -> 0 | J156: =COUNTIF($D$124:$AA$124,$J$148)*$AB$19 -> 0 | K156: =COUNTIF($D$124:$AA$124,$K$148)*$AB$19 -> 0 | L156: =COUNTIF($D$124:$AA$124,$L$148)*$AB$19 -> 0 | M156: =COUNTIF($D$124:$AA$124,$M$148)*$AB$19 -> 0 | N156: =COUNTIF($D$124:$AA$124,$N$148)*$AB$19 -> 0 | O156: =COUNTIF($D$124:$AA$124,$O$148)*$AB$19 -> 0 | P156: =COUNTIF($D$124:$AA$124,$P$148)*$AB$19 -> 0 | Q156: =COUNTIF($D$124:$AA$124,$Q$148)*$AB$19 -> 0 | R156: =COUNTIF($D$124:$AA$124,$R$148)*$AB$19 -> 0 | S156: =COUNTIF($D$124:$AA$124,$S$148)*$AB$19 -> 0 | T156: =COUNTIF($D$124:$AA$124,$T$148)*$AB$19 -> 0 | U156: =COUNTIF($D$124:$AA$124,$U$148)*$AB$19 -> 0 | V156: =COUNTIF($D$124:$AA$124,$V$148)*$AB$19 -> 0 | W156: =COUNTIF($D$124:$AA$124,$W$148)*$AB$19 -> 0 | X156: =COUNTIF($D$124:$AA$124,$X$148)*$AB$19 -> 0 | Y156: =COUNTIF($D$124:$AA$124,$Y$148)*$AB$19 -> 0 | Z156: =COUNTIF($D$124:$AA$124,$Z$148)*$AB$19 -> 0 | AA156: =COUNTIF($D$124:$AA$124,$AA$148)*$AB$19 -> 0 | AB156: =COUNTIF($D$124:$AA$124,$AB$148)*$AB$19 -> 0 | AC156: =COUNTIF($D$124:$AA$124,$AC$148)*$AB$19 -> 0 | AD156: =COUNTIF($D$124:$AA$124,$AD$148)*$AB$19 -> 0 | AE156: =COUNTIF($D$124:$AA$124,$AE$148)*$AB$19 -> 0 | AF156: =COUNTIF($D$124:$AA$124,$AF$148)*$AB$19 -> 0 | AG156: =COUNTIF($D$124:$AA$124,$AG$148)*$AB$19 -> 0 | AH156: =COUNTIF($D$124:$AA$124,$AH$148)*$AB$19 -> 0 | AI156: =COUNTIF($D$124:$AA$124,$AI$148)*$AB$19 -> 0 | AJ156: =COUNTIF($D$124:$AA$124,$AJ$148)*$AB$19 -> 0 | AK156: =COUNTIF($D$124:$AA$124,$AK$148)*$AB$19 -> 0 | AL156: =COUNTIF($D$124:$AA$124,$AL$148)*$AB$19 -> 0 | AM156: =COUNTIF($D$124:$AA$124,$AM$148)*$AB$19 -> 0 | AN156: =COUNTIF($D$124:$AA$124,$AN$148)*$AB$19 -> 0 | AO156: =COUNTIF($D$124:$AA$124,$AO$148)*$AB$19 -> 0 | AP156: =COUNTIF($D$124:$AA$124,$AP$148)*$AB$19 -> 0 | AQ156: =COUNTIF($D$124:$AA$124,$AQ$148)*$AB$19 -> 0 | AR156: =COUNTIF($D$124:$AA$124,$AR$148)*$AB$19 -> 0 | AS156: =COUNTIF($D$124:$AA$124,$AS$148)*$AB$19 -> 0 | AT156: 11 | AV156: 0 | AW156: 0 | AY156: 0 | BB156: 0 | BE156: 0 | BF156: =SUM(BD156:BE156) ->  | BI156: 0 | BL156: 0 | BO156: 0
C157: 12 | D157: =COUNTIF($D$125:$AA$125,$D$148)*$AB$20 -> 0 | E157: =COUNTIF($D$125:$AA$125,$E$148)*$AB$20 -> 0 | F157: =COUNTIF($D$125:$AA$125,$F$148)*$AB$20 -> 0 | G157: =COUNTIF($D$125:$AA$125,$G$148)*$AB$20 -> 0 | H157: =COUNTIF($D$125:$AA$125,$H$148)*$AB$20 -> 0 | I157: =COUNTIF($D$125:$AA$125,$I$148)*$AB$20 -> 0 | J157: =COUNTIF($D$125:$AA$125,$J$148)*$AB$20 -> 0 | K157: =COUNTIF($D$125:$AA$125,$K$148)*$AB$20 -> 0 | L157: =COUNTIF($D$125:$AA$125,$L$148)*$AB$20 -> 0 | M157: =COUNTIF($D$125:$AA$125,$M$148)*$AB$20 -> 0 | N157: =COUNTIF($D$125:$AA$125,$N$148)*$AB$20 -> 0 | O157: =COUNTIF($D$125:$AA$125,$O$148)*$AB$20 -> 0 | P157: =COUNTIF($D$125:$AA$125,$P$148)*$AB$20 -> 0 | Q157: =COUNTIF($D$125:$AA$125,$Q$148)*$AB$20 -> 0 | R157: =COUNTIF($D$125:$AA$125,$R$148)*$AB$20 -> 0 | S157: =COUNTIF($D$125:$AA$125,$S$148)*$AB$20 -> 0 | T157: =COUNTIF($D$125:$AA$125,$T$148)*$AB$20 -> 0 | U157: =COUNTIF($D$125:$AA$125,$U$148)*$AB$20 -> 0 | V157: =COUNTIF($D$125:$AA$125,$V$148)*$AB$20 -> 0 | W157: =COUNTIF($D$125:$AA$125,$W$148)*$AB$20 -> 0 | X157: =COUNTIF($D$125:$AA$125,$X$148)*$AB$20 -> 0 | Y157: =COUNTIF($D$125:$AA$125,$Y$148)*$AB$20 -> 0 | Z157: =COUNTIF($D$125:$AA$125,$Z$148)*$AB$20 -> 0 | AA157: =COUNTIF($D$125:$AA$125,$AA$148)*$AB$20 -> 0 | AB157: =COUNTIF($D$125:$AA$125,$AB$148)*$AB$20 -> 0 | AC157: =COUNTIF($D$125:$AA$125,$AC$148)*$AB$20 -> 0 | AD157: =COUNTIF($D$125:$AA$125,$AD$148)*$AB$20 -> 0 | AE157: =COUNTIF($D$125:$AA$125,$AE$148)*$AB$20 -> 0 | AF157: =COUNTIF($D$125:$AA$125,$AF$148)*$AB$20 -> 0 | AG157: =COUNTIF($D$125:$AA$125,$AG$148)*$AB$20 -> 0 | AH157: =COUNTIF($D$125:$AA$125,$AH$148)*$AB$20 -> 0 | AI157: =COUNTIF($D$125:$AA$125,$AI$148)*$AB$20 -> 0 | AJ157: =COUNTIF($D$125:$AA$125,$AJ$148)*$AB$20 -> 0 | AK157: =COUNTIF($D$125:$AA$125,$AK$148)*$AB$20 -> 0 | AL157: =COUNTIF($D$125:$AA$125,$AL$148)*$AB$20 -> 0 | AM157: =COUNTIF($D$125:$AA$125,$AM$148)*$AB$20 -> 0 | AN157: =COUNTIF($D$125:$AA$125,$AN$148)*$AB$20 -> 0 | AO157: =COUNTIF($D$125:$AA$125,$AO$148)*$AB$20 -> 0 | AP157: =COUNTIF($D$125:$AA$125,$AP$148)*$AB$20 -> 0 | AQ157: =COUNTIF($D$125:$AA$125,$AQ$148)*$AB$20 -> 0 | AR157: =COUNTIF($D$125:$AA$125,$AR$148)*$AB$20 -> 0 | AS157: =COUNTIF($D$125:$AA$125,$AS$148)*$AB$20 -> 0 | AT157: 12 | AV157: 0 | AW157: 0 | AY157: 0 | BB157: 0 | BE157: 0 | BI157: 0 | BL157: 0 | BO157: 0
C158: 1 | D158: =COUNTIF($D$126:$AA$126,$D$148)*$AB$21 -> 0 | E158: =COUNTIF($D$126:$AA$126,$E$148)*$AB$21 -> 0 | F158: =COUNTIF($D$126:$AA$126,$F$148)*$AB$21 -> 0 | G158: =COUNTIF($D$126:$AA$126,$G$148)*$AB$21 -> 0 | H158: =COUNTIF($D$126:$AA$126,$H$148)*$AB$21 -> 0 | I158: =COUNTIF($D$126:$AA$126,$I$148)*$AB$21 -> 0 | J158: =COUNTIF($D$126:$AA$126,$J$148)*$AB$21 -> 0 | K158: =COUNTIF($D$126:$AA$126,$K$148)*$AB$21 -> 0 | L158: =COUNTIF($D$126:$AA$126,$L$148)*$AB$21 -> 0 | M158: =COUNTIF($D$126:$AA$126,$M$148)*$AB$21 -> 0 | N158: =COUNTIF($D$126:$AA$126,$N$148)*$AB$21 -> 0 | O158: =COUNTIF($D$126:$AA$126,$O$148)*$AB$21 -> 0 | P158: =COUNTIF($D$126:$AA$126,$P$148)*$AB$21 -> 0 | Q158: =COUNTIF($D$126:$AA$126,$Q$148)*$AB$21 -> 0 | R158: =COUNTIF($D$126:$AA$126,$R$148)*$AB$21 -> 0 | S158: =COUNTIF($D$126:$AA$126,$S$148)*$AB$21 -> 0 | T158: =COUNTIF($D$126:$AA$126,$T$148)*$AB$21 -> 0 | U158: =COUNTIF($D$126:$AA$126,$U$148)*$AB$21 -> 0 | V158: =COUNTIF($D$126:$AA$126,$V$148)*$AB$21 -> 0 | W158: =COUNTIF($D$126:$AA$126,$W$148)*$AB$21 -> 0 | X158: =COUNTIF($D$126:$AA$126,$X$148)*$AB$21 -> 0 | Y158: =COUNTIF($D$126:$AA$126,$Y$148)*$AB$21 -> 0 | Z158: =COUNTIF($D$126:$AA$126,$Z$148)*$AB$21 -> 0 | AA158: =COUNTIF($D$126:$AA$126,$AA$148)*$AB$21 -> 0 | AB158: =COUNTIF($D$126:$AA$126,$AB$148)*$AB$21 -> 0 | AC158: =COUNTIF($D$126:$AA$126,$AC$148)*$AB$21 -> 0 | AD158: =COUNTIF($D$126:$AA$126,$AD$148)*$AB$21 -> 0 | AE158: =COUNTIF($D$126:$AA$126,$AE$148)*$AB$21 -> 0 | AF158: =COUNTIF($D$126:$AA$126,$AF$148)*$AB$21 -> 0 | AG158: =COUNTIF($D$126:$AA$126,$AG$148)*$AB$21 -> 0 | AH158: =COUNTIF($D$126:$AA$126,$AH$148)*$AB$21 -> 0 | AI158: =COUNTIF($D$126:$AA$126,$AI$148)*$AB$21 -> 0 | AJ158: =COUNTIF($D$126:$AA$126,$AJ$148)*$AB$21 -> 0 | AK158: =COUNTIF($D$126:$AA$126,$AK$148)*$AB$21 -> 0 | AL158: =COUNTIF($D$126:$AA$126,$AL$148)*$AB$21 -> 0 | AM158: =COUNTIF($D$126:$AA$126,$AM$148)*$AB$21 -> 0 | AN158: =COUNTIF($D$126:$AA$126,$AN$148)*$AB$21 -> 0 | AO158: =COUNTIF($D$126:$AA$126,$AO$148)*$AB$21 -> 0 | AP158: =COUNTIF($D$126:$AA$126,$AP$148)*$AB$21 -> 0 | AQ158: =COUNTIF($D$126:$AA$126,$AQ$148)*$AB$21 -> 0 | AR158: =COUNTIF($D$126:$AA$126,$AR$148)*$AB$21 -> 0 | AS158: =COUNTIF($D$126:$AA$126,$AS$148)*$AB$21 -> 0 | AT158: 1 | AV158: 0 | AW158: 0 | AY158: 0 | BB158: 0 | BE158: 0 | BI158: 0 | BL158: 0 | BO158: 0
C159: 2 | D159: =COUNTIF($D$127:$AA$127,$D$148)*$AB$22 -> 0 | E159: =COUNTIF($D$127:$AA$127,$E$148)*$AB$22 -> 0 | F159: =COUNTIF($D$127:$AA$127,$F$148)*$AB$22 -> 0 | G159: =COUNTIF($D$127:$AA$127,$G$148)*$AB$22 -> 0 | H159: =COUNTIF($D$127:$AA$127,$H$148)*$AB$22 -> 0 | I159: =COUNTIF($D$127:$AA$127,$I$148)*$AB$22 -> 0 | J159: =COUNTIF($D$127:$AA$127,$J$148)*$AB$22 -> 0 | K159: =COUNTIF($D$127:$AA$127,$K$148)*$AB$22 -> 0 | L159: =COUNTIF($D$127:$AA$127,$L$148)*$AB$22 -> 0 | M159: =COUNTIF($D$127:$AA$127,$M$148)*$AB$22 -> 0 | N159: =COUNTIF($D$127:$AA$127,$N$148)*$AB$22 -> 0 | O159: =COUNTIF($D$127:$AA$127,$O$148)*$AB$22 -> 0 | P159: =COUNTIF($D$127:$AA$127,$P$148)*$AB$22 -> 0 | Q159: =COUNTIF($D$127:$AA$127,$Q$148)*$AB$22 -> 0 | R159: =COUNTIF($D$127:$AA$127,$R$148)*$AB$22 -> 0 | S159: =COUNTIF($D$127:$AA$127,$S$148)*$AB$22 -> 0 | T159: =COUNTIF($D$127:$AA$127,$T$148)*$AB$22 -> 0 | U159: =COUNTIF($D$127:$AA$127,$U$148)*$AB$22 -> 0 | V159: =COUNTIF($D$127:$AA$127,$V$148)*$AB$22 -> 0 | W159: =COUNTIF($D$127:$AA$127,$W$148)*$AB$22 -> 0 | X159: =COUNTIF($D$127:$AA$127,$X$148)*$AB$22 -> 0 | Y159: =COUNTIF($D$127:$AA$127,$Y$148)*$AB$22 -> 0 | Z159: =COUNTIF($D$127:$AA$127,$Z$148)*$AB$22 -> 0 | AA159: =COUNTIF($D$127:$AA$127,$AA$148)*$AB$22 -> 0 | AB159: =COUNTIF($D$127:$AA$127,$AB$148)*$AB$22 -> 0 | AC159: =COUNTIF($D$127:$AA$127,$AC$148)*$AB$22 -> 0 | AD159: =COUNTIF($D$127:$AA$127,$AD$148)*$AB$22 -> 0 | AE159: =COUNTIF($D$127:$AA$127,$AE$148)*$AB$22 -> 0 | AF159: =COUNTIF($D$127:$AA$127,$AF$148)*$AB$22 -> 0 | AG159: =COUNTIF($D$127:$AA$127,$AG$148)*$AB$22 -> 0 | AH159: =COUNTIF($D$127:$AA$127,$AH$148)*$AB$22 -> 0 | AI159: =COUNTIF($D$127:$AA$127,$AI$148)*$AB$22 -> 0 | AJ159: =COUNTIF($D$127:$AA$127,$AJ$148)*$AB$22 -> 0 | AK159: =COUNTIF($D$127:$AA$127,$AK$148)*$AB$22 -> 0 | AL159: =COUNTIF($D$127:$AA$127,$AL$148)*$AB$22 -> 0 | AM159: =COUNTIF($D$127:$AA$127,$AM$148)*$AB$22 -> 0 | AN159: =COUNTIF($D$127:$AA$127,$AN$148)*$AB$22 -> 0 | AO159: =COUNTIF($D$127:$AA$127,$AO$148)*$AB$22 -> 0 | AP159: =COUNTIF($D$127:$AA$127,$AP$148)*$AB$22 -> 0 | AQ159: =COUNTIF($D$127:$AA$127,$AQ$148)*$AB$22 -> 0 | AR159: =COUNTIF($D$127:$AA$127,$AR$148)*$AB$22 -> 0 | AS159: =COUNTIF($D$127:$AA$127,$AS$148)*$AB$22 -> 0 | AT159: 2 | AV159: 0 | AW159: 0 | AY159: 0 | BB159: 0 | BE159: 0 | BI159: 0 | BL159: 0 | BO159: 0
C160: 3 | D160: =COUNTIF($D$128:$AA$128,$D$148)*$AB$23 -> 0 | E160: =COUNTIF($D$128:$AA$128,$E$148)*$AB$23 -> 0 | F160: =COUNTIF($D$128:$AA$128,$F$148)*$AB$23 -> 0 | G160: =COUNTIF($D$128:$AA$128,$G$148)*$AB$23 -> 0 | H160: =COUNTIF($D$128:$AA$128,$H$148)*$AB$23 -> 0 | I160: =COUNTIF($D$128:$AA$128,$I$148)*$AB$23 -> 0 | J160: =COUNTIF($D$128:$AA$128,$J$148)*$AB$23 -> 0 | K160: =COUNTIF($D$128:$AA$128,$K$148)*$AB$23 -> 0 | L160: =COUNTIF($D$128:$AA$128,$L$148)*$AB$23 -> 0 | M160: =COUNTIF($D$128:$AA$128,$M$148)*$AB$23 -> 0 | N160: =COUNTIF($D$128:$AA$128,$N$148)*$AB$23 -> 0 | O160: =COUNTIF($D$128:$AA$128,$O$148)*$AB$23 -> 0 | P160: =COUNTIF($D$128:$AA$128,$P$148)*$AB$23 -> 0 | Q160: =COUNTIF($D$128:$AA$128,$Q$148)*$AB$23 -> 0 | R160: =COUNTIF($D$128:$AA$128,$R$148)*$AB$23 -> 0 | S160: =COUNTIF($D$128:$AA$128,$S$148)*$AB$23 -> 0 | T160: =COUNTIF($D$128:$AA$128,$T$148)*$AB$23 -> 0 | U160: =COUNTIF($D$128:$AA$128,$U$148)*$AB$23 -> 0 | V160: =COUNTIF($D$128:$AA$128,$V$148)*$AB$23 -> 0 | W160: =COUNTIF($D$128:$AA$128,$W$148)*$AB$23 -> 0 | X160: =COUNTIF($D$128:$AA$128,$X$148)*$AB$23 -> 0 | Y160: =COUNTIF($D$128:$AA$128,$Y$148)*$AB$23 -> 0 | Z160: =COUNTIF($D$128:$AA$128,$Z$148)*$AB$23 -> 0 | AA160: =COUNTIF($D$128:$AA$128,$AA$148)*$AB$23 -> 0 | AB160: =COUNTIF($D$128:$AA$128,$AB$148)*$AB$23 -> 0 | AC160: =COUNTIF($D$128:$AA$128,$AC$148)*$AB$23 -> 0 | AD160: =COUNTIF($D$128:$AA$128,$AD$148)*$AB$23 -> 0 | AE160: =COUNTIF($D$128:$AA$128,$AE$148)*$AB$23 -> 0 | AF160: =COUNTIF($D$128:$AA$128,$AF$148)*$AB$23 -> 0 | AG160: =COUNTIF($D$128:$AA$128,$AG$148)*$AB$23 -> 0 | AH160: =COUNTIF($D$128:$AA$128,$AH$148)*$AB$23 -> 0 | AI160: =COUNTIF($D$128:$AA$128,$AI$148)*$AB$23 -> 0 | AJ160: =COUNTIF($D$128:$AA$128,$AJ$148)*$AB$23 -> 0 | AK160: =COUNTIF($D$128:$AA$128,$AK$148)*$AB$23 -> 0 | AL160: =COUNTIF($D$128:$AA$128,$AL$148)*$AB$23 -> 0 | AM160: =COUNTIF($D$128:$AA$128,$AM$148)*$AB$23 -> 0 | AN160: =COUNTIF($D$128:$AA$128,$AN$148)*$AB$23 -> 0 | AO160: =COUNTIF($D$128:$AA$128,$AO$148)*$AB$23 -> 0 | AP160: =COUNTIF($D$128:$AA$128,$AP$148)*$AB$23 -> 0 | AQ160: =COUNTIF($D$128:$AA$128,$AQ$148)*$AB$23 -> 0 | AR160: =COUNTIF($D$128:$AA$128,$AR$148)*$AB$23 -> 0 | AS160: =COUNTIF($D$128:$AA$128,$AS$148)*$AB$23 -> 0 | AT160: 3 | AV160: 0 | AW160: 0 | AY160: 0 | AZ160: =SUM(AX160:AY160) ->  | BB160: 0 | BC160: =SUM(BA160:BB160) ->  | BE160: 0 | BF160: =SUM(BD160:BE160) ->  | BI160: 0 | BJ160: =SUM(BH160:BI160) ->  | BL160: 0 | BM160: =SUM(BK160:BL160) ->  | BO160: 0 | BP160: =SUM(BN160:BO160) -> 
B161: tc | C161: 冷却運転時間 | D161: =SUM($D$149:$D$160) -> 0 | E161: =SUM($E$149:$E$160) -> 0 | F161: =SUM($F$149:$F$160) -> 0 | G161: =SUM($G$149:$G$160) -> 0 | H161: =SUM($H$149:$H$160) -> 0 | I161: =SUM($I$149:$I$160) -> 0 | J161: =SUM($J$149:$J$160) -> 0 | K161: =SUM($K$149:$K$160) -> 0 | L161: =SUM($L$149:$L$160) -> 0 | M161: =SUM($M$149:$M$160) -> 0 | N161: =SUM($N$149:$N$160) -> 0 | O161: =SUM($O$149:$O$160) -> 0 | P161: =SUM($P$149:$P$160) -> 0 | Q161: =SUM($Q$149:$Q$160) -> 0 | R161: =SUM($R$149:$R$160) -> 0 | S161: =SUM($S$149:$S$160) -> 0 | T161: =SUM($T$149:$T$160) -> 0 | U161: =SUM($U$149:$U$160) -> 0 | V161: =SUM($V$149:$V$160) -> 0 | W161: =SUM($W$149:$W$160) -> 0 | X161: =SUM($X$149:$X$160) -> 0 | Y161: =SUM($Y$149:$Y$160) -> 0 | Z161: =SUM($Z$149:$Z$160) -> 0 | AA161: =SUM($AA$149:$AA$160) -> 0 | AB161: =SUM($AB$149:$AB$160) -> 0 | AC161: =SUM($AC$149:$AC$160) -> 0 | AD161: =SUM($AD$149:$AD$160) -> 0 | AE161: =SUM($AE$149:$AE$160) -> 0 | AF161: =SUM($AF$149:$AF$160) -> 0 | AG161: =SUM($AG$149:$AG$160) -> 0 | AH161: =SUM($AH$149:$AH$160) -> 0 | AI161: =SUM($AI$149:$AI$160) -> 0 | AJ161: =SUM($AJ$149:$AJ$160) -> 0 | AK161: =SUM($AK$149:$AK$160) -> 0 | AL161: =SUM($AL$149:$AL$160) -> 0 | AM161: =SUM($AM$149:$AM$160) -> 0 | AN161: =SUM($AN$149:$AN$160) -> 0 | AO161: =SUM($AO$149:$AO$160) -> 0 | AP161: =SUM($AP$149:$AP$160) -> 0 | AQ161: =SUM($AQ$149:$AQ$160) -> 0 | AR161: =SUM($AR$149:$AR$160) -> 0 | AS161: =SUM($AS$149:$AS$160) -> 0 | AT161: 冷却運転時間 | AV161: =SUM(AV149:AV160) -> 0 | AW161: =SUM(AW149:AW160) -> 0 | AY161: 0 | BB161: 0 | BE161: 0 | BI161: =SUM(BI149:BI160) -> 0 | BJ161: =SUM(BJ149:BJ160) ->  | BK161: =SUM(BK149:BK160) ->  | BL161: =SUM(BL149:BL160) -> 0 | BM161: =SUM(BM149:BM160) ->  | BN161: =SUM(BN149:BN160) ->  | BO161: =SUM(BO149:BO160) -> 0 | BP161: =SUM(BP149:BP160) -> 
B162: εc | C162: 冷却時消費電力比 | D162: =$D$163/$D$164 -> 0 | E162: =$E$163/$E$164 -> 0 | F162: =$F$163/$F$164 -> 0 | G162: =$G$163/$G$164 -> 0 | H162: =$H$163/$H$164 -> 0 | I162: =$I$163/$I$164 -> 0 | J162: =$J$163/$J$164 -> 0 | K162: =$K$163/$K$164 -> 0 | L162: =$L$163/$L$164 -> 0 | M162: =$M$163/$M$164 -> 0 | N162: =$N$163/$N$164 -> 0 | O162: =$O$163/$O$164 -> 0 | P162: =$P$163/$P$164 -> 0 | Q162: =$Q$163/$Q$164 -> 0 | R162: =$R$163/$R$164 -> 0 | S162: =$S$163/$S$164 -> 0 | T162: =$T$163/$T$164 -> 0 | U162: =$U$163/$U$164 -> 0 | V162: =$V$163/$V$164 -> 0 | W162: =$W$163/$W$164 -> 0 | X162: =$X$163/$X$164 -> 0 | Y162: =$Y$163/$Y$164 -> 0 | Z162: =$Z$163/$Z$164 -> 0.02795495004 | AA162: =$AA$163/$AA$164 -> 0.05729598475 | AB162: =$AB$163/$AB$164 -> 0.08811773469 | AC162: =$AC$163/$AC$164 -> 0.1205235301 | AD162: =$AD$163/$AD$164 -> 0.1546264226 | AE162: =$AE$163/$AE$164 -> 0.1905503539 | AF162: =$AF$163/$AF$164 -> 0.228431498 | AG162: =$AG$163/$AG$164 -> 0.2684198059 | AH162: =$AH$163/$AH$164 -> 0.3106807914 | AI162: =$AI$163/$AI$164 -> 0.3553976011 | AJ162: =$AJ$163/$AJ$164 -> 0.4027734246 | AK162: =$AK$163/$AK$164 -> 0.4530343106 | AL162: =$AL$163/$AL$164 -> 0.5064324715 | AM162: =$AM$163/$AM$164 -> 0.5632501788 | AN162: =$AN$163/$AN$164 -> 0.6238043749 | AO162: =$AO$163/$AO$164 -> 0.6884521616 | AP162: =$AP$163/$AP$164 -> 0.7575973646 | AQ162: =$AQ$163/$AQ$164 -> 0.8316984298 | AR162: =$AR$163/$AR$164 -> 0.9112779762 | AS162: =$AS$163/$AS$164 -> 0.9969344266 | AT162: 冷却時消費電力比
B163: αc | C163: 冷却空調負荷率 | D163: =IF((1/20)*(D$148-35)+1<0,0,IF((1/20)*(D$148-35)+1>1,1,(1/20)*(D$148-35)+1)) -> 0 | E163: =IF((1/20)*(E$148-35)+1<0,0,IF((1/20)*(E$148-35)+1>1,1,(1/20)*(E$148-35)+1)) -> 0 | F163: =IF((1/20)*(F$148-35)+1<0,0,IF((1/20)*(F$148-35)+1>1,1,(1/20)*(F$148-35)+1)) -> 0 | G163: 0 | H163: 0 | I163: 0 | J163: 0 | K163: 0 | L163: 0 | M163: 0 | N163: 0 | O163: 0 | P163: 0 | Q163: 0 | R163: 0 | S163: 0 | T163: 0 | U163: 0 | V163: 0 | W163: 0 | X163: 0 | Y163: 0 | Z163: 0.05 | AA163: 0.1 | AB163: 0.15 | AC163: 0.2 | AD163: =IF((1/20)*(AD$148-35)+1<0,0,IF((1/20)*(AD$148-35)+1>1,1,(1/20)*(AD$148-35)+1)) -> 0.25 | AE163: 0.3 | AF163: 0.35 | AG163: 0.4 | AH163: 0.45 | AI163: 0.5 | AJ163: 0.55 | AK163: 0.6 | AL163: 0.65 | AM163: 0.7 | AN163: 0.75 | AO163: 0.8 | AP163: 0.85 | AQ163: 0.9 | AR163: 0.95 | AS163: =IF((1/20)*(AS$148-35)+1<0,0,IF((1/20)*(AS$148-35)+1>1,1,(1/20)*(AS$148-35)+1)) -> 1 | AT163: 冷却空調負荷率
B164: βc | C164: 冷却COP比 | D164: =1.07/10000*D$148*D$148-0.0468*D$148+2.51 -> 2.794652 | E164: =1.07/10000*E$148*E$148-0.0468*E$148+2.51 -> 2.746675 | F164: 2.698912 | G164: 2.651363 | H164: 2.604028 | I164: 2.556907 | J164: 2.51 | K164: 2.463307 | L164: 2.416828 | M164: 2.370563 | N164: 2.324512 | O164: 2.278675 | P164: 2.233052 | Q164: 2.187643 | R164: 2.142448 | S164: 2.097467 | T164: 2.0527 | U164: 2.008147 | V164: 1.963808 | W164: 1.919683 | X164: 1.875772 | Y164: 1.832075 | Z164: 1.788592 | AA164: 1.745323 | AB164: 1.702268 | AC164: 1.659427 | AD164: 1.6168 | AE164: 1.574387 | AF164: 1.532188 | AG164: 1.490203 | AH164: 1.448432 | AI164: 1.406875 | AJ164: 1.365532 | AK164: 1.324403 | AL164: 1.283488 | AM164: 1.242787 | AN164: 1.2023 | AO164: 1.162027 | AP164: 1.121968 | AQ164: 1.082123 | AR164: 1.042492 | AS164: 1.003075 | AT164: 冷却COP比
C165: Σ | D165: =$D$161*$D$162 -> 0 | E165: =$E$161*$E$162 -> 0 | F165: =$F$161*$F$162 -> 0 | G165: =$G$161*$G$162 -> 0 | H165: =$H$161*$H$162 -> 0 | I165: =$I$161*$I$162 -> 0 | J165: =$J$161*$J$162 -> 0 | K165: =$K$161*$K$162 -> 0 | L165: =$L$161*$L$162 -> 0 | M165: =$M$161*$M$162 -> 0 | N165: =$N$161*$N$162 -> 0 | O165: =$O$161*$O$162 -> 0 | P165: =$P$161*$P$162 -> 0 | Q165: =$Q$161*$Q$162 -> 0 | R165: =$R$161*$R$162 -> 0 | S165: =$S$161*$S$162 -> 0 | T165: =$T$161*$T$162 -> 0 | U165: =$U$161*$U$162 -> 0 | V165: =$V$161*$V$162 -> 0 | W165: =$W$161*$W$162 -> 0 | X165: =$X$161*$X$162 -> 0 | Y165: =$Y$161*$Y$162 -> 0 | Z165: =$Z$161*$Z$162 -> 0 | AA165: =$AA$161*$AA$162 -> 0 | AB165: =$AB$161*$AB$162 -> 0 | AC165: =$AC$161*$AC$162 -> 0 | AD165: =$AD$161*$AD$162 -> 0 | AE165: =$AE$161*$AE$162 -> 0 | AF165: =$AF$161*$AF$162 -> 0 | AG165: =$AG$161*$AG$162 -> 0 | AH165: =$AH$161*$AH$162 -> 0 | AI165: =$AI$161*$AI$162 -> 0 | AJ165: =$AJ$161*$AJ$162 -> 0 | AK165: =$AK$161*$AK$162 -> 0 | AL165: =$AL$161*$AL$162 -> 0 | AM165: =$AM$161*$AM$162 -> 0 | AN165: =$AN$161*$AN$162 -> 0 | AO165: =$AO$161*$AO$162 -> 0 | AP165: =$AP$161*$AP$162 -> 0 | AQ165: =$AQ$161*$AQ$162 -> 0 | AR165: =$AR$161*$AR$162 -> 0 | AS165: =$AS$161*$AS$162 -> 0 | AT165: =SUM($D$165:$AS$165) -> 0
C167: 加熱期間中 外気温度(T)が発生する時間[hour]
D168: 外気温度(T) | AU168: 月単位 | AV168: 共通 | AW168: 共通 | AX168: 前1 | BA168: 前2 | BD168: 前3 | BH168: 後1 | BK168: 後2 | BN168: 後3
C169: 月 | D169: -6 | E169: -5 | F169: -4 | G169: -3 | H169: -2 | I169: -1 | J169: 0 | K169: 1 | L169: 2 | M169: 3 | N169: 4 | O169: 5 | P169: 6 | Q169: 7 | R169: 8 | S169: 9 | T169: 10 | U169: 11 | V169: 12 | W169: 13 | X169: 14 | Y169: 15 | Z169: 16 | AA169: 17 | AB169: 18 | AC169: 19 | AD169: 20 | AE169: 21 | AF169: 22 | AG169: 23 | AH169: 24 | AI169: 25 | AJ169: 26 | AK169: 27 | AL169: 28 | AM169: 29 | AN169: 30 | AO169: 31 | AP169: 32 | AQ169: 33 | AR169: 34 | AS169: 35 | AT169: 月 | AV169: EwwのΣ | AW169: EaxwのΣ | AX169: Eww | AY169: Eaxw | AZ169: Ew | BA169: Eww | BB169: Eaxw | BC169: Ew | BD169: Eww | BE169: Eaxw | BF169: Ew | BH169: Eww | BI169: Eaxw | BJ169: Ew | BK169: Eww | BL169: Eaxw | BM169: Ew | BN169: Eww | BO169: Eaxw | BP169: Ew
C170: 4 | D170: =COUNTIF($D$133:$AA$133,$D$169)*$AB$12 -> 0 | E170: =COUNTIF($D$133:$AA$133,$E$169)*$AB$12 -> 0 | F170: =COUNTIF($D$133:$AA$133,$F$169)*$AB$12 -> 0 | G170: =COUNTIF($D$133:$AA$133,$G$169)*$AB$12 -> 0 | H170: =COUNTIF($D$133:$AA$133,$H$169)*$AB$12 -> 0 | I170: =COUNTIF($D$133:$AA$133,$I$169)*$AB$12 -> 0 | J170: =COUNTIF($D$133:$AA$133,$J$169)*$AB$12 -> 0 | K170: =COUNTIF($D$133:$AA$133,$K$169)*$AB$12 -> 0 | L170: =COUNTIF($D$133:$AA$133,$L$169)*$AB$12 -> 0 | M170: =COUNTIF($D$133:$AA$133,$M$169)*$AB$12 -> 0 | N170: =COUNTIF($D$133:$AA$133,$N$169)*$AB$12 -> 0 | O170: =COUNTIF($D$133:$AA$133,$O$169)*$AB$12 -> 0 | P170: =COUNTIF($D$133:$AA$133,$P$169)*$AB$12 -> 0 | Q170: =COUNTIF($D$133:$AA$133,$Q$169)*$AB$12 -> 0 | R170: =COUNTIF($D$133:$AA$133,$R$169)*$AB$12 -> 0 | S170: =COUNTIF($D$133:$AA$133,$S$169)*$AB$12 -> 0 | T170: =COUNTIF($D$133:$AA$133,$T$169)*$AB$12 -> 0 | U170: =COUNTIF($D$133:$AA$133,$U$169)*$AB$12 -> 0 | V170: =COUNTIF($D$133:$AA$133,$V$169)*$AB$12 -> 0 | W170: =COUNTIF($D$133:$AA$133,$W$169)*$AB$12 -> 0 | X170: =COUNTIF($D$133:$AA$133,$X$169)*$AB$12 -> 0 | Y170: =COUNTIF($D$133:$AA$133,$Y$169)*$AB$12 -> 0 | Z170: =COUNTIF($D$133:$AA$133,$Z$169)*$AB$12 -> 0 | AA170: =COUNTIF($D$133:$AA$133,$AA$169)*$AB$12 -> 0 | AB170: =COUNTIF($D$133:$AA$133,$AB$169)*$AB$12 -> 0 | AC170: =COUNTIF($D$133:$AA$133,$AC$169)*$AB$12 -> 0 | AD170: =COUNTIF($D$133:$AA$133,$AD$169)*$AB$12 -> 0 | AE170: =COUNTIF($D$133:$AA$133,$AE$169)*$AB$12 -> 0 | AF170: =COUNTIF($D$133:$AA$133,$AF$169)*$AB$12 -> 0 | AG170: =COUNTIF($D$133:$AA$133,$AG$169)*$AB$12 -> 0 | AH170: =COUNTIF($D$133:$AA$133,$AH$169)*$AB$12 -> 0 | AI170: =COUNTIF($D$133:$AA$133,$AI$169)*$AB$12 -> 0 | AJ170: =COUNTIF($D$133:$AA$133,$AJ$169)*$AB$12 -> 0 | AK170: =COUNTIF($D$133:$AA$133,$AK$169)*$AB$12 -> 0 | AL170: =COUNTIF($D$133:$AA$133,$AL$169)*$AB$12 -> 0 | AM170: =COUNTIF($D$133:$AA$133,$AM$169)*$AB$12 -> 0 | AN170: =COUNTIF($D$133:$AA$133,$AN$169)*$AB$12 -> 0 | AO170: =COUNTIF($D$133:$AA$133,$AO$169)*$AB$12 -> 0 | AP170: =COUNTIF($D$133:$AA$133,$AP$169)*$AB$12 -> 0 | AQ170: =COUNTIF($D$133:$AA$133,$AQ$169)*$AB$12 -> 0 | AR170: =COUNTIF($D$133:$AA$133,$AR$169)*$AB$12 -> 0 | AS170: =COUNTIF($D$133:$AA$133,$AS$169)*$AB$12 -> 0 | AT170: 4 | AV170: =SUMPRODUCT(D170:AS170,$D$183:$AS$183) -> 0 | AW170: =SUMPRODUCT(D170:AS170,$D$192:$AS$192) -> 0 | AX170: =$Q$29/$Q$35*$AV170 -> 0 | AY170: =$Q$36*$AW170 -> 0 | AZ170: =SUM(AX170:AY170) -> 0 | BA170: =$R$29/$R$35*$AV170 ->  | BB170: =$R$36*$AW170 -> 0 | BC170: =SUM(BA170:BB170) ->  | BD170: =$S$29/$S$35*$AV170 ->  | BE170: =$S$36*$AW170 -> 0 | BF170: =SUM(BD170:BE170) ->  | BH170: =$Q$43/$Q$49*$AV170 ->  | BI170: =$Q$50*$AW170 -> 0 | BJ170: =SUM(BH170:BI170) ->  | BK170: =$R$43/$R$49*$AV170 ->  | BL170: =$R$50*$AW170 -> 0 | BM170: =SUM(BK170:BL170) ->  | BN170: =$S$43/$S$49*$AV170 ->  | BO170: =$S$50*$AW170 -> 0 | BP170: =SUM(BN170:BO170) -> 
C171: 5 | D171: =COUNTIF($D$134:$AA$134,$D$169)*$AB$13 -> 0 | E171: =COUNTIF($D$134:$AA$134,$E$169)*$AB$13 -> 0 | F171: =COUNTIF($D$134:$AA$134,$F$169)*$AB$13 -> 0 | G171: =COUNTIF($D$134:$AA$134,$G$169)*$AB$13 -> 0 | H171: =COUNTIF($D$134:$AA$134,$H$169)*$AB$13 -> 0 | I171: =COUNTIF($D$134:$AA$134,$I$169)*$AB$13 -> 0 | J171: =COUNTIF($D$134:$AA$134,$J$169)*$AB$13 -> 0 | K171: =COUNTIF($D$134:$AA$134,$K$169)*$AB$13 -> 0 | L171: =COUNTIF($D$134:$AA$134,$L$169)*$AB$13 -> 0 | M171: =COUNTIF($D$134:$AA$134,$M$169)*$AB$13 -> 0 | N171: =COUNTIF($D$134:$AA$134,$N$169)*$AB$13 -> 0 | O171: =COUNTIF($D$134:$AA$134,$O$169)*$AB$13 -> 0 | P171: =COUNTIF($D$134:$AA$134,$P$169)*$AB$13 -> 0 | Q171: =COUNTIF($D$134:$AA$134,$Q$169)*$AB$13 -> 0 | R171: =COUNTIF($D$134:$AA$134,$R$169)*$AB$13 -> 0 | S171: =COUNTIF($D$134:$AA$134,$S$169)*$AB$13 -> 0 | T171: =COUNTIF($D$134:$AA$134,$T$169)*$AB$13 -> 0 | U171: =COUNTIF($D$134:$AA$134,$U$169)*$AB$13 -> 0 | V171: =COUNTIF($D$134:$AA$134,$V$169)*$AB$13 -> 0 | W171: =COUNTIF($D$134:$AA$134,$W$169)*$AB$13 -> 0 | X171: =COUNTIF($D$134:$AA$134,$X$169)*$AB$13 -> 0 | Y171: =COUNTIF($D$134:$AA$134,$Y$169)*$AB$13 -> 0 | Z171: =COUNTIF($D$134:$AA$134,$Z$169)*$AB$13 -> 0 | AA171: =COUNTIF($D$134:$AA$134,$AA$169)*$AB$13 -> 0 | AB171: =COUNTIF($D$134:$AA$134,$AB$169)*$AB$13 -> 0 | AC171: =COUNTIF($D$134:$AA$134,$AC$169)*$AB$13 -> 0 | AD171: =COUNTIF($D$134:$AA$134,$AD$169)*$AB$13 -> 0 | AE171: =COUNTIF($D$134:$AA$134,$AE$169)*$AB$13 -> 0 | AF171: =COUNTIF($D$134:$AA$134,$AF$169)*$AB$13 -> 0 | AG171: =COUNTIF($D$134:$AA$134,$AG$169)*$AB$13 -> 0 | AH171: =COUNTIF($D$134:$AA$134,$AH$169)*$AB$13 -> 0 | AI171: =COUNTIF($D$134:$AA$134,$AI$169)*$AB$13 -> 0 | AJ171: =COUNTIF($D$134:$AA$134,$AJ$169)*$AB$13 -> 0 | AK171: =COUNTIF($D$134:$AA$134,$AK$169)*$AB$13 -> 0 | AL171: =COUNTIF($D$134:$AA$134,$AL$169)*$AB$13 -> 0 | AM171: =COUNTIF($D$134:$AA$134,$AM$169)*$AB$13 -> 0 | AN171: =COUNTIF($D$134:$AA$134,$AN$169)*$AB$13 -> 0 | AO171: =COUNTIF($D$134:$AA$134,$AO$169)*$AB$13 -> 0 | AP171: =COUNTIF($D$134:$AA$134,$AP$169)*$AB$13 -> 0 | AQ171: =COUNTIF($D$134:$AA$134,$AQ$169)*$AB$13 -> 0 | AR171: =COUNTIF($D$134:$AA$134,$AR$169)*$AB$13 -> 0 | AS171: =COUNTIF($D$134:$AA$134,$AS$169)*$AB$13 -> 0 | AT171: 5 | AV171: =SUMPRODUCT(D171:AS171,$D$183:$AS$183) -> 0 | AW171: =SUMPRODUCT(D171:AS171,$D$192:$AS$192) -> 0 | AX171: =$Q$29/$Q$35*$AV171 -> 0 | AY171: =$Q$36*$AW171 -> 0 | AZ171: =SUM(AX171:AY171) -> 0 | BA171: =$R$29/$R$35*$AV171 ->  | BB171: =$R$36*$AW171 -> 0 | BC171: =SUM(BA171:BB171) ->  | BD171: =$S$29/$S$35*$AV171 ->  | BE171: =$S$36*$AW171 -> 0 | BF171: =SUM(BD171:BE171) ->  | BH171: =$Q$43/$Q$49*$AV171 ->  | BI171: =$Q$50*$AW171 -> 0 | BJ171: =SUM(BH171:BI171) ->  | BK171: =$R$43/$R$49*$AV171 ->  | BL171: =$R$50*$AW171 -> 0 | BM171: =SUM(BK171:BL171) ->  | BN171: =$S$43/$S$49*$AV171 ->  | BO171: =$S$50*$AW171 -> 0 | BP171: =SUM(BN171:BO171) -> 
C172: 6 | D172: =COUNTIF($D$135:$AA$135,$D$169)*$AB$14 -> 0 | E172: =COUNTIF($D$135:$AA$135,$E$169)*$AB$14 -> 0 | F172: =COUNTIF($D$135:$AA$135,$F$169)*$AB$14 -> 0 | G172: =COUNTIF($D$135:$AA$135,$G$169)*$AB$14 -> 0 | H172: =COUNTIF($D$135:$AA$135,$H$169)*$AB$14 -> 0 | I172: =COUNTIF($D$135:$AA$135,$I$169)*$AB$14 -> 0 | J172: =COUNTIF($D$135:$AA$135,$J$169)*$AB$14 -> 0 | K172: =COUNTIF($D$135:$AA$135,$K$169)*$AB$14 -> 0 | L172: =COUNTIF($D$135:$AA$135,$L$169)*$AB$14 -> 0 | M172: =COUNTIF($D$135:$AA$135,$M$169)*$AB$14 -> 0 | N172: =COUNTIF($D$135:$AA$135,$N$169)*$AB$14 -> 0 | O172: =COUNTIF($D$135:$AA$135,$O$169)*$AB$14 -> 0 | P172: =COUNTIF($D$135:$AA$135,$P$169)*$AB$14 -> 0 | Q172: =COUNTIF($D$135:$AA$135,$Q$169)*$AB$14 -> 0 | R172: =COUNTIF($D$135:$AA$135,$R$169)*$AB$14 -> 0 | S172: =COUNTIF($D$135:$AA$135,$S$169)*$AB$14 -> 0 | T172: =COUNTIF($D$135:$AA$135,$T$169)*$AB$14 -> 0 | U172: =COUNTIF($D$135:$AA$135,$U$169)*$AB$14 -> 0 | V172: =COUNTIF($D$135:$AA$135,$V$169)*$AB$14 -> 0 | W172: =COUNTIF($D$135:$AA$135,$W$169)*$AB$14 -> 0 | X172: =COUNTIF($D$135:$AA$135,$X$169)*$AB$14 -> 0 | Y172: =COUNTIF($D$135:$AA$135,$Y$169)*$AB$14 -> 0 | Z172: =COUNTIF($D$135:$AA$135,$Z$169)*$AB$14 -> 0 | AA172: =COUNTIF($D$135:$AA$135,$AA$169)*$AB$14 -> 0 | AB172: =COUNTIF($D$135:$AA$135,$AB$169)*$AB$14 -> 0 | AC172: =COUNTIF($D$135:$AA$135,$AC$169)*$AB$14 -> 0 | AD172: =COUNTIF($D$135:$AA$135,$AD$169)*$AB$14 -> 0 | AE172: =COUNTIF($D$135:$AA$135,$AE$169)*$AB$14 -> 0 | AF172: =COUNTIF($D$135:$AA$135,$AF$169)*$AB$14 -> 0 | AG172: =COUNTIF($D$135:$AA$135,$AG$169)*$AB$14 -> 0 | AH172: =COUNTIF($D$135:$AA$135,$AH$169)*$AB$14 -> 0 | AI172: =COUNTIF($D$135:$AA$135,$AI$169)*$AB$14 -> 0 | AJ172: =COUNTIF($D$135:$AA$135,$AJ$169)*$AB$14 -> 0 | AK172: =COUNTIF($D$135:$AA$135,$AK$169)*$AB$14 -> 0 | AL172: =COUNTIF($D$135:$AA$135,$AL$169)*$AB$14 -> 0 | AM172: =COUNTIF($D$135:$AA$135,$AM$169)*$AB$14 -> 0 | AN172: =COUNTIF($D$135:$AA$135,$AN$169)*$AB$14 -> 0 | AO172: =COUNTIF($D$135:$AA$135,$AO$169)*$AB$14 -> 0 | AP172: =COUNTIF($D$135:$AA$135,$AP$169)*$AB$14 -> 0 | AQ172: =COUNTIF($D$135:$AA$135,$AQ$169)*$AB$14 -> 0 | AR172: =COUNTIF($D$135:$AA$135,$AR$169)*$AB$14 -> 0 | AS172: =COUNTIF($D$135:$AA$135,$AS$169)*$AB$14 -> 0 | AT172: 6 | AV172: 0 | AW172: 0 | AX172: 0 | AY172: 0 | AZ172: 0 | BB172: 0 | BE172: 0 | BI172: 0 | BL172: 0 | BO172: 0
C173: 7 | D173: =COUNTIF($D$136:$AA$136,$D$169)*$AB$15 -> 0 | E173: =COUNTIF($D$136:$AA$136,$E$169)*$AB$15 -> 0 | F173: =COUNTIF($D$136:$AA$136,$F$169)*$AB$15 -> 0 | G173: =COUNTIF($D$136:$AA$136,$G$169)*$AB$15 -> 0 | H173: =COUNTIF($D$136:$AA$136,$H$169)*$AB$15 -> 0 | I173: =COUNTIF($D$136:$AA$136,$I$169)*$AB$15 -> 0 | J173: =COUNTIF($D$136:$AA$136,$J$169)*$AB$15 -> 0 | K173: =COUNTIF($D$136:$AA$136,$K$169)*$AB$15 -> 0 | L173: =COUNTIF($D$136:$AA$136,$L$169)*$AB$15 -> 0 | M173: =COUNTIF($D$136:$AA$136,$M$169)*$AB$15 -> 0 | N173: =COUNTIF($D$136:$AA$136,$N$169)*$AB$15 -> 0 | O173: =COUNTIF($D$136:$AA$136,$O$169)*$AB$15 -> 0 | P173: =COUNTIF($D$136:$AA$136,$P$169)*$AB$15 -> 0 | Q173: =COUNTIF($D$136:$AA$136,$Q$169)*$AB$15 -> 0 | R173: =COUNTIF($D$136:$AA$136,$R$169)*$AB$15 -> 0 | S173: =COUNTIF($D$136:$AA$136,$S$169)*$AB$15 -> 0 | T173: =COUNTIF($D$136:$AA$136,$T$169)*$AB$15 -> 0 | U173: =COUNTIF($D$136:$AA$136,$U$169)*$AB$15 -> 0 | V173: =COUNTIF($D$136:$AA$136,$V$169)*$AB$15 -> 0 | W173: =COUNTIF($D$136:$AA$136,$W$169)*$AB$15 -> 0 | X173: =COUNTIF($D$136:$AA$136,$X$169)*$AB$15 -> 0 | Y173: =COUNTIF($D$136:$AA$136,$Y$169)*$AB$15 -> 0 | Z173: =COUNTIF($D$136:$AA$136,$Z$169)*$AB$15 -> 0 | AA173: =COUNTIF($D$136:$AA$136,$AA$169)*$AB$15 -> 0 | AB173: =COUNTIF($D$136:$AA$136,$AB$169)*$AB$15 -> 0 | AC173: =COUNTIF($D$136:$AA$136,$AC$169)*$AB$15 -> 0 | AD173: =COUNTIF($D$136:$AA$136,$AD$169)*$AB$15 -> 0 | AE173: =COUNTIF($D$136:$AA$136,$AE$169)*$AB$15 -> 0 | AF173: =COUNTIF($D$136:$AA$136,$AF$169)*$AB$15 -> 0 | AG173: =COUNTIF($D$136:$AA$136,$AG$169)*$AB$15 -> 0 | AH173: =COUNTIF($D$136:$AA$136,$AH$169)*$AB$15 -> 0 | AI173: =COUNTIF($D$136:$AA$136,$AI$169)*$AB$15 -> 0 | AJ173: =COUNTIF($D$136:$AA$136,$AJ$169)*$AB$15 -> 0 | AK173: =COUNTIF($D$136:$AA$136,$AK$169)*$AB$15 -> 0 | AL173: =COUNTIF($D$136:$AA$136,$AL$169)*$AB$15 -> 0 | AM173: =COUNTIF($D$136:$AA$136,$AM$169)*$AB$15 -> 0 | AN173: =COUNTIF($D$136:$AA$136,$AN$169)*$AB$15 -> 0 | AO173: =COUNTIF($D$136:$AA$136,$AO$169)*$AB$15 -> 0 | AP173: =COUNTIF($D$136:$AA$136,$AP$169)*$AB$15 -> 0 | AQ173: =COUNTIF($D$136:$AA$136,$AQ$169)*$AB$15 -> 0 | AR173: =COUNTIF($D$136:$AA$136,$AR$169)*$AB$15 -> 0 | AS173: =COUNTIF($D$136:$AA$136,$AS$169)*$AB$15 -> 0 | AT173: 7 | AV173: 0 | AW173: 0 | AX173: 0 | AY173: 0 | AZ173: 0 | BB173: 0 | BE173: 0 | BI173: 0 | BL173: 0 | BO173: 0
C174: 8 | D174: =COUNTIF($D$137:$AA$137,$D$169)*$AB$16 -> 0 | E174: =COUNTIF($D$137:$AA$137,$E$169)*$AB$16 -> 0 | F174: =COUNTIF($D$137:$AA$137,$F$169)*$AB$16 -> 0 | G174: =COUNTIF($D$137:$AA$137,$G$169)*$AB$16 -> 0 | H174: =COUNTIF($D$137:$AA$137,$H$169)*$AB$16 -> 0 | I174: =COUNTIF($D$137:$AA$137,$I$169)*$AB$16 -> 0 | J174: =COUNTIF($D$137:$AA$137,$J$169)*$AB$16 -> 0 | K174: =COUNTIF($D$137:$AA$137,$K$169)*$AB$16 -> 0 | L174: =COUNTIF($D$137:$AA$137,$L$169)*$AB$16 -> 0 | M174: =COUNTIF($D$137:$AA$137,$M$169)*$AB$16 -> 0 | N174: =COUNTIF($D$137:$AA$137,$N$169)*$AB$16 -> 0 | O174: =COUNTIF($D$137:$AA$137,$O$169)*$AB$16 -> 0 | P174: =COUNTIF($D$137:$AA$137,$P$169)*$AB$16 -> 0 | Q174: =COUNTIF($D$137:$AA$137,$Q$169)*$AB$16 -> 0 | R174: =COUNTIF($D$137:$AA$137,$R$169)*$AB$16 -> 0 | S174: =COUNTIF($D$137:$AA$137,$S$169)*$AB$16 -> 0 | T174: =COUNTIF($D$137:$AA$137,$T$169)*$AB$16 -> 0 | U174: =COUNTIF($D$137:$AA$137,$U$169)*$AB$16 -> 0 | V174: =COUNTIF($D$137:$AA$137,$V$169)*$AB$16 -> 0 | W174: =COUNTIF($D$137:$AA$137,$W$169)*$AB$16 -> 0 | X174: =COUNTIF($D$137:$AA$137,$X$169)*$AB$16 -> 0 | Y174: =COUNTIF($D$137:$AA$137,$Y$169)*$AB$16 -> 0 | Z174: =COUNTIF($D$137:$AA$137,$Z$169)*$AB$16 -> 0 | AA174: =COUNTIF($D$137:$AA$137,$AA$169)*$AB$16 -> 0 | AB174: =COUNTIF($D$137:$AA$137,$AB$169)*$AB$16 -> 0 | AC174: =COUNTIF($D$137:$AA$137,$AC$169)*$AB$16 -> 0 | AD174: =COUNTIF($D$137:$AA$137,$AD$169)*$AB$16 -> 0 | AE174: =COUNTIF($D$137:$AA$137,$AE$169)*$AB$16 -> 0 | AF174: =COUNTIF($D$137:$AA$137,$AF$169)*$AB$16 -> 0 | AG174: =COUNTIF($D$137:$AA$137,$AG$169)*$AB$16 -> 0 | AH174: =COUNTIF($D$137:$AA$137,$AH$169)*$AB$16 -> 0 | AI174: =COUNTIF($D$137:$AA$137,$AI$169)*$AB$16 -> 0 | AJ174: =COUNTIF($D$137:$AA$137,$AJ$169)*$AB$16 -> 0 | AK174: =COUNTIF($D$137:$AA$137,$AK$169)*$AB$16 -> 0 | AL174: =COUNTIF($D$137:$AA$137,$AL$169)*$AB$16 -> 0 | AM174: =COUNTIF($D$137:$AA$137,$AM$169)*$AB$16 -> 0 | AN174: =COUNTIF($D$137:$AA$137,$AN$169)*$AB$16 -> 0 | AO174: =COUNTIF($D$137:$AA$137,$AO$169)*$AB$16 -> 0 | AP174: =COUNTIF($D$137:$AA$137,$AP$169)*$AB$16 -> 0 | AQ174: =COUNTIF($D$137:$AA$137,$AQ$169)*$AB$16 -> 0 | AR174: =COUNTIF($D$137:$AA$137,$AR$169)*$AB$16 -> 0 | AS174: =COUNTIF($D$137:$AA$137,$AS$169)*$AB$16 -> 0 | AT174: 8 | AV174: 0 | AW174: 0 | AX174: 0 | AY174: 0 | AZ174: 0 | BB174: 0 | BE174: 0 | BI174: 0 | BL174: 0 | BO174: 0
C175: 9 | D175: =COUNTIF($D$138:$AA$138,$D$169)*$AB$17 -> 0 | E175: =COUNTIF($D$138:$AA$138,$E$169)*$AB$17 -> 0 | F175: =COUNTIF($D$138:$AA$138,$F$169)*$AB$17 -> 0 | G175: =COUNTIF($D$138:$AA$138,$G$169)*$AB$17 -> 0 | H175: =COUNTIF($D$138:$AA$138,$H$169)*$AB$17 -> 0 | I175: =COUNTIF($D$138:$AA$138,$I$169)*$AB$17 -> 0 | J175: =COUNTIF($D$138:$AA$138,$J$169)*$AB$17 -> 0 | K175: =COUNTIF($D$138:$AA$138,$K$169)*$AB$17 -> 0 | L175: =COUNTIF($D$138:$AA$138,$L$169)*$AB$17 -> 0 | M175: =COUNTIF($D$138:$AA$138,$M$169)*$AB$17 -> 0 | N175: =COUNTIF($D$138:$AA$138,$N$169)*$AB$17 -> 0 | O175: =COUNTIF($D$138:$AA$138,$O$169)*$AB$17 -> 0 | P175: =COUNTIF($D$138:$AA$138,$P$169)*$AB$17 -> 0 | Q175: =COUNTIF($D$138:$AA$138,$Q$169)*$AB$17 -> 0 | R175: =COUNTIF($D$138:$AA$138,$R$169)*$AB$17 -> 0 | S175: =COUNTIF($D$138:$AA$138,$S$169)*$AB$17 -> 0 | T175: =COUNTIF($D$138:$AA$138,$T$169)*$AB$17 -> 0 | U175: =COUNTIF($D$138:$AA$138,$U$169)*$AB$17 -> 0 | V175: =COUNTIF($D$138:$AA$138,$V$169)*$AB$17 -> 0 | W175: =COUNTIF($D$138:$AA$138,$W$169)*$AB$17 -> 0 | X175: =COUNTIF($D$138:$AA$138,$X$169)*$AB$17 -> 0 | Y175: =COUNTIF($D$138:$AA$138,$Y$169)*$AB$17 -> 0 | Z175: =COUNTIF($D$138:$AA$138,$Z$169)*$AB$17 -> 0 | AA175: =COUNTIF($D$138:$AA$138,$AA$169)*$AB$17 -> 0 | AB175: =COUNTIF($D$138:$AA$138,$AB$169)*$AB$17 -> 0 | AC175: =COUNTIF($D$138:$AA$138,$AC$169)*$AB$17 -> 0 | AD175: =COUNTIF($D$138:$AA$138,$AD$169)*$AB$17 -> 0 | AE175: =COUNTIF($D$138:$AA$138,$AE$169)*$AB$17 -> 0 | AF175: =COUNTIF($D$138:$AA$138,$AF$169)*$AB$17 -> 0 | AG175: =COUNTIF($D$138:$AA$138,$AG$169)*$AB$17 -> 0 | AH175: =COUNTIF($D$138:$AA$138,$AH$169)*$AB$17 -> 0 | AI175: =COUNTIF($D$138:$AA$138,$AI$169)*$AB$17 -> 0 | AJ175: =COUNTIF($D$138:$AA$138,$AJ$169)*$AB$17 -> 0 | AK175: =COUNTIF($D$138:$AA$138,$AK$169)*$AB$17 -> 0 | AL175: =COUNTIF($D$138:$AA$138,$AL$169)*$AB$17 -> 0 | AM175: =COUNTIF($D$138:$AA$138,$AM$169)*$AB$17 -> 0 | AN175: =COUNTIF($D$138:$AA$138,$AN$169)*$AB$17 -> 0 | AO175: =COUNTIF($D$138:$AA$138,$AO$169)*$AB$17 -> 0 | AP175: =COUNTIF($D$138:$AA$138,$AP$169)*$AB$17 -> 0 | AQ175: =COUNTIF($D$138:$AA$138,$AQ$169)*$AB$17 -> 0 | AR175: =COUNTIF($D$138:$AA$138,$AR$169)*$AB$17 -> 0 | AS175: =COUNTIF($D$138:$AA$138,$AS$169)*$AB$17 -> 0 | AT175: 9 | AV175: 0 | AW175: 0 | AX175: 0 | AY175: 0 | AZ175: 0 | BB175: 0 | BE175: 0 | BI175: 0 | BL175: 0 | BO175: 0
C176: 10 | D176: =COUNTIF($D$139:$AA$139,$D$169)*$AB$18 -> 0 | E176: =COUNTIF($D$139:$AA$139,$E$169)*$AB$18 -> 0 | F176: =COUNTIF($D$139:$AA$139,$F$169)*$AB$18 -> 0 | G176: =COUNTIF($D$139:$AA$139,$G$169)*$AB$18 -> 0 | H176: =COUNTIF($D$139:$AA$139,$H$169)*$AB$18 -> 0 | I176: =COUNTIF($D$139:$AA$139,$I$169)*$AB$18 -> 0 | J176: =COUNTIF($D$139:$AA$139,$J$169)*$AB$18 -> 0 | K176: =COUNTIF($D$139:$AA$139,$K$169)*$AB$18 -> 0 | L176: =COUNTIF($D$139:$AA$139,$L$169)*$AB$18 -> 0 | M176: =COUNTIF($D$139:$AA$139,$M$169)*$AB$18 -> 0 | N176: =COUNTIF($D$139:$AA$139,$N$169)*$AB$18 -> 0 | O176: =COUNTIF($D$139:$AA$139,$O$169)*$AB$18 -> 0 | P176: =COUNTIF($D$139:$AA$139,$P$169)*$AB$18 -> 0 | Q176: =COUNTIF($D$139:$AA$139,$Q$169)*$AB$18 -> 0 | R176: =COUNTIF($D$139:$AA$139,$R$169)*$AB$18 -> 0 | S176: =COUNTIF($D$139:$AA$139,$S$169)*$AB$18 -> 0 | T176: =COUNTIF($D$139:$AA$139,$T$169)*$AB$18 -> 0 | U176: =COUNTIF($D$139:$AA$139,$U$169)*$AB$18 -> 0 | V176: =COUNTIF($D$139:$AA$139,$V$169)*$AB$18 -> 0 | W176: =COUNTIF($D$139:$AA$139,$W$169)*$AB$18 -> 0 | X176: =COUNTIF($D$139:$AA$139,$X$169)*$AB$18 -> 0 | Y176: =COUNTIF($D$139:$AA$139,$Y$169)*$AB$18 -> 0 | Z176: =COUNTIF($D$139:$AA$139,$Z$169)*$AB$18 -> 0 | AA176: =COUNTIF($D$139:$AA$139,$AA$169)*$AB$18 -> 0 | AB176: =COUNTIF($D$139:$AA$139,$AB$169)*$AB$18 -> 0 | AC176: =COUNTIF($D$139:$AA$139,$AC$169)*$AB$18 -> 0 | AD176: =COUNTIF($D$139:$AA$139,$AD$169)*$AB$18 -> 0 | AE176: =COUNTIF($D$139:$AA$139,$AE$169)*$AB$18 -> 0 | AF176: =COUNTIF($D$139:$AA$139,$AF$169)*$AB$18 -> 0 | AG176: =COUNTIF($D$139:$AA$139,$AG$169)*$AB$18 -> 0 | AH176: =COUNTIF($D$139:$AA$139,$AH$169)*$AB$18 -> 0 | AI176: =COUNTIF($D$139:$AA$139,$AI$169)*$AB$18 -> 0 | AJ176: =COUNTIF($D$139:$AA$139,$AJ$169)*$AB$18 -> 0 | AK176: =COUNTIF($D$139:$AA$139,$AK$169)*$AB$18 -> 0 | AL176: =COUNTIF($D$139:$AA$139,$AL$169)*$AB$18 -> 0 | AM176: =COUNTIF($D$139:$AA$139,$AM$169)*$AB$18 -> 0 | AN176: =COUNTIF($D$139:$AA$139,$AN$169)*$AB$18 -> 0 | AO176: =COUNTIF($D$139:$AA$139,$AO$169)*$AB$18 -> 0 | AP176: =COUNTIF($D$139:$AA$139,$AP$169)*$AB$18 -> 0 | AQ176: =COUNTIF($D$139:$AA$139,$AQ$169)*$AB$18 -> 0 | AR176: =COUNTIF($D$139:$AA$139,$AR$169)*$AB$18 -> 0 | AS176: =COUNTIF($D$139:$AA$139,$AS$169)*$AB$18 -> 0 | AT176: 10 | AV176: 0 | AW176: 0 | AX176: 0 | AY176: 0 | AZ176: 0 | BB176: 0 | BE176: 0 | BI176: 0 | BL176: 0 | BO176: 0
C177: 11 | D177: =COUNTIF($D$140:$AA$140,$D$169)*$AB$19 -> 0 | E177: =COUNTIF($D$140:$AA$140,$E$169)*$AB$19 -> 0 | F177: =COUNTIF($D$140:$AA$140,$F$169)*$AB$19 -> 0 | G177: =COUNTIF($D$140:$AA$140,$G$169)*$AB$19 -> 0 | H177: =COUNTIF($D$140:$AA$140,$H$169)*$AB$19 -> 0 | I177: =COUNTIF($D$140:$AA$140,$I$169)*$AB$19 -> 0 | J177: =COUNTIF($D$140:$AA$140,$J$169)*$AB$19 -> 0 | K177: =COUNTIF($D$140:$AA$140,$K$169)*$AB$19 -> 0 | L177: =COUNTIF($D$140:$AA$140,$L$169)*$AB$19 -> 0 | M177: =COUNTIF($D$140:$AA$140,$M$169)*$AB$19 -> 0 | N177: =COUNTIF($D$140:$AA$140,$N$169)*$AB$19 -> 0 | O177: =COUNTIF($D$140:$AA$140,$O$169)*$AB$19 -> 0 | P177: =COUNTIF($D$140:$AA$140,$P$169)*$AB$19 -> 0 | Q177: =COUNTIF($D$140:$AA$140,$Q$169)*$AB$19 -> 0 | R177: =COUNTIF($D$140:$AA$140,$R$169)*$AB$19 -> 0 | S177: =COUNTIF($D$140:$AA$140,$S$169)*$AB$19 -> 0 | T177: =COUNTIF($D$140:$AA$140,$T$169)*$AB$19 -> 0 | U177: =COUNTIF($D$140:$AA$140,$U$169)*$AB$19 -> 0 | V177: =COUNTIF($D$140:$AA$140,$V$169)*$AB$19 -> 0 | W177: =COUNTIF($D$140:$AA$140,$W$169)*$AB$19 -> 0 | X177: =COUNTIF($D$140:$AA$140,$X$169)*$AB$19 -> 0 | Y177: =COUNTIF($D$140:$AA$140,$Y$169)*$AB$19 -> 0 | Z177: =COUNTIF($D$140:$AA$140,$Z$169)*$AB$19 -> 0 | AA177: =COUNTIF($D$140:$AA$140,$AA$169)*$AB$19 -> 0 | AB177: =COUNTIF($D$140:$AA$140,$AB$169)*$AB$19 -> 0 | AC177: =COUNTIF($D$140:$AA$140,$AC$169)*$AB$19 -> 0 | AD177: =COUNTIF($D$140:$AA$140,$AD$169)*$AB$19 -> 0 | AE177: =COUNTIF($D$140:$AA$140,$AE$169)*$AB$19 -> 0 | AF177: =COUNTIF($D$140:$AA$140,$AF$169)*$AB$19 -> 0 | AG177: =COUNTIF($D$140:$AA$140,$AG$169)*$AB$19 -> 0 | AH177: =COUNTIF($D$140:$AA$140,$AH$169)*$AB$19 -> 0 | AI177: =COUNTIF($D$140:$AA$140,$AI$169)*$AB$19 -> 0 | AJ177: =COUNTIF($D$140:$AA$140,$AJ$169)*$AB$19 -> 0 | AK177: =COUNTIF($D$140:$AA$140,$AK$169)*$AB$19 -> 0 | AL177: =COUNTIF($D$140:$AA$140,$AL$169)*$AB$19 -> 0 | AM177: =COUNTIF($D$140:$AA$140,$AM$169)*$AB$19 -> 0 | AN177: =COUNTIF($D$140:$AA$140,$AN$169)*$AB$19 -> 0 | AO177: =COUNTIF($D$140:$AA$140,$AO$169)*$AB$19 -> 0 | AP177: =COUNTIF($D$140:$AA$140,$AP$169)*$AB$19 -> 0 | AQ177: =COUNTIF($D$140:$AA$140,$AQ$169)*$AB$19 -> 0 | AR177: =COUNTIF($D$140:$AA$140,$AR$169)*$AB$19 -> 0 | AS177: =COUNTIF($D$140:$AA$140,$AS$169)*$AB$19 -> 0 | AT177: 11 | AV177: 0 | AW177: =SUMPRODUCT(D177:AS177,$D$192:$AS$192) -> 0 | AX177: 0 | AY177: 0 | AZ177: 0 | BB177: 0 | BE177: 0 | BI177: 0 | BL177: 0 | BO177: 0
C178: 12 | D178: =COUNTIF($D$141:$AA$141,$D$169)*$AB$20 -> 0 | E178: =COUNTIF($D$141:$AA$141,$E$169)*$AB$20 -> 0 | F178: =COUNTIF($D$141:$AA$141,$F$169)*$AB$20 -> 0 | G178: =COUNTIF($D$141:$AA$141,$G$169)*$AB$20 -> 0 | H178: =COUNTIF($D$141:$AA$141,$H$169)*$AB$20 -> 0 | I178: =COUNTIF($D$141:$AA$141,$I$169)*$AB$20 -> 0 | J178: =COUNTIF($D$141:$AA$141,$J$169)*$AB$20 -> 0 | K178: =COUNTIF($D$141:$AA$141,$K$169)*$AB$20 -> 0 | L178: =COUNTIF($D$141:$AA$141,$L$169)*$AB$20 -> 0 | M178: =COUNTIF($D$141:$AA$141,$M$169)*$AB$20 -> 0 | N178: =COUNTIF($D$141:$AA$141,$N$169)*$AB$20 -> 0 | O178: =COUNTIF($D$141:$AA$141,$O$169)*$AB$20 -> 0 | P178: =COUNTIF($D$141:$AA$141,$P$169)*$AB$20 -> 0 | Q178: =COUNTIF($D$141:$AA$141,$Q$169)*$AB$20 -> 0 | R178: =COUNTIF($D$141:$AA$141,$R$169)*$AB$20 -> 0 | S178: =COUNTIF($D$141:$AA$141,$S$169)*$AB$20 -> 0 | T178: =COUNTIF($D$141:$AA$141,$T$169)*$AB$20 -> 0 | U178: =COUNTIF($D$141:$AA$141,$U$169)*$AB$20 -> 0 | V178: =COUNTIF($D$141:$AA$141,$V$169)*$AB$20 -> 0 | W178: =COUNTIF($D$141:$AA$141,$W$169)*$AB$20 -> 0 | X178: =COUNTIF($D$141:$AA$141,$X$169)*$AB$20 -> 0 | Y178: =COUNTIF($D$141:$AA$141,$Y$169)*$AB$20 -> 0 | Z178: =COUNTIF($D$141:$AA$141,$Z$169)*$AB$20 -> 0 | AA178: =COUNTIF($D$141:$AA$141,$AA$169)*$AB$20 -> 0 | AB178: =COUNTIF($D$141:$AA$141,$AB$169)*$AB$20 -> 0 | AC178: =COUNTIF($D$141:$AA$141,$AC$169)*$AB$20 -> 0 | AD178: =COUNTIF($D$141:$AA$141,$AD$169)*$AB$20 -> 0 | AE178: =COUNTIF($D$141:$AA$141,$AE$169)*$AB$20 -> 0 | AF178: =COUNTIF($D$141:$AA$141,$AF$169)*$AB$20 -> 0 | AG178: =COUNTIF($D$141:$AA$141,$AG$169)*$AB$20 -> 0 | AH178: =COUNTIF($D$141:$AA$141,$AH$169)*$AB$20 -> 0 | AI178: =COUNTIF($D$141:$AA$141,$AI$169)*$AB$20 -> 0 | AJ178: =COUNTIF($D$141:$AA$141,$AJ$169)*$AB$20 -> 0 | AK178: =COUNTIF($D$141:$AA$141,$AK$169)*$AB$20 -> 0 | AL178: =COUNTIF($D$141:$AA$141,$AL$169)*$AB$20 -> 0 | AM178: =COUNTIF($D$141:$AA$141,$AM$169)*$AB$20 -> 0 | AN178: =COUNTIF($D$141:$AA$141,$AN$169)*$AB$20 -> 0 | AO178: =COUNTIF($D$141:$AA$141,$AO$169)*$AB$20 -> 0 | AP178: =COUNTIF($D$141:$AA$141,$AP$169)*$AB$20 -> 0 | AQ178: =COUNTIF($D$141:$AA$141,$AQ$169)*$AB$20 -> 0 | AR178: =COUNTIF($D$141:$AA$141,$AR$169)*$AB$20 -> 0 | AS178: =COUNTIF($D$141:$AA$141,$AS$169)*$AB$20 -> 0 | AT178: 12 | AV178: 0 | AW178: 0 | AX178: 0 | AY178: 0 | AZ178: 0 | BB178: 0 | BE178: 0 | BI178: 0 | BL178: 0 | BO178: 0
C179: 1 | D179: =COUNTIF($D$142:$AA$142,$D$169)*$AB$21 -> 0 | E179: =COUNTIF($D$142:$AA$142,$E$169)*$AB$21 -> 0 | F179: =COUNTIF($D$142:$AA$142,$F$169)*$AB$21 -> 0 | G179: =COUNTIF($D$142:$AA$142,$G$169)*$AB$21 -> 0 | H179: =COUNTIF($D$142:$AA$142,$H$169)*$AB$21 -> 0 | I179: =COUNTIF($D$142:$AA$142,$I$169)*$AB$21 -> 0 | J179: =COUNTIF($D$142:$AA$142,$J$169)*$AB$21 -> 0 | K179: =COUNTIF($D$142:$AA$142,$K$169)*$AB$21 -> 0 | L179: =COUNTIF($D$142:$AA$142,$L$169)*$AB$21 -> 0 | M179: =COUNTIF($D$142:$AA$142,$M$169)*$AB$21 -> 0 | N179: =COUNTIF($D$142:$AA$142,$N$169)*$AB$21 -> 0 | O179: =COUNTIF($D$142:$AA$142,$O$169)*$AB$21 -> 0 | P179: =COUNTIF($D$142:$AA$142,$P$169)*$AB$21 -> 0 | Q179: =COUNTIF($D$142:$AA$142,$Q$169)*$AB$21 -> 0 | R179: =COUNTIF($D$142:$AA$142,$R$169)*$AB$21 -> 0 | S179: =COUNTIF($D$142:$AA$142,$S$169)*$AB$21 -> 0 | T179: =COUNTIF($D$142:$AA$142,$T$169)*$AB$21 -> 0 | U179: =COUNTIF($D$142:$AA$142,$U$169)*$AB$21 -> 0 | V179: =COUNTIF($D$142:$AA$142,$V$169)*$AB$21 -> 0 | W179: =COUNTIF($D$142:$AA$142,$W$169)*$AB$21 -> 0 | X179: =COUNTIF($D$142:$AA$142,$X$169)*$AB$21 -> 0 | Y179: =COUNTIF($D$142:$AA$142,$Y$169)*$AB$21 -> 0 | Z179: =COUNTIF($D$142:$AA$142,$Z$169)*$AB$21 -> 0 | AA179: =COUNTIF($D$142:$AA$142,$AA$169)*$AB$21 -> 0 | AB179: =COUNTIF($D$142:$AA$142,$AB$169)*$AB$21 -> 0 | AC179: =COUNTIF($D$142:$AA$142,$AC$169)*$AB$21 -> 0 | AD179: =COUNTIF($D$142:$AA$142,$AD$169)*$AB$21 -> 0 | AE179: =COUNTIF($D$142:$AA$142,$AE$169)*$AB$21 -> 0 | AF179: =COUNTIF($D$142:$AA$142,$AF$169)*$AB$21 -> 0 | AG179: =COUNTIF($D$142:$AA$142,$AG$169)*$AB$21 -> 0 | AH179: =COUNTIF($D$142:$AA$142,$AH$169)*$AB$21 -> 0 | AI179: =COUNTIF($D$142:$AA$142,$AI$169)*$AB$21 -> 0 | AJ179: =COUNTIF($D$142:$AA$142,$AJ$169)*$AB$21 -> 0 | AK179: =COUNTIF($D$142:$AA$142,$AK$169)*$AB$21 -> 0 | AL179: =COUNTIF($D$142:$AA$142,$AL$169)*$AB$21 -> 0 | AM179: =COUNTIF($D$142:$AA$142,$AM$169)*$AB$21 -> 0 | AN179: =COUNTIF($D$142:$AA$142,$AN$169)*$AB$21 -> 0 | AO179: =COUNTIF($D$142:$AA$142,$AO$169)*$AB$21 -> 0 | AP179: =COUNTIF($D$142:$AA$142,$AP$169)*$AB$21 -> 0 | AQ179: =COUNTIF($D$142:$AA$142,$AQ$169)*$AB$21 -> 0 | AR179: =COUNTIF($D$142:$AA$142,$AR$169)*$AB$21 -> 0 | AS179: =COUNTIF($D$142:$AA$142,$AS$169)*$AB$21 -> 0 | AT179: 1 | AV179: 0 | AW179: 0 | AX179: 0 | AY179: 0 | AZ179: 0 | BB179: 0 | BE179: 0 | BI179: 0 | BL179: 0 | BO179: 0
C180: 2 | D180: =COUNTIF($D$143:$AA$143,$D$169)*$AB$22 -> 0 | E180: =COUNTIF($D$143:$AA$143,$E$169)*$AB$22 -> 0 | F180: =COUNTIF($D$143:$AA$143,$F$169)*$AB$22 -> 0 | G180: =COUNTIF($D$143:$AA$143,$G$169)*$AB$22 -> 0 | H180: =COUNTIF($D$143:$AA$143,$H$169)*$AB$22 -> 0 | I180: =COUNTIF($D$143:$AA$143,$I$169)*$AB$22 -> 0 | J180: =COUNTIF($D$143:$AA$143,$J$169)*$AB$22 -> 0 | K180: =COUNTIF($D$143:$AA$143,$K$169)*$AB$22 -> 0 | L180: =COUNTIF($D$143:$AA$143,$L$169)*$AB$22 -> 0 | M180: =COUNTIF($D$143:$AA$143,$M$169)*$AB$22 -> 0 | N180: =COUNTIF($D$143:$AA$143,$N$169)*$AB$22 -> 0 | O180: =COUNTIF($D$143:$AA$143,$O$169)*$AB$22 -> 0 | P180: =COUNTIF($D$143:$AA$143,$P$169)*$AB$22 -> 0 | Q180: =COUNTIF($D$143:$AA$143,$Q$169)*$AB$22 -> 0 | R180: =COUNTIF($D$143:$AA$143,$R$169)*$AB$22 -> 0 | S180: =COUNTIF($D$143:$AA$143,$S$169)*$AB$22 -> 0 | T180: =COUNTIF($D$143:$AA$143,$T$169)*$AB$22 -> 0 | U180: =COUNTIF($D$143:$AA$143,$U$169)*$AB$22 -> 0 | V180: =COUNTIF($D$143:$AA$143,$V$169)*$AB$22 -> 0 | W180: =COUNTIF($D$143:$AA$143,$W$169)*$AB$22 -> 0 | X180: =COUNTIF($D$143:$AA$143,$X$169)*$AB$22 -> 0 | Y180: =COUNTIF($D$143:$AA$143,$Y$169)*$AB$22 -> 0 | Z180: =COUNTIF($D$143:$AA$143,$Z$169)*$AB$22 -> 0 | AA180: =COUNTIF($D$143:$AA$143,$AA$169)*$AB$22 -> 0 | AB180: =COUNTIF($D$143:$AA$143,$AB$169)*$AB$22 -> 0 | AC180: =COUNTIF($D$143:$AA$143,$AC$169)*$AB$22 -> 0 | AD180: =COUNTIF($D$143:$AA$143,$AD$169)*$AB$22 -> 0 | AE180: =COUNTIF($D$143:$AA$143,$AE$169)*$AB$22 -> 0 | AF180: =COUNTIF($D$143:$AA$143,$AF$169)*$AB$22 -> 0 | AG180: =COUNTIF($D$143:$AA$143,$AG$169)*$AB$22 -> 0 | AH180: =COUNTIF($D$143:$AA$143,$AH$169)*$AB$22 -> 0 | AI180: =COUNTIF($D$143:$AA$143,$AI$169)*$AB$22 -> 0 | AJ180: =COUNTIF($D$143:$AA$143,$AJ$169)*$AB$22 -> 0 | AK180: =COUNTIF($D$143:$AA$143,$AK$169)*$AB$22 -> 0 | AL180: =COUNTIF($D$143:$AA$143,$AL$169)*$AB$22 -> 0 | AM180: =COUNTIF($D$143:$AA$143,$AM$169)*$AB$22 -> 0 | AN180: =COUNTIF($D$143:$AA$143,$AN$169)*$AB$22 -> 0 | AO180: =COUNTIF($D$143:$AA$143,$AO$169)*$AB$22 -> 0 | AP180: =COUNTIF($D$143:$AA$143,$AP$169)*$AB$22 -> 0 | AQ180: =COUNTIF($D$143:$AA$143,$AQ$169)*$AB$22 -> 0 | AR180: =COUNTIF($D$143:$AA$143,$AR$169)*$AB$22 -> 0 | AS180: =COUNTIF($D$143:$AA$143,$AS$169)*$AB$22 -> 0 | AT180: 2 | AV180: 0 | AW180: 0 | AX180: 0 | AY180: 0 | AZ180: 0 | BA180: =$R$29/$R$35*$AV180 ->  | BB180: 0 | BE180: 0 | BI180: 0 | BL180: 0 | BO180: 0
C181: 3 | D181: =COUNTIF($D$144:$AA$144,$D$169)*$AB$23 -> 0 | E181: =COUNTIF($D$144:$AA$144,$E$169)*$AB$23 -> 0 | F181: =COUNTIF($D$144:$AA$144,$F$169)*$AB$23 -> 0 | G181: =COUNTIF($D$144:$AA$144,$G$169)*$AB$23 -> 0 | H181: =COUNTIF($D$144:$AA$144,$H$169)*$AB$23 -> 0 | I181: =COUNTIF($D$144:$AA$144,$I$169)*$AB$23 -> 0 | J181: =COUNTIF($D$144:$AA$144,$J$169)*$AB$23 -> 0 | K181: =COUNTIF($D$144:$AA$144,$K$169)*$AB$23 -> 0 | L181: =COUNTIF($D$144:$AA$144,$L$169)*$AB$23 -> 0 | M181: =COUNTIF($D$144:$AA$144,$M$169)*$AB$23 -> 0 | N181: =COUNTIF($D$144:$AA$144,$N$169)*$AB$23 -> 0 | O181: =COUNTIF($D$144:$AA$144,$O$169)*$AB$23 -> 0 | P181: =COUNTIF($D$144:$AA$144,$P$169)*$AB$23 -> 0 | Q181: =COUNTIF($D$144:$AA$144,$Q$169)*$AB$23 -> 0 | R181: =COUNTIF($D$144:$AA$144,$R$169)*$AB$23 -> 0 | S181: =COUNTIF($D$144:$AA$144,$S$169)*$AB$23 -> 0 | T181: =COUNTIF($D$144:$AA$144,$T$169)*$AB$23 -> 0 | U181: =COUNTIF($D$144:$AA$144,$U$169)*$AB$23 -> 0 | V181: =COUNTIF($D$144:$AA$144,$V$169)*$AB$23 -> 0 | W181: =COUNTIF($D$144:$AA$144,$W$169)*$AB$23 -> 0 | X181: =COUNTIF($D$144:$AA$144,$X$169)*$AB$23 -> 0 | Y181: =COUNTIF($D$144:$AA$144,$Y$169)*$AB$23 -> 0 | Z181: =COUNTIF($D$144:$AA$144,$Z$169)*$AB$23 -> 0 | AA181: =COUNTIF($D$144:$AA$144,$AA$169)*$AB$23 -> 0 | AB181: =COUNTIF($D$144:$AA$144,$AB$169)*$AB$23 -> 0 | AC181: =COUNTIF($D$144:$AA$144,$AC$169)*$AB$23 -> 0 | AD181: =COUNTIF($D$144:$AA$144,$AD$169)*$AB$23 -> 0 | AE181: =COUNTIF($D$144:$AA$144,$AE$169)*$AB$23 -> 0 | AF181: =COUNTIF($D$144:$AA$144,$AF$169)*$AB$23 -> 0 | AG181: =COUNTIF($D$144:$AA$144,$AG$169)*$AB$23 -> 0 | AH181: =COUNTIF($D$144:$AA$144,$AH$169)*$AB$23 -> 0 | AI181: =COUNTIF($D$144:$AA$144,$AI$169)*$AB$23 -> 0 | AJ181: =COUNTIF($D$144:$AA$144,$AJ$169)*$AB$23 -> 0 | AK181: =COUNTIF($D$144:$AA$144,$AK$169)*$AB$23 -> 0 | AL181: =COUNTIF($D$144:$AA$144,$AL$169)*$AB$23 -> 0 | AM181: =COUNTIF($D$144:$AA$144,$AM$169)*$AB$23 -> 0 | AN181: =COUNTIF($D$144:$AA$144,$AN$169)*$AB$23 -> 0 | AO181: =COUNTIF($D$144:$AA$144,$AO$169)*$AB$23 -> 0 | AP181: =COUNTIF($D$144:$AA$144,$AP$169)*$AB$23 -> 0 | AQ181: =COUNTIF($D$144:$AA$144,$AQ$169)*$AB$23 -> 0 | AR181: =COUNTIF($D$144:$AA$144,$AR$169)*$AB$23 -> 0 | AS181: =COUNTIF($D$144:$AA$144,$AS$169)*$AB$23 -> 0 | AT181: 3 | AV181: 0 | AW181: 0 | AX181: 0 | AY181: =$Q$36*$AW181 -> 0 | AZ181: =SUM(AX181:AY181) -> 0 | BB181: =$R$36*$AW181 -> 0 | BC181: =SUM(BA181:BB181) ->  | BE181: 0 | BF181: =SUM(BD181:BE181) ->  | BI181: 0 | BJ181: =SUM(BH181:BI181) ->  | BL181: 0 | BM181: =SUM(BK181:BL181) ->  | BO181: 0 | BP181: =SUM(BN181:BO181) -> 
B182: tw | C182: 加熱運転時間 | D182: =SUM($D$170:$D$181) -> 0 | E182: =SUM($E$170:$E$181) -> 0 | F182: =SUM($F$170:$F$181) -> 0 | G182: =SUM($G$170:$G$181) -> 0 | H182: =SUM($H$170:$H$181) -> 0 | I182: =SUM($I$170:$I$181) -> 0 | J182: =SUM($J$170:$J$181) -> 0 | K182: =SUM($K$170:$K$181) -> 0 | L182: =SUM($L$170:$L$181) -> 0 | M182: =SUM($M$170:$M$181) -> 0 | N182: =SUM($N$170:$N$181) -> 0 | O182: =SUM($O$170:$O$181) -> 0 | P182: =SUM($P$170:$P$181) -> 0 | Q182: =SUM($Q$170:$Q$181) -> 0 | R182: =SUM($R$170:$R$181) -> 0 | S182: =SUM($S$170:$S$181) -> 0 | T182: =SUM($T$170:$T$181) -> 0 | U182: =SUM($U$170:$U$181) -> 0 | V182: =SUM($V$170:$V$181) -> 0 | W182: =SUM($W$170:$W$181) -> 0 | X182: =SUM($X$170:$X$181) -> 0 | Y182: =SUM($Y$170:$Y$181) -> 0 | Z182: =SUM($Z$170:$Z$181) -> 0 | AA182: =SUM($AA$170:$AA$181) -> 0 | AB182: =SUM($AB$170:$AB$181) -> 0 | AC182: =SUM($AC$170:$AC$181) -> 0 | AD182: =SUM($AD$170:$AD$181) -> 0 | AE182: =SUM($AE$170:$AE$181) -> 0 | AF182: =SUM($AF$170:$AF$181) -> 0 | AG182: =SUM($AG$170:$AG$181) -> 0 | AH182: =SUM($AH$170:$AH$181) -> 0 | AI182: =SUM($AI$170:$AI$181) -> 0 | AJ182: =SUM($AJ$170:$AJ$181) -> 0 | AK182: =SUM($AK$170:$AK$181) -> 0 | AL182: =SUM($AL$170:$AL$181) -> 0 | AM182: =SUM($AM$170:$AM$181) -> 0 | AN182: =SUM($AN$170:$AN$181) -> 0 | AO182: =SUM($AO$170:$AO$181) -> 0 | AP182: =SUM($AP$170:$AP$181) -> 0 | AQ182: =SUM($AQ$170:$AQ$181) -> 0 | AR182: =SUM($AR$170:$AR$181) -> 0 | AS182: =SUM($AS$170:$AS$181) -> 0 | AT182: 加熱運転時間 | AV182: =SUM(AV170:AV181) -> 0 | AW182: =SUM(AW170:AW181) -> 0 | AX182: 0 | AY182: 0 | AZ182: 0 | BB182: 0 | BE182: 0 | BI182: =SUM(BI170:BI181) -> 0 | BJ182: =SUM(BJ170:BJ181) ->  | BK182: =SUM(BK170:BK181) ->  | BL182: =SUM(BL170:BL181) -> 0 | BM182: =SUM(BM170:BM181) ->  | BN182: =SUM(BN170:BN181) ->  | BO182: =SUM(BO170:BO181) -> 0 | BP182: =SUM(BP170:BP181) -> 
B183: εw | C183: 加熱時消費電力比 | D183: =$D$184/$D$185 -> 1.286497947 | E183: =$E$184/$E$185 -> 1.299376299 | F183: =$F$184/$F$185 -> 1.248646205 | G183: =$G$184/$G$185 -> 1.19844043 | H183: =$H$184/$H$185 -> 1.14856173 | I183: =$I$184/$I$185 -> 1.098804501 | J183: =$J$184/$J$185 -> 1.048951049 | K183: =$K$184/$K$185 -> 0.9181603058 | L183: =$L$184/$L$185 -> 0.8024925171 | M183: =$M$184/$M$185 -> 0.6995070457 | N183: =$N$184/$N$185 -> 0.6072613441 | O183: =$O$184/$O$185 -> 0.5241900608 | P183: =$P$184/$P$185 -> 0.456469265 | Q183: =$Q$184/$Q$185 -> 0.3993925638 | R183: =$R$184/$R$185 -> 0.3440877467 | S183: =$S$184/$S$185 -> 0.2904690989 | T183: =$T$184/$T$185 -> 0.2384563291 | U183: =$U$184/$U$185 -> 0.1879741472 | V183: =$V$184/$V$185 -> 0.1389518804 | W183: =$W$184/$W$185 -> 0.09132312505 | X183: =$X$184/$X$185 -> 0.04502542856 | Y183: =$Y$184/$Y$185 -> 0 | Z183: =$Z$184/$Z$185 -> 0 | AA183: =$AA$184/$AA$185 -> 0 | AB183: =$AB$184/$AB$185 -> 0 | AC183: =$AC$184/$AC$185 -> 0 | AD183: =$AD$184/$AD$185 -> 0 | AE183: =$AE$184/$AE$185 -> 0 | AF183: =$AF$184/$AF$185 -> 0 | AG183: =$AG$184/$AG$185 -> 0 | AH183: =$AH$184/$AH$185 -> 0 | AI183: =$AI$184/$AI$185 -> 0 | AJ183: =$AJ$184/$AJ$185 -> 0 | AK183: =$AK$184/$AK$185 -> 0 | AL183: =$AL$184/$AL$185 -> 0 | AM183: =$AM$184/$AM$185 -> 0 | AN183: =$AN$184/$AN$185 -> 0 | AO183: =$AO$184/$AO$185 -> 0 | AP183: =$AP$184/$AP$185 -> 0 | AQ183: =$AQ$184/$AQ$185 -> 0 | AR183: =$AR$184/$AR$185 -> 0 | AS183: =$AS$184/$AS$185 -> 0 | AT183: 加熱時消費電力比
B184: αw | C184: 加熱空調負荷率 | D184: =IF((D$169-$Q$25)/($Q$25-15)+1<0,0,IF((D$169-$Q$25)/($Q$25-15)+1>1,1,((D$169-$Q$25)/($Q$25-15)+1))) -> 1 | E184: =IF((E$169-$Q$25)/($Q$25-15)+1<0,0,IF((E$169-$Q$25)/($Q$25-15)+1>1,1,((E$169-$Q$25)/($Q$25-15)+1))) -> 1 | F184: 0.95 | G184: 0.9 | H184: 0.85 | I184: 0.8 | J184: =IF((J$169-$Q$25)/($Q$25-15)+1<0,0,IF((J$169-$Q$25)/($Q$25-15)+1>1,1,((J$169-$Q$25)/($Q$25-15)+1))) -> 0.75 | K184: 0.7 | L184: 0.65 | M184: 0.6 | N184: 0.55 | O184: =IF((O$169-$Q$25)/($Q$25-15)+1<0,0,IF((O$169-$Q$25)/($Q$25-15)+1>1,1,((O$169-$Q$25)/($Q$25-15)+1))) -> 0.5 | P184: 0.45 | Q184: 0.4 | R184: =IF((R$169-$Q$25)/($Q$25-15)+1<0,0,IF((R$169-$Q$25)/($Q$25-15)+1>1,1,((R$169-$Q$25)/($Q$25-15)+1))) -> 0.35 | S184: 0.3 | T184: 0.25 | U184: 0.2 | V184: 0.15 | W184: =IF((W$169-$Q$25)/($Q$25-15)+1<0,0,IF((W$169-$Q$25)/($Q$25-15)+1>1,1,((W$169-$Q$25)/($Q$25-15)+1))) -> 0.1 | X184: 0.05 | Y184: 0 | Z184: 0 | AA184: 0 | AB184: 0 | AC184: =IF((AC$169-$Q$25)/($Q$25-15)+1<0,0,IF((AC$169-$Q$25)/($Q$25-15)+1>1,1,((AC$169-$Q$25)/($Q$25-15)+1))) -> 0 | AD184: =IF((AD$169-$Q$25)/($Q$25-15)+1<0,0,IF((AD$169-$Q$25)/($Q$25-15)+1>1,1,((AD$169-$Q$25)/($Q$25-15)+1))) -> 0 | AE184: =IF((AE$169-$Q$25)/($Q$25-15)+1<0,0,IF((AE$169-$Q$25)/($Q$25-15)+1>1,1,((AE$169-$Q$25)/($Q$25-15)+1))) -> 0 | AF184: 0 | AG184: 0 | AH184: 0 | AI184: 0 | AJ184: =IF((AJ$169-$Q$25)/($Q$25-15)+1<0,0,IF((AJ$169-$Q$25)/($Q$25-15)+1>1,1,((AJ$169-$Q$25)/($Q$25-15)+1))) -> 0 | AK184: 0 | AL184: 0 | AM184: 0 | AN184: 0 | AO184: =IF((AO$169-$Q$25)/($Q$25-15)+1<0,0,IF((AO$169-$Q$25)/($Q$25-15)+1>1,1,((AO$169-$Q$25)/($Q$25-15)+1))) -> 0 | AP184: 0 | AQ184: 0 | AR184: =IF((AR$169-$Q$25)/($Q$25-15)+1<0,0,IF((AR$169-$Q$25)/($Q$25-15)+1>1,1,((AR$169-$Q$25)/($Q$25-15)+1))) -> 0 | AS184: 0 | AT184: 加熱空調負荷率
B185: βw | C185: 加熱COP比 | D185: =-5.36/10000*D$169*D$169-0.0136*D$169+0.715 -> 0.777304 | E185: =-5.36/10000*E$169*E$169-0.0136*E$169+0.715 -> 0.7696 | F185: 0.760824 | G185: 0.750976 | H185: 0.740056 | I185: 0.728064 | J185: =9.41/100000*J$169*J$169+0.0473*J$169+0.715 -> 0.715 | K185: =9.41/100000*K$169*K$169+0.0473*K$169+0.715 -> 0.7623941 | L185: 0.8099764 | M185: 0.8577469 | N185: 0.9057056 | O185: =9.41/100000*O$169*O$169+0.0473*O$169+0.715 -> 0.9538525 | P185: =-1.59/100000*P$169*P$169+0.0159*P$169+0.891 -> 0.9858276 | Q185: =-1.59/100000*Q$169*Q$169+0.0159*Q$169+0.891 -> 1.0015209 | R185: 1.0171824 | S185: 1.0328121 | T185: 1.04841 | U185: 1.0639761 | V185: 1.0795104 | W185: 1.0950129 | X185: 1.1104836 | Y185: 1.1259225 | Z185: 1.1413296 | AA185: 1.1567049 | AB185: 1.1720484 | AC185: 1.1873601 | AD185: 1.20264 | AE185: 1.2178881 | AF185: 1.2331044 | AG185: 1.2482889 | AH185: 1.2634416 | AI185: 1.2785625 | AJ185: 1.2936516 | AK185: 1.3087089 | AL185: 1.3237344 | AM185: 1.3387281 | AN185: 1.35369 | AO185: 1.3686201 | AP185: 1.3835184 | AQ185: 1.3983849 | AR185: 1.4132196 | AS185: 1.4280225 | AT185: 加熱COP比
C186: Σ | D186: =D$182*D$183 -> 0 | E186: =E$182*E$183 -> 0 | F186: 0 | G186: 0 | H186: 0 | I186: 0 | J186: 0 | K186: 0 | L186: 0 | M186: 0 | N186: 0 | O186: 0 | P186: 0 | Q186: 0 | R186: 0 | S186: 0 | T186: 0 | U186: 0 | V186: 0 | W186: 0 | X186: 0 | Y186: 0 | Z186: 0 | AA186: 0 | AB186: 0 | AC186: 0 | AD186: 0 | AE186: 0 | AF186: 0 | AG186: 0 | AH186: 0 | AI186: 0 | AJ186: 0 | AK186: 0 | AL186: 0 | AM186: 0 | AN186: 0 | AO186: 0 | AP186: 0 | AQ186: 0 | AR186: 0 | AS186: 0 | AT186: =SUM($D$186:$AS$186) -> 0
D187: ←着霜領域② | I187: 着霜領域②→ | J187: ←着霜領域① | O187: 着霜領域①→ | P187: ←非着霜領域 | AS187: 非着霜領域→
C189: αc^0.6 | D189: =D163^0.6 -> 0 | E189: =E163^0.6 -> 0 | F189: 0 | G189: 0 | H189: 0 | I189: 0 | J189: 0 | K189: 0 | L189: 0 | M189: 0 | N189: 0 | O189: 0 | P189: 0 | Q189: 0 | R189: 0 | S189: 0 | T189: 0 | U189: 0 | V189: 0 | W189: 0 | X189: 0 | Y189: 0 | Z189: 0.1657227009 | AA189: 0.2511886432 | AB189: 0.3203721498 | AC189: 0.3807307877 | AD189: 0.4352752816 | AE189: 0.4855933748 | AF189: 0.5326486451 | AG189: 0.5770799624 | AH189: 0.6193376876 | AI189: 0.6597539554 | AJ189: 0.6985823579 | AK189: 0.7360219228 | AL189: 0.772232391 | AM189: 0.8073443754 | AN189: 0.8414663591 | AO189: 0.8746896592 | AP189: 0.907092039 | AQ189: 0.9387403934 | AR189: 0.9696927826 | AS189: 1 | AT189: αc^0.6
C190: Σ | D190: =D161*D189 -> 0 | E190: =E161*E189 -> 0 | F190: 0 | G190: 0 | H190: 0 | I190: 0 | J190: 0 | K190: 0 | L190: 0 | M190: 0 | N190: 0 | O190: 0 | P190: 0 | Q190: 0 | R190: 0 | S190: 0 | T190: 0 | U190: 0 | V190: 0 | W190: 0 | X190: 0 | Y190: 0 | Z190: 0 | AA190: 0 | AB190: 0 | AC190: 0 | AD190: 0 | AE190: 0 | AF190: 0 | AG190: 0 | AH190: 0 | AI190: 0 | AJ190: 0 | AK190: 0 | AL190: 0 | AM190: 0 | AN190: 0 | AO190: 0 | AP190: 0 | AQ190: 0 | AR190: 0 | AS190: 0 | AT190: =SUM(D190:AS190) -> 0
C192: αw^0.6 | D192: =D184^0.6 -> 1 | E192: =E184^0.6 -> 1 | F192: 0.9696927826 | G192: 0.9387403934 | H192: 0.907092039 | I192: 0.8746896592 | J192: 0.8414663591 | K192: 0.8073443754 | L192: 0.772232391 | M192: 0.7360219228 | N192: 0.6985823579 | O192: 0.6597539554 | P192: 0.6193376876 | Q192: 0.5770799624 | R192: 0.5326486451 | S192: 0.4855933748 | T192: 0.4352752816 | U192: 0.3807307877 | V192: 0.3203721498 | W192: 0.2511886432 | X192: 0.1657227009 | Y192: 0 | Z192: 0 | AA192: 0 | AB192: 0 | AC192: 0 | AD192: 0 | AE192: 0 | AF192: 0 | AG192: 0 | AH192: 0 | AI192: 0 | AJ192: 0 | AK192: 0 | AL192: 0 | AM192: 0 | AN192: 0 | AO192: 0 | AP192: 0 | AQ192: 0 | AR192: 0 | AS192: 0 | AT192: αw^0.6
C193: Σ | D193: =D182*D192 -> 0 | E193: =E182*E192 -> 0 | F193: 0 | G193: 0 | H193: 0 | I193: 0 | J193: 0 | K193: 0 | L193: 0 | M193: 0 | N193: 0 | O193: 0 | P193: 0 | Q193: 0 | R193: 0 | S193: 0 | T193: 0 | U193: 0 | V193: 0 | W193: 0 | X193: 0 | Y193: 0 | Z193: 0 | AA193: 0 | AB193: 0 | AC193: 0 | AD193: 0 | AE193: 0 | AF193: 0 | AG193: 0 | AH193: 0 | AI193: 0 | AJ193: 0 | AK193: 0 | AL193: 0 | AM193: 0 | AN193: 0 | AO193: 0 | AP193: 0 | AQ193: 0 | AR193: 0 | AS193: 0 | AT193: =SUM(D193:AS193) -> 0

Sheet 温暖地(γ個別入力)
C2: 空冷HPチラーの設置場所
C3: =IF(必ずこのシートから始めてください!$L$8="","",必ずこのシートから始めてください!$L$8) ->  | F3: 手順1：空調を行う月、時間を下記の指定の色で塗る(指定の色以外で塗ると計算できません。)
C4: =VLOOKUP($C$3,γ一覧表!$C$3:$E$50,2,FALSE) ->  | G4: 冷却 | H4: 青 | I4: 【左から5列目、一番薄い色(アクセント1,白＋基本色80％)】
G5: 加熱 | H5: オレンジ | I5: 【左から6番目、一番薄い色(アクセント2,白＋基本色80％)】
C6: 使用するγ値 | F6: 手順2：各月の運転日数を入力する
C7: =IF(必ずこのシートから始めてください!$L$22="","---",IF(必ずこのシートから始めてください!$L$22>1,"---",必ずこのシートから始めてください!$L$22)) -> --- | F7: 手順3：Ctrl + Alt + F9を同時に押す | R7: ●時刻別平均気温表記載の数値は、選択された都道府県の県庁所在地の月別、時刻別平均気温
F8: 手順4：黄色のセルに値を入力する(緑は自動計算) | R8: ●本データは気象庁発表の1992年4月1日から2022年3月31日までの30年の1時間データを整理したもの
C9: 時刻別平均気温[℃] | R9: ●2月はうるう日を含みます
D10: 時刻 | AB10: =SUM(AB12:AB23) -> 0 | AC10: =必ずこのシートから始めてください!$M$3 -> Ver.1.0
C11: 月 | D11: 0 | E11: 1 | F11: 2 | G11: 3 | H11: 4 | I11: 5 | J11: 6 | K11: 7 | L11: 8 | M11: 9 | N11: 10 | O11: 11 | P11: 12 | Q11: 13 | R11: 14 | S11: 15 | T11: 16 | U11: 17 | V11: 18 | W11: 19 | X11: 20 | Y11: 21 | Z11: 22 | AA11: 23 | AB11: 運転日数 | AC11: 月
C12: 4 | D12: =IFERROR(INDIRECT($C$4&"!B5"),"") ->  | E12: =IFERROR(INDIRECT($C$4&"!C5"),"") ->  | F12: =IFERROR(INDIRECT($C$4&"!D5"),"") ->  | G12: =IFERROR(INDIRECT($C$4&"!E5"),"") ->  | H12: =IFERROR(INDIRECT($C$4&"!F5"),"") ->  | I12: =IFERROR(INDIRECT($C$4&"!G5"),"") ->  | J12: =IFERROR(INDIRECT($C$4&"!H5"),"") ->  | K12: =IFERROR(INDIRECT($C$4&"!I5"),"") ->  | L12: =IFERROR(INDIRECT($C$4&"!J5"),"") ->  | M12: =IFERROR(INDIRECT($C$4&"!K5"),"") ->  | N12: =IFERROR(INDIRECT($C$4&"!L5"),"") ->  | O12: =IFERROR(INDIRECT($C$4&"!M5"),"") ->  | P12: =IFERROR(INDIRECT($C$4&"!N5"),"") ->  | Q12: =IFERROR(INDIRECT($C$4&"!O5"),"") ->  | R12: =IFERROR(INDIRECT($C$4&"!P5"),"") ->  | S12: =IFERROR(INDIRECT($C$4&"!Q5"),"") ->  | T12: =IFERROR(INDIRECT($C$4&"!R5"),"") ->  | U12: =IFERROR(INDIRECT($C$4&"!S5"),"") ->  | V12: =IFERROR(INDIRECT($C$4&"!T5"),"") ->  | W12: =IFERROR(INDIRECT($C$4&"!U5"),"") ->  | X12: =IFERROR(INDIRECT($C$4&"!V5"),"") ->  | Y12: =IFERROR(INDIRECT($C$4&"!W5"),"") ->  | Z12: =IFERROR(INDIRECT($C$4&"!X5"),"") ->  | AA12: =IFERROR(INDIRECT($C$4&"!Y5"),"") ->  | AC12: 4
C13: 5 | D13: =IFERROR(INDIRECT($C$4&"!B6"),"") ->  | E13: =IFERROR(INDIRECT($C$4&"!C6"),"") ->  | F13: =IFERROR(INDIRECT($C$4&"!D6"),"") ->  | G13: =IFERROR(INDIRECT($C$4&"!E6"),"") ->  | H13: =IFERROR(INDIRECT($C$4&"!F6"),"") ->  | I13: =IFERROR(INDIRECT($C$4&"!G6"),"") ->  | J13: =IFERROR(INDIRECT($C$4&"!H6"),"") ->  | K13: =IFERROR(INDIRECT($C$4&"!I6"),"") ->  | L13: =IFERROR(INDIRECT($C$4&"!J6"),"") ->  | M13: =IFERROR(INDIRECT($C$4&"!K6"),"") ->  | N13: =IFERROR(INDIRECT($C$4&"!L6"),"") ->  | O13: =IFERROR(INDIRECT($C$4&"!M6"),"") ->  | P13: =IFERROR(INDIRECT($C$4&"!N6"),"") ->  | Q13: =IFERROR(INDIRECT($C$4&"!O6"),"") ->  | R13: =IFERROR(INDIRECT($C$4&"!P6"),"") ->  | S13: =IFERROR(INDIRECT($C$4&"!Q6"),"") ->  | T13: =IFERROR(INDIRECT($C$4&"!R6"),"") ->  | U13: =IFERROR(INDIRECT($C$4&"!S6"),"") ->  | V13: =IFERROR(INDIRECT($C$4&"!T6"),"") ->  | W13: =IFERROR(INDIRECT($C$4&"!U6"),"") ->  | X13: =IFERROR(INDIRECT($C$4&"!V6"),"") ->  | Y13: =IFERROR(INDIRECT($C$4&"!W6"),"") ->  | Z13: =IFERROR(INDIRECT($C$4&"!X6"),"") ->  | AA13: =IFERROR(INDIRECT($C$4&"!Y6"),"") ->  | AC13: 5
C14: 6 | D14: =IFERROR(INDIRECT($C$4&"!B7"),"") ->  | E14: =IFERROR(INDIRECT($C$4&"!C7"),"") ->  | F14: =IFERROR(INDIRECT($C$4&"!D7"),"") ->  | G14: =IFERROR(INDIRECT($C$4&"!E7"),"") ->  | H14: =IFERROR(INDIRECT($C$4&"!F7"),"") ->  | I14: =IFERROR(INDIRECT($C$4&"!G7"),"") ->  | J14: =IFERROR(INDIRECT($C$4&"!H7"),"") ->  | K14: =IFERROR(INDIRECT($C$4&"!I7"),"") ->  | L14: =IFERROR(INDIRECT($C$4&"!J7"),"") ->  | M14: =IFERROR(INDIRECT($C$4&"!K7"),"") ->  | N14: =IFERROR(INDIRECT($C$4&"!L7"),"") ->  | O14: =IFERROR(INDIRECT($C$4&"!M7"),"") ->  | P14: =IFERROR(INDIRECT($C$4&"!N7"),"") ->  | Q14: =IFERROR(INDIRECT($C$4&"!O7"),"") ->  | R14: =IFERROR(INDIRECT($C$4&"!P7"),"") ->  | S14: =IFERROR(INDIRECT($C$4&"!Q7"),"") ->  | T14: =IFERROR(INDIRECT($C$4&"!R7"),"") ->  | U14: =IFERROR(INDIRECT($C$4&"!S7"),"") ->  | V14: =IFERROR(INDIRECT($C$4&"!T7"),"") ->  | W14: =IFERROR(INDIRECT($C$4&"!U7"),"") ->  | X14: =IFERROR(INDIRECT($C$4&"!V7"),"") ->  | Y14: =IFERROR(INDIRECT($C$4&"!W7"),"") ->  | Z14: =IFERROR(INDIRECT($C$4&"!X7"),"") ->  | AA14: =IFERROR(INDIRECT($C$4&"!Y7"),"") ->  | AC14: 6
C15: 7 | D15: =IFERROR(INDIRECT($C$4&"!B8"),"") ->  | E15: =IFERROR(INDIRECT($C$4&"!C8"),"") ->  | F15: =IFERROR(INDIRECT($C$4&"!D8"),"") ->  | G15: =IFERROR(INDIRECT($C$4&"!E8"),"") ->  | H15: =IFERROR(INDIRECT($C$4&"!F8"),"") ->  | I15: =IFERROR(INDIRECT($C$4&"!G8"),"") ->  | J15: =IFERROR(INDIRECT($C$4&"!H8"),"") ->  | K15: =IFERROR(INDIRECT($C$4&"!I8"),"") ->  | L15: =IFERROR(INDIRECT($C$4&"!J8"),"") ->  | M15: =IFERROR(INDIRECT($C$4&"!K8"),"") ->  | N15: =IFERROR(INDIRECT($C$4&"!L8"),"") ->  | O15: =IFERROR(INDIRECT($C$4&"!M8"),"") ->  | P15: =IFERROR(INDIRECT($C$4&"!N8"),"") ->  | Q15: =IFERROR(INDIRECT($C$4&"!O8"),"") ->  | R15: =IFERROR(INDIRECT($C$4&"!P8"),"") ->  | S15: =IFERROR(INDIRECT($C$4&"!Q8"),"") ->  | T15: =IFERROR(INDIRECT($C$4&"!R8"),"") ->  | U15: =IFERROR(INDIRECT($C$4&"!S8"),"") ->  | V15: =IFERROR(INDIRECT($C$4&"!T8"),"") ->  | W15: =IFERROR(INDIRECT($C$4&"!U8"),"") ->  | X15: =IFERROR(INDIRECT($C$4&"!V8"),"") ->  | Y15: =IFERROR(INDIRECT($C$4&"!W8"),"") ->  | Z15: =IFERROR(INDIRECT($C$4&"!X8"),"") ->  | AA15: =IFERROR(INDIRECT($C$4&"!Y8"),"") ->  | AC15: 7
C16: 8 | D16: =IFERROR(INDIRECT($C$4&"!B9"),"") ->  | E16: =IFERROR(INDIRECT($C$4&"!C9"),"") ->  | F16: =IFERROR(INDIRECT($C$4&"!D9"),"") ->  | G16: =IFERROR(INDIRECT($C$4&"!E9"),"") ->  | H16: =IFERROR(INDIRECT($C$4&"!F9"),"") ->  | I16: =IFERROR(INDIRECT($C$4&"!G9"),"") ->  | J16: =IFERROR(INDIRECT($C$4&"!H9"),"") ->  | K16: =IFERROR(INDIRECT($C$4&"!I9"),"") ->  | L16: =IFERROR(INDIRECT($C$4&"!J9"),"") ->  | M16: =IFERROR(INDIRECT($C$4&"!K9"),"") ->  | N16: =IFERROR(INDIRECT($C$4&"!L9"),"") ->  | O16: =IFERROR(INDIRECT($C$4&"!M9"),"") ->  | P16: =IFERROR(INDIRECT($C$4&"!N9"),"") ->  | Q16: =IFERROR(INDIRECT($C$4&"!O9"),"") ->  | R16: =IFERROR(INDIRECT($C$4&"!P9"),"") ->  | S16: =IFERROR(INDIRECT($C$4&"!Q9"),"") ->  | T16: =IFERROR(INDIRECT($C$4&"!R9"),"") ->  | U16: =IFERROR(INDIRECT($C$4&"!S9"),"") ->  | V16: =IFERROR(INDIRECT($C$4&"!T9"),"") ->  | W16: =IFERROR(INDIRECT($C$4&"!U9"),"") ->  | X16: =IFERROR(INDIRECT($C$4&"!V9"),"") ->  | Y16: =IFERROR(INDIRECT($C$4&"!W9"),"") ->  | Z16: =IFERROR(INDIRECT($C$4&"!X9"),"") ->  | AA16: =IFERROR(INDIRECT($C$4&"!Y9"),"") ->  | AC16: 8
C17: 9 | D17: =IFERROR(INDIRECT($C$4&"!B10"),"") ->  | E17: =IFERROR(INDIRECT($C$4&"!C10"),"") ->  | F17: =IFERROR(INDIRECT($C$4&"!D10"),"") ->  | G17: =IFERROR(INDIRECT($C$4&"!E10"),"") ->  | H17: =IFERROR(INDIRECT($C$4&"!F10"),"") ->  | I17: =IFERROR(INDIRECT($C$4&"!G10"),"") ->  | J17: =IFERROR(INDIRECT($C$4&"!H10"),"") ->  | K17: =IFERROR(INDIRECT($C$4&"!I10"),"") ->  | L17: =IFERROR(INDIRECT($C$4&"!J10"),"") ->  | M17: =IFERROR(INDIRECT($C$4&"!K10"),"") ->  | N17: =IFERROR(INDIRECT($C$4&"!L10"),"") ->  | O17: =IFERROR(INDIRECT($C$4&"!M10"),"") ->  | P17: =IFERROR(INDIRECT($C$4&"!N10"),"") ->  | Q17: =IFERROR(INDIRECT($C$4&"!O10"),"") ->  | R17: =IFERROR(INDIRECT($C$4&"!P10"),"") ->  | S17: =IFERROR(INDIRECT($C$4&"!Q10"),"") ->  | T17: =IFERROR(INDIRECT($C$4&"!R10"),"") ->  | U17: =IFERROR(INDIRECT($C$4&"!S10"),"") ->  | V17: =IFERROR(INDIRECT($C$4&"!T10"),"") ->  | W17: =IFERROR(INDIRECT($C$4&"!U10"),"") ->  | X17: =IFERROR(INDIRECT($C$4&"!V10"),"") ->  | Y17: =IFERROR(INDIRECT($C$4&"!W10"),"") ->  | Z17: =IFERROR(INDIRECT($C$4&"!X10"),"") ->  | AA17: =IFERROR(INDIRECT($C$4&"!Y10"),"") ->  | AC17: 9
C18: 10 | D18: =IFERROR(INDIRECT($C$4&"!B11"),"") ->  | E18: =IFERROR(INDIRECT($C$4&"!C11"),"") ->  | F18: =IFERROR(INDIRECT($C$4&"!D11"),"") ->  | G18: =IFERROR(INDIRECT($C$4&"!E11"),"") ->  | H18: =IFERROR(INDIRECT($C$4&"!F11"),"") ->  | I18: =IFERROR(INDIRECT($C$4&"!G11"),"") ->  | J18: =IFERROR(INDIRECT($C$4&"!H11"),"") ->  | K18: =IFERROR(INDIRECT($C$4&"!I11"),"") ->  | L18: =IFERROR(INDIRECT($C$4&"!J11"),"") ->  | M18: =IFERROR(INDIRECT($C$4&"!K11"),"") ->  | N18: =IFERROR(INDIRECT($C$4&"!L11"),"") ->  | O18: =IFERROR(INDIRECT($C$4&"!M11"),"") ->  | P18: =IFERROR(INDIRECT($C$4&"!N11"),"") ->  | Q18: =IFERROR(INDIRECT($C$4&"!O11"),"") ->  | R18: =IFERROR(INDIRECT($C$4&"!P11"),"") ->  | S18: =IFERROR(INDIRECT($C$4&"!Q11"),"") ->  | T18: =IFERROR(INDIRECT($C$4&"!R11"),"") ->  | U18: =IFERROR(INDIRECT($C$4&"!S11"),"") ->  | V18: =IFERROR(INDIRECT($C$4&"!T11"),"") ->  | W18: =IFERROR(INDIRECT($C$4&"!U11"),"") ->  | X18: =IFERROR(INDIRECT($C$4&"!V11"),"") ->  | Y18: =IFERROR(INDIRECT($C$4&"!W11"),"") ->  | Z18: =IFERROR(INDIRECT($C$4&"!X11"),"") ->  | AA18: =IFERROR(INDIRECT($C$4&"!Y11"),"") ->  | AC18: 10
C19: 11 | D19: =IFERROR(INDIRECT($C$4&"!B12"),"") ->  | E19: =IFERROR(INDIRECT($C$4&"!C12"),"") ->  | F19: =IFERROR(INDIRECT($C$4&"!D12"),"") ->  | G19: =IFERROR(INDIRECT($C$4&"!E12"),"") ->  | H19: =IFERROR(INDIRECT($C$4&"!F12"),"") ->  | I19: =IFERROR(INDIRECT($C$4&"!G12"),"") ->  | J19: =IFERROR(INDIRECT($C$4&"!H12"),"") ->  | K19: =IFERROR(INDIRECT($C$4&"!I12"),"") ->  | L19: =IFERROR(INDIRECT($C$4&"!J12"),"") ->  | M19: =IFERROR(INDIRECT($C$4&"!K12"),"") ->  | N19: =IFERROR(INDIRECT($C$4&"!L12"),"") ->  | O19: =IFERROR(INDIRECT($C$4&"!M12"),"") ->  | P19: =IFERROR(INDIRECT($C$4&"!N12"),"") ->  | Q19: =IFERROR(INDIRECT($C$4&"!O12"),"") ->  | R19: =IFERROR(INDIRECT($C$4&"!P12"),"") ->  | S19: =IFERROR(INDIRECT($C$4&"!Q12"),"") ->  | T19: =IFERROR(INDIRECT($C$4&"!R12"),"") ->  | U19: =IFERROR(INDIRECT($C$4&"!S12"),"") ->  | V19: =IFERROR(INDIRECT($C$4&"!T12"),"") ->  | W19: =IFERROR(INDIRECT($C$4&"!U12"),"") ->  | X19: =IFERROR(INDIRECT($C$4&"!V12"),"") ->  | Y19: =IFERROR(INDIRECT($C$4&"!W12"),"") ->  | Z19: =IFERROR(INDIRECT($C$4&"!X12"),"") ->  | AA19: =IFERROR(INDIRECT($C$4&"!Y12"),"") ->  | AC19: 11
C20: 12 | D20: =IFERROR(INDIRECT($C$4&"!B13"),"") ->  | E20: =IFERROR(INDIRECT($C$4&"!C13"),"") ->  | F20: =IFERROR(INDIRECT($C$4&"!D13"),"") ->  | G20: =IFERROR(INDIRECT($C$4&"!E13"),"") ->  | H20: =IFERROR(INDIRECT($C$4&"!F13"),"") ->  | I20: =IFERROR(INDIRECT($C$4&"!G13"),"") ->  | J20: =IFERROR(INDIRECT($C$4&"!H13"),"") ->  | K20: =IFERROR(INDIRECT($C$4&"!I13"),"") ->  | L20: =IFERROR(INDIRECT($C$4&"!J13"),"") ->  | M20: =IFERROR(INDIRECT($C$4&"!K13"),"") ->  | N20: =IFERROR(INDIRECT($C$4&"!L13"),"") ->  | O20: =IFERROR(INDIRECT($C$4&"!M13"),"") ->  | P20: =IFERROR(INDIRECT($C$4&"!N13"),"") ->  | Q20: =IFERROR(INDIRECT($C$4&"!O13"),"") ->  | R20: =IFERROR(INDIRECT($C$4&"!P13"),"") ->  | S20: =IFERROR(INDIRECT($C$4&"!Q13"),"") ->  | T20: =IFERROR(INDIRECT($C$4&"!R13"),"") ->  | U20: =IFERROR(INDIRECT($C$4&"!S13"),"") ->  | V20: =IFERROR(INDIRECT($C$4&"!T13"),"") ->  | W20: =IFERROR(INDIRECT($C$4&"!U13"),"") ->  | X20: =IFERROR(INDIRECT($C$4&"!V13"),"") ->  | Y20: =IFERROR(INDIRECT($C$4&"!W13"),"") ->  | Z20: =IFERROR(INDIRECT($C$4&"!X13"),"") ->  | AA20: =IFERROR(INDIRECT($C$4&"!Y13"),"") ->  | AC20: 12
C21: 1 | D21: =IFERROR(INDIRECT($C$4&"!B14"),"") ->  | E21: =IFERROR(INDIRECT($C$4&"!C14"),"") ->  | F21: =IFERROR(INDIRECT($C$4&"!D14"),"") ->  | G21: =IFERROR(INDIRECT($C$4&"!E14"),"") ->  | H21: =IFERROR(INDIRECT($C$4&"!F14"),"") ->  | I21: =IFERROR(INDIRECT($C$4&"!G14"),"") ->  | J21: =IFERROR(INDIRECT($C$4&"!H14"),"") ->  | K21: =IFERROR(INDIRECT($C$4&"!I14"),"") ->  | L21: =IFERROR(INDIRECT($C$4&"!J14"),"") ->  | M21: =IFERROR(INDIRECT($C$4&"!K14"),"") ->  | N21: =IFERROR(INDIRECT($C$4&"!L14"),"") ->  | O21: =IFERROR(INDIRECT($C$4&"!M14"),"") ->  | P21: =IFERROR(INDIRECT($C$4&"!N14"),"") ->  | Q21: =IFERROR(INDIRECT($C$4&"!O14"),"") ->  | R21: =IFERROR(INDIRECT($C$4&"!P14"),"") ->  | S21: =IFERROR(INDIRECT($C$4&"!Q14"),"") ->  | T21: =IFERROR(INDIRECT($C$4&"!R14"),"") ->  | U21: =IFERROR(INDIRECT($C$4&"!S14"),"") ->  | V21: =IFERROR(INDIRECT($C$4&"!T14"),"") ->  | W21: =IFERROR(INDIRECT($C$4&"!U14"),"") ->  | X21: =IFERROR(INDIRECT($C$4&"!V14"),"") ->  | Y21: =IFERROR(INDIRECT($C$4&"!W14"),"") ->  | Z21: =IFERROR(INDIRECT($C$4&"!X14"),"") ->  | AA21: =IFERROR(INDIRECT($C$4&"!Y14"),"") ->  | AC21: 1
C22: 2 | D22: =IFERROR(INDIRECT($C$4&"!B15"),"") ->  | E22: =IFERROR(INDIRECT($C$4&"!C15"),"") ->  | F22: =IFERROR(INDIRECT($C$4&"!D15"),"") ->  | G22: =IFERROR(INDIRECT($C$4&"!E15"),"") ->  | H22: =IFERROR(INDIRECT($C$4&"!F15"),"") ->  | I22: =IFERROR(INDIRECT($C$4&"!G15"),"") ->  | J22: =IFERROR(INDIRECT($C$4&"!H15"),"") ->  | K22: =IFERROR(INDIRECT($C$4&"!I15"),"") ->  | L22: =IFERROR(INDIRECT($C$4&"!J15"),"") ->  | M22: =IFERROR(INDIRECT($C$4&"!K15"),"") ->  | N22: =IFERROR(INDIRECT($C$4&"!L15"),"") ->  | O22: =IFERROR(INDIRECT($C$4&"!M15"),"") ->  | P22: =IFERROR(INDIRECT($C$4&"!N15"),"") ->  | Q22: =IFERROR(INDIRECT($C$4&"!O15"),"") ->  | R22: =IFERROR(INDIRECT($C$4&"!P15"),"") ->  | S22: =IFERROR(INDIRECT($C$4&"!Q15"),"") ->  | T22: =IFERROR(INDIRECT($C$4&"!R15"),"") ->  | U22: =IFERROR(INDIRECT($C$4&"!S15"),"") ->  | V22: =IFERROR(INDIRECT($C$4&"!T15"),"") ->  | W22: =IFERROR(INDIRECT($C$4&"!U15"),"") ->  | X22: =IFERROR(INDIRECT($C$4&"!V15"),"") ->  | Y22: =IFERROR(INDIRECT($C$4&"!W15"),"") ->  | Z22: =IFERROR(INDIRECT($C$4&"!X15"),"") ->  | AA22: =IFERROR(INDIRECT($C$4&"!Y15"),"") ->  | AC22: 2
C23: 3 | D23: =IFERROR(INDIRECT($C$4&"!B16"),"") ->  | E23: =IFERROR(INDIRECT($C$4&"!C16"),"") ->  | F23: =IFERROR(INDIRECT($C$4&"!D16"),"") ->  | G23: =IFERROR(INDIRECT($C$4&"!E16"),"") ->  | H23: =IFERROR(INDIRECT($C$4&"!F16"),"") ->  | I23: =IFERROR(INDIRECT($C$4&"!G16"),"") ->  | J23: =IFERROR(INDIRECT($C$4&"!H16"),"") ->  | K23: =IFERROR(INDIRECT($C$4&"!I16"),"") ->  | L23: =IFERROR(INDIRECT($C$4&"!J16"),"") ->  | M23: =IFERROR(INDIRECT($C$4&"!K16"),"") ->  | N23: =IFERROR(INDIRECT($C$4&"!L16"),"") ->  | O23: =IFERROR(INDIRECT($C$4&"!M16"),"") ->  | P23: =IFERROR(INDIRECT($C$4&"!N16"),"") ->  | Q23: =IFERROR(INDIRECT($C$4&"!O16"),"") ->  | R23: =IFERROR(INDIRECT($C$4&"!P16"),"") ->  | S23: =IFERROR(INDIRECT($C$4&"!Q16"),"") ->  | T23: =IFERROR(INDIRECT($C$4&"!R16"),"") ->  | U23: =IFERROR(INDIRECT($C$4&"!S16"),"") ->  | V23: =IFERROR(INDIRECT($C$4&"!T16"),"") ->  | W23: =IFERROR(INDIRECT($C$4&"!U16"),"") ->  | X23: =IFERROR(INDIRECT($C$4&"!V16"),"") ->  | Y23: =IFERROR(INDIRECT($C$4&"!W16"),"") ->  | Z23: =IFERROR(INDIRECT($C$4&"!X16"),"") ->  | AA23: =IFERROR(INDIRECT($C$4&"!Y16"),"") ->  | AC23: 3
T25: 定格条件 【外気温度】 | V25: 冷却 | W25: 35℃ | Y25: 定格条件 【冷温水温度】 | AA25: 冷却 | AB25: 入口温度 | AC25: 12℃ | AD25: 加熱 | AE25: 入口温度 | AF25: 40℃
V26: 加熱 | W26: 7℃ | AB26: 出口温度 | AC26: 7℃ | AE26: 出口温度 | AF26: 45℃
D28: 設備導入前 | Q28: 前1 | R28: 前2 | S28: 前3
E29: 定格冷却能力 | I29: 空冷HPチラーの仕様を入力 | P29: Φco | Q29: 150 | T29: kW
E30: 定格冷却消費電力 | I30: 空冷HPチラーの仕様を入力 | P30: Pco | Q30: 43 | T30: kW
E31: 定格冷却COP | I31: 自動計算 | P31: σco | Q31: =IFERROR(Q$29/Q$30,"") -> 3.488372093 | R31: =IFERROR(R$29/R$30,"") ->  | S31: =IFERROR(S$29/S$30,"") ->  | T31: σco＝Φco／Pco
E32: 定格加熱能力 | I32: 空冷HPチラーの仕様を入力 | P32: Φwo | Q32: 150 | T32: kW
E33: 定格加熱消費電力 | I33: 空冷HPチラーの仕様を入力 | P33: Pwo | Q33: 41.2 | T33: kW
E34: 定格加熱COP | I34: 自動計算 | P34: σwo | Q34: =IFERROR(Q$32/Q$33,"") -> 3.640776699 | R34: =IFERROR(R$32/R$33,"") ->  | S34: =IFERROR(S$32/S$33,"") ->  | T34: σwo＝Φwo／Pwo
E35: 冷温水ポンプモータ定格出力 | I35: 空冷HPチラーの仕様を入力 | P35: Pp2 | Q35: 3.7 | T35: kW
E36: 最大冷却負荷 | I36: 設計時の値を入力（不明の際は空白のまま） | P36: Qc | T36: kW
Q37: =IF($Q$36="",0.8,IF($Q$36=0,0.8,IF($Q$29<$Q$36,1,$Q$36/$Q$29))) -> 0.8 | R37: =IF($R$36="",0.8,IF($R$36=0,0.8,IF($R$29<$R$36,1,$R$36/$R$29))) -> 0.8 | S37: =IF($S$36="",0.8,IF($S$36=0,0.8,IF($S$29<$S$36,1,$S$36/$S$29))) -> 0.8
D42: 設備導入後 | Q42: 後1 | R42: 後2 | S42: 後3
E43: 定格冷却能力 | I43: 空冷HPチラーの仕様を入力 | P43: Φco | T43: kW
E44: 定格冷却消費電力 | I44: 空冷HPチラーの仕様を入力 | P44: Pco | T44: kW
E45: 定格冷却COP | I45: 自動計算 | P45: σco | Q45: =IFERROR(Q$43/Q$44,"") ->  | R45: =IFERROR(R$43/R$44,"") ->  | S45: =IFERROR(S$43/S$44,"") ->  | T45: σco＝Φco／Pco
E46: 定格加熱能力 | I46: 空冷HPチラーの仕様を入力 | P46: Φwo | T46: kW
E47: 定格加熱消費電力 | I47: 空冷HPチラーの仕様を入力 | P47: Pwo | T47: kW
E48: 定格加熱COP | I48: 自動計算 | P48: σwo | Q48: =IFERROR(Q$46/Q$47,"") ->  | R48: =IFERROR(R$46/R$47,"") ->  | S48: =IFERROR(S$46/S$47,"") ->  | T48: σwo＝Φwo／Pwo
E49: 冷温水ポンプモータ定格出力 | I49: 空冷HPチラーの仕様を入力 | P49: Pp2 | T49: kW
E50: 最大冷却負荷 | I50: 設計時の値を入力（不明の際は空白のまま） | P50: Qc | T50: kW
Q51: =IF($Q$50="",0.8,IF($Q$50=0,0.8,IF($Q$43<$Q$50,1,$Q$50/$Q$43))) -> 0.8 | R51: =IF($R$50="",0.8,IF($R$50=0,0.8,IF($R$43<$R$50,1,$R$50/$R$43))) -> 0.8 | S51: =IF($S$50="",0.8,IF($S$50=0,0.8,IF($S$43<$S$50,1,$S$50/$S$43))) -> 0.8
C56: 設備導入前年間電力使用量[kWh]
D57: 冷却(Ec) | F57: 加熱(Ew) | H57: 合計(Ecw)
D58: =IFERROR($F$74+$M$74+$T$74,"") -> 0 | F58: =IFERROR($I$74+$P$74+$W$74,"") -> 0 | H58: =IFERROR($J$74+$Q$74+$X$74,"") -> 0
D60: 前1 | K60: 前2 | R60: 前3
C61: 月 期間 | D61: 主機(Ecc) | E61: 補機(Eaxc) | F61: 全体(Ec) | G61: 主機(Eww) | H61: 補機(Eaxw) | I61: 全体(Ew) | J61: 月合計 | K61: 主機(Ecc) | L61: 補機(Eaxc) | M61: 全体(Ec) | N61: 主機(Eww) | O61: 補機(Eaxw) | P61: 全体(Ew) | Q61: 月合計 | R61: 主機(Ecc) | S61: 補機(Eaxc) | T61: 全体(Ec) | U61: 主機(Eww) | V61: 補機(Eaxw) | W61: 全体(Ew) | X61: 月合計
C62: 4 | D62: =IF($C$7="---","",IFERROR(AX149,"")) ->  | E62: =IF($C$7="---","",IFERROR(AY149,"")) ->  | G62: =IF($C$7="---","",IFERROR(AX170,"")) ->  | H62: =IF($C$7="---","",IFERROR(AY170,"")) ->  | I62: =IF($C$7="---","",IFERROR(AZ170,"")) ->  | J62: =IFERROR(SUM(F62+I62),"") ->  | K62: =IF($C$7="---","",IFERROR($BA149,"")) ->  | L62: =IF($C$7="---","",IFERROR($BB149,"")) ->  | M62: =IF($C$7="---","",IFERROR($BC149,"")) ->  | N62: =IF($C$7="---","",IFERROR(BA170,"")) ->  | O62: =IF($C$7="---","",IFERROR(BB170,"")) ->  | P62: =IF($C$7="---","",IFERROR(BC170,"")) ->  | Q62: =IFERROR(SUM(M62+P62),"") ->  | R62: =IF($C$7="---","",IFERROR($BD149,"")) ->  | S62: =IF($C$7="---","",IFERROR($BE149,"")) ->  | T62: =IF($C$7="---","",IFERROR($BF149,"")) ->  | U62: =IF($C$7="---","",IFERROR(BD170,"")) ->  | V62: =IF($C$7="---","",IFERROR(BE170,"")) ->  | W62: =IF($C$7="---","",IFERROR(BF170,"")) ->  | X62: =IFERROR(SUM(T62+W62),"") -> 
C63: 5 | D63: =IF($C$7="---","",IFERROR($AX150,"")) ->  | G63: =IF($C$7="---","",IFERROR(AX171,"")) ->  | J63: =IFERROR(SUM(F63+I63),"") ->  | K63: =IF($C$7="---","",IFERROR($BA150,"")) ->  | L63: =IF($C$7="---","",IFERROR($BB150,"")) ->  | M63: =IF($C$7="---","",IFERROR($BC150,"")) ->  | N63: =IF($C$7="---","",IFERROR(BA171,"")) ->  | Q63: =IFERROR(SUM(M63+P63),"") ->  | R63: =IF($C$7="---","",IFERROR($BD150,"")) ->  | S63: =IF($C$7="---","",IFERROR($BE150,"")) ->  | T63: =IF($C$7="---","",IFERROR($BF150,"")) ->  | U63: =IF($C$7="---","",IFERROR(BD171,"")) ->  | X63: =IFERROR(SUM(T63+W63),"") -> 
C64: 6 | J64: =IFERROR(SUM(F64+I64),"") -> 
C65: 7
C66: 8
C67: 9
C68: 10 | Q68: =IFERROR(SUM(M68+P68),"") ->  | X68: =IFERROR(SUM(T68+W68),"") -> 
C69: 11
C70: 12 | J70: =IFERROR(SUM(F70+I70),"") ->  | Q70: =IFERROR(SUM(M70+P70),"") ->  | X70: =IFERROR(SUM(T70+W70),"") -> 
C71: 1
C72: 2 | J72: =IFERROR(SUM(F72+I72),"") ->  | Q72: =IFERROR(SUM(M72+P72),"") -> 
C73: 3 | J73: =IFERROR(SUM(F73+I73),"") -> 
C74: 合計 | D74: =IFERROR(SUM($D$62:$D$73),"") -> 0 | E74: =IFERROR(SUM($E$62:$E$73),"") -> 0 | F74: =IFERROR(SUM(F$62:F$73),"") -> 0 | G74: =IFERROR(SUM(G$62:G$73),"") -> 0 | H74: =IFERROR(SUM(H$62:H$73),"") -> 0 | I74: =IFERROR(SUM(I$62:I$73),"") -> 0 | J74: 0 | K74: 0 | L74: 0 | M74: 0 | N74: 0 | O74: 0 | P74: 0 | Q74: 0 | R74: 0 | S74: 0 | T74: =IFERROR(SUM(T$62:T$73),"") -> 0 | U74: 0 | V74: 0 | W74: 0 | X74: 0
C77: 設備導入後年間電力使用量[kWh]
D78: 冷却(Ec) | F78: 加熱(Ew) | H78: 合計(Ecw)
D79: =IFERROR($F$95+$M$95+$T$95,"") -> 0 | F79: =IFERROR($I$95+$P$95+$W$95,"") -> 0 | H79: =IFERROR($J$95+$Q$95+$X$95,"") -> 0
D81: 後1 | K81: 後2 | R81: 後3
C82: 月 期間 | D82: 主機(Ecc) | E82: 補機(Eaxc) | F82: 全体(Ec) | G82: 主機(Eww) | H82: 補機(Eaxw) | I82: 全体(Ew) | J82: 月合計 | K82: 主機(Ecc) | L82: 補機(Eaxc) | M82: 全体(Ec) | N82: 主機(Eww) | O82: 補機(Eaxw) | P82: 全体(Ew) | Q82: 月合計 | R82: 主機(Ecc) | S82: 補機(Eaxc) | T82: 全体(Ec) | U82: 主機(Eww) | V82: 補機(Eaxw) | W82: 全体(Ew) | X82: 月合計
C83: 4 | D83: =IF($C$7="---","",IFERROR($BH149,"")) ->  | E83: =IF($C$7="---","",IFERROR($BI149,"")) ->  | F83: =IF($C$7="---","",IFERROR($BJ149,"")) ->  | G83: =IF($C$7="---","",IFERROR($BH170,"")) ->  | H83: =IF($C$7="---","",IFERROR($BI170,"")) ->  | I83: =IF($C$7="---","",IFERROR($BJ170,"")) ->  | J83: =IFERROR(SUM(F83+I83),"") ->  | K83: =IF($C$7="---","",IFERROR($BK149,"")) ->  | L83: =IF($C$7="---","",IFERROR($BL149,"")) ->  | M83: =IF($C$7="---","",IFERROR($BM149,"")) ->  | N83: =IF($C$7="---","",IFERROR($BK170,"")) ->  | O83: =IF($C$7="---","",IFERROR($BL170,"")) ->  | P83: =IF($C$7="---","",IFERROR($BM170,"")) ->  | Q83: =IFERROR(SUM(M83+P83),"") ->  | R83: =IF($C$7="---","",IFERROR($BN149,"")) ->  | S83: =IF($C$7="---","",IFERROR($BO149,"")) ->  | T83: =IF($C$7="---","",IFERROR($BP149,"")) ->  | U83: =IF($C$7="---","",IFERROR($BN170,"")) ->  | V83: =IF($C$7="---","",IFERROR($BO170,"")) ->  | W83: =IF($C$7="---","",IFERROR($BP170,"")) ->  | X83: =IFERROR(SUM(T83+W83),"") -> 
